Workbook

Sheet Cash-Basis ERs (hidden)
B1: OPEB Reporting for Washington State Cash-Basis Employers in PEBB
B3: Welcome to OSA's OPEB Liability Estimation Tool
C4: Background
C5: At the request of the Washington State Auditors Office (SAO), the Washington Office of the State Actuary (OSA) developed this Tool for purposes of estimating the retiree medical obligations of specific employers. As we understand, the SAO will distribute this Tool annually to approximately ten cash-basis employers who are not eligible to perform the Alternative Measurement Method (AMM) under the Governmental Accounting Standards Board (GASB) Statement No. 75. As such, the results produced by this Tool do NOT comply with GASB 75. Please review the following explanation and directions below before proceeding.
C7: Intended Use
C8: This Tool is intended to assist certain local government employers in Washington State covering employees under the Public Employees' Benefit Board (PEBB) health insurance with their reporting requirements for Other Postemployment Benefits (OPEB) healthcare obligations. Unless otherwise noted herein, this tool estimates your OPEB Liability using the same methods and assumptions as disclosed in our 2022 PEBB OPEB AMM Online Tool available on OSA's website.
C10: Requirements to use this Tool
C11: (1) Eligible employers must prepare their annual financial reporting on a cash-basis and have been provided this Tool directly by qualified staff at SAO. Please do not distribute.
C12: (2) Current employees must be covered under PEBB health insurance. Please see the Law Enforcement Officers' and Fire Fighters' Retirement System (LEOFF) Plan 1 AMM Online Tool for reporting LEOFF 1 healthcare obligations.
C13: (3) Employers must have at least 100 total members. This includes all current employees and retirees participating in PEBB health insurance, but not covered spouses.
C15: Steps to calculate your reporting results
C16: (1) Enter all required information into the Data Inputs table below and press the Calculate button. If you need assistance with how to prepare your data, please download the PEBB OPEB AMM Online Tool from our website (see link below) and review the "Steps to Calculate your Reporting Results" section on the Intro and Data Inputs tab.
C17: http://leg.wa.gov/osa/additionalservices/Pages/OPEB.aspx
C18: (2) In addition to printing these two pages, please print the Additional Disclosures tab within this Tool for further description of the assumptions and methods used in estimating the OPEB Liability. (Note that you can ignore the disclosures related to GASB 75 on the latter tab.)
C20: Data Inputs | H20: Note before distributing to SAO: Relink "Intro and Data Inputs" tab to this data inputs tab for cash-basis ER final version
C21: Current Employees (Actives)
C22: Age Divisions | D22: 20-35 | E22: 36-46 | F22: 47-56 | G22: 57+
C23: Number Active | D23: 0 | E23: 0 | F23: 0 | G23: 0
C24: Average Active Age | D24: 30 | E24: 40 | F24: 50 | G24: 60
C25: Retirees
C26: Age Divisions | D26: 20-64 | E26: 65-70 | F26: 71-77 | G26: 78+
C27: Number Inactive | D27: 0 | E27: 0 | F27: 0 | G27: 0
C28: Average Inactive Age | D28: 62 | E28: 68 | F28: 74 | G28: 82
C31: Reporting Results
C33: Total OPEB Liability (TOL) Estimate
C34: ="As of June 30, "&ToolYear -> As of June 30, 2022 | D34: ='GASB Results'!E15 -> 0
C36: The OPEB Liability estimate is only intended to provide a high-level sense for today's value of all future retiree medical obligations that have been earned as of the measurement date (as required by the SAO for financial reporting purposes; other uses are not appropriate). Further, these results are calculated using assumptions and methods we selected for the entire PEBB population; and as such, your results from this Tool may vary significantly from a full actuarial valuation performed by a consulting actuary on your covered population. That said, we believe this estimate is reasonable given the intended use. If you feel any of the simplifying assumptions or methods we selected may not be appropriate based upon your circumstances, please contact OSA via email for guidance:
C37: State.Actuary@leg.wa.gov
I38: Page 1 of 2
B40: OPEB Reporting for Washington State Cash-Basis Employers in PEBB (Cont'd)
C42: Assumptions and Methods
C44: Methodology | G44: ="What's New in this FY" &ToolYear-2000& " Tool?" -> What's New in this FY22 Tool?
C45: Actuarial Valuation Date | E45: ='GASB Results'!E36:F36 -> 6/30/2022 | G45: And how do these changes impact my resulting OPEB liabilities? ↑or↓
C46: Actuarial Measurement Date | E46: ='GASB Results'!E37:F37 -> 6/30/2022
C47: Actuarial Cost Method | E47: ='GASB Results'!E38:F38 -> Entry Age
C48: Amortization Method | E48: ='GASB Results'!E39:F39 -> Recognized Immediately | G48: - Rolled forward expected costs and premiums to align with new measurement date ↑
C49: Asset Valuation Method | E49: ='GASB Results'!E40:F40 -> N/A (No Assets)
C50: Assumptions
C51: Discount Rate1 | G51: - New discount rate as of June 30, 2022 ↓
C52: Beginning of Measurement Year | E52: ='GASB Results'!E43:F43 -> 0.0216
C53: End of Measurement Year | E53: ='GASB Results'!E44:F44 -> 0.0354
C54: Projected Salary Changes | E54: ='GASB Results'!E45:F45 -> 3.5% + Service-Based Increases
C55: Healthcare Trend Rates2 | E55: ='GASB Results'!E46:F46 -> Initial rate ranges from about 2-11%, reaching an ultimate rate of approximately 4.3% in 2075.
C56: Mortality Rates
C57: Base Mortality Table | E57: ='GASB Results'!E48:F48 -> PubG.H-2010 (General)
C58: Age Setback | E58: ='GASB Results'!E49:F49 -> 0 years
C59: Mortality Improvements | E59: ='GASB Results'!E50:F50 -> MP-2017 Long-Term Rates
C60: Projection Period | E60: ='GASB Results'!E51:F51 -> Generational
C61: Inflation Rate | E61: ='GASB Results'!E52:F52 -> 0.0275
C62: Post-Retirement Participation % | E62: ='GASB Results'!E53:F53 -> 0.65
C63: Percentage with Spouse Coverage | E63: ='GASB Results'!E54:F54 -> 0.45
C64: 1Source: Bond Buyer General Obligation 20-Bond Municipal Index.
C65: 2Trend rate assumptions vary by medical plan. For additional detail on the healthcare trend rates, please see OSA's 2020 PEBB OPEB Actuarial Valuation Report.
C67: Actuarial Certification
C69: This OPEB Liability Estimation Tool relies on inputs from users with respect to eligible counts and average ages. We have made efforts to screen for unreasonable user inputs by taking steps such as requiring users to include positive integers and appropriate figures for each of the four Current Employee and Retiree cohorts. However given the nature of this Tool, the ultimate responsibility of the accuracy of the inputs, and in effect the results, falls on the user of the Tool. In other words, OSA cannot take responsibility for the results if user inputs are not reasonable and accurate.
C71: We relied on an Excel model to produce this Tool. The model mirrors the approach taken to produce our 2020 PEBB OPEB Actuarial Valuation Report (AVR) but utilizes a more flexible, simplified structure. We believe these limitations are reasonable given the purpose of the measurement. To assess the general operation of this model, we reviewed the output for reasonableness; this includes comparing the results to the linked valuation report. We are not aware of any known weaknesses of the model that have a material impact on the results. Additionally, we considered how the use of different inputs to the model (e.g., assumptions/methods) produce different results and evaluated the relative impacts to our expectations; this allows us to gain a deeper knowledge of the model’s important dependencies and major sensitivities. The use of the model for this analysis is appropriate given it’s intended purpose.
C73: I believe that the assumptions and methods used in this Tool are reasonable and appropriate for the primary purpose stated above. The use of another set of assumptions and methods, however, could also be reasonable and could produce materially different results.
C75: In my opinion, all methods, assumptions, and calculations are appropriate and in conformity with the Actuarial Standards of Practice (ASOPs) as of the date of this publication. The undersigned, with actuarial credentials, meets the Qualification Standards of the American Academy of Actuaries to render the actuarial opinions contained herein. While this communication and associated disclosures in the Tool are intended to be complete, I am available to offer extra advice and explanations as needed.
C77: Kyle Stineman, ASA, MAAA Actuary
C79: OSA distributed this tool to SAO in November, 2022.
I80: Page 2 of 2

Sheet Intro and Data Inputs
B1: GASB 75 Alternative Measurement Method for PEBB
B3: Welcome to the Office of the State Actuary's (OSA) PEBB OPEB AMM Online Tool for FY 2022
C4: Intended Use
C5: This Alternative Measurement Method (AMM) Online Tool is intended to assist employers covering employees under Public Employees' Benefit Board (PEBB) health insurance with their reporting requirements for Other Postemployment Benefits (OPEB) healthcare obligations under Governmental Accounting Standards Board (GASB) Statement No. 75. Please review the following explanation and directions below, along with the Additional Disclosures and Certification Letter before proceeding.
C7: Requirements to Use this Tool
C8: (1) Employers must be non-state entities. State employers and employers outside the state of Washington are not eligible to use this Tool.
C9: (2) Current employees must be covered under PEBB health insurance. Please see the Law Enforcement Officers' and Fire Fighters' Retirement System Plan 1 OPEB AMM Online Tool for reporting LEOFF 1 healthcare obligations associated with these members.
C10: (3) Employers must have less than 100 total members. This includes all current employees and retirees participating in PEBB health insurance, but not covered spouses.
C12: Steps to Calculate your Reporting Results
C13: (1) Enable Macros. For Excel versions 2010 or greater, there should be a tan strip across the top of the screen when you open Excel - please allow macros to run.
C14: (2) Gather member information on the age and payroll of covered current employees. The WA Health Care Authority can assist with providing member information on participating retirees. Please see the Additional Disclosures for further guidance.
C15: (3) Group your member information by status and age divisions according to the Data Inputs table below. Important note, do not include covered spouses in the retiree count and member statistics.
C16: (4) Calculate average age for each age division of current employees and retirees.
C17: (5) Copy your data into the Data Inputs table below. There has been an effort by OSA to screen unreasonable inputs into the Tool. However, the ultimate responsibility of the accuracy of the inputs, and in effect the results, falls on the user of the Tool.
C18: (6) Enter your ending Total OPEB Liability from the prior year reporting (if available). This will serve as the beginning Total OPEB Liability for this year. The Tool will estimate a beginning OPEB liability if you did not report OPEB liabilities last year.
C19: (7) Press the Calculate button. Please print the entire workbook for your records (5 pages).
C21: Data Inputs
C22: Current Employees (Actives)
C23: Age Divisions | D23: 20-35 | E23: 36-46 | F23: 47-56 | G23: 57+
C24: Number Active | D24: 0 | E24: 0 | F24: 0 | G24: 0
C25: Average Active Age | D25: 30 | E25: 40 | F25: 50 | G25: 60
C26: Annual Covered Employee Payroll = | E26: 0
C27: Retirees
C28: Age Divisions | D28: 20-64 | E28: 65-70 | F28: 71-77 | G28: 78+
C29: Number Inactive | D29: 0 | E29: 0 | F29: 0 | G29: 0
C30: Average Inactive Age | D30: 62 | E30: 68 | F30: 74 | G30: 82
C31: Beginning Total OPEB Liability* = | E31: 0
C32: *Enter $0 if you did not report OPEB liabilities last year; the Tool will estimate a beginning Total OPEB Liability for you.
I38: Page 1 of 5

Sheet GASB Results
B1: PEBB - GASB 75 Reporting Results and Required Disclosures
C3: Schedule of Changes in Total OPEB Liability and Related Ratios
C4: ="Measurement Date of June 30, " & ToolYear -> Measurement Date of June 30, 2022
C5: Total OPEB Liability (TOL) | F5: ="What's New in this FY" &ToolYear-2000& " Tool?" -> What's New in this FY22 Tool?
C6: Service Cost | E6: =IF('Intro and Data Inputs'!E31>0, ROUND(Log!L5*('Intro and Data Inputs'!E31/Log!L6), 0), ROUND(Log!L5,0)) -> 0 | F6: And how do these changes impact my resulting OPEB liabilities? ↑or↓
C7: Interest Cost | E7: =ROUND(((E6+E14)*Lookups!S1+E10*((1+Lookups!S1)^0.5-1)),0) -> 0
C8: Changes in Experience Data and Assumptions | E8: =E12-E6-E7-E10 -> 0 | F8: - Rolled forward expected costs and premiums to align with new measurement date ↑
C9: Changes in Benefit Terms | E9: 0
C10: Benefit Payments | E10: =IF('Intro and Data Inputs'!E31>0, -ROUND(Log!L7/VLOOKUP(ToolYear, Trends!$A$3:$P$94,16,FALSE) * 'Intro and Data Inputs'!E31/Log!L6, 0), -ROUND(Log!L7/VLOOKUP(ToolYear, Trends!$A$3:$P$94,16,FALSE),0)) -> 0
C11: Other | E11: 0 | F11: - New discount rate as of June 30, 2022 ↓
C12: Net Change in Total OPEB Liability | E12: =E15-E14 -> 0
C14: Total OPEB Liability - Beginning | E14: =IF('Intro and Data Inputs'!E31>0, 'Intro and Data Inputs'!E31, ROUND((Log!L6-E6-E10)/(1+Lookups!S1),0)) -> 0
C15: Total OPEB Liability - Ending | E15: =ROUND(Log!L11,0) -> 0
C17: Covered Employee Payroll | E17: ='Intro and Data Inputs'!E26 -> 0
C18: TOL as a Percentage of Covered Payroll | E18: =IFERROR(E15/E17, "N/A") -> N/A
C20: ="OPEB Expense for Fiscal Year Ending June 30, " & ToolYear -> OPEB Expense for Fiscal Year Ending June 30, 2022
D21: Service Cost | E21: ='GASB Results'!E6 -> 0
D22: Interest Cost | E22: ='GASB Results'!E7 -> 0
D23: Changes in Experience Data and Assumptions | E23: ='GASB Results'!E8 -> 0
D24: Changes in Benefit Terms | E24: =E9 -> 0
D25: Other Changes in Fiduciary Net Position | E25: 0
D26: Total OPEB Expense | E26: =SUM(E21:E25) -> 0
D28: Transactions Subsequent to Measurement Date | E28: N/A* | F28: *See Additional Disclosures tab for more details and guidance.
C30: Sensitivity Analysis
C31: Total OPEB Liability | E31: 1% Decrease | F31: Current | G31: 1% Increase
C32: Discount Rate | E32: =ROUND(Log!L26,0) -> 0 | F32: ='GASB Results'!E15 -> 0 | G32: =ROUND(Log!L31,0) -> 0
C33: Healthcare Trend | E33: =ROUND(Log!L16,0) -> 0 | F33: ='GASB Results'!E15 -> 0 | G33: =ROUND(Log!L21,0) -> 0
C35: Methodology
C36: Actuarial Valuation Date | E36: =E37 -> 6/30/2022
C37: Actuarial Measurement Date | E37: ="6/30/"&Lookups!S32 -> 6/30/2022
C38: Actuarial Cost Method | E38: Entry Age
C39: Amortization Method | E39: Recognized Immediately
C40: Asset Valuation Method | E40: N/A (No Assets)
C41: Assumptions
C42: Discount Rate1
C43: Beginning of Measurement Year | E43: =Lookups!S1 -> 0.0216
C44: End of Measurement Year | E44: =Lookups!S2 -> 0.0354
C45: Projected Salary Changes | E45: =GSG*100&"% + Service-Based Increases" -> 3.5% + Service-Based Increases
C46: Healthcare Trend Rates2 | E46: Initial rate ranges from about 2-11%, reaching an ultimate rate of approximately 4.3% in 2075.
C47: Mortality Rates
C48: Base Mortality Table | E48: PubG.H-2010 (General)
C49: Age Setback | E49: 0 years
C50: Mortality Improvements | E50: MP-2017 Long-Term Rates
C51: Projection Period | E51: Generational
C52: Inflation Rate | E52: 0.0275
C53: Post-Retirement Participation Percentage | E53: =Lookups!S8 -> 0.65
C54: Percentage with Spouse Coverage | E54: =Lookups!S26 -> 0.45
C55: 1Source: Bond Buyer General Obligation 20-Bond Municipal Index.
C56: 2Trend rate assumptions vary by medical plan. For additional detail on the healthcare trend rates, please see our PEBB OPEB Healthcare Trend Assumptions webpage.
H57: Page 2 of 5

Sheet Additional Disclosures
B1: PEBB - AMM Online Tool Additional Disclosures
C3: This tab is intended to:
C4: (1) Provide guidance on concepts that require users to apply their judgment and/or consult with their auditor.
C5: (2) Document the assumptions and methods we employed for purposes of this AMM Online Tool that vary from the underlying GASB 75 actuarial valuation we performed for the state.
C7: Data Inputs:
C9: ="We assume the inputs you provide are as of the measurement date of 6/30/" &ToolYear& ". If you are not able to determine the counts and average ages as of that time, utilizing your current data or as of your reporting date may be reasonable. Please consult with your auditor for further guidance." -> We assume the inputs you provide are as of the measurement date of 6/30/2022. If you are not able to determine the counts and average ages as of that time, utilizing your current data or as of your reporting date may be reasonable. Please consult with your auditor for further guidance.
C11: The WA Health Care Authority can assist with providing member information on participating retirees. Information can be requested through the FUZE system. An eLearning video on this topic can be accessed at:
C12: SAO - OPEB for BARS Cash Basis Governments
C14: Unless readily identifiable by the user of this tool, we inherently assume that there are no inactive members entitled to but not currently receiving a benefit. In other words, certain members who stopped working may be eligible to join PEBB as a retiree at a later date.
C16: Transactions Subsequent to Measurement Date (for GASB 75 Reporting):
C18: ="If your reporting date is after the 6/30/" &ToolYear& " measurement date, you will include the dollar amount of benefits paid between the measurement and reporting date in your accounting results."&" Please see the BARS Manual from the State Auditor's Office for more information on how to incorporate this into your financial statements." -> If your reporting date is after the 6/30/2022 measurement date, you will include the dollar amount of benefits paid between the measurement and reporting date in your accounting results. Please see the BARS Manual from the State Auditor's Office for more information on how to incorporate this into your financial statements.
C20: ="Based on your data inputs, we estimate your first-year projected monthly subsidy is $"&ROUND(Log!L12/12,0)&". If your reporting date is after the measurement date, multiply this amount by the number of months between your FYE and the measurement date. We believe this approach will serve as a reasonable estimate under this AMM Online Tool." -> Based on your data inputs, we estimate your first-year projected monthly subsidy is $0. If your reporting date is after the measurement date, multiply this amount by the number of months between your FYE and the measurement date. We believe this approach will serve as a reasonable estimate under this AMM Online Tool.
C22: ="In other words, if you have a 12/31/" &ToolYear& " reporting date, your estimated transactions subsequent to the measurement date would be $"&ROUND(Log!L12/12,0)&" x 6 = $"&ROUND(Log!L12/2,0)&". Additionally, based upon guidance from the State Auditor's Office, the estimated current portion due of the Total OPEB Liability for the financial statement reporting would be $"&ROUND(Log!L12/12,0)&" x 12 = $"&ROUND(Log!L12,0)&". Other methods of determining these liabilities may also be reasonable." -> In other words, if you have a 12/31/2022 reporting date, your estimated transactions subsequent to the measurement date would be $0 x 6 = $0. Additionally, based upon guidance from the State Auditor's Office, the estimated current portion due of the Total OPEB Liability for the financial statement reporting would be $0 x 12 = $0. Other methods of determining these liabilities may also be reasonable.
C24: PEBB OPEB valuation from OSA relied upon for purposes of this AMM Online Tool.
C25: OPEB Actuarial Valuation for the State’s June 30, 2022, Fiscal Year-End
C27: Specific assumptions we made when developing this AMM Online Tool:
C29: ◊ We assumed 2/3 of members select a UMP plan and 1/3 select a Kaiser Permanente (KP) plan.
C30: ▪ UMP pre- and post-Medicare costs and premiums are equal to the Uniform Medical Plan (UMP) Classic.
C31: ▪ The KP pre-Medicare costs and premiums are a 50/50 blend of KP WA Classic and KP WA Value.
C32: ▪ The KP post-Medicare costs and premiums are equal to KP WA Medicare.
C34: ◊ We estimated retirement service for each active cohort based on the average entry age of 35, with a minimum service of 1 year. For example, an age 47 member is assumed to have 12 years of service. Service is a component of benefit eligibility.
C36: ◊ Assumptions for retirement, disability, termination, and mortality are consistent with the most recent PEBB OPEB valuation as of the publication date of this tool. For simplicity, we made the following changes:
C37: ▪ We assumed Plan 2 decrement rates.
C38: ▪ We assumed all employees are retirement eligible at age 55 and all employees retire by age 70.
C39: ▪ Based on an average expected retirement age of 65, we applied active mortality rates for ages less than 65 and retiree mortality rates for ages 65+.
C42: ◊ Each cohort is assumed to be a 50/50 male/female split.
C44: ◊ We assume a 45% likelihood that current (and future) retirees cover a spouse.
C45: ▪ We further assume that eligible spouses are the same age as the primary member.
C47: ◊ We selected the age-based cohorts for this AMM Online Tool based upon the overall distribution of state employees and retirees that participate in PEBB.
C49: ◊ We did not include dental benefits when calculating the Total OPEB Liability. Dental benefits represent less than 2 percent of the accrued benefit obligations when last reviewed. We will continue to monitor the impact and may consider including dental benefits in future updates of the tool.
C51: We believe these approaches and simplifying assumptions are reasonable for the purposes of this AMM.
C53: For prior versions of this Tool, please contact the State Auditor's Office.
C55: We would like to hear your feedback if you used this tool. Please send us an email at:
C56: State.Actuary@leg.wa.gov
C58: Glossary - Link to the OSA website that includes definitions for frequently used actuarial and OPEB terms.
D59: Page 3 of 5

Sheet Certification Letter
B1: PEBB - GASB 75 AMM Online Tool Actuarial Certification
D58: Page 4 of 5
B60: PEBB - GASB 75 AMM Online Tool Actuarial Certification (Continued)
D117: Page 5 of 5

Sheet Active (hidden)
A1: Actives | B1: 0 | D1: Insured | G1: UMP | J1: Pre-Med (Implicit) | K1: Insured | L1: Pst-Med (Explicit) | M1: Insured | N1: Insured Med | O1: Insured | P1: Pre-Med (Implicit) | Q1: UMP | R1: Pst-Med (Explicit) | S1: UMP | T1: UMP Med | U1: UMP | X1: Insured | AB1: UMP | AE1: Average | AI1: 0.5 | AZ1: Survive pst Decrement | BF1: Retires at age XX, implicit subsidy | BQ1: Retires at age XX, explicit subsidy | CH1: =MAX(B2-35,1) -> 25
A2: Year | B2: 60 | D2: Costs | E2: Prem | G2: Costs | H2: Prem | J2: Trend | K2: Rel Trend | L2: Trend | M2: Rel Trend | N2: Premium | O2: Med Accum | P2: Trend | Q2: Rel Trend | R2: Trend | S2: Rel Trend | T2: Premium | U2: Med Accum | W2: Costs | X2: Prem | Y2: Net | AA2: Costs | AB2: Prem | AC2: Net | AE2: Net | AG2: Retire - M | AH2: Retire - F | AI2: Retire | AJ2: Term - M | AK2: Term - F | AL2: Term | AM2: Dis - M | AN2: Dis - F | AO2: Disab | AP2: Mort - M | AQ2: Mort - F | AR2: Death | AS2: Decrement | AT2: Survive | AU2: Interest | AW2: Mort - M | AX2: Mort - F | AY2: Mortality | BA2: Interest | BB2: Pay Timing | BD2: Age | BE2: Net | BF2: Imp 55 | BG2: Imp 56 | BH2: Imp 57 | BI2: Imp 58 | BJ2: Imp 59 | BK2: Imp 60 | BL2: Imp 61 | BM2: Imp 62 | BN2: Imp 63 | BO2: Imp 64 | BQ2: Exp 55 | BR2: Exp 56 | BS2: Exp 57 | BT2: Exp 58 | BU2: Exp 59 | BV2: Exp 60 | BW2: Exp 61 | BX2: Exp 62 | BY2: Exp 63 | BZ2: Exp 64 | CA2: Exp 65 | CB2: Exp 66 | CC2: Exp 67 | CD2: Exp 68 | CE2: Exp 69 | CF2: Exp 70 | CH2: Estimated MS
A3: =ToolYear - MS -> 1997 | B3: =B2-MS -> 35 | D3: =VLOOKUP(B3,Lookups!A:B,2) -> 8537.569132 | E3: =VLOOKUP(B3,Lookups!A:C,3) -> 9331.1633 | G3: =VLOOKUP(B3,Lookups!A:D,4) -> 7419.24963 | H3: =VLOOKUP(B3,Lookups!A:E,5) -> 9237.212567 | J3: =VLOOKUP(A3,Trends!$A$3:$Q$94,IF(ExFlg=0,2,10))+IF(B3>=$B$2,Sens,0) -> 1.043 | K3: =IF(B3=$B$2,1,IF(B3<$B$2,K4/J3,K2*J2)) -> 0.3518299551 | L3: =VLOOKUP(A3,Trends!$A$3:$Q$94,IF(ExFlg=0,4,12))+IF(B3>=$B$2,Sens,0) -> 1.043 | M3: =IF(B3=$B$2,1,IF(B3<$B$2,M4/L3,M2*L2)) -> 0.3484173366 | N3: =VLOOKUP(A3,Trends!$A$3:$Z$94,IF(ExFlg=0,19,23))+IF(B3>=$B$2,Sens,0) -> 1.043 | O3: =IF(B3=$B$2,1,IF(B3<$B$2,O4/N3,O2*N2)) -> 0.3409515637 | P3: =VLOOKUP(A3,Trends!$A$3:$Q$94,IF(ExFlg=0,6,14))+IF(B3>=$B$2,Sens,0) -> 1.043 | Q3: =IF(B3=$B$2,1,IF(B3<$B$2,Q4/P3,Q2*P2)) -> 0.3357594568 | R3: =VLOOKUP(A3,Trends!$A$3:$Q$94,IF(ExFlg=0,8,16))+IF(B3>=$B$2,Sens,0) -> 1.043 | S3: =IF(B3=$B$2,1,IF(B3<$B$2,S4/R3,S2*R2)) -> 0.3211752217 | T3: =VLOOKUP(A3,Trends!$A$3:$Z$94,IF(ExFlg=0,21,25))+IF(B3>=$B$2,Sens,0) -> 1.043 | U3: =IF(B3=$B$2,1,IF(B3<$B$2,U4/T3,U2*T2)) -> 0.2936378274 | W3: =IF(B3<65,D3*K3,D3*M3) -> 3003.772564 | X3: =IF(B3<65,E3*K3,E3*O3) -> 3282.982765 | Y3: =W3-X3 -> -279.2102006 | AA3: =IF(B3<65,G3*Q3,G3*S3) -> 2491.083226 | AB3: =IF(B3<65,H3*Q3,H3*U3) -> 3101.481474 | AC3: =AA3-AB3 -> -610.3982483 | AE3: =(1-PctUMP)*Y3+PctUMP*AC3 -> -500.0033364 | AG3: =IF(B3<71,IF(B3-35<30,VLOOKUP(B3,Lookups!A:G,6),VLOOKUP(B3,Lookups!A:G,7)),"") -> 0 | AH3: =AG3 -> 0 | AI3: =IF(B3<71,PCTMALE*AG3+(1-PCTMALE)*AH3,"") -> 0 | AJ3: =IF(OR(B3<55,B3-35<20),VLOOKUP(B3-$B$3,Lookups!$O$3:$Q$53,2),VLOOKUP(B3,Lookups!$O$57:$P$122,2)) -> 0.26 | AK3: =AJ3 -> 0.26 | AL3: =PCTMALE*AJ3+(1-PCTMALE)*AK3 -> 0.26 | AM3: =IF(B3<55,VLOOKUP(B3,Lookups!A:M,12),"") -> 0.0002 | AN3: =IF(B3<55,VLOOKUP(B3,Lookups!A:M,13),"") -> 0.0002 | AO3: =IF(B3<55,PCTMALE*AM3+(1-PCTMALE)*AN3,"") -> 0.0002 | AP3: =IF(B3<70,VLOOKUP(B3,Lookups!A:I,8)*(1-VLOOKUP(B3,Lookups!$U$3:$W$103,2))^(B3-$B$2),"") -> 0.0006728709538 | AQ3: =IF(B3<70,VLOOKUP(B3,Lookups!A:I,9)*(1-VLOOKUP(B3,Lookups!$U$3:$W$103,3))^(B3-$B$2),"") -> 0.0003187946654 | AR3: =IF(AP3<>"",PCTMALE*AP3+(1-PCTMALE)*AQ3,"") -> 0.0004958328096 | AS3: =IF(B3<71,SUM(AI3,AL3,AO3,AR3),"") -> 0.2606958328 | AT3: =IF(B3<71,IF(B3=$B$2,1, IF(B3<$B$2, AT4/(1-AS3), AT2*(1-AS2))),"") -> 4.432302315 | AU3: =IF(B3<71,IF(B3=$B$2,1,IF(B3<$B$2,AU4*(1+IntRt),AU2/(1+IntRt))),"") -> 1.706169234 | AW3: =IF(BD3>=$B$3,VLOOKUP(BD3,Lookups!A:G,8)*(1-VLOOKUP(BD3,Lookups!U:W,2))^(BD3-$B$3),"") ->  | AX3: =IF(BD3>=$B$3,VLOOKUP(BD3,Lookups!A:G,9)*(1-VLOOKUP(BD3,Lookups!U:W,3))^(BD3-$B$3),"") ->  | AY3: =IFERROR(PCTMALE*AW3+(1-PCTMALE)*AX3,"") -> 
A4: =1+A3 -> 1998 | B4: 36 | D4: =VLOOKUP(B4,Lookups!A:B,2) -> 8741.902172 | E4: =VLOOKUP(B4,Lookups!A:C,3) -> 9331.1633 | G4: =VLOOKUP(B4,Lookups!A:D,4) -> 7596.817517 | H4: =VLOOKUP(B4,Lookups!A:E,5) -> 9237.212567 | J4: =VLOOKUP(A4,Trends!$A$3:$Q$94,IF(ExFlg=0,2,10))+IF(B4>=$B$2,Sens,0) -> 1.043 | K4: 0.3669586431 | L4: =VLOOKUP(A4,Trends!$A$3:$Q$94,IF(ExFlg=0,4,12))+IF(B4>=$B$2,Sens,0) -> 1.043 | M4: =IF(B4=$B$2,1,IF(B4<$B$2,M5/L4,M3*L3)) -> 0.3633992821 | N4: =VLOOKUP(A4,Trends!$A$3:$Z$94,IF(ExFlg=0,19,23))+IF(B4>=$B$2,Sens,0) -> 1.043 | O4: =IF(B4=$B$2,1,IF(B4<$B$2,O5/N4,O3*N3)) -> 0.3556124809 | P4: =VLOOKUP(A4,Trends!$A$3:$Q$94,IF(ExFlg=0,6,14))+IF(B4>=$B$2,Sens,0) -> 1.043 | Q4: 0.3501971135 | R4: =VLOOKUP(A4,Trends!$A$3:$Q$94,IF(ExFlg=0,8,16))+IF(B4>=$B$2,Sens,0) -> 1.043 | S4: 0.3349857563 | T4: =VLOOKUP(A4,Trends!$A$3:$Z$94,IF(ExFlg=0,21,25))+IF(B4>=$B$2,Sens,0) -> 1.043 | U4: =IF(B4=$B$2,1,IF(B4<$B$2,U5/T4,U3*T3)) -> 0.3062642539 | W4: =IF(B4<65,D4*K4,D4*M4) -> 3207.916559 | X4: =IF(B4<65,E4*K4,E4*O4) -> 3424.151023 | Y4: -216.234464 | AA4: =IF(B4<65,G4*Q4,G4*S4) -> 2660.383566 | AB4: =IF(B4<65,H4*Q4,H4*U4) -> 3234.845178 | AC4: =AA4-AB4 -> -574.4616116 | AE4: =(1-PctUMP)*Y4+PctUMP*AC4 -> -455.0537565 | AG4: =IF(B4<71,IF(B4-35<30,VLOOKUP(B4,Lookups!A:G,6),VLOOKUP(B4,Lookups!A:G,7)),"") -> 0 | AH4: =AG4 -> 0 | AI4: 0 | AJ4: =IF(OR(B4<55,B4-35<20),VLOOKUP(B4-$B$3,Lookups!$O$3:$Q$53,2),VLOOKUP(B4,Lookups!$O$57:$P$122,2)) -> 0.15 | AK4: =AJ4 -> 0.15 | AL4: 0.15 | AM4: =IF(B4<55,VLOOKUP(B4,Lookups!A:M,12),"") -> 0.0002 | AN4: =IF(B4<55,VLOOKUP(B4,Lookups!A:M,13),"") -> 0.0002 | AO4: 0.0002 | AP4: =IF(B4<70,VLOOKUP(B4,Lookups!A:I,8)*(1-VLOOKUP(B4,Lookups!$U$3:$W$103,2))^(B4-$B$2),"") -> 0.0007110507102 | AQ4: =IF(B4<70,VLOOKUP(B4,Lookups!A:I,9)*(1-VLOOKUP(B4,Lookups!$U$3:$W$103,3))^(B4-$B$2),"") -> 0.0003492880682 | AR4: 0.0005301693892 | AS4: =IF(B4<71,SUM(AI4,AL4,AO4,AR4),"") -> 0.1507301694 | AT4: =IF(B4<71,IF(B4=$B$2,1, IF(B4<$B$2, AT5/(1-AS4), AT3*(1-AS3))),"") -> 3.276819572 | AU4: 1.670095178 | AW4: =IF(BD4>=$B$3,VLOOKUP(BD4,Lookups!A:G,8)*(1-VLOOKUP(BD4,Lookups!U:W,2))^(BD4-$B$3),"") ->  | AX4: =IF(BD4>=$B$3,VLOOKUP(BD4,Lookups!A:G,9)*(1-VLOOKUP(BD4,Lookups!U:W,3))^(BD4-$B$3),"") -> 
A5: 1999 | B5: 37 | D5: =VLOOKUP(B5,Lookups!A:B,2) -> 9195.446918 | E5: =VLOOKUP(B5,Lookups!A:C,3) -> 9331.1633 | G5: =VLOOKUP(B5,Lookups!A:D,4) -> 7990.953296 | H5: =VLOOKUP(B5,Lookups!A:E,5) -> 9237.212567 | J5: =VLOOKUP(A5,Trends!$A$3:$Q$94,IF(ExFlg=0,2,10))+IF(B5>=$B$2,Sens,0) -> 1.043 | K5: 0.3827378648 | L5: =VLOOKUP(A5,Trends!$A$3:$Q$94,IF(ExFlg=0,4,12))+IF(B5>=$B$2,Sens,0) -> 1.043 | M5: 0.3790254512 | N5: =VLOOKUP(A5,Trends!$A$3:$Z$94,IF(ExFlg=0,19,23))+IF(B5>=$B$2,Sens,0) -> 1.043 | O5: 0.3709038176 | P5: =VLOOKUP(A5,Trends!$A$3:$Q$94,IF(ExFlg=0,6,14))+IF(B5>=$B$2,Sens,0) -> 1.043 | Q5: 0.3652555894 | R5: =VLOOKUP(A5,Trends!$A$3:$Q$94,IF(ExFlg=0,8,16))+IF(B5>=$B$2,Sens,0) -> 1.043 | S5: 0.3493901438 | T5: =VLOOKUP(A5,Trends!$A$3:$Z$94,IF(ExFlg=0,21,25))+IF(B5>=$B$2,Sens,0) -> 1.043 | U5: 0.3194336169 | W5: =IF(B5<65,D5*K5,D5*M5) -> 3519.445719 | X5: 3571.389517 | Y5: -51.94379817 | AA5: 2918.740356 | AB5: 3373.94352 | AC5: =AA5-AB5 -> -455.2031646 | AE5: =(1-PctUMP)*Y5+PctUMP*AC5 -> -320.78472 | AG5: =IF(B5<71,IF(B5-35<30,VLOOKUP(B5,Lookups!A:G,6),VLOOKUP(B5,Lookups!A:G,7)),"") -> 0 | AH5: 0 | AI5: 0 | AJ5: =IF(OR(B5<55,B5-35<20),VLOOKUP(B5-$B$3,Lookups!$O$3:$Q$53,2),VLOOKUP(B5,Lookups!$O$57:$P$122,2)) -> 0.105 | AK5: 0.105 | AL5: 0.105 | AM5: =IF(B5<55,VLOOKUP(B5,Lookups!A:M,12),"") -> 0.0002 | AN5: =IF(B5<55,VLOOKUP(B5,Lookups!A:M,13),"") -> 0.0002 | AO5: 0.0002 | AP5: =IF(B5<70,VLOOKUP(B5,Lookups!A:I,8)*(1-VLOOKUP(B5,Lookups!$U$3:$W$103,2))^(B5-$B$2),"") -> 0.0007483995843 | AQ5: =IF(B5<70,VLOOKUP(B5,Lookups!A:I,9)*(1-VLOOKUP(B5,Lookups!$U$3:$W$103,3))^(B5-$B$2),"") -> 0.0003680248781 | AR5: 0.0005582122312 | AS5: 0.1057582122 | AT5: 2.782904003 | AU5: 1.634783847 | AW5: =IF(BD5>=$B$3,VLOOKUP(BD5,Lookups!A:G,8)*(1-VLOOKUP(BD5,Lookups!U:W,2))^(BD5-$B$3),"") ->  | AX5: =IF(BD5>=$B$3,VLOOKUP(BD5,Lookups!A:G,9)*(1-VLOOKUP(BD5,Lookups!U:W,3))^(BD5-$B$3),"") -> 
A6: 2000 | B6: 38 | D6: =VLOOKUP(B6,Lookups!A:B,2) -> 9674.848836 | E6: =VLOOKUP(B6,Lookups!A:C,3) -> 9331.1633 | G6: =VLOOKUP(B6,Lookups!A:D,4) -> 8407.559263 | H6: =VLOOKUP(B6,Lookups!A:E,5) -> 9237.212567 | J6: =VLOOKUP(A6,Trends!$A$3:$Q$94,IF(ExFlg=0,2,10))+IF(B6>=$B$2,Sens,0) -> 1.043 | K6: 0.399195593 | L6: =VLOOKUP(A6,Trends!$A$3:$Q$94,IF(ExFlg=0,4,12))+IF(B6>=$B$2,Sens,0) -> 1.043 | M6: 0.3953235456 | N6: =VLOOKUP(A6,Trends!$A$3:$Z$94,IF(ExFlg=0,19,23))+IF(B6>=$B$2,Sens,0) -> 1.043 | O6: 0.3868526817 | P6: =VLOOKUP(A6,Trends!$A$3:$Q$94,IF(ExFlg=0,6,14))+IF(B6>=$B$2,Sens,0) -> 1.043 | Q6: 0.3809615797 | R6: =VLOOKUP(A6,Trends!$A$3:$Q$94,IF(ExFlg=0,8,16))+IF(B6>=$B$2,Sens,0) -> 1.043 | S6: 0.36441392 | T6: =VLOOKUP(A6,Trends!$A$3:$Z$94,IF(ExFlg=0,21,25))+IF(B6>=$B$2,Sens,0) -> 1.043 | U6: 0.3331692624 | W6: =IF(B6<65,D6*K6,D6*M6) -> 3862.157018 | X6: 3724.959267 | Y6: 137.1977513 | AA6: 3202.957058 | AB6: 3519.023092 | AC6: -316.0660331 | AE6: -164.9796159 | AG6: =IF(B6<71,IF(B6-35<30,VLOOKUP(B6,Lookups!A:G,6),VLOOKUP(B6,Lookups!A:G,7)),"") -> 0 | AH6: 0 | AI6: 0 | AJ6: =IF(OR(B6<55,B6-35<20),VLOOKUP(B6-$B$3,Lookups!$O$3:$Q$53,2),VLOOKUP(B6,Lookups!$O$57:$P$122,2)) -> 0.08 | AK6: 0.08 | AL6: 0.08 | AM6: =IF(B6<55,VLOOKUP(B6,Lookups!A:M,12),"") -> 0.0002 | AN6: =IF(B6<55,VLOOKUP(B6,Lookups!A:M,13),"") -> 0.0002 | AO6: 0.0002 | AP6: =IF(B6<70,VLOOKUP(B6,Lookups!A:I,8)*(1-VLOOKUP(B6,Lookups!$U$3:$W$103,2))^(B6-$B$2),"") -> 0.0007849303759 | AQ6: =IF(B6<70,VLOOKUP(B6,Lookups!A:I,9)*(1-VLOOKUP(B6,Lookups!$U$3:$W$103,3))^(B6-$B$2),"") -> 0.0003985783529 | AR6: 0.0005917543644 | AS6: 0.08079175436 | AT6: 2.48858905 | AU6: 1.600219114 | AW6: =IF(BD6>=$B$3,VLOOKUP(BD6,Lookups!A:G,8)*(1-VLOOKUP(BD6,Lookups!U:W,2))^(BD6-$B$3),"") ->  | AX6: =IF(BD6>=$B$3,VLOOKUP(BD6,Lookups!A:G,9)*(1-VLOOKUP(BD6,Lookups!U:W,3))^(BD6-$B$3),"") ->  | CK6: Current Employees - Default Ages
A7: 2001 | B7: 39 | D7: =VLOOKUP(B7,Lookups!A:B,2) -> 10181.68302 | E7: =VLOOKUP(B7,Lookups!A:C,3) -> 9331.1633 | G7: =VLOOKUP(B7,Lookups!A:D,4) -> 8848.004195 | H7: =VLOOKUP(B7,Lookups!A:E,5) -> 9237.212567 | J7: =VLOOKUP(A7,Trends!$A$3:$Q$94,IF(ExFlg=0,2,10))+IF(B7>=$B$2,Sens,0) -> 1.043 | K7: 0.4163610035 | L7: =VLOOKUP(A7,Trends!$A$3:$Q$94,IF(ExFlg=0,4,12))+IF(B7>=$B$2,Sens,0) -> 1.043 | M7: 0.4123224581 | N7: =VLOOKUP(A7,Trends!$A$3:$Z$94,IF(ExFlg=0,19,23))+IF(B7>=$B$2,Sens,0) -> 1.043 | O7: 0.403487347 | P7: =VLOOKUP(A7,Trends!$A$3:$Q$94,IF(ExFlg=0,6,14))+IF(B7>=$B$2,Sens,0) -> 1.043 | Q7: 0.3973429276 | R7: =VLOOKUP(A7,Trends!$A$3:$Q$94,IF(ExFlg=0,8,16))+IF(B7>=$B$2,Sens,0) -> 1.043 | S7: 0.3800837185 | T7: =VLOOKUP(A7,Trends!$A$3:$Z$94,IF(ExFlg=0,21,25))+IF(B7>=$B$2,Sens,0) -> 1.043 | U7: 0.3474955407 | W7: 4239.255759 | X7: 3885.132515 | Y7: =W7-X7 -> 354.1232438 | AA7: 3515.691891 | AB7: 3670.341084 | AC7: -154.6491939 | AE7: 14.93992272 | AG7: =IF(B7<71,IF(B7-35<30,VLOOKUP(B7,Lookups!A:G,6),VLOOKUP(B7,Lookups!A:G,7)),"") -> 0 | AH7: 0 | AI7: 0 | AJ7: =IF(OR(B7<55,B7-35<20),VLOOKUP(B7-$B$3,Lookups!$O$3:$Q$53,2),VLOOKUP(B7,Lookups!$O$57:$P$122,2)) -> 0.065 | AK7: 0.065 | AL7: 0.065 | AM7: =IF(B7<55,VLOOKUP(B7,Lookups!A:M,12),"") -> 0.0002 | AN7: =IF(B7<55,VLOOKUP(B7,Lookups!A:M,13),"") -> 0.0002 | AO7: 0.0002 | AP7: =IF(B7<70,VLOOKUP(B7,Lookups!A:I,8)*(1-VLOOKUP(B7,Lookups!$U$3:$W$103,2))^(B7-$B$2),"") -> 0.0008315493716 | AQ7: =IF(B7<70,VLOOKUP(B7,Lookups!A:I,9)*(1-VLOOKUP(B7,Lookups!$U$3:$W$103,3))^(B7-$B$2),"") -> 0.000427273549 | AR7: 0.0006294114603 | AS7: 0.06582941146 | AT7: 2.287531575 | AU7: 1.566385194 | AW7: =IF(BD7>=$B$3,VLOOKUP(BD7,Lookups!A:G,8)*(1-VLOOKUP(BD7,Lookups!U:W,2))^(BD7-$B$3),"") ->  | AX7: =IF(BD7>=$B$3,VLOOKUP(BD7,Lookups!A:G,9)*(1-VLOOKUP(BD7,Lookups!U:W,3))^(BD7-$B$3),"") ->  | CK7: Age Divisions | CL7: 20-35 | CM7: 36-46 | CN7: 47-56 | CO7: 57+
A8: 2002 | B8: 40 | D8: =VLOOKUP(B8,Lookups!A:B,2) -> 10717.6245 | E8: =VLOOKUP(B8,Lookups!A:C,3) -> 9331.1633 | G8: =VLOOKUP(B8,Lookups!A:D,4) -> 9313.743709 | H8: =VLOOKUP(B8,Lookups!A:E,5) -> 9237.212567 | J8: =VLOOKUP(A8,Trends!$A$3:$Q$94,IF(ExFlg=0,2,10))+IF(B8>=$B$2,Sens,0) -> 1.043 | K8: =IF(B8=$B$2,1,IF(B8<$B$2,K9/J8,K7*J7)) -> 0.4342645266 | L8: =VLOOKUP(A8,Trends!$A$3:$Q$94,IF(ExFlg=0,4,12))+IF(B8>=$B$2,Sens,0) -> 1.043 | M8: =IF(B8=$B$2,1,IF(B8<$B$2,M9/L8,M7*L7)) -> 0.4300523238 | N8: =VLOOKUP(A8,Trends!$A$3:$Z$94,IF(ExFlg=0,19,23))+IF(B8>=$B$2,Sens,0) -> 1.043 | O8: 0.420837303 | P8: =VLOOKUP(A8,Trends!$A$3:$Q$94,IF(ExFlg=0,6,14))+IF(B8>=$B$2,Sens,0) -> 1.043 | Q8: =IF(B8=$B$2,1,IF(B8<$B$2,Q9/P8,Q7*P7)) -> 0.4144286735 | R8: =VLOOKUP(A8,Trends!$A$3:$Q$94,IF(ExFlg=0,8,16))+IF(B8>=$B$2,Sens,0) -> 1.043 | S8: =IF(B8=$B$2,1,IF(B8<$B$2,S9/R8,S7*R7)) -> 0.3964273184 | T8: =VLOOKUP(A8,Trends!$A$3:$Z$94,IF(ExFlg=0,21,25))+IF(B8>=$B$2,Sens,0) -> 1.043 | U8: 0.3624378489 | W8: =IF(B8<65,D8*K8,D8*M8) -> 4654.284128 | X8: 4052.193213 | Y8: 602.0909149 | AA8: 3859.882451 | AB8: 3828.165751 | AC8: 31.7166998 | AE8: 221.8395369 | AG8: =IF(B8<71,IF(B8-35<30,VLOOKUP(B8,Lookups!A:G,6),VLOOKUP(B8,Lookups!A:G,7)),"") -> 0 | AH8: 0 | AI8: 0 | AJ8: =IF(OR(B8<55,B8-35<20),VLOOKUP(B8-$B$3,Lookups!$O$3:$Q$53,2),VLOOKUP(B8,Lookups!$O$57:$P$122,2)) -> 0.06 | AK8: 0.06 | AL8: 0.06 | AM8: =IF(B8<55,VLOOKUP(B8,Lookups!A:M,12),"") -> 0.0002 | AN8: =IF(B8<55,VLOOKUP(B8,Lookups!A:M,13),"") -> 0.0002 | AO8: 0.0002 | AP8: =IF(B8<70,VLOOKUP(B8,Lookups!A:I,8)*(1-VLOOKUP(B8,Lookups!$U$3:$W$103,2))^(B8-$B$2),"") -> 0.0008783557969 | AQ8: =IF(B8<70,VLOOKUP(B8,Lookups!A:I,9)*(1-VLOOKUP(B8,Lookups!$U$3:$W$103,3))^(B8-$B$2),"") -> 0.0004661397067 | AR8: 0.0006722477518 | AS8: 0.06087224775 | AT8: 2.136944718 | AU8: 1.533266635 | AW8: =IF(BD8>=$B$3,VLOOKUP(BD8,Lookups!A:G,8)*(1-VLOOKUP(BD8,Lookups!U:W,2))^(BD8-$B$3),"") ->  | AX8: =IF(BD8>=$B$3,VLOOKUP(BD8,Lookups!A:G,9)*(1-VLOOKUP(BD8,Lookups!U:W,3))^(BD8-$B$3),"") ->  | CK8: Default Age | CL8: 30 | CM8: =ROUND((46+36)/2, 0) -> 41 | CN8: =ROUND((56+47)/2,0) -> 52 | CO8: 60
A9: 2003 | B9: 41 | D9: =VLOOKUP(B9,Lookups!A:B,2) -> 11284.45471 | E9: =VLOOKUP(B9,Lookups!A:C,3) -> 9331.1633 | G9: =VLOOKUP(B9,Lookups!A:D,4) -> 9806.325905 | H9: =VLOOKUP(B9,Lookups!A:E,5) -> 9237.212567 | J9: =VLOOKUP(A9,Trends!$A$3:$Q$94,IF(ExFlg=0,2,10))+IF(B9>=$B$2,Sens,0) -> 1.043 | K9: =IF(B9=$B$2,1,IF(B9<$B$2,K10/J9,K8*J8)) -> 0.4529379013 | L9: =VLOOKUP(A9,Trends!$A$3:$Q$94,IF(ExFlg=0,4,12))+IF(B9>=$B$2,Sens,0) -> 1.043 | M9: =IF(B9=$B$2,1,IF(B9<$B$2,M10/L9,M8*L8)) -> 0.4485445737 | N9: =VLOOKUP(A9,Trends!$A$3:$Z$94,IF(ExFlg=0,19,23))+IF(B9>=$B$2,Sens,0) -> 1.043 | O9: 0.438933307 | P9: =VLOOKUP(A9,Trends!$A$3:$Q$94,IF(ExFlg=0,6,14))+IF(B9>=$B$2,Sens,0) -> 1.043 | Q9: =IF(B9=$B$2,1,IF(B9<$B$2,Q10/P9,Q8*P8)) -> 0.4322491065 | R9: =VLOOKUP(A9,Trends!$A$3:$Q$94,IF(ExFlg=0,8,16))+IF(B9>=$B$2,Sens,0) -> 1.043 | S9: =IF(B9=$B$2,1,IF(B9<$B$2,S10/R9,S8*R8)) -> 0.4134736931 | T9: =VLOOKUP(A9,Trends!$A$3:$Z$94,IF(ExFlg=0,21,25))+IF(B9>=$B$2,Sens,0) -> 1.043 | U9: 0.3780226764 | W9: =IF(B9<65,D9*K9,D9*M9) -> 5111.157235 | X9: 4226.437521 | Y9: 884.7197136 | AA9: 4238.77561 | AB9: 3992.776878 | AC9: 245.9987321 | AE9: 458.9035968 | AG9: =IF(B9<71,IF(B9-35<30,VLOOKUP(B9,Lookups!A:G,6),VLOOKUP(B9,Lookups!A:G,7)),"") -> 0 | AH9: 0 | AI9: 0 | AJ9: =IF(OR(B9<55,B9-35<20),VLOOKUP(B9-$B$3,Lookups!$O$3:$Q$53,2),VLOOKUP(B9,Lookups!$O$57:$P$122,2)) -> 0.055 | AK9: 0.055 | AL9: 0.055 | AM9: =IF(B9<55,VLOOKUP(B9,Lookups!A:M,12),"") -> 0.0002 | AN9: =IF(B9<55,VLOOKUP(B9,Lookups!A:M,13),"") -> 0.0002 | AO9: 0.0002 | AP9: =IF(B9<70,VLOOKUP(B9,Lookups!A:I,8)*(1-VLOOKUP(B9,Lookups!$U$3:$W$103,2))^(B9-$B$2),"") -> 0.0009336334953 | AQ9: =IF(B9<70,VLOOKUP(B9,Lookups!A:I,9)*(1-VLOOKUP(B9,Lookups!$U$3:$W$103,3))^(B9-$B$2),"") -> 0.0004935089378 | AR9: 0.0007135712166 | AS9: 0.05591357122 | AT9: =IF(B9<71,IF(B9=$B$2,1, IF(B9<$B$2, AT10/(1-AS9), AT8*(1-AS8))),"") -> 2.00686409 | AU9: 1.500848311 | AW9: =IF(BD9>=$B$3,VLOOKUP(BD9,Lookups!A:G,8)*(1-VLOOKUP(BD9,Lookups!U:W,2))^(BD9-$B$3),"") ->  | AX9: =IF(BD9>=$B$3,VLOOKUP(BD9,Lookups!A:G,9)*(1-VLOOKUP(BD9,Lookups!U:W,3))^(BD9-$B$3),"") -> 
A10: 2004 | B10: 42 | D10: =VLOOKUP(B10,Lookups!A:B,2) -> 11469.88438 | E10: =VLOOKUP(B10,Lookups!A:C,3) -> 9331.1633 | G10: =VLOOKUP(B10,Lookups!A:D,4) -> 9967.466508 | H10: =VLOOKUP(B10,Lookups!A:E,5) -> 9237.212567 | J10: =VLOOKUP(A10,Trends!$A$3:$Q$94,IF(ExFlg=0,2,10))+IF(B10>=$B$2,Sens,0) -> 1.043 | K10: =IF(B10=$B$2,1,IF(B10<$B$2,K11/J10,K9*J9)) -> 0.472414231 | L10: =VLOOKUP(A10,Trends!$A$3:$Q$94,IF(ExFlg=0,4,12))+IF(B10>=$B$2,Sens,0) -> 1.043 | M10: 0.4678319903 | N10: =VLOOKUP(A10,Trends!$A$3:$Z$94,IF(ExFlg=0,19,23))+IF(B10>=$B$2,Sens,0) -> 1.043 | O10: 0.4578074392 | P10: =VLOOKUP(A10,Trends!$A$3:$Q$94,IF(ExFlg=0,6,14))+IF(B10>=$B$2,Sens,0) -> 1.043 | Q10: 0.4508358181 | R10: =VLOOKUP(A10,Trends!$A$3:$Q$94,IF(ExFlg=0,8,16))+IF(B10>=$B$2,Sens,0) -> 1.043 | S10: 0.4312530619 | T10: =VLOOKUP(A10,Trends!$A$3:$Z$94,IF(ExFlg=0,21,25))+IF(B10>=$B$2,Sens,0) -> 1.043 | U10: 0.3942776515 | W10: 5418.53661 | X10: 4408.174335 | Y10: 1010.362275 | AA10: 4493.690917 | AB10: 4164.466284 | AC10: 329.2246327 | AE10: 556.2682429 | AG10: =IF(B10<71,IF(B10-35<30,VLOOKUP(B10,Lookups!A:G,6),VLOOKUP(B10,Lookups!A:G,7)),"") -> 0 | AH10: 0 | AI10: 0 | AJ10: =IF(OR(B10<55,B10-35<20),VLOOKUP(B10-$B$3,Lookups!$O$3:$Q$53,2),VLOOKUP(B10,Lookups!$O$57:$P$122,2)) -> 0.05 | AK10: 0.05 | AL10: 0.05 | AM10: =IF(B10<55,VLOOKUP(B10,Lookups!A:M,12),"") -> 0.0002 | AN10: =IF(B10<55,VLOOKUP(B10,Lookups!A:M,13),"") -> 0.0002 | AO10: 0.0002 | AP10: =IF(B10<70,VLOOKUP(B10,Lookups!A:I,8)*(1-VLOOKUP(B10,Lookups!$U$3:$W$103,2))^(B10-$B$2),"") -> 0.0009877178042 | AQ10: =IF(B10<70,VLOOKUP(B10,Lookups!A:I,9)*(1-VLOOKUP(B10,Lookups!$U$3:$W$103,3))^(B10-$B$2),"") -> 0.0005308542776 | AR10: 0.0007592860409 | AS10: 0.05095928604 | AT10: 1.894653151 | AU10: 1.469115418 | AW10: =IF(BD10>=$B$3,VLOOKUP(BD10,Lookups!A:G,8)*(1-VLOOKUP(BD10,Lookups!U:W,2))^(BD10-$B$3),"") ->  | AX10: =IF(BD10>=$B$3,VLOOKUP(BD10,Lookups!A:G,9)*(1-VLOOKUP(BD10,Lookups!U:W,3))^(BD10-$B$3),"") -> 
A11: 2005 | B11: 43 | D11: =VLOOKUP(B11,Lookups!A:B,2) -> 11658.49109 | E11: =VLOOKUP(B11,Lookups!A:C,3) -> 9331.1633 | G11: =VLOOKUP(B11,Lookups!A:D,4) -> 10131.368 | H11: =VLOOKUP(B11,Lookups!A:E,5) -> 9237.212567 | J11: =VLOOKUP(A11,Trends!$A$3:$Q$94,IF(ExFlg=0,2,10))+IF(B11>=$B$2,Sens,0) -> 1.043 | K11: 0.4927280429 | L11: =VLOOKUP(A11,Trends!$A$3:$Q$94,IF(ExFlg=0,4,12))+IF(B11>=$B$2,Sens,0) -> 1.043 | M11: 0.4879487659 | N11: =VLOOKUP(A11,Trends!$A$3:$Z$94,IF(ExFlg=0,19,23))+IF(B11>=$B$2,Sens,0) -> 1.043 | O11: 0.4774931591 | P11: =VLOOKUP(A11,Trends!$A$3:$Q$94,IF(ExFlg=0,6,14))+IF(B11>=$B$2,Sens,0) -> 1.043 | Q11: 0.4702217582 | R11: =VLOOKUP(A11,Trends!$A$3:$Q$94,IF(ExFlg=0,8,16))+IF(B11>=$B$2,Sens,0) -> 1.043 | S11: 0.4497969436 | T11: =VLOOKUP(A11,Trends!$A$3:$Z$94,IF(ExFlg=0,21,25))+IF(B11>=$B$2,Sens,0) -> 1.043 | U11: 0.4112315905 | W11: 5744.4655 | X11: 4597.725831 | Y11: 1146.739669 | AA11: 4763.989675 | AB11: 4343.538334 | AC11: =AA11-AB11 -> 420.4513401 | AE11: 662.5450286 | AG11: =IF(B11<71,IF(B11-35<30,VLOOKUP(B11,Lookups!A:G,6),VLOOKUP(B11,Lookups!A:G,7)),"") -> 0 | AH11: 0 | AI11: 0 | AJ11: =IF(OR(B11<55,B11-35<20),VLOOKUP(B11-$B$3,Lookups!$O$3:$Q$53,2),VLOOKUP(B11,Lookups!$O$57:$P$122,2)) -> 0.045 | AK11: 0.045 | AL11: 0.045 | AM11: =IF(B11<55,VLOOKUP(B11,Lookups!A:M,12),"") -> 0.0002 | AN11: =IF(B11<55,VLOOKUP(B11,Lookups!A:M,13),"") -> 0.0002 | AO11: 0.0002 | AP11: =IF(B11<70,VLOOKUP(B11,Lookups!A:I,8)*(1-VLOOKUP(B11,Lookups!$U$3:$W$103,2))^(B11-$B$2),"") -> 0.001061555876 | AQ11: =IF(B11<70,VLOOKUP(B11,Lookups!A:I,9)*(1-VLOOKUP(B11,Lookups!$U$3:$W$103,3))^(B11-$B$2),"") -> 0.000577867766 | AR11: 0.0008197118209 | AS11: 0.04601971182 | AT11: 1.798102979 | AU11: 1.438053463 | AV11: Age | AW11: =IF(BD11>=$B$3,VLOOKUP(BD11,Lookups!A:G,8)*(1-VLOOKUP(BD11,Lookups!U:W,2))^(BD11-$B$3),"") ->  | AX11: =IF(BD11>=$B$3,VLOOKUP(BD11,Lookups!A:G,9)*(1-VLOOKUP(BD11,Lookups!U:W,3))^(BD11-$B$3),"") -> 
A12: 2006 | B12: 44 | D12: =VLOOKUP(B12,Lookups!A:B,2) -> 11850.33149 | E12: =VLOOKUP(B12,Lookups!A:C,3) -> 9331.1633 | G12: =VLOOKUP(B12,Lookups!A:D,4) -> 10298.0796 | H12: =VLOOKUP(B12,Lookups!A:E,5) -> 9237.212567 | J12: =VLOOKUP(A12,Trends!$A$3:$Q$94,IF(ExFlg=0,2,10))+IF(B12>=$B$2,Sens,0) -> 1.043 | K12: 0.5139153488 | L12: =VLOOKUP(A12,Trends!$A$3:$Q$94,IF(ExFlg=0,4,12))+IF(B12>=$B$2,Sens,0) -> 1.043 | M12: 0.5089305629 | N12: =VLOOKUP(A12,Trends!$A$3:$Z$94,IF(ExFlg=0,19,23))+IF(B12>=$B$2,Sens,0) -> 1.043 | O12: 0.4980253649 | P12: =VLOOKUP(A12,Trends!$A$3:$Q$94,IF(ExFlg=0,6,14))+IF(B12>=$B$2,Sens,0) -> 1.043 | Q12: 0.4904412938 | R12: =VLOOKUP(A12,Trends!$A$3:$Q$94,IF(ExFlg=0,8,16))+IF(B12>=$B$2,Sens,0) -> 1.043 | S12: 0.4691382122 | T12: =VLOOKUP(A12,Trends!$A$3:$Z$94,IF(ExFlg=0,21,25))+IF(B12>=$B$2,Sens,0) -> 1.043 | U12: 0.4289145489 | W12: 6090.067241 | X12: 4795.428042 | Y12: 1294.639199 | AA12: 5050.603485 | AB12: 4530.310483 | AC12: 520.2930026 | AE12: 778.4058202 | AG12: =IF(B12<71,IF(B12-35<30,VLOOKUP(B12,Lookups!A:G,6),VLOOKUP(B12,Lookups!A:G,7)),"") -> 0 | AH12: 0 | AI12: 0 | AJ12: =IF(OR(B12<55,B12-35<20),VLOOKUP(B12-$B$3,Lookups!$O$3:$Q$53,2),VLOOKUP(B12,Lookups!$O$57:$P$122,2)) -> 0.04 | AK12: 0.04 | AL12: 0.04 | AM12: =IF(B12<55,VLOOKUP(B12,Lookups!A:M,12),"") -> 0.0002 | AN12: =IF(B12<55,VLOOKUP(B12,Lookups!A:M,13),"") -> 0.0002 | AO12: 0.0002 | AP12: =IF(B12<70,VLOOKUP(B12,Lookups!A:I,8)*(1-VLOOKUP(B12,Lookups!$U$3:$W$103,2))^(B12-$B$2),"") -> 0.001134969499 | AQ12: =IF(B12<70,VLOOKUP(B12,Lookups!A:I,9)*(1-VLOOKUP(B12,Lookups!$U$3:$W$103,3))^(B12-$B$2),"") -> 0.0006250389838 | AR12: 0.0008800042415 | AS12: 0.04108000424 | AT12: 1.715354799 | AU12: 1.407648261 | AV12: 55 | AW12: =IF(BD12>=$B$3,VLOOKUP(BD12,Lookups!A:I,8)*(1-VLOOKUP(BD12,Lookups!U:W,2))^(BD12-$B$2),"") -> 0.002432239959 | AX12: =IF(BD12>=$B$3,VLOOKUP(BD12,Lookups!A:I,9)*(1-VLOOKUP(BD12,Lookups!U:W,3))^(BD12-$B$2),"") -> 0.001323303435 | AY12: 0.001877771697 | AZ12: =IF(AY11="",1,AZ11*(1-AY11)) -> 1 | BA12: =IF(AY11="",1,BA11/(1+IntRt)) -> 1 | BB12: =IF(AY12="",1,ROUND((13/24)+(11/24)*(1/(1+IntRt))*(1-AY12),6)) -> 0.989467 | BD12: 55 | BE12: =IF(BD12>=$B$3,VLOOKUP(BD12,$B$3:$AE$93,30),"") -> 1977.545881 | BF12: =IF(BE12<>"",BE12*BA12*BB12*AZ12,"") -> 1956.716391 | BQ12: 0
A13: 2007 | B13: 45 | D13: =VLOOKUP(B13,Lookups!A:B,2) -> 12045.46326 | E13: =VLOOKUP(B13,Lookups!A:C,3) -> 9331.1633 | G13: =VLOOKUP(B13,Lookups!A:D,4) -> 10467.65145 | H13: =VLOOKUP(B13,Lookups!A:E,5) -> 9237.212567 | J13: =VLOOKUP(A13,Trends!$A$3:$Q$94,IF(ExFlg=0,2,10))+IF(B13>=$B$2,Sens,0) -> 1.043 | K13: 0.5360137088 | L13: =VLOOKUP(A13,Trends!$A$3:$Q$94,IF(ExFlg=0,4,12))+IF(B13>=$B$2,Sens,0) -> 1.043 | M13: 0.5308145771 | N13: =VLOOKUP(A13,Trends!$A$3:$Z$94,IF(ExFlg=0,19,23))+IF(B13>=$B$2,Sens,0) -> 1.043 | O13: 0.5194404556 | P13: =VLOOKUP(A13,Trends!$A$3:$Q$94,IF(ExFlg=0,6,14))+IF(B13>=$B$2,Sens,0) -> 1.043 | Q13: 0.5115302695 | R13: =VLOOKUP(A13,Trends!$A$3:$Q$94,IF(ExFlg=0,8,16))+IF(B13>=$B$2,Sens,0) -> 1.043 | S13: 0.4893111553 | T13: =VLOOKUP(A13,Trends!$A$3:$Z$94,IF(ExFlg=0,21,25))+IF(B13>=$B$2,Sens,0) -> 1.043 | U13: 0.4473578745 | W13: 6456.533435 | X13: 5001.631448 | Y13: 1454.901987 | AA13: 5354.520567 | AB13: 4725.113834 | AC13: 629.406733 | AE13: 904.569066 | AG13: =IF(B13<71,IF(B13-35<30,VLOOKUP(B13,Lookups!A:G,6),VLOOKUP(B13,Lookups!A:G,7)),"") -> 0 | AH13: 0 | AI13: 0 | AJ13: =IF(OR(B13<55,B13-35<20),VLOOKUP(B13-$B$3,Lookups!$O$3:$Q$53,2),VLOOKUP(B13,Lookups!$O$57:$P$122,2)) -> 0.04 | AK13: 0.04 | AL13: 0.04 | AM13: =IF(B13<55,VLOOKUP(B13,Lookups!A:M,12),"") -> 0.0005 | AN13: =IF(B13<55,VLOOKUP(B13,Lookups!A:M,13),"") -> 0.0005 | AO13: 0.0005 | AP13: =IF(B13<70,VLOOKUP(B13,Lookups!A:I,8)*(1-VLOOKUP(B13,Lookups!$U$3:$W$103,2))^(B13-$B$2),"") -> 0.001215925285 | AQ13: =IF(B13<70,VLOOKUP(B13,Lookups!A:I,9)*(1-VLOOKUP(B13,Lookups!$U$3:$W$103,3))^(B13-$B$2),"") -> 0.0006700694167 | AR13: 0.0009429973508 | AS13: 0.04144299735 | AT13: 1.644888016 | AU13: 1.377885925 | AV13: 56 | AW13: =IF(BD13>=$B$3,VLOOKUP(BD13,Lookups!A:I,8)*(1-VLOOKUP(BD13,Lookups!U:W,2))^(BD13-$B$2),"") -> 0.002592592593 | AX13: =IF(BD13>=$B$3,VLOOKUP(BD13,Lookups!A:I,9)*(1-VLOOKUP(BD13,Lookups!U:W,3))^(BD13-$B$2),"") -> 0.001421283542 | AY13: 0.002006938068 | AZ13: 0.9981222283 | BA13: 0.9788566954 | BB13: 0.989409 | BD13: =1+BD12 -> 56 | BE13: =IF(BD13>=$B$3,VLOOKUP(BD13,$B$3:$AE$93,30),"") -> 2179.274879 | BF13: =IF(BE13<>"",BE13*BA13*BB13*AZ13,"") -> 2106.641874 | BG13: =IF(BE13<>"",BE13*AZ13/$AZ$13*BA13/$BA$13*BB13,"") -> 2156.194178 | BQ13: 0 | BR13: 0
A14: 2008 | B14: 46 | D14: =VLOOKUP(B14,Lookups!A:B,2) -> 12243.94515 | E14: =VLOOKUP(B14,Lookups!A:C,3) -> 9331.1633 | G14: =VLOOKUP(B14,Lookups!A:D,4) -> 10640.13459 | H14: =VLOOKUP(B14,Lookups!A:E,5) -> 9237.212567 | J14: =VLOOKUP(A14,Trends!$A$3:$Q$94,IF(ExFlg=0,2,10))+IF(B14>=$B$2,Sens,0) -> 1.043 | K14: =IF(B14=$B$2,1,IF(B14<$B$2,K15/J14,K13*J13)) -> 0.5590622983 | L14: =VLOOKUP(A14,Trends!$A$3:$Q$94,IF(ExFlg=0,4,12))+IF(B14>=$B$2,Sens,0) -> 1.043 | M14: 0.5536396039 | N14: =VLOOKUP(A14,Trends!$A$3:$Z$94,IF(ExFlg=0,19,23))+IF(B14>=$B$2,Sens,0) -> 1.043 | O14: 0.5417763952 | P14: =VLOOKUP(A14,Trends!$A$3:$Q$94,IF(ExFlg=0,6,14))+IF(B14>=$B$2,Sens,0) -> 1.043 | Q14: 0.5335260711 | R14: =VLOOKUP(A14,Trends!$A$3:$Q$94,IF(ExFlg=0,8,16))+IF(B14>=$B$2,Sens,0) -> 1.043 | S14: 0.510351535 | T14: =VLOOKUP(A14,Trends!$A$3:$Z$94,IF(ExFlg=0,21,25))+IF(B14>=$B$2,Sens,0) -> 1.043 | U14: 0.4665942631 | W14: 6845.128113 | X14: 5216.7016 | Y14: 1628.426513 | AA14: 5676.789203 | AB14: 4928.293728 | AC14: 748.4954744 | AE14: 1041.802887 | AG14: =IF(B14<71,IF(B14-35<30,VLOOKUP(B14,Lookups!A:G,6),VLOOKUP(B14,Lookups!A:G,7)),"") -> 0 | AH14: 0 | AI14: 0 | AJ14: =IF(OR(B14<55,B14-35<20),VLOOKUP(B14-$B$3,Lookups!$O$3:$Q$53,2),VLOOKUP(B14,Lookups!$O$57:$P$122,2)) -> 0.035 | AK14: 0.035 | AL14: 0.035 | AM14: =IF(B14<55,VLOOKUP(B14,Lookups!A:M,12),"") -> 0.0005 | AN14: =IF(B14<55,VLOOKUP(B14,Lookups!A:M,13),"") -> 0.0005 | AO14: 0.0005 | AP14: =IF(B14<70,VLOOKUP(B14,Lookups!A:I,8)*(1-VLOOKUP(B14,Lookups!$U$3:$W$103,2))^(B14-$B$2),"") -> 0.001306430239 | AQ14: =IF(B14<70,VLOOKUP(B14,Lookups!A:I,9)*(1-VLOOKUP(B14,Lookups!$U$3:$W$103,3))^(B14-$B$2),"") -> 0.000714136737 | AR14: 0.001010283488 | AS14: 0.03651028349 | AT14: 1.576718926 | AU14: 1.348752863 | AV14: 57 | AW14: =IF(BD14>=$B$3,VLOOKUP(BD14,Lookups!A:I,8)*(1-VLOOKUP(BD14,Lookups!U:W,2))^(BD14-$B$2),"") -> 0.002767676768 | AX14: =IF(BD14>=$B$3,VLOOKUP(BD14,Lookups!A:I,9)*(1-VLOOKUP(BD14,Lookups!U:W,3))^(BD14-$B$2),"") -> 0.001516161616 | AY14: 0.002141919192 | AZ14: =IF(AY13="",1,AZ13*(1-AY13)) -> 0.9961190588 | BA14: 0.9581604301 | BB14: 0.989348 | BD14: =1+BD13 -> 57 | BE14: 2576.069864 | BF14: =IF(BE14<>"",BE14*BA14*BB14*AZ14,"") -> 2432.518759 | BG14: =IF(BE14<>"",BE14*AZ14/$AZ$13*BA14/$BA$13*BB14,"") -> 2489.736321 | BH14: =IF(BE14<>"",BE14*AZ14/$AZ$14*BA14/$BA$14*BB14,"") -> 2548.629567 | BQ14: 0 | BR14: 0 | BS14: 0
A15: 2009 | B15: 47 | D15: =VLOOKUP(B15,Lookups!A:B,2) -> 12240.98041 | E15: =VLOOKUP(B15,Lookups!A:C,3) -> 9331.1633 | G15: =VLOOKUP(B15,Lookups!A:D,4) -> 10637.55825 | H15: =VLOOKUP(B15,Lookups!A:E,5) -> 9237.212567 | J15: =VLOOKUP(A15,Trends!$A$3:$Q$94,IF(ExFlg=0,2,10))+IF(B15>=$B$2,Sens,0) -> 1.043 | K15: =IF(B15=$B$2,1,IF(B15<$B$2,K16/J15,K14*J14)) -> 0.5831019771 | L15: =VLOOKUP(A15,Trends!$A$3:$Q$94,IF(ExFlg=0,4,12))+IF(B15>=$B$2,Sens,0) -> 1.043 | M15: 0.5774461069 | N15: =VLOOKUP(A15,Trends!$A$3:$Z$94,IF(ExFlg=0,19,23))+IF(B15>=$B$2,Sens,0) -> 1.043 | O15: 0.5650727802 | P15: =VLOOKUP(A15,Trends!$A$3:$Q$94,IF(ExFlg=0,6,14))+IF(B15>=$B$2,Sens,0) -> 1.043 | Q15: 0.5564676921 | R15: =VLOOKUP(A15,Trends!$A$3:$Q$94,IF(ExFlg=0,8,16))+IF(B15>=$B$2,Sens,0) -> 1.043 | S15: 0.532296651 | T15: =VLOOKUP(A15,Trends!$A$3:$Z$94,IF(ExFlg=0,21,25))+IF(B15>=$B$2,Sens,0) -> 1.043 | U15: 0.4866578164 | W15: 7137.739881 | X15: 5441.019769 | Y15: 1696.720112 | AA15: 5919.457489 | AB15: 5140.210359 | AC15: 779.2471301 | AE15: 1085.068399 | AG15: =IF(B15<71,IF(B15-35<30,VLOOKUP(B15,Lookups!A:G,6),VLOOKUP(B15,Lookups!A:G,7)),"") -> 0 | AH15: 0 | AI15: 0 | AJ15: =IF(OR(B15<55,B15-35<20),VLOOKUP(B15-$B$3,Lookups!$O$3:$Q$53,2),VLOOKUP(B15,Lookups!$O$57:$P$122,2)) -> 0.03 | AK15: 0.03 | AL15: 0.03 | AM15: =IF(B15<55,VLOOKUP(B15,Lookups!A:M,12),"") -> 0.0005 | AN15: =IF(B15<55,VLOOKUP(B15,Lookups!A:M,13),"") -> 0.0005 | AO15: 0.0005 | AP15: =IF(B15<70,VLOOKUP(B15,Lookups!A:I,8)*(1-VLOOKUP(B15,Lookups!$U$3:$W$103,2))^(B15-$B$2),"") -> 0.001403938672 | AQ15: =IF(B15<70,VLOOKUP(B15,Lookups!A:I,9)*(1-VLOOKUP(B15,Lookups!$U$3:$W$103,3))^(B15-$B$2),"") -> 0.0007673077708 | AR15: 0.001085623222 | AS15: 0.03158562322 | AT15: 1.519152471 | AU15: 1.32023577 | AV15: 58 | AW15: =IF(BD15>=$B$3,VLOOKUP(BD15,Lookups!A:I,8)*(1-VLOOKUP(BD15,Lookups!U:W,2))^(BD15-$B$2),"") -> 0.002948 | AX15: =IF(BD15>=$B$3,VLOOKUP(BD15,Lookups!A:I,9)*(1-VLOOKUP(BD15,Lookups!U:W,3))^(BD15-$B$2),"") -> 0.001619 | AY15: 0.0022835 | AZ15: 0.9939854523 | BA15: 0.9379017522 | BB15: 0.989285 | BD15: 58 | BE15: 3012.967907 | BF15: =IF(BE15<>"",BE15*BA15*BB15*AZ15,"") -> 2778.774503 | BG15: =IF(BE15<>"",BE15*AZ15/$AZ$13*BA15/$BA$13*BB15,"") -> 2844.136672 | BH15: =IF(BE15<>"",BE15*AZ15/$AZ$14*BA15/$BA$14*BB15,"") -> 2911.41305 | BI15: =IF(BE15<>"",BE15*AZ15/$AZ$15*BA15/$BA$15*BB15,"") -> 2980.683956 | BQ15: 0 | BR15: 0 | BS15: 0 | BT15: 0
A16: 2010 | B16: 48 | D16: =VLOOKUP(B16,Lookups!A:B,2) -> 12242.90448 | E16: =VLOOKUP(B16,Lookups!A:C,3) -> 9331.1633 | G16: =VLOOKUP(B16,Lookups!A:D,4) -> 10639.23033 | H16: =VLOOKUP(B16,Lookups!A:E,5) -> 9237.212567 | J16: =VLOOKUP(A16,Trends!$A$3:$Q$94,IF(ExFlg=0,2,10))+IF(B16>=$B$2,Sens,0) -> 1.043 | K16: 0.6081753621 | L16: =VLOOKUP(A16,Trends!$A$3:$Q$94,IF(ExFlg=0,4,12))+IF(B16>=$B$2,Sens,0) -> 1.043 | M16: 0.6022762894 | N16: =VLOOKUP(A16,Trends!$A$3:$Z$94,IF(ExFlg=0,19,23))+IF(B16>=$B$2,Sens,0) -> 1.043 | O16: 0.5893709097 | P16: =VLOOKUP(A16,Trends!$A$3:$Q$94,IF(ExFlg=0,6,14))+IF(B16>=$B$2,Sens,0) -> 1.043 | Q16: =IF(B16=$B$2,1,IF(B16<$B$2,Q17/P16,Q15*P15)) -> 0.5803958029 | R16: =VLOOKUP(A16,Trends!$A$3:$Q$94,IF(ExFlg=0,8,16))+IF(B16>=$B$2,Sens,0) -> 1.043 | S16: 0.5551854069 | T16: =VLOOKUP(A16,Trends!$A$3:$Z$94,IF(ExFlg=0,21,25))+IF(B16>=$B$2,Sens,0) -> 1.043 | U16: 0.5075841025 | W16: 7445.832866 | X16: 5674.983619 | Y16: 1770.849247 | AA16: 6174.964632 | AB16: 5361.239404 | AC16: 813.7252279 | AE16: 1132.763377 | AG16: =IF(B16<71,IF(B16-35<30,VLOOKUP(B16,Lookups!A:G,6),VLOOKUP(B16,Lookups!A:G,7)),"") -> 0 | AH16: 0 | AI16: 0 | AJ16: =IF(OR(B16<55,B16-35<20),VLOOKUP(B16-$B$3,Lookups!$O$3:$Q$53,2),VLOOKUP(B16,Lookups!$O$57:$P$122,2)) -> 0.03 | AK16: 0.03 | AL16: 0.03 | AM16: =IF(B16<55,VLOOKUP(B16,Lookups!A:M,12),"") -> 0.0005 | AN16: =IF(B16<55,VLOOKUP(B16,Lookups!A:M,13),"") -> 0.0005 | AO16: 0.0005 | AP16: =IF(B16<70,VLOOKUP(B16,Lookups!A:I,8)*(1-VLOOKUP(B16,Lookups!$U$3:$W$103,2))^(B16-$B$2),"") -> 0.001500472021 | AQ16: =IF(B16<70,VLOOKUP(B16,Lookups!A:I,9)*(1-VLOOKUP(B16,Lookups!$U$3:$W$103,3))^(B16-$B$2),"") -> 0.0008304012438 | AR16: 0.001165436633 | AS16: 0.03166543663 | AT16: 1.471169094 | AU16: 1.292321623 | AV16: 59 | AW16: =IF(BD16>=$B$3,VLOOKUP(BD16,Lookups!A:I,8)*(1-VLOOKUP(BD16,Lookups!U:W,2))^(BD16-$B$2),"") -> 0.00313335 | AX16: =IF(BD16>=$B$3,VLOOKUP(BD16,Lookups!A:I,9)*(1-VLOOKUP(BD16,Lookups!U:W,3))^(BD16-$B$2),"") -> 0.00173745 | AY16: 0.0024354 | AZ16: 0.9917156865 | BA16: 0.9180714098 | BB16: 0.989217 | BD16: 59 | BE16: 3520.287135 | BF16: 3170.540503 | BG16: 3245.117768 | BH16: =IF(BE16<>"",BE16*AZ16/$AZ$14*BA16/$BA$14*BB16,"") -> 3321.879117 | BI16: 3400.916194 | BJ16: =IF(BE16<>"",BE16*AZ16/$AZ$16*BA16/$BA$16*BB16,"") -> 3482.327879 | BQ16: 0 | BR16: 0 | BS16: 0 | BT16: 0 | BU16: 0
A17: 2011 | B17: 49 | D17: =VLOOKUP(B17,Lookups!A:B,2) -> 12249.74598 | E17: =VLOOKUP(B17,Lookups!A:C,3) -> 9331.1633 | G17: =VLOOKUP(B17,Lookups!A:D,4) -> 10645.17573 | H17: =VLOOKUP(B17,Lookups!A:E,5) -> 9237.212567 | J17: =VLOOKUP(A17,Trends!$A$3:$Q$94,IF(ExFlg=0,2,10))+IF(B17>=$B$2,Sens,0) -> 1.043 | K17: 0.6343269027 | L17: =VLOOKUP(A17,Trends!$A$3:$Q$94,IF(ExFlg=0,4,12))+IF(B17>=$B$2,Sens,0) -> 1.043 | M17: 0.6281741699 | N17: =VLOOKUP(A17,Trends!$A$3:$Z$94,IF(ExFlg=0,19,23))+IF(B17>=$B$2,Sens,0) -> 1.043 | O17: 0.6147138589 | P17: =VLOOKUP(A17,Trends!$A$3:$Q$94,IF(ExFlg=0,6,14))+IF(B17>=$B$2,Sens,0) -> 1.043 | Q17: 0.6053528224 | R17: =VLOOKUP(A17,Trends!$A$3:$Q$94,IF(ExFlg=0,8,16))+IF(B17>=$B$2,Sens,0) -> 1.043 | S17: 0.5790583794 | T17: =VLOOKUP(A17,Trends!$A$3:$Z$94,IF(ExFlg=0,21,25))+IF(B17>=$B$2,Sens,0) -> 1.043 | U17: 0.5294102189 | W17: 7770.343426 | X17: 5919.007915 | Y17: 1851.335511 | AA17: 6444.087172 | AB17: 5591.772699 | AC17: 852.314473 | AE17: 1185.318156 | AG17: =IF(B17<71,IF(B17-35<30,VLOOKUP(B17,Lookups!A:G,6),VLOOKUP(B17,Lookups!A:G,7)),"") -> 0 | AH17: 0 | AI17: 0 | AJ17: =IF(OR(B17<55,B17-35<20),VLOOKUP(B17-$B$3,Lookups!$O$3:$Q$53,2),VLOOKUP(B17,Lookups!$O$57:$P$122,2)) -> 0.03 | AK17: 0.03 | AL17: 0.03 | AM17: =IF(B17<55,VLOOKUP(B17,Lookups!A:M,12),"") -> 0.0005 | AN17: =IF(B17<55,VLOOKUP(B17,Lookups!A:M,13),"") -> 0.0005 | AO17: 0.0005 | AP17: =IF(B17<70,VLOOKUP(B17,Lookups!A:I,8)*(1-VLOOKUP(B17,Lookups!$U$3:$W$103,2))^(B17-$B$2),"") -> 0.001613543701 | AQ17: =IF(B17<70,VLOOKUP(B17,Lookups!A:I,9)*(1-VLOOKUP(B17,Lookups!$U$3:$W$103,3))^(B17-$B$2),"") -> 0.0008910614466 | AR17: 0.001252302574 | AS17: 0.03175230257 | AT17: 1.424583882 | AU17: 1.264997674 | AV17: 60 | AW17: =IF(BD17>=$B$3,VLOOKUP(BD17,Lookups!A:I,8)*(1-VLOOKUP(BD17,Lookups!U:W,2))^(BD17-$B$2),"") -> 0.00333234 | AX17: =IF(BD17>=$B$3,VLOOKUP(BD17,Lookups!A:I,9)*(1-VLOOKUP(BD17,Lookups!U:W,3))^(BD17-$B$2),"") -> 0.0018612099 | AY17: 0.00259677495 | AZ17: 0.9893004621 | BA17: 0.8986603463 | BB17: 0.989144 | BD17: 60 | BE17: 4095.81923 | BF17: =IF(BE17<>"",BE17*BA17*BB17*AZ17,"") -> 3601.837309 | BG17: 3686.559512 | BH17: 3773.762906 | BI17: 3863.5516 | BJ17: 3956.037928 | BK17: =IF(BE17<>"",BE17*AZ17/$AZ$17*BA17/$BA$17*BB17,"") -> 4051.355017 | BQ17: 0 | BR17: 0 | BS17: 0 | BT17: 0 | BU17: 0 | BV17: 0
A18: 2012 | B18: 50 | D18: =VLOOKUP(B18,Lookups!A:B,2) -> 12261.53568 | E18: =VLOOKUP(B18,Lookups!A:C,3) -> 9331.1633 | G18: =VLOOKUP(B18,Lookups!A:D,4) -> 10655.42116 | H18: =VLOOKUP(B18,Lookups!A:E,5) -> 9237.212567 | J18: =VLOOKUP(A18,Trends!$A$3:$Q$94,IF(ExFlg=0,2,10))+IF(B18>=$B$2,Sens,0) -> 1.043 | K18: 0.6616029595 | L18: =VLOOKUP(A18,Trends!$A$3:$Q$94,IF(ExFlg=0,4,12))+IF(B18>=$B$2,Sens,0) -> 1.043 | M18: 0.6551856592 | N18: =VLOOKUP(A18,Trends!$A$3:$Z$94,IF(ExFlg=0,19,23))+IF(B18>=$B$2,Sens,0) -> 1.043 | O18: 0.6411465548 | P18: =VLOOKUP(A18,Trends!$A$3:$Q$94,IF(ExFlg=0,6,14))+IF(B18>=$B$2,Sens,0) -> 1.043 | Q18: 0.6313829938 | R18: =VLOOKUP(A18,Trends!$A$3:$Q$94,IF(ExFlg=0,8,16))+IF(B18>=$B$2,Sens,0) -> 1.043 | S18: 0.6039578898 | T18: =VLOOKUP(A18,Trends!$A$3:$Z$94,IF(ExFlg=0,21,25))+IF(B18>=$B$2,Sens,0) -> 1.043 | U18: 0.5521748584 | W18: 8112.268292 | X18: 6173.525255 | Y18: 1938.743037 | AA18: 6727.651715 | AB18: 5832.218925 | AC18: 895.4327904 | AE18: 1243.199395 | AG18: =IF(B18<71,IF(B18-35<30,VLOOKUP(B18,Lookups!A:G,6),VLOOKUP(B18,Lookups!A:G,7)),"") -> 0 | AH18: 0 | AI18: 0 | AJ18: =IF(OR(B18<55,B18-35<20),VLOOKUP(B18-$B$3,Lookups!$O$3:$Q$53,2),VLOOKUP(B18,Lookups!$O$57:$P$122,2)) -> 0.03 | AK18: 0.03 | AL18: 0.03 | AM18: =IF(B18<55,VLOOKUP(B18,Lookups!A:M,12),"") -> 0.0015 | AN18: =IF(B18<55,VLOOKUP(B18,Lookups!A:M,13),"") -> 0.0015 | AO18: 0.0015 | AP18: =IF(B18<70,VLOOKUP(B18,Lookups!A:I,8)*(1-VLOOKUP(B18,Lookups!$U$3:$W$103,2))^(B18-$B$2),"") -> 0.001735041133 | AQ18: =IF(B18<70,VLOOKUP(B18,Lookups!A:I,9)*(1-VLOOKUP(B18,Lookups!$U$3:$W$103,3))^(B18-$B$2),"") -> 0.0009504254051 | AR18: 0.001342733269 | AS18: 0.03284273327 | AT18: 1.379350064 | AU18: 1.238251442 | AV18: 61 | AW18: =IF(BD18>=$B$3,VLOOKUP(BD18,Lookups!A:I,8)*(1-VLOOKUP(BD18,Lookups!U:W,2))^(BD18-$B$2),"") -> 0.003545472546 | AX18: =IF(BD18>=$B$3,VLOOKUP(BD18,Lookups!A:I,9)*(1-VLOOKUP(BD18,Lookups!U:W,3))^(BD18-$B$2),"") -> 0.002009489229 | AY18: 0.002777480888 | AZ18: 0.9867314715 | BA18: 0.8796596969 | BB18: 0.989063 | BD18: 61 | BE18: 4728.317218 | BF18: 4059.235382 | BG18: 4154.716475 | BH18: 4252.993847 | BI18: 4354.184826 | BJ18: 4458.416011 | BK18: =IF(BE18<>"",BE18*AZ18/$AZ$17*BA18/$BA$17*BB18,"") -> 4565.837437 | BL18: =IF(BE18<>"",BE18*AZ18/$AZ$18*BA18/$BA$18*BB18,"") -> 4676.603613 | BQ18: 0 | BR18: 0 | BS18: 0 | BT18: 0 | BU18: 0 | BV18: 0 | BW18: 0
A19: 2013 | B19: 51 | D19: =VLOOKUP(B19,Lookups!A:B,2) -> 12278.3065 | E19: =VLOOKUP(B19,Lookups!A:C,3) -> 9331.1633 | G19: =VLOOKUP(B19,Lookups!A:D,4) -> 10669.99526 | H19: =VLOOKUP(B19,Lookups!A:E,5) -> 9237.212567 | J19: =VLOOKUP(A19,Trends!$A$3:$Q$94,IF(ExFlg=0,2,10))+IF(B19>=$B$2,Sens,0) -> 1.043 | K19: 0.6900518868 | L19: =VLOOKUP(A19,Trends!$A$3:$Q$94,IF(ExFlg=0,4,12))+IF(B19>=$B$2,Sens,0) -> 1.043 | M19: 0.6833586425 | N19: =VLOOKUP(A19,Trends!$A$3:$Z$94,IF(ExFlg=0,19,23))+IF(B19>=$B$2,Sens,0) -> 1.043 | O19: 0.6687158567 | P19: =VLOOKUP(A19,Trends!$A$3:$Q$94,IF(ExFlg=0,6,14))+IF(B19>=$B$2,Sens,0) -> 1.043 | Q19: 0.6585324625 | R19: =VLOOKUP(A19,Trends!$A$3:$Q$94,IF(ExFlg=0,8,16))+IF(B19>=$B$2,Sens,0) -> 1.043 | S19: 0.629928079 | T19: =VLOOKUP(A19,Trends!$A$3:$Z$94,IF(ExFlg=0,21,25))+IF(B19>=$B$2,Sens,0) -> 1.043 | U19: 0.5759183773 | W19: 8472.668567 | X19: 6438.986841 | Y19: 2033.681726 | AA19: 7026.538254 | AB19: 6083.004338 | AC19: 943.5339153 | AE19: 1306.912885 | AG19: =IF(B19<71,IF(B19-35<30,VLOOKUP(B19,Lookups!A:G,6),VLOOKUP(B19,Lookups!A:G,7)),"") -> 0 | AH19: 0 | AI19: 0 | AJ19: =IF(OR(B19<55,B19-35<20),VLOOKUP(B19-$B$3,Lookups!$O$3:$Q$53,2),VLOOKUP(B19,Lookups!$O$57:$P$122,2)) -> 0.025 | AK19: 0.025 | AL19: 0.025 | AM19: =IF(B19<55,VLOOKUP(B19,Lookups!A:M,12),"") -> 0.0015 | AN19: =IF(B19<55,VLOOKUP(B19,Lookups!A:M,13),"") -> 0.0015 | AO19: 0.0015 | AP19: =IF(B19<70,VLOOKUP(B19,Lookups!A:I,8)*(1-VLOOKUP(B19,Lookups!$U$3:$W$103,2))^(B19-$B$2),"") -> 0.001862530351 | AQ19: =IF(B19<70,VLOOKUP(B19,Lookups!A:I,9)*(1-VLOOKUP(B19,Lookups!$U$3:$W$103,3))^(B19-$B$2),"") -> 0.00101924184 | AR19: 0.001440886096 | AS19: 0.0279408861 | AT19: 1.334048437 | AU19: 1.212070715 | AV19: 62 | AW19: =IF(BD19>=$B$3,VLOOKUP(BD19,Lookups!A:I,8)*(1-VLOOKUP(BD19,Lookups!U:W,2))^(BD19-$B$2),"") -> 0.003770339339 | AX19: =IF(BD19>=$B$3,VLOOKUP(BD19,Lookups!A:I,9)*(1-VLOOKUP(BD19,Lookups!U:W,3))^(BD19-$B$2),"") -> 0.002163262215 | AY19: 0.002966800777 | AZ19: 0.9839908437 | BA19: 0.8610607839 | BB19: 0.988978 | BD19: 62 | BE19: 5645.254816 | BF19: 4730.369307 | BG19: 4841.636773 | BH19: 4956.162839 | BI19: 5074.084235 | BJ19: 5195.548489 | BK19: =IF(BE19<>"",BE19*AZ19/$AZ$17*BA19/$BA$17*BB19,"") -> 5320.730444 | BL19: =IF(BE19<>"",BE19*AZ19/$AZ$18*BA19/$BA$18*BB19,"") -> 5449.810152 | BM19: =IF(BE19<>"",BE19*AZ19/$AZ$19*BA19/$BA$19*BB19,"") -> 5583.032818 | BQ19: 0 | BR19: 0 | BS19: 0 | BT19: 0 | BU19: 0 | BV19: 0 | BW19: 0 | BX19: 0
A20: =1+A19 -> 2014 | B20: 52 | D20: =VLOOKUP(B20,Lookups!A:B,2) -> 12423.80453 | E20: =VLOOKUP(B20,Lookups!A:C,3) -> 9331.1633 | G20: =VLOOKUP(B20,Lookups!A:D,4) -> 10796.43481 | H20: =VLOOKUP(B20,Lookups!A:E,5) -> 9237.212567 | J20: =VLOOKUP(A20,Trends!$A$3:$Q$94,IF(ExFlg=0,2,10))+IF(B20>=$B$2,Sens,0) -> 1.043 | K20: 0.7197241179 | L20: =VLOOKUP(A20,Trends!$A$3:$Q$94,IF(ExFlg=0,4,12))+IF(B20>=$B$2,Sens,0) -> 1.043 | M20: 0.7127430642 | N20: =VLOOKUP(A20,Trends!$A$3:$Z$94,IF(ExFlg=0,19,23))+IF(B20>=$B$2,Sens,0) -> 1.043 | O20: 0.6974706385 | P20: =VLOOKUP(A20,Trends!$A$3:$Q$94,IF(ExFlg=0,6,14))+IF(B20>=$B$2,Sens,0) -> 1.043 | Q20: 0.6868493584 | R20: =VLOOKUP(A20,Trends!$A$3:$Q$94,IF(ExFlg=0,8,16))+IF(B20>=$B$2,Sens,0) -> 1.043 | S20: 0.6570149864 | T20: =VLOOKUP(A20,Trends!$A$3:$Z$94,IF(ExFlg=0,21,25))+IF(B20>=$B$2,Sens,0) -> 1.043 | U20: 0.6006828675 | W20: =IF(B20<65,D20*K20,D20*M20) -> 8941.711757 | X20: 6715.863275 | Y20: 2225.848482 | AA20: 7415.524319 | AB20: 6344.573525 | AC20: 1070.950794 | AE20: 1455.912841 | AG20: =IF(B20<71,IF(B20-35<30,VLOOKUP(B20,Lookups!A:G,6),VLOOKUP(B20,Lookups!A:G,7)),"") -> 0 | AH20: 0 | AI20: 0 | AJ20: =IF(OR(B20<55,B20-35<20),VLOOKUP(B20-$B$3,Lookups!$O$3:$Q$53,2),VLOOKUP(B20,Lookups!$O$57:$P$122,2)) -> 0.02 | AK20: 0.02 | AL20: 0.02 | AM20: =IF(B20<55,VLOOKUP(B20,Lookups!A:M,12),"") -> 0.0015 | AN20: =IF(B20<55,VLOOKUP(B20,Lookups!A:M,13),"") -> 0.0015 | AO20: 0.0015 | AP20: =IF(B20<70,VLOOKUP(B20,Lookups!A:I,8)*(1-VLOOKUP(B20,Lookups!$U$3:$W$103,2))^(B20-$B$2),"") -> 0.001988358439 | AQ20: =IF(B20<70,VLOOKUP(B20,Lookups!A:I,9)*(1-VLOOKUP(B20,Lookups!$U$3:$W$103,3))^(B20-$B$2),"") -> 0.001085524746 | AR20: 0.001536941592 | AS20: 0.02303694159 | AT20: 1.296773942 | AU20: 1.186443535 | AV20: 63 | AW20: =IF(BD20>=$B$3,VLOOKUP(BD20,Lookups!A:I,8)*(1-VLOOKUP(BD20,Lookups!U:W,2))^(BD20-$B$2),"") -> 0.004016030981 | AX20: =IF(BD20>=$B$3,VLOOKUP(BD20,Lookups!A:I,9)*(1-VLOOKUP(BD20,Lookups!U:W,3))^(BD20-$B$2),"") -> 0.002339435523 | AY20: 0.003177733252 | AZ20: =IF(AY19="",1,AZ19*(1-AY19)) -> 0.9810715389 | BA20: 0.8428551135 | BB20: 0.988884 | BD20: 63 | BE20: 6678.604722 | BF20: 5461.157391 | BG20: 5589.614411 | BH20: 5721.833447 | BI20: 5857.972353 | BJ20: 5998.201449 | BK20: =IF(BE20<>"",BE20*AZ20/$AZ$17*BA20/$BA$17*BB20,"") -> 6142.722587 | BL20: =IF(BE20<>"",BE20*AZ20/$AZ$18*BA20/$BA$18*BB20,"") -> 6291.743637 | BM20: =IF(BE20<>"",BE20*AZ20/$AZ$19*BA20/$BA$19*BB20,"") -> 6445.547685 | BN20: =IF(BE20<>"",BE20*AZ20/$AZ$20*BA20/$BA$20*BB20,"") -> 6604.365351 | BQ20: 0 | BR20: 0 | BS20: 0 | BT20: 0 | BU20: 0 | BV20: 0 | BW20: 0 | BX20: 0 | BY20: 0
A21: 2015 | B21: 53 | D21: =VLOOKUP(B21,Lookups!A:B,2) -> 12571.51984 | E21: =VLOOKUP(B21,Lookups!A:C,3) -> 9331.1633 | G21: =VLOOKUP(B21,Lookups!A:D,4) -> 10924.80119 | H21: =VLOOKUP(B21,Lookups!A:E,5) -> 9237.212567 | J21: =VLOOKUP(A21,Trends!$A$3:$Q$94,IF(ExFlg=0,2,10))+IF(B21>=$B$2,Sens,0) -> 1.043 | K21: 0.750672255 | L21: =VLOOKUP(A21,Trends!$A$3:$Q$94,IF(ExFlg=0,4,12))+IF(B21>=$B$2,Sens,0) -> 1.043 | M21: 0.7433910159 | N21: =VLOOKUP(A21,Trends!$A$3:$Z$94,IF(ExFlg=0,19,23))+IF(B21>=$B$2,Sens,0) -> 1.043 | O21: 0.7274618759 | P21: =VLOOKUP(A21,Trends!$A$3:$Q$94,IF(ExFlg=0,6,14))+IF(B21>=$B$2,Sens,0) -> 1.043 | Q21: 0.7163838808 | R21: =VLOOKUP(A21,Trends!$A$3:$Q$94,IF(ExFlg=0,8,16))+IF(B21>=$B$2,Sens,0) -> 1.043 | S21: 0.6852666308 | T21: =VLOOKUP(A21,Trends!$A$3:$Z$94,IF(ExFlg=0,21,25))+IF(B21>=$B$2,Sens,0) -> 1.043 | U21: 0.6265122308 | W21: 9437.091149 | X21: 7004.645396 | Y21: 2432.445753 | AA21: 7826.351477 | AB21: 6617.390186 | AC21: 1208.96129 | AE21: 1616.785366 | AG21: =IF(B21<71,IF(B21-35<30,VLOOKUP(B21,Lookups!A:G,6),VLOOKUP(B21,Lookups!A:G,7)),"") -> 0 | AH21: 0 | AI21: 0 | AJ21: =IF(OR(B21<55,B21-35<20),VLOOKUP(B21-$B$3,Lookups!$O$3:$Q$53,2),VLOOKUP(B21,Lookups!$O$57:$P$122,2)) -> 0.02 | AK21: 0.02 | AL21: 0.02 | AM21: =IF(B21<55,VLOOKUP(B21,Lookups!A:M,12),"") -> 0.0015 | AN21: =IF(B21<55,VLOOKUP(B21,Lookups!A:M,13),"") -> 0.0015 | AO21: 0.0015 | AP21: =IF(B21<70,VLOOKUP(B21,Lookups!A:I,8)*(1-VLOOKUP(B21,Lookups!$U$3:$W$103,2))^(B21-$B$2),"") -> 0.002130411354 | AQ21: =IF(B21<70,VLOOKUP(B21,Lookups!A:I,9)*(1-VLOOKUP(B21,Lookups!$U$3:$W$103,3))^(B21-$B$2),"") -> 0.001159843891 | AR21: 0.001645127623 | AS21: 0.02314512762 | AT21: =IF(B21<71,IF(B21=$B$2,1, IF(B21<$B$2, AT22/(1-AS21), AT20*(1-AS20))),"") -> 1.266900236 | AU21: 1.161358198 | AV21: 64 | AW21: =IF(BD21>=$B$3,VLOOKUP(BD21,Lookups!A:I,8)*(1-VLOOKUP(BD21,Lookups!U:W,2))^(BD21-$B$2),"") -> 0.0042827932 | AX21: =IF(BD21>=$B$3,VLOOKUP(BD21,Lookups!A:I,9)*(1-VLOOKUP(BD21,Lookups!U:W,3))^(BD21-$B$2),"") -> 0.002537289003 | AY21: 0.003410041101 | AZ21: =IF(AY20="",1,AZ20*(1-AY20)) -> 0.9779539552 | BA21: 0.8250343711 | BB21: 0.988779 | BD21: 64 | BE21: 7841.631805 | BF21: 6255.991211 | BG21: =IF(BE21<>"",BE21*AZ21/$AZ$13*BA21/$BA$13*BB21,"") -> 6403.144265 | BH21: 6554.606871 | BI21: 6710.559856 | BJ21: 6871.19833 | BK21: =IF(BE21<>"",BE21*AZ21/$AZ$17*BA21/$BA$17*BB21,"") -> 7036.753524 | BL21: =IF(BE21<>"",BE21*AZ21/$AZ$18*BA21/$BA$18*BB21,"") -> 7207.463561 | BM21: =IF(BE21<>"",BE21*AZ21/$AZ$19*BA21/$BA$19*BB21,"") -> 7383.652728 | BN21: =IF(BE21<>"",BE21*AZ21/$AZ$20*BA21/$BA$20*BB21,"") -> 7565.585211 | BO21: =IF(BE21<>"",BE21*AZ21/$AZ$21*BA21/$BA$21*BB21,"") -> 7753.640854 | BQ21: 0 | BR21: 0 | BS21: 0 | BT21: 0 | BU21: 0 | BV21: 0 | BW21: 0 | BX21: 0 | BY21: 0 | BZ21: 0
A22: 2016 | B22: 54 | D22: =VLOOKUP(B22,Lookups!A:B,2) -> 12721.49079 | E22: =VLOOKUP(B22,Lookups!A:C,3) -> 9331.1633 | G22: =VLOOKUP(B22,Lookups!A:D,4) -> 11055.12776 | H22: =VLOOKUP(B22,Lookups!A:E,5) -> 9237.212567 | J22: =VLOOKUP(A22,Trends!$A$3:$Q$94,IF(ExFlg=0,2,10))+IF(B22>=$B$2,Sens,0) -> 1.043 | K22: 0.7829511619 | L22: =VLOOKUP(A22,Trends!$A$3:$Q$94,IF(ExFlg=0,4,12))+IF(B22>=$B$2,Sens,0) -> 1.043 | M22: 0.7753568296 | N22: =VLOOKUP(A22,Trends!$A$3:$Z$94,IF(ExFlg=0,19,23))+IF(B22>=$B$2,Sens,0) -> 1.043 | O22: 0.7587427366 | P22: =VLOOKUP(A22,Trends!$A$3:$Q$94,IF(ExFlg=0,6,14))+IF(B22>=$B$2,Sens,0) -> 1.043 | Q22: 0.7471883877 | R22: =VLOOKUP(A22,Trends!$A$3:$Q$94,IF(ExFlg=0,8,16))+IF(B22>=$B$2,Sens,0) -> 1.043 | S22: 0.714733096 | T22: =VLOOKUP(A22,Trends!$A$3:$Z$94,IF(ExFlg=0,21,25))+IF(B22>=$B$2,Sens,0) -> 1.043 | U22: 0.6534522567 | W22: 9960.305996 | X22: 7305.845148 | Y22: 2654.460849 | AA22: 8260.263086 | AB22: 6901.937964 | AC22: 1358.325121 | AE22: 1790.366043 | AG22: =IF(B22<71,IF(B22-35<30,VLOOKUP(B22,Lookups!A:G,6),VLOOKUP(B22,Lookups!A:G,7)),"") -> 0 | AH22: 0 | AI22: 0 | AJ22: =IF(OR(B22<55,B22-35<20),VLOOKUP(B22-$B$3,Lookups!$O$3:$Q$53,2),VLOOKUP(B22,Lookups!$O$57:$P$122,2)) -> 0.02 | AK22: 0.02 | AL22: 0.02 | AM22: =IF(B22<55,VLOOKUP(B22,Lookups!A:M,12),"") -> 0.0015 | AN22: =IF(B22<55,VLOOKUP(B22,Lookups!A:M,13),"") -> 0.0015 | AO22: 0.0015 | AP22: =IF(B22<70,VLOOKUP(B22,Lookups!A:I,8)*(1-VLOOKUP(B22,Lookups!$U$3:$W$103,2))^(B22-$B$2),"") -> 0.002278793559 | AQ22: =IF(B22<70,VLOOKUP(B22,Lookups!A:I,9)*(1-VLOOKUP(B22,Lookups!$U$3:$W$103,3))^(B22-$B$2),"") -> 0.001242978305 | AR22: 0.001760885932 | AS22: 0.02326088593 | AT22: 1.237577669 | AU22: 1.136803247 | AV22: 65 | AW22: =IF(BD22>=$B$3,VLOOKUP(BD22,Lookups!A:I,8)*(1-VLOOKUP(BD22,Lookups!U:W,2))^(BD22-$B$2),"") -> 0.00948283285 | AX22: =IF(BD22>=$B$3,VLOOKUP(BD22,Lookups!A:I,9)*(1-VLOOKUP(BD22,Lookups!U:W,3))^(BD22-$B$2),"") -> 0.005748979066 | AY22: 0.007615905958 | AZ22: 0.974619092 | BA22: 0.807590418 | BB22: 0.986892 | BD22: 65 | BE22: 1688.382515 | BQ22: =IF(BE22<>"",$BE22*$AZ22/$AZ$12*$BA22/$BA$12*$BB22,"") -> 1311.49472 | BR22: =IF(BE22<>"",$BE22*$AZ22/$AZ$13*$BA22/$BA$13*$BB22,"") -> 1342.34362 | BS22: =IF(BE22<>"",$BE22*$AZ22/$AZ$14*$BA22/$BA$14*$BB22,"") -> 1374.095968 | BT22: =IF(BE22<>"",$BE22*$AZ22/$AZ$15*$BA22/$BA$15*$BB22,"") -> 1406.789671 | BU22: =IF(BE22<>"",$BE22*$AZ22/$AZ$16*$BA22/$BA$16*$BB22,"") -> 1440.465631 | BV22: =IF(BE22<>"",$BE22*$AZ22/$AZ$17*$BA22/$BA$17*$BB22,"") -> 1475.172323 | BW22: =IF(BE22<>"",$BE22*$AZ22/$AZ$18*$BA22/$BA$18*$BB22,"") -> 1510.959668 | BX22: =IF(BE22<>"",$BE22*$AZ22/$AZ$19*$BA22/$BA$19*$BB22,"") -> 1547.895647 | BY22: =IF(BE22<>"",$BE22*$AZ22/$AZ$20*$BA22/$BA$20*$BB22,"") -> 1586.035645 | BZ22: =IF(BE22<>"",$BE22*$AZ22/$AZ$21*$BA22/$BA$21*$BB22,"") -> 1625.459291 | CA22: =IF(BE22<>"",$BE22*$AZ22/$AZ$22*$BA22/$BA$22*$BB22,"") -> 1666.251197
A23: 2017 | B23: 55 | D23: =VLOOKUP(B23,Lookups!A:B,2) -> 12873.75643 | E23: =VLOOKUP(B23,Lookups!A:C,3) -> 9331.1633 | G23: =VLOOKUP(B23,Lookups!A:D,4) -> 11187.44844 | H23: =VLOOKUP(B23,Lookups!A:E,5) -> 9237.212567 | J23: =VLOOKUP(A23,Trends!$A$3:$Q$94,IF(ExFlg=0,2,10))+IF(B23>=$B$2,Sens,0) -> 1.043 | K23: =IF(B23=$B$2,1,IF(B23<$B$2,K24/J23,K22*J22)) -> 0.8166180619 | L23: =VLOOKUP(A23,Trends!$A$3:$Q$94,IF(ExFlg=0,4,12))+IF(B23>=$B$2,Sens,0) -> 1.043 | M23: =IF(B23=$B$2,1,IF(B23<$B$2,M24/L23,M22*L22)) -> 0.8086971733 | N23: =VLOOKUP(A23,Trends!$A$3:$Z$94,IF(ExFlg=0,19,23))+IF(B23>=$B$2,Sens,0) -> 1.043 | O23: 0.7913686743 | P23: =VLOOKUP(A23,Trends!$A$3:$Q$94,IF(ExFlg=0,6,14))+IF(B23>=$B$2,Sens,0) -> 1.043 | Q23: 0.7793174883 | R23: =VLOOKUP(A23,Trends!$A$3:$Q$94,IF(ExFlg=0,8,16))+IF(B23>=$B$2,Sens,0) -> 1.043 | S23: 0.7454666191 | T23: =VLOOKUP(A23,Trends!$A$3:$Z$94,IF(ExFlg=0,21,25))+IF(B23>=$B$2,Sens,0) -> 1.043 | U23: 0.6815507037 | W23: 10512.94202 | X23: 7619.996489 | Y23: 2892.945535 | AA23: 8718.574217 | AB23: 7198.721297 | AC23: 1519.85292 | AE23: 1977.545881 | AG23: =IF(B23<71,IF(B23-35<30,VLOOKUP(B23,Lookups!A:G,6),VLOOKUP(B23,Lookups!A:G,7)),"") -> 0.01 | AH23: 0.01 | AI23: 0.01 | AJ23: =IF(OR(B23<55,B23-35<20),VLOOKUP(B23-$B$3,Lookups!$O$3:$Q$53,2),VLOOKUP(B23,Lookups!$O$57:$P$122,2)) -> 0.015 | AK23: 0.015 | AL23: 0.015 | AM23: =IF(B23<55,VLOOKUP(B23,Lookups!A:M,12),"") ->  | AN23: =IF(B23<55,VLOOKUP(B23,Lookups!A:M,13),"") ->  | AP23: =IF(B23<70,VLOOKUP(B23,Lookups!A:I,8)*(1-VLOOKUP(B23,Lookups!$U$3:$W$103,2))^(B23-$B$2),"") -> 0.002432239959 | AQ23: =IF(B23<70,VLOOKUP(B23,Lookups!A:I,9)*(1-VLOOKUP(B23,Lookups!$U$3:$W$103,3))^(B23-$B$2),"") -> 0.001323303435 | AR23: 0.001877771697 | AS23: 0.0268777717 | AT23: 1.208790516 | AU23: 1.11276747 | AV23: 66 | AW23: =IF(BD23>=$B$3,VLOOKUP(BD23,Lookups!A:I,8)*(1-VLOOKUP(BD23,Lookups!U:W,2))^(BD23-$B$2),"") -> 0.01023139317 | AX23: =IF(BD23>=$B$3,VLOOKUP(BD23,Lookups!A:I,9)*(1-VLOOKUP(BD23,Lookups!U:W,3))^(BD23-$B$2),"") -> 0.006283891369 | AY23: 0.00825764227 | AZ23: 0.9671964847 | BA23: 0.7905152878 | BB23: 0.986605 | BD23: 66 | BE23: 1904.81823 | BQ23: =IF(BE23<>"",$BE23*$AZ23/$AZ$12*$BA23/$BA$12*$BB23,"") -> 1436.884413 | BR23: =IF(BE23<>"",$BE23*$AZ23/$AZ$13*$BA23/$BA$13*$BB23,"") -> 1470.682722 | BS23: =IF(BE23<>"",$BE23*$AZ23/$AZ$14*$BA23/$BA$14*$BB23,"") -> 1505.470856 | BT23: =IF(BE23<>"",$BE23*$AZ23/$AZ$15*$BA23/$BA$15*$BB23,"") -> 1541.290346 | BU23: =IF(BE23<>"",$BE23*$AZ23/$AZ$16*$BA23/$BA$16*$BB23,"") -> 1578.186005 | BV23: =IF(BE23<>"",$BE23*$AZ23/$AZ$17*$BA23/$BA$17*$BB23,"") -> 1616.210943 | BW23: =IF(BE23<>"",$BE23*$AZ23/$AZ$18*$BA23/$BA$18*$BB23,"") -> 1655.419852 | BX23: =IF(BE23<>"",$BE23*$AZ23/$AZ$19*$BA23/$BA$19*$BB23,"") -> 1695.887215 | BY23: =IF(BE23<>"",$BE23*$AZ23/$AZ$20*$BA23/$BA$20*$BB23,"") -> 1737.673711 | BZ23: =IF(BE23<>"",$BE23*$AZ23/$AZ$21*$BA23/$BA$21*$BB23,"") -> 1780.866582 | CA23: =IF(BE23<>"",$BE23*$AZ23/$AZ$22*$BA23/$BA$22*$BB23,"") -> 1825.558529 | CB23: =IF(BE23<>"",$BE23*$AZ23/$AZ$23*$BA23/$BA$23*$BB23,"") -> 1879.30319
A24: 2018 | B24: 56 | D24: =VLOOKUP(B24,Lookups!A:B,2) -> 13028.35652 | E24: =VLOOKUP(B24,Lookups!A:C,3) -> 9331.1633 | G24: =VLOOKUP(B24,Lookups!A:D,4) -> 11321.79778 | H24: =VLOOKUP(B24,Lookups!A:E,5) -> 9237.212567 | J24: =VLOOKUP(A24,Trends!$A$3:$Q$94,IF(ExFlg=0,2,10))+IF(B24>=$B$2,Sens,0) -> 1.043 | K24: =IF(B24=$B$2,1,IF(B24<$B$2,K25/J24,K23*J23)) -> 0.8517326385 | L24: =VLOOKUP(A24,Trends!$A$3:$Q$94,IF(ExFlg=0,4,12))+IF(B24>=$B$2,Sens,0) -> 1.043 | M24: 0.8434711517 | N24: =VLOOKUP(A24,Trends!$A$3:$Z$94,IF(ExFlg=0,19,23))+IF(B24>=$B$2,Sens,0) -> 1.043 | O24: 0.8253975273 | P24: =VLOOKUP(A24,Trends!$A$3:$Q$94,IF(ExFlg=0,6,14))+IF(B24>=$B$2,Sens,0) -> 1.043 | Q24: 0.8128281403 | R24: =VLOOKUP(A24,Trends!$A$3:$Q$94,IF(ExFlg=0,8,16))+IF(B24>=$B$2,Sens,0) -> 1.043 | S24: 0.7775216837 | T24: =VLOOKUP(A24,Trends!$A$3:$Z$94,IF(ExFlg=0,21,25))+IF(B24>=$B$2,Sens,0) -> 1.043 | U24: 0.710857384 | W24: =IF(B24<65,D24*K24,D24*M24) -> 11096.67647 | X24: 7947.656338 | Y24: 3149.020135 | AA24: 9202.675836 | AB24: 7508.266313 | AC24: 1694.409523 | AE24: 2179.274879 | AG24: =IF(B24<71,IF(B24-35<30,VLOOKUP(B24,Lookups!A:G,6),VLOOKUP(B24,Lookups!A:G,7)),"") -> 0.01 | AH24: 0.01 | AI24: 0.01 | AJ24: =IF(OR(B24<55,B24-35<20),VLOOKUP(B24-$B$3,Lookups!$O$3:$Q$53,2),VLOOKUP(B24,Lookups!$O$57:$P$122,2)) -> 0.015 | AK24: 0.015 | AL24: 0.015 | AM24: =IF(B24<55,VLOOKUP(B24,Lookups!A:M,12),"") ->  | AN24: =IF(B24<55,VLOOKUP(B24,Lookups!A:M,13),"") ->  | AP24: =IF(B24<70,VLOOKUP(B24,Lookups!A:I,8)*(1-VLOOKUP(B24,Lookups!$U$3:$W$103,2))^(B24-$B$2),"") -> 0.002592592593 | AQ24: =IF(B24<70,VLOOKUP(B24,Lookups!A:I,9)*(1-VLOOKUP(B24,Lookups!$U$3:$W$103,3))^(B24-$B$2),"") -> 0.001421283542 | AR24: 0.002006938068 | AS24: 0.02700693807 | AT24: 1.17630092 | AU24: 1.089239888 | AV24: 67 | AW24: =IF(BD24>=$B$3,VLOOKUP(BD24,Lookups!A:I,8)*(1-VLOOKUP(BD24,Lookups!U:W,2))^(BD24-$B$2),"") -> 0.0111120238 | AX24: =IF(BD24>=$B$3,VLOOKUP(BD24,Lookups!A:I,9)*(1-VLOOKUP(BD24,Lookups!U:W,3))^(BD24-$B$2),"") -> 0.006907103908 | AY24: 0.009009563853 | AZ24: 0.9592097221 | BA24: 0.7738011823 | BB24: 0.986267 | BD24: 67 | BE24: 2141.532833 | BQ24: 1567.697263 | BR24: 1604.572545 | BS24: 1642.527763 | BT24: 1681.608232 | BU24: 1721.862844 | BV24: 1763.349543 | BW24: 1806.128001 | BX24: 1850.279481 | BY24: 1895.870187 | BZ24: 1942.995304 | CA24: =IF(BE24<>"",$BE24*$AZ24/$AZ$22*$BA24/$BA$22*$BB24,"") -> 1991.755972 | CB24: =IF(BE24<>"",$BE24*$AZ24/$AZ$23*$BA24/$BA$23*$BB24,"") -> 2050.393506 | CC24: =IF(BE24<>"",$BE24*$AZ24/$AZ$24*$BA24/$BA$24*$BB24,"") -> 2112.123163
A25: 2019 | B25: 57 | D25: =VLOOKUP(B25,Lookups!A:B,2) -> 13413.3391 | E25: =VLOOKUP(B25,Lookups!A:C,3) -> 9331.1633 | G25: =VLOOKUP(B25,Lookups!A:D,4) -> 11656.35228 | H25: =VLOOKUP(B25,Lookups!A:E,5) -> 9237.212567 | J25: =VLOOKUP(A25,Trends!$A$3:$Q$94,IF(ExFlg=0,2,10))+IF(B25>=$B$2,Sens,0) -> 1.043 | K25: 0.888357142 | L25: =VLOOKUP(A25,Trends!$A$3:$Q$94,IF(ExFlg=0,4,12))+IF(B25>=$B$2,Sens,0) -> 1.043 | M25: 0.8797404113 | N25: =VLOOKUP(A25,Trends!$A$3:$Z$94,IF(ExFlg=0,19,23))+IF(B25>=$B$2,Sens,0) -> 1.043 | O25: 0.860889621 | P25: =VLOOKUP(A25,Trends!$A$3:$Q$94,IF(ExFlg=0,6,14))+IF(B25>=$B$2,Sens,0) -> 1.043 | Q25: 0.8477797504 | R25: =VLOOKUP(A25,Trends!$A$3:$Q$94,IF(ExFlg=0,8,16))+IF(B25>=$B$2,Sens,0) -> 1.043 | S25: 0.8109551161 | T25: =VLOOKUP(A25,Trends!$A$3:$Z$94,IF(ExFlg=0,21,25))+IF(B25>=$B$2,Sens,0) -> 1.043 | U25: 0.7414242515 | W25: 11915.83559 | X25: 8289.405561 | Y25: 3626.430029 | AA25: 9882.019423 | AB25: 7831.121764 | AC25: 2050.897659 | AE25: 2576.069864 | AG25: =IF(B25<71,IF(B25-35<30,VLOOKUP(B25,Lookups!A:G,6),VLOOKUP(B25,Lookups!A:G,7)),"") -> 0.02 | AH25: 0.02 | AI25: 0.02 | AJ25: =IF(OR(B25<55,B25-35<20),VLOOKUP(B25-$B$3,Lookups!$O$3:$Q$53,2),VLOOKUP(B25,Lookups!$O$57:$P$122,2)) -> 0.015 | AK25: 0.015 | AL25: 0.015 | AM25: =IF(B25<55,VLOOKUP(B25,Lookups!A:M,12),"") ->  | AN25: =IF(B25<55,VLOOKUP(B25,Lookups!A:M,13),"") ->  | AP25: =IF(B25<70,VLOOKUP(B25,Lookups!A:I,8)*(1-VLOOKUP(B25,Lookups!$U$3:$W$103,2))^(B25-$B$2),"") -> 0.002767676768 | AQ25: =IF(B25<70,VLOOKUP(B25,Lookups!A:I,9)*(1-VLOOKUP(B25,Lookups!$U$3:$W$103,3))^(B25-$B$2),"") -> 0.001516161616 | AR25: 0.002141919192 | AS25: 0.03714191919 | AT25: =IF(B25<71,IF(B25=$B$2,1, IF(B25<$B$2, AT26/(1-AS25), AT24*(1-AS24))),"") -> 1.144532634 | AU25: 1.066209758 | AV25: 68 | AW25: =IF(BD25>=$B$3,VLOOKUP(BD25,Lookups!A:I,8)*(1-VLOOKUP(BD25,Lookups!U:W,2))^(BD25-$B$2),"") -> 0.01213771183 | AX25: =IF(BD25>=$B$3,VLOOKUP(BD25,Lookups!A:I,9)*(1-VLOOKUP(BD25,Lookups!U:W,3))^(BD25-$B$2),"") -> 0.007614897072 | AY25: 0.00987630445 | AZ25: 0.9505676609 | BA25: 0.7574404682 | BB25: 0.985878 | BD25: 68 | BE25: 2401.670826 | BQ25: 1704.779435 | BR25: 1744.879155 | BS25: 1786.153244 | BT25: 1828.650977 | BU25: 1872.425521 | BV25: 1917.539889 | BW25: 1964.05897 | BX25: 2012.071133 | BY25: 2061.648369 | BZ25: 2112.894188 | CA25: 2165.918574 | CB25: =IF(BE25<>"",$BE25*$AZ25/$AZ$23*$BA25/$BA$23*$BB25,"") -> 2229.683475 | CC25: =IF(BE25<>"",$BE25*$AZ25/$AZ$24*$BA25/$BA$24*$BB25,"") -> 2296.810881 | CD25: =IF(BE25<>"",$BE25*$AZ25/$AZ$25*$BA25/$BA$25*$BB25,"") -> 2367.75443 | CN25: Age | CO25: Service | CP25: Salary
A26: 2020 | B26: 58 | D26: =VLOOKUP(B26,Lookups!A:B,2) -> 13810.51005 | E26: =VLOOKUP(B26,Lookups!A:C,3) -> 9331.1633 | G26: =VLOOKUP(B26,Lookups!A:D,4) -> 12001.4986 | H26: =VLOOKUP(B26,Lookups!A:E,5) -> 9237.212567 | J26: =VLOOKUP(A26,Trends!$A$3:$Q$94,IF(ExFlg=0,2,10))+IF(B26>=$B$2,Sens,0) -> 1.023 | K26: 0.9265564991 | L26: =VLOOKUP(A26,Trends!$A$3:$Q$94,IF(ExFlg=0,4,12))+IF(B26>=$B$2,Sens,0) -> 1.034 | M26: 0.917569249 | N26: =VLOOKUP(A26,Trends!$A$3:$Z$94,IF(ExFlg=0,19,23))+IF(B26>=$B$2,Sens,0) -> 1.036 | O26: 0.8979078747 | P26: =VLOOKUP(A26,Trends!$A$3:$Q$94,IF(ExFlg=0,6,14))+IF(B26>=$B$2,Sens,0) -> 1.074 | Q26: 0.8842342796 | R26: =VLOOKUP(A26,Trends!$A$3:$Q$94,IF(ExFlg=0,8,16))+IF(B26>=$B$2,Sens,0) -> 1.068 | S26: 0.8458261861 | T26: =VLOOKUP(A26,Trends!$A$3:$Z$94,IF(ExFlg=0,21,25))+IF(B26>=$B$2,Sens,0) -> 1.11 | U26: 0.7733054943 | W26: 12796.21784 | X26: 8645.85 | Y26: 4150.367839 | AA26: 10612.13647 | AB26: 8167.86 | AC26: 2444.276471 | AE26: 3012.967907 | AG26: =IF(B26<71,IF(B26-35<30,VLOOKUP(B26,Lookups!A:G,6),VLOOKUP(B26,Lookups!A:G,7)),"") -> 0.02 | AH26: 0.02 | AI26: 0.02 | AJ26: =IF(OR(B26<55,B26-35<20),VLOOKUP(B26-$B$3,Lookups!$O$3:$Q$53,2),VLOOKUP(B26,Lookups!$O$57:$P$122,2)) -> 0.015 | AK26: 0.015 | AL26: 0.015 | AM26: =IF(B26<55,VLOOKUP(B26,Lookups!A:M,12),"") ->  | AN26: =IF(B26<55,VLOOKUP(B26,Lookups!A:M,13),"") ->  | AP26: =IF(B26<70,VLOOKUP(B26,Lookups!A:I,8)*(1-VLOOKUP(B26,Lookups!$U$3:$W$103,2))^(B26-$B$2),"") -> 0.002948 | AQ26: =IF(B26<70,VLOOKUP(B26,Lookups!A:I,9)*(1-VLOOKUP(B26,Lookups!$U$3:$W$103,3))^(B26-$B$2),"") -> 0.001619 | AR26: 0.0022835 | AS26: 0.0372835 | AT26: 1.102022496 | AU26: 1.04366656 | AV26: 69 | AW26: =IF(BD26>=$B$3,VLOOKUP(BD26,Lookups!A:I,8)*(1-VLOOKUP(BD26,Lookups!U:W,2))^(BD26-$B$2),"") -> 0.01329577308 | AX26: =IF(BD26>=$B$3,VLOOKUP(BD26,Lookups!A:I,9)*(1-VLOOKUP(BD26,Lookups!U:W,3))^(BD26-$B$2),"") -> 0.008413493575 | AY26: 0.01085463333 | AZ26: 0.9411795652 | BA26: 0.7414256736 | BB26: 0.985439 | BD26: 69 | BE26: 2685.983993 | BQ26: 1847.027136 | BR26: 1890.472798 | BS26: 1935.190819 | BT26: 1981.234585 | BU26: 2028.661701 | BV26: 2077.540436 | BW26: 2127.941093 | BX26: 2179.959416 | BY26: 2233.673404 | BZ26: 2289.195201 | CA26: 2346.64397 | CB26: 2415.729448 | CC26: =IF(BE26<>"",$BE26*$AZ26/$AZ$24*$BA26/$BA$24*$BB26,"") -> 2488.458 | CD26: =IF(BE26<>"",$BE26*$AZ26/$AZ$25*$BA26/$BA$25*$BB26,"") -> 2565.321117 | CE26: =IF(BE26<>"",$BE26*$AZ26/$AZ$26*$BA26/$BA$26*$BB26,"") -> 2646.873381 | CN26: =IF(OR(CN27<=($CN$76-MS), CN27 = 20), CN27, CN27-1) -> 35 | CO26: =IF(CO27=0,0,CO27-1) -> 0 | CP26: =IF(CN26<CN27,CP27*1/(1-VLOOKUP(CN26,$B$3:$AU$93,44,FALSE)) * (1+IntRt) * 1/(1+GSG) * 1/VLOOKUP(MIN(CO26,30),$CR$63:$CT$93,3,FALSE), "") -> 
A27: 2021 | B27: 59 | D27: =VLOOKUP(B27,Lookups!A:B,2) -> 14220.27792 | E27: =VLOOKUP(B27,Lookups!A:C,3) -> 9331.1633 | G27: =VLOOKUP(B27,Lookups!A:D,4) -> 12357.59182 | H27: =VLOOKUP(B27,Lookups!A:E,5) -> 9237.212567 | J27: =VLOOKUP(A27,Trends!$A$3:$Q$94,IF(ExFlg=0,2,10))+IF(B27>=$B$2,Sens,0) -> 1.055 | K27: 0.9478672986 | L27: =VLOOKUP(A27,Trends!$A$3:$Q$94,IF(ExFlg=0,4,12))+IF(B27>=$B$2,Sens,0) -> 1.054 | M27: 0.9487666034 | N27: =VLOOKUP(A27,Trends!$A$3:$Z$94,IF(ExFlg=0,19,23))+IF(B27>=$B$2,Sens,0) -> 1.075 | O27: 0.9302325581 | P27: =VLOOKUP(A27,Trends!$A$3:$Q$94,IF(ExFlg=0,6,14))+IF(B27>=$B$2,Sens,0) -> 1.053 | Q27: 0.9496676163 | R27: =VLOOKUP(A27,Trends!$A$3:$Q$94,IF(ExFlg=0,8,16))+IF(B27>=$B$2,Sens,0) -> 1.107 | S27: 0.9033423668 | T27: =VLOOKUP(A27,Trends!$A$3:$Z$94,IF(ExFlg=0,21,25))+IF(B27>=$B$2,Sens,0) -> 1.165 | U27: 0.8583690987 | W27: 13478.93642 | X27: 8844.70455 | Y27: 4634.231869 | AA27: 11735.60476 | AB27: 8772.28164 | AC27: 2963.323123 | AE27: 3520.287135 | AG27: =IF(B27<71,IF(B27-35<30,VLOOKUP(B27,Lookups!A:G,6),VLOOKUP(B27,Lookups!A:G,7)),"") -> 0.04 | AH27: 0.04 | AI27: 0.04 | AJ27: =IF(OR(B27<55,B27-35<20),VLOOKUP(B27-$B$3,Lookups!$O$3:$Q$53,2),VLOOKUP(B27,Lookups!$O$57:$P$122,2)) -> 0.015 | AK27: 0.015 | AL27: 0.015 | AM27: =IF(B27<55,VLOOKUP(B27,Lookups!A:M,12),"") ->  | AN27: =IF(B27<55,VLOOKUP(B27,Lookups!A:M,13),"") ->  | AP27: =IF(B27<70,VLOOKUP(B27,Lookups!A:I,8)*(1-VLOOKUP(B27,Lookups!$U$3:$W$103,2))^(B27-$B$2),"") -> 0.00313335 | AQ27: =IF(B27<70,VLOOKUP(B27,Lookups!A:I,9)*(1-VLOOKUP(B27,Lookups!$U$3:$W$103,3))^(B27-$B$2),"") -> 0.00173745 | AR27: 0.0024354 | AS27: 0.0574354 | AT27: =IF(B27<71,IF(B27=$B$2,1, IF(B27<$B$2, AT28/(1-AS27), AT26*(1-AS26))),"") -> 1.06093524 | AU27: 1.0216 | AV27: 70 | AW27: =IF(BD27>=$B$3,VLOOKUP(BD27,Lookups!A:I,8)*(1-VLOOKUP(BD27,Lookups!U:W,2))^(BD27-$B$2),"") -> 0.01460584992 | AX27: =IF(BD27>=$B$3,VLOOKUP(BD27,Lookups!A:I,9)*(1-VLOOKUP(BD27,Lookups!U:W,3))^(BD27-$B$2),"") -> 0.009307041153 | AY27: 0.01195644553 | AZ27: 0.9309634062 | BA27: 0.7257494847 | BB27: 0.984945 | BD27: 70 | BE27: 3003.503433 | BQ27: 1998.754521 | BR27: 2045.769106 | BS27: 2094.160569 | BT27: 2143.986684 | BU27: 2195.309786 | BV27: 2248.203753 | BW27: 2302.744663 | BX27: 2359.036126 | BY27: 2417.162546 | BZ27: 2477.245282 | CA27: 2539.413283 | CB27: 2614.173913 | CC27: 2692.876883 | CD27: =IF(BE27<>"",$BE27*$AZ27/$AZ$25*$BA27/$BA$25*$BB27,"") -> 2776.05406 | CE27: =IF(BE27<>"",$BE27*$AZ27/$AZ$26*$BA27/$BA$26*$BB27,"") -> 2864.305582 | CF27: =IF(BE27<>"",$BE27*$AZ27/$AZ$27*$BA27/$BA$27*$BB27,"") -> 2958.285689 | CN27: 35 | CO27: 0
A28: 2022 | B28: 60 | D28: =VLOOKUP(B28,Lookups!A:B,2) -> 14643.06559 | E28: =VLOOKUP(B28,Lookups!A:C,3) -> 9331.1633 | G28: =VLOOKUP(B28,Lookups!A:D,4) -> 12724.99939 | H28: =VLOOKUP(B28,Lookups!A:E,5) -> 9237.212567 | J28: =VLOOKUP(A28,Trends!$A$3:$Q$94,IF(ExFlg=0,2,10))+IF(B28>=$B$2,Sens,0) -> 1.051 | K28: 1 | L28: =VLOOKUP(A28,Trends!$A$3:$Q$94,IF(ExFlg=0,4,12))+IF(B28>=$B$2,Sens,0) -> 1.05 | M28: 1 | N28: =VLOOKUP(A28,Trends!$A$3:$Z$94,IF(ExFlg=0,19,23))+IF(B28>=$B$2,Sens,0) -> 1.077 | O28: 1 | P28: =VLOOKUP(A28,Trends!$A$3:$Q$94,IF(ExFlg=0,6,14))+IF(B28>=$B$2,Sens,0) -> 1.053 | Q28: 1 | R28: =VLOOKUP(A28,Trends!$A$3:$Q$94,IF(ExFlg=0,8,16))+IF(B28>=$B$2,Sens,0) -> 1.108 | S28: 1 | T28: =VLOOKUP(A28,Trends!$A$3:$Z$94,IF(ExFlg=0,21,25))+IF(B28>=$B$2,Sens,0) -> 1.147 | U28: 1 | W28: =IF(B28<65,D28*K28,D28*M28) -> 14643.06559 | X28: 9331.1633 | Y28: 5311.902293 | AA28: 12724.99939 | AB28: 9237.212567 | AC28: 3487.78682 | AE28: 4095.81923 | AG28: =IF(B28<71,IF(B28-35<30,VLOOKUP(B28,Lookups!A:G,6),VLOOKUP(B28,Lookups!A:G,7)),"") -> 0.05 | AH28: 0.05 | AI28: 0.05 | AJ28: =IF(OR(B28<55,B28-35<20),VLOOKUP(B28-$B$3,Lookups!$O$3:$Q$53,2),VLOOKUP(B28,Lookups!$O$57:$P$122,2)) -> 0.015 | AK28: 0.015 | AL28: 0.015 | AM28: =IF(B28<55,VLOOKUP(B28,Lookups!A:M,12),"") ->  | AN28: =IF(B28<55,VLOOKUP(B28,Lookups!A:M,13),"") ->  | AP28: =IF(B28<70,VLOOKUP(B28,Lookups!A:I,8)*(1-VLOOKUP(B28,Lookups!$U$3:$W$103,2))^(B28-$B$2),"") -> 0.00333234 | AQ28: =IF(B28<70,VLOOKUP(B28,Lookups!A:I,9)*(1-VLOOKUP(B28,Lookups!$U$3:$W$103,3))^(B28-$B$2),"") -> 0.0018612099 | AR28: 0.00259677495 | AS28: 0.06759677495 | AT28: 1 | AU28: =IF(B28<71,IF(B28=$B$2,1,IF(B28<$B$2,AU29*(1+IntRt),AU27/(1+IntRt))),"") -> 1 | AV28: 71 | AW28: =IF(BD28>=$B$3,VLOOKUP(BD28,Lookups!A:I,8)*(1-VLOOKUP(BD28,Lookups!U:W,2))^(BD28-$B$2),"") -> 0.01605512464 | AX28: =IF(BD28>=$B$3,VLOOKUP(BD28,Lookups!A:I,9)*(1-VLOOKUP(BD28,Lookups!U:W,3))^(BD28-$B$2),"") -> 0.01027752622 | AY28: 0.01316632543 | AZ28: 0.9198323929 | BA28: 0.7104047423 | BB28: 0.984402 | BD28: 71 | BE28: 3350.130348 | BQ28: 2155.007292 | BR28: 2205.697245 | BS28: 2257.871715 | BT28: 2311.592989 | BU28: 2366.928278 | BV28: 2423.957235 | BW28: 2482.761885 | BX28: 2543.453936 | BY28: 2606.124393 | BZ28: 2670.904101 | CA28: 2737.93209 | CB28: 2818.537137 | CC28: 2903.392718 | CD28: 2993.072276 | CE28: =IF(BE28<>"",$BE28*$AZ28/$AZ$26*$BA28/$BA$26*$BB28,"") -> 3088.222867 | CF28: =IF(BE28<>"",$BE28*$AZ28/$AZ$27*$BA28/$BA$27*$BB28,"") -> 3189.549875 | CN28: 35 | CO28: 0
A29: 2023 | B29: 61 | D29: =VLOOKUP(B29,Lookups!A:B,2) -> 15079.31072 | E29: =VLOOKUP(B29,Lookups!A:C,3) -> 9331.1633 | G29: =VLOOKUP(B29,Lookups!A:D,4) -> 13104.10165 | H29: =VLOOKUP(B29,Lookups!A:E,5) -> 9237.212567 | J29: =VLOOKUP(A29,Trends!$A$3:$Q$94,IF(ExFlg=0,2,10))+IF(B29>=$B$2,Sens,0) -> 1.051 | K29: =IF(B29=$B$2,1,IF(B29<$B$2,K30/J29,K28*J28)) -> 1.051 | L29: =VLOOKUP(A29,Trends!$A$3:$Q$94,IF(ExFlg=0,4,12))+IF(B29>=$B$2,Sens,0) -> 1.05 | M29: 1.05 | N29: =VLOOKUP(A29,Trends!$A$3:$Z$94,IF(ExFlg=0,19,23))+IF(B29>=$B$2,Sens,0) -> 1.052 | O29: 1.077 | P29: =VLOOKUP(A29,Trends!$A$3:$Q$94,IF(ExFlg=0,6,14))+IF(B29>=$B$2,Sens,0) -> 1.051 | Q29: 1.053 | R29: =VLOOKUP(A29,Trends!$A$3:$Q$94,IF(ExFlg=0,8,16))+IF(B29>=$B$2,Sens,0) -> 1.051 | S29: 1.108 | T29: =VLOOKUP(A29,Trends!$A$3:$Z$94,IF(ExFlg=0,21,25))+IF(B29>=$B$2,Sens,0) -> 1.053 | U29: 1.147 | W29: 15848.35557 | X29: 9807.052629 | Y29: 6041.302939 | AA29: 13798.61904 | AB29: 9726.784833 | AC29: 4071.834205 | AE29: 4728.317218 | AG29: =IF(B29<71,IF(B29-35<30,VLOOKUP(B29,Lookups!A:G,6),VLOOKUP(B29,Lookups!A:G,7)),"") -> 0.08 | AH29: 0.08 | AI29: 0.08 | AJ29: =IF(OR(B29<55,B29-35<20),VLOOKUP(B29-$B$3,Lookups!$O$3:$Q$53,2),VLOOKUP(B29,Lookups!$O$57:$P$122,2)) -> 0.015 | AK29: 0.015 | AL29: 0.015 | AM29: =IF(B29<55,VLOOKUP(B29,Lookups!A:M,12),"") ->  | AN29: =IF(B29<55,VLOOKUP(B29,Lookups!A:M,13),"") ->  | AP29: =IF(B29<70,VLOOKUP(B29,Lookups!A:I,8)*(1-VLOOKUP(B29,Lookups!$U$3:$W$103,2))^(B29-$B$2),"") -> 0.003545472546 | AQ29: =IF(B29<70,VLOOKUP(B29,Lookups!A:I,9)*(1-VLOOKUP(B29,Lookups!$U$3:$W$103,3))^(B29-$B$2),"") -> 0.002009489229 | AR29: 0.002777480888 | AS29: 0.09777748089 | AT29: =IF(B29<71,IF(B29=$B$2,1, IF(B29<$B$2, AT30/(1-AS29), AT28*(1-AS28))),"") -> 0.932403225 | AU29: 0.9788566954 | AV29: 72 | AW29: =IF(BD29>=$B$3,VLOOKUP(BD29,Lookups!A:I,8)*(1-VLOOKUP(BD29,Lookups!U:W,2))^(BD29-$B$2),"") -> 0.01766247112 | AX29: =IF(BD29>=$B$3,VLOOKUP(BD29,Lookups!A:I,9)*(1-VLOOKUP(BD29,Lookups!U:W,3))^(BD29-$B$2),"") -> 0.01135277028 | AY29: 0.0145076207 | AZ29: 0.9077215803 | BA29: 0.6953844384 | BB29: 0.983801 | BD29: 72 | BE29: 3642.633089 | BQ29: 2262.040186 | BR29: 2315.247761 | BS29: 2370.013583 | BT29: 2426.403036 | BU29: 2484.486667 | BV29: 2544.348084 | BW29: 2606.073389 | BX29: 2669.779836 | BY29: 2735.562951 | BZ29: 2803.560077 | CA29: 2873.91715 | CB29: 2958.525614 | CC29: 3047.595722 | CD29: 3141.729401 | CE29: 3241.605843 | CF29: =IF(BE29<>"",$BE29*$AZ29/$AZ$27*$BA29/$BA$27*$BB29,"") -> 3347.965466 | CN29: 35 | CO29: 0
A30: 2024 | B30: 62 | D30: =VLOOKUP(B30,Lookups!A:B,2) -> 15748.83824 | E30: =VLOOKUP(B30,Lookups!A:C,3) -> 9331.1633 | G30: =VLOOKUP(B30,Lookups!A:D,4) -> 13685.92913 | H30: =VLOOKUP(B30,Lookups!A:E,5) -> 9237.212567 | J30: =VLOOKUP(A30,Trends!$A$3:$Q$94,IF(ExFlg=0,2,10))+IF(B30>=$B$2,Sens,0) -> 1.051 | K30: =IF(B30=$B$2,1,IF(B30<$B$2,K31/J30,K29*J29)) -> 1.104601 | L30: =VLOOKUP(A30,Trends!$A$3:$Q$94,IF(ExFlg=0,4,12))+IF(B30>=$B$2,Sens,0) -> 1.05 | M30: 1.1025 | N30: =VLOOKUP(A30,Trends!$A$3:$Z$94,IF(ExFlg=0,19,23))+IF(B30>=$B$2,Sens,0) -> 1.052 | O30: 1.133004 | P30: =VLOOKUP(A30,Trends!$A$3:$Q$94,IF(ExFlg=0,6,14))+IF(B30>=$B$2,Sens,0) -> 1.051 | Q30: 1.106703 | R30: =VLOOKUP(A30,Trends!$A$3:$Q$94,IF(ExFlg=0,8,16))+IF(B30>=$B$2,Sens,0) -> 1.051 | S30: 1.164508 | T30: =VLOOKUP(A30,Trends!$A$3:$Z$94,IF(ExFlg=0,21,25))+IF(B30>=$B$2,Sens,0) -> 1.053 | U30: 1.207791 | W30: =IF(B30<65,D30*K30,D30*M30) -> 17396.18247 | X30: 10307.21231 | Y30: 7088.970161 | AA30: 15146.25883 | AB30: 10222.85086 | AC30: 4923.407972 | AE30: 5645.254816 | AG30: =IF(B30<71,IF(B30-35<30,VLOOKUP(B30,Lookups!A:G,6),VLOOKUP(B30,Lookups!A:G,7)),"") -> 0.15 | AH30: 0.15 | AI30: 0.15 | AJ30: =IF(OR(B30<55,B30-35<20),VLOOKUP(B30-$B$3,Lookups!$O$3:$Q$53,2),VLOOKUP(B30,Lookups!$O$57:$P$122,2)) -> 0.015 | AK30: 0.015 | AL30: 0.015 | AM30: =IF(B30<55,VLOOKUP(B30,Lookups!A:M,12),"") ->  | AN30: =IF(B30<55,VLOOKUP(B30,Lookups!A:M,13),"") ->  | AP30: =IF(B30<70,VLOOKUP(B30,Lookups!A:I,8)*(1-VLOOKUP(B30,Lookups!$U$3:$W$103,2))^(B30-$B$2),"") -> 0.003770339339 | AQ30: =IF(B30<70,VLOOKUP(B30,Lookups!A:I,9)*(1-VLOOKUP(B30,Lookups!$U$3:$W$103,3))^(B30-$B$2),"") -> 0.002163262215 | AR30: 0.002966800777 | AS30: 0.1679668008 | AT30: 0.8412351865 | AU30: 0.9581604301 | AV30: 73 | AW30: =IF(BD30>=$B$3,VLOOKUP(BD30,Lookups!A:I,8)*(1-VLOOKUP(BD30,Lookups!U:W,2))^(BD30-$B$2),"") -> 0.01945365992 | AX30: =IF(BD30>=$B$3,VLOOKUP(BD30,Lookups!A:I,9)*(1-VLOOKUP(BD30,Lookups!U:W,3))^(BD30-$B$2),"") -> 0.01253879075 | AY30: 0.01599622534 | AZ30: 0.8945526999 | BA30: 0.6806817134 | BB30: 0.983133 | BD30: 73 | BE30: 3957.910714 | BQ30: 2369.34488 | BR30: 2425.07647 | BS30: 2482.440225 | BT30: 2541.504632 | BU30: 2602.343583 | BV30: 2665.044654 | BW30: 2729.69803 | BX30: 2796.426529 | BY30: 2865.330206 | BZ30: 2936.55292 | CA30: 3010.247531 | CB30: 3098.869577 | CC30: 3192.164916 | CD30: 3290.764027 | CE30: 3395.37832 | CF30: 3506.783339 | CN30: 35 | CO30: 0
A31: 2025 | B31: 63 | D31: =VLOOKUP(B31,Lookups!A:B,2) -> 16451.53114 | E31: =VLOOKUP(B31,Lookups!A:C,3) -> 9331.1633 | G31: =VLOOKUP(B31,Lookups!A:D,4) -> 14296.57773 | H31: =VLOOKUP(B31,Lookups!A:E,5) -> 9237.212567 | J31: =VLOOKUP(A31,Trends!$A$3:$Q$94,IF(ExFlg=0,2,10))+IF(B31>=$B$2,Sens,0) -> 1.051 | K31: 1.160935651 | L31: =VLOOKUP(A31,Trends!$A$3:$Q$94,IF(ExFlg=0,4,12))+IF(B31>=$B$2,Sens,0) -> 1.05 | M31: 1.157625 | N31: =VLOOKUP(A31,Trends!$A$3:$Z$94,IF(ExFlg=0,19,23))+IF(B31>=$B$2,Sens,0) -> 1.052 | O31: 1.191920208 | P31: =VLOOKUP(A31,Trends!$A$3:$Q$94,IF(ExFlg=0,6,14))+IF(B31>=$B$2,Sens,0) -> 1.051 | Q31: 1.163144853 | R31: =VLOOKUP(A31,Trends!$A$3:$Q$94,IF(ExFlg=0,8,16))+IF(B31>=$B$2,Sens,0) -> 1.051 | S31: 1.223897908 | T31: =VLOOKUP(A31,Trends!$A$3:$Z$94,IF(ExFlg=0,21,25))+IF(B31>=$B$2,Sens,0) -> 1.053 | U31: 1.271803923 | W31: 19099.16902 | X31: 10832.88014 | Y31: 8266.288879 | AA31: 16628.9908 | AB31: 10744.21625 | AC31: 5884.774551 | AE31: 6678.604722 | AG31: =IF(B31<71,IF(B31-35<30,VLOOKUP(B31,Lookups!A:G,6),VLOOKUP(B31,Lookups!A:G,7)),"") -> 0.2 | AH31: 0.2 | AI31: 0.2 | AJ31: =IF(OR(B31<55,B31-35<20),VLOOKUP(B31-$B$3,Lookups!$O$3:$Q$53,2),VLOOKUP(B31,Lookups!$O$57:$P$122,2)) -> 0.005 | AK31: 0.005 | AL31: 0.005 | AM31: =IF(B31<55,VLOOKUP(B31,Lookups!A:M,12),"") ->  | AN31: =IF(B31<55,VLOOKUP(B31,Lookups!A:M,13),"") ->  | AP31: =IF(B31<70,VLOOKUP(B31,Lookups!A:I,8)*(1-VLOOKUP(B31,Lookups!$U$3:$W$103,2))^(B31-$B$2),"") -> 0.004016030981 | AQ31: =IF(B31<70,VLOOKUP(B31,Lookups!A:I,9)*(1-VLOOKUP(B31,Lookups!$U$3:$W$103,3))^(B31-$B$2),"") -> 0.002339435523 | AR31: 0.003177733252 | AS31: 0.2081777333 | AT31: 0.6999356036 | AU31: 0.9379017522 | AV31: 74 | AW31: =IF(BD31>=$B$3,VLOOKUP(BD31,Lookups!A:I,8)*(1-VLOOKUP(BD31,Lookups!U:W,2))^(BD31-$B$2),"") -> 0.02143800376 | AX31: =IF(BD31>=$B$3,VLOOKUP(BD31,Lookups!A:I,9)*(1-VLOOKUP(BD31,Lookups!U:W,3))^(BD31-$B$2),"") -> 0.01385321794 | AY31: 0.01764561085 | AZ31: 0.8802432333 | BA31: 0.6662898526 | BB31: 0.982393 | BD31: 74 | BE31: 4298.992739 | BQ31: 2476.953566 | BR31: 2535.216321 | BS31: 2595.185369 | BT31: 2656.932308 | BU31: 2720.534386 | BV31: 2786.083155 | BW31: 2853.672898 | BX31: 2923.432009 | BY31: 2995.465089 | BZ31: 3069.922529 | CA31: 3146.964133 | CB31: 3239.611132 | CC31: 3337.143671 | CD31: 3440.220864 | CE31: 3549.586431 | CF31: 3666.051139 | CN31: 35 | CO31: 0
A32: 2026 | B32: 64 | D32: =VLOOKUP(B32,Lookups!A:B,2) -> 17189.16659 | E32: =VLOOKUP(B32,Lookups!A:C,3) -> 9331.1633 | G32: =VLOOKUP(B32,Lookups!A:D,4) -> 14937.59182 | H32: =VLOOKUP(B32,Lookups!A:E,5) -> 9237.212567 | J32: =VLOOKUP(A32,Trends!$A$3:$Q$94,IF(ExFlg=0,2,10))+IF(B32>=$B$2,Sens,0) -> 1.051 | K32: 1.220143369 | L32: =VLOOKUP(A32,Trends!$A$3:$Q$94,IF(ExFlg=0,4,12))+IF(B32>=$B$2,Sens,0) -> 1.05 | M32: 1.21550625 | N32: =VLOOKUP(A32,Trends!$A$3:$Z$94,IF(ExFlg=0,19,23))+IF(B32>=$B$2,Sens,0) -> 1.052 | O32: 1.253900059 | P32: =VLOOKUP(A32,Trends!$A$3:$Q$94,IF(ExFlg=0,6,14))+IF(B32>=$B$2,Sens,0) -> 1.051 | Q32: 1.222465241 | R32: =VLOOKUP(A32,Trends!$A$3:$Q$94,IF(ExFlg=0,8,16))+IF(B32>=$B$2,Sens,0) -> 1.051 | S32: 1.286316701 | T32: =VLOOKUP(A32,Trends!$A$3:$Z$94,IF(ExFlg=0,21,25))+IF(B32>=$B$2,Sens,0) -> 1.053 | U32: 1.339209531 | W32: 20973.24764 | X32: 11385.35703 | Y32: 9587.890609 | AA32: 18260.68678 | AB32: 11292.17128 | AC32: 6968.515499 | AE32: 7841.631805 | AG32: =IF(B32<71,IF(B32-35<30,VLOOKUP(B32,Lookups!A:G,6),VLOOKUP(B32,Lookups!A:G,7)),"") -> 0.4 | AH32: 0.4 | AI32: 0.4 | AJ32: =IF(OR(B32<55,B32-35<20),VLOOKUP(B32-$B$3,Lookups!$O$3:$Q$53,2),VLOOKUP(B32,Lookups!$O$57:$P$122,2)) -> 0.005 | AK32: 0.005 | AL32: 0.005 | AM32: =IF(B32<55,VLOOKUP(B32,Lookups!A:M,12),"") ->  | AN32: =IF(B32<55,VLOOKUP(B32,Lookups!A:M,13),"") ->  | AP32: =IF(B32<70,VLOOKUP(B32,Lookups!A:I,8)*(1-VLOOKUP(B32,Lookups!$U$3:$W$103,2))^(B32-$B$2),"") -> 0.0042827932 | AQ32: =IF(B32<70,VLOOKUP(B32,Lookups!A:I,9)*(1-VLOOKUP(B32,Lookups!$U$3:$W$103,3))^(B32-$B$2),"") -> 0.002537289003 | AR32: 0.003410041101 | AS32: 0.4084100411 | AT32: 0.5542245962 | AU32: 0.9180714098 | AV32: 75 | AW32: =IF(BD32>=$B$3,VLOOKUP(BD32,Lookups!A:I,8)*(1-VLOOKUP(BD32,Lookups!U:W,2))^(BD32-$B$2),"") -> 0.02364792835 | AX32: =IF(BD32>=$B$3,VLOOKUP(BD32,Lookups!A:I,9)*(1-VLOOKUP(BD32,Lookups!U:W,3))^(BD32-$B$2),"") -> 0.01531543488 | AY32: 0.01948168161 | AZ32: 0.8647108038 | BA32: 0.6522022833 | BB32: 0.981569 | BD32: 75 | BE32: 4666.509223 | BQ32: 2583.248361 | BR32: 2644.011376 | BS32: 2706.553907 | BT32: 2770.950624 | BU32: 2837.282091 | BV32: 2905.643789 | BW32: 2976.134046 | BX32: 3048.886766 | BY32: 3124.011038 | BZ32: 3201.66371 | CA32: 3282.01144 | CB32: 3378.634248 | CC32: 3480.352251 | CD32: 3587.852849 | CE32: 3701.911678 | CF32: 3823.374296 | CN32: 35 | CO32: 0
A33: 2027 | B33: 65 | D33: =VLOOKUP(B33,Lookups!A:B,2) -> 3938.75994 | E33: =VLOOKUP(B33,Lookups!A:C,3) -> 2278.897488 | G33: =VLOOKUP(B33,Lookups!A:D,4) -> 6355.97489 | H33: =VLOOKUP(B33,Lookups!A:E,5) -> 5013.956358 | J33: =VLOOKUP(A33,Trends!$A$3:$Q$94,IF(ExFlg=0,2,10))+IF(B33>=$B$2,Sens,0) -> 1.051 | K33: 1.282370681 | L33: =VLOOKUP(A33,Trends!$A$3:$Q$94,IF(ExFlg=0,4,12))+IF(B33>=$B$2,Sens,0) -> 1.05 | M33: 1.276281563 | N33: =VLOOKUP(A33,Trends!$A$3:$Z$94,IF(ExFlg=0,19,23))+IF(B33>=$B$2,Sens,0) -> 1.052 | O33: =IF(B33=$B$2,1,IF(B33<$B$2,O34/N33,O32*N32)) -> 1.319102862 | P33: =VLOOKUP(A33,Trends!$A$3:$Q$94,IF(ExFlg=0,6,14))+IF(B33>=$B$2,Sens,0) -> 1.051 | Q33: 1.284810968 | R33: =VLOOKUP(A33,Trends!$A$3:$Q$94,IF(ExFlg=0,8,16))+IF(B33>=$B$2,Sens,0) -> 1.05 | S33: 1.351918853 | T33: =VLOOKUP(A33,Trends!$A$3:$Z$94,IF(ExFlg=0,21,25))+IF(B33>=$B$2,Sens,0) -> 1.052 | U33: 1.410187636 | W33: 5026.966691 | X33: 3006.100198 | Y33: 2020.866492 | AA33: =IF(B33<65,G33*Q33,G33*S33) -> 8592.762283 | AB33: 7070.619264 | AC33: 1522.143019 | AE33: 1688.382515 | AG33: =IF(B33<71,IF(B33-35<30,VLOOKUP(B33,Lookups!A:G,6),VLOOKUP(B33,Lookups!A:G,7)),"") -> 0.45 | AH33: 0.45 | AI33: 0.45 | AJ33: =IF(OR(B33<55,B33-35<20),VLOOKUP(B33-$B$3,Lookups!$O$3:$Q$53,2),VLOOKUP(B33,Lookups!$O$57:$P$122,2)) -> 0 | AK33: 0 | AL33: 0 | AM33: =IF(B33<55,VLOOKUP(B33,Lookups!A:M,12),"") ->  | AN33: =IF(B33<55,VLOOKUP(B33,Lookups!A:M,13),"") ->  | AP33: =IF(B33<70,VLOOKUP(B33,Lookups!A:I,8)*(1-VLOOKUP(B33,Lookups!$U$3:$W$103,2))^(B33-$B$2),"") -> 0.00948283285 | AQ33: =IF(B33<70,VLOOKUP(B33,Lookups!A:I,9)*(1-VLOOKUP(B33,Lookups!$U$3:$W$103,3))^(B33-$B$2),"") -> 0.005748979066 | AR33: 0.007615905958 | AS33: 0.457615906 | AT33: 0.3278737061 | AU33: 0.8986603463 | AV33: 76 | AW33: =IF(BD33>=$B$3,VLOOKUP(BD33,Lookups!A:I,8)*(1-VLOOKUP(BD33,Lookups!U:W,2))^(BD33-$B$2),"") -> 0.02611360462 | AX33: =IF(BD33>=$B$3,VLOOKUP(BD33,Lookups!A:I,9)*(1-VLOOKUP(BD33,Lookups!U:W,3))^(BD33-$B$2),"") -> 0.01695064352 | AY33: 0.02153212407 | AZ33: 0.8478647832 | BA33: 0.6384125717 | BB33: 0.980649 | BD33: 76 | BE33: 5062.3959 | BQ33: 2687.185968 | BR33: 2750.393797 | BS33: 2815.452742 | BT33: 2882.440476 | BU33: 2951.440805 | BV33: 3022.553052 | BW33: 3095.879501 | BX33: 3171.559443 | BY33: 3249.706359 | BZ33: 3330.483404 | CA33: 3414.063944 | CB33: 3514.574393 | CC33: 3620.385045 | CD33: 3732.210955 | CE33: 3850.858967 | CF33: 3977.208662 | CN33: 35 | CO33: 0
A34: 2028 | B34: 66 | D34: =VLOOKUP(B34,Lookups!A:B,2) -> 4011.435535 | E34: =VLOOKUP(B34,Lookups!A:C,3) -> 2278.897488 | G34: =VLOOKUP(B34,Lookups!A:D,4) -> 6473.251437 | H34: =VLOOKUP(B34,Lookups!A:E,5) -> 5013.956358 | J34: =VLOOKUP(A34,Trends!$A$3:$Q$94,IF(ExFlg=0,2,10))+IF(B34>=$B$2,Sens,0) -> 1.051 | K34: 1.347771586 | L34: =VLOOKUP(A34,Trends!$A$3:$Q$94,IF(ExFlg=0,4,12))+IF(B34>=$B$2,Sens,0) -> 1.05 | M34: 1.340095641 | N34: =VLOOKUP(A34,Trends!$A$3:$Z$94,IF(ExFlg=0,19,23))+IF(B34>=$B$2,Sens,0) -> 1.052 | O34: 1.387696211 | P34: =VLOOKUP(A34,Trends!$A$3:$Q$94,IF(ExFlg=0,6,14))+IF(B34>=$B$2,Sens,0) -> 1.051 | Q34: 1.350336327 | R34: =VLOOKUP(A34,Trends!$A$3:$Q$94,IF(ExFlg=0,8,16))+IF(B34>=$B$2,Sens,0) -> 1.05 | S34: 1.419514796 | T34: =VLOOKUP(A34,Trends!$A$3:$Z$94,IF(ExFlg=0,21,25))+IF(B34>=$B$2,Sens,0) -> 1.052 | U34: 1.483517393 | W34: 5375.707274 | X34: 3162.417409 | Y34: 2213.289865 | AA34: =IF(B34<65,G34*Q34,G34*S34) -> 9188.876192 | AB34: 7438.291466 | AC34: 1750.584726 | AE34: 1904.81823 | AG34: =IF(B34<71,IF(B34-35<30,VLOOKUP(B34,Lookups!A:G,6),VLOOKUP(B34,Lookups!A:G,7)),"") -> 0.4 | AH34: 0.4 | AI34: 0.4 | AJ34: =IF(OR(B34<55,B34-35<20),VLOOKUP(B34-$B$3,Lookups!$O$3:$Q$53,2),VLOOKUP(B34,Lookups!$O$57:$P$122,2)) -> 0 | AK34: 0 | AL34: 0 | AM34: =IF(B34<55,VLOOKUP(B34,Lookups!A:M,12),"") ->  | AN34: =IF(B34<55,VLOOKUP(B34,Lookups!A:M,13),"") ->  | AP34: =IF(B34<70,VLOOKUP(B34,Lookups!A:I,8)*(1-VLOOKUP(B34,Lookups!$U$3:$W$103,2))^(B34-$B$2),"") -> 0.01023139317 | AQ34: =IF(B34<70,VLOOKUP(B34,Lookups!A:I,9)*(1-VLOOKUP(B34,Lookups!$U$3:$W$103,3))^(B34-$B$2),"") -> 0.006283891369 | AR34: 0.00825764227 | AS34: 0.4082576423 | AT34: 0.177833483 | AU34: 0.8796596969 | AV34: 77 | AW34: =IF(BD34>=$B$3,VLOOKUP(BD34,Lookups!A:I,8)*(1-VLOOKUP(BD34,Lookups!U:W,2))^(BD34-$B$2),"") -> 0.02885559152 | AX34: =IF(BD34>=$B$3,VLOOKUP(BD34,Lookups!A:I,9)*(1-VLOOKUP(BD34,Lookups!U:W,3))^(BD34-$B$2),"") -> 0.01879120535 | AY34: 0.02382339844 | AZ34: 0.8296084535 | BA34: 0.6249144203 | BB34: 0.979621 | BD34: 77 | BE34: 5369.20978 | BQ34: 2726.855811 | BR34: 2790.996751 | BS34: 2857.016136 | BT34: 2924.992782 | BU34: 2995.011736 | BV34: 3067.173784 | BW34: 3141.582721 | BX34: 3218.379897 | BY34: 3297.680463 | BZ34: 3379.649988 | CA34: 3464.464393 | CB34: 3566.458638 | CC34: 3673.831329 | CD34: 3787.30808 | CE34: 3907.707645 | CF34: 4035.92259 | CN34: 35 | CO34: 0
A35: 2029 | B35: 67 | D35: =VLOOKUP(B35,Lookups!A:B,2) -> 4085.500336 | E35: =VLOOKUP(B35,Lookups!A:C,3) -> 2278.897488 | G35: =VLOOKUP(B35,Lookups!A:D,4) -> 6592.769744 | H35: =VLOOKUP(B35,Lookups!A:E,5) -> 5013.956358 | J35: =VLOOKUP(A35,Trends!$A$3:$Q$94,IF(ExFlg=0,2,10))+IF(B35>=$B$2,Sens,0) -> 1.051 | K35: 1.416507937 | L35: =VLOOKUP(A35,Trends!$A$3:$Q$94,IF(ExFlg=0,4,12))+IF(B35>=$B$2,Sens,0) -> 1.05 | M35: 1.407100423 | N35: =VLOOKUP(A35,Trends!$A$3:$Z$94,IF(ExFlg=0,19,23))+IF(B35>=$B$2,Sens,0) -> 1.052 | O35: 1.459856414 | P35: =VLOOKUP(A35,Trends!$A$3:$Q$94,IF(ExFlg=0,6,14))+IF(B35>=$B$2,Sens,0) -> 1.051 | Q35: 1.41920348 | R35: =VLOOKUP(A35,Trends!$A$3:$Q$94,IF(ExFlg=0,8,16))+IF(B35>=$B$2,Sens,0) -> 1.051 | S35: 1.490490536 | T35: =VLOOKUP(A35,Trends!$A$3:$Z$94,IF(ExFlg=0,21,25))+IF(B35>=$B$2,Sens,0) -> 1.053 | U35: 1.560660298 | W35: 5748.70925 | X35: 3326.863114 | Y35: 2421.846136 | AA35: 9826.460906 | AB35: 7825.082622 | AC35: 2001.378284 | AE35: =(1-PctUMP)*Y35+PctUMP*AC35 -> 2141.532833 | AG35: =IF(B35<71,IF(B35-35<30,VLOOKUP(B35,Lookups!A:G,6),VLOOKUP(B35,Lookups!A:G,7)),"") -> 0.3 | AH35: 0.3 | AI35: =IF(B35<71,PCTMALE*AG35+(1-PCTMALE)*AH35,"") -> 0.3 | AJ35: =IF(OR(B35<55,B35-35<20),VLOOKUP(B35-$B$3,Lookups!$O$3:$Q$53,2),VLOOKUP(B35,Lookups!$O$57:$P$122,2)) -> 0 | AK35: 0 | AL35: =PCTMALE*AJ35+(1-PCTMALE)*AK35 -> 0 | AM35: =IF(B35<55,VLOOKUP(B35,Lookups!A:M,12),"") ->  | AN35: =IF(B35<55,VLOOKUP(B35,Lookups!A:M,13),"") ->  | AO35: =IF(B35<55,PCTMALE*AM35+(1-PCTMALE)*AN35,"") ->  | AP35: =IF(B35<70,VLOOKUP(B35,Lookups!A:I,8)*(1-VLOOKUP(B35,Lookups!$U$3:$W$103,2))^(B35-$B$2),"") -> 0.0111120238 | AQ35: =IF(B35<70,VLOOKUP(B35,Lookups!A:I,9)*(1-VLOOKUP(B35,Lookups!$U$3:$W$103,3))^(B35-$B$2),"") -> 0.006907103908 | AR35: =IF(AP35<>"",PCTMALE*AP35+(1-PCTMALE)*AQ35,"") -> 0.009009563853 | AS35: 0.3090095639 | AT35: 0.1052316045 | AU35: =IF(B35<71,IF(B35=$B$2,1,IF(B35<$B$2,AU36*(1+IntRt),AU34/(1+IntRt))),"") -> 0.8610607839 | AV35: 78 | AW35: =IF(BD35>=$B$3,VLOOKUP(BD35,Lookups!A:I,8)*(1-VLOOKUP(BD35,Lookups!U:W,2))^(BD35-$B$2),"") -> 0.03191063917 | AX35: =IF(BD35>=$B$3,VLOOKUP(BD35,Lookups!A:I,9)*(1-VLOOKUP(BD35,Lookups!U:W,3))^(BD35-$B$2),"") -> 0.0208443583 | AY35: =IFERROR(PCTMALE*AW35+(1-PCTMALE)*AX35,"") -> 0.02637749874 | AZ35: 0.8098443608 | BA35: 0.6117016643 | BB35: 0.978475 | BD35: 78 | BE35: 5694.45885 | BQ35: 2760.218214 | BR35: 2825.143903 | BS35: 2891.971018 | BT35: 2960.779342 | BU35: 3031.65496 | BV35: 3104.699893 | BW35: 3180.019205 | BX35: 3257.755975 | BY35: 3338.026765 | BZ35: 3420.999165 | CA35: 3506.851254 | CB35: 3610.093373 | CC35: 3718.779743 | CD35: 3833.644853 | CE35: 3955.517477 | CF35: 4085.3011 | CN35: 35 | CO35: 0
A36: 2030 | B36: 68 | D36: =VLOOKUP(B36,Lookups!A:B,2) -> 4160.98175 | E36: =VLOOKUP(B36,Lookups!A:C,3) -> 2278.897488 | G36: =VLOOKUP(B36,Lookups!A:D,4) -> 6714.574037 | H36: =VLOOKUP(B36,Lookups!A:E,5) -> 5013.956358 | J36: =VLOOKUP(A36,Trends!$A$3:$Q$94,IF(ExFlg=0,2,10))+IF(B36>=$B$2,Sens,0) -> 1.051 | K36: 1.488749841 | L36: =VLOOKUP(A36,Trends!$A$3:$Q$94,IF(ExFlg=0,4,12))+IF(B36>=$B$2,Sens,0) -> 1.05 | M36: 1.477455444 | N36: =VLOOKUP(A36,Trends!$A$3:$Z$94,IF(ExFlg=0,19,23))+IF(B36>=$B$2,Sens,0) -> 1.052 | O36: 1.535768947 | P36: =VLOOKUP(A36,Trends!$A$3:$Q$94,IF(ExFlg=0,6,14))+IF(B36>=$B$2,Sens,0) -> 1.051 | Q36: 1.491582857 | R36: =VLOOKUP(A36,Trends!$A$3:$Q$94,IF(ExFlg=0,8,16))+IF(B36>=$B$2,Sens,0) -> 1.051 | S36: 1.566505553 | T36: =VLOOKUP(A36,Trends!$A$3:$Z$94,IF(ExFlg=0,21,25))+IF(B36>=$B$2,Sens,0) -> 1.053 | U36: 1.643375293 | W36: 6147.665138 | X36: 3499.859996 | Y36: 2647.805142 | AA36: 10518.41751 | AB36: 8239.812001 | AC36: 2278.605514 | AE36: 2401.670826 | AG36: =IF(B36<71,IF(B36-35<30,VLOOKUP(B36,Lookups!A:G,6),VLOOKUP(B36,Lookups!A:G,7)),"") -> 0.3 | AH36: 0.3 | AI36: 0.3 | AJ36: =IF(OR(B36<55,B36-35<20),VLOOKUP(B36-$B$3,Lookups!$O$3:$Q$53,2),VLOOKUP(B36,Lookups!$O$57:$P$122,2)) -> 0 | AK36: 0 | AL36: 0 | AM36: =IF(B36<55,VLOOKUP(B36,Lookups!A:M,12),"") ->  | AN36: =IF(B36<55,VLOOKUP(B36,Lookups!A:M,13),"") ->  | AP36: =IF(B36<70,VLOOKUP(B36,Lookups!A:I,8)*(1-VLOOKUP(B36,Lookups!$U$3:$W$103,2))^(B36-$B$2),"") -> 0.01213771183 | AQ36: =IF(B36<70,VLOOKUP(B36,Lookups!A:I,9)*(1-VLOOKUP(B36,Lookups!$U$3:$W$103,3))^(B36-$B$2),"") -> 0.007614897072 | AR36: 0.00987630445 | AS36: 0.3098763045 | AT36: 0.07271403231 | AU36: 0.8428551135 | AV36: 79 | AW36: =IF(BD36>=$B$3,VLOOKUP(BD36,Lookups!A:I,8)*(1-VLOOKUP(BD36,Lookups!U:W,2))^(BD36-$B$2),"") -> 0.03531142261 | AX36: =IF(BD36>=$B$3,VLOOKUP(BD36,Lookups!A:I,9)*(1-VLOOKUP(BD36,Lookups!U:W,3))^(BD36-$B$2),"") -> 0.0231485003 | AY36: 0.02922996145 | AZ36: 0.7884826922 | BA36: 0.5987682697 | BB36: 0.977196 | BD36: 79 | BE36: 6039.243002 | BQ36: 2786.21822 | BR36: 2851.755479 | BS36: 2919.212075 | BT36: 2988.668543 | BU36: 3060.211777 | BV36: 3133.94476 | BW36: 3209.973546 | BX36: 3288.442561 | BY36: 3369.469465 | BZ36: 3453.223428 | CA36: 3539.884205 | CB36: 3644.098818 | CC36: 3753.808964 | CD36: 3869.756051 | CE36: 3992.77666 | CF36: 4123.782786 | CN36: 35 | CO36: 0
A37: 2031 | B37: 69 | D37: =VLOOKUP(B37,Lookups!A:B,2) -> 4237.90774 | E37: =VLOOKUP(B37,Lookups!A:C,3) -> 2278.897488 | G37: =VLOOKUP(B37,Lookups!A:D,4) -> 6838.709442 | H37: =VLOOKUP(B37,Lookups!A:E,5) -> 5013.956358 | J37: =VLOOKUP(A37,Trends!$A$3:$Q$94,IF(ExFlg=0,2,10))+IF(B37>=$B$2,Sens,0) -> 1.051 | K37: 1.564676083 | L37: =VLOOKUP(A37,Trends!$A$3:$Q$94,IF(ExFlg=0,4,12))+IF(B37>=$B$2,Sens,0) -> 1.05 | M37: 1.551328216 | N37: =VLOOKUP(A37,Trends!$A$3:$Z$94,IF(ExFlg=0,19,23))+IF(B37>=$B$2,Sens,0) -> 1.051 | O37: 1.615628932 | P37: =VLOOKUP(A37,Trends!$A$3:$Q$94,IF(ExFlg=0,6,14))+IF(B37>=$B$2,Sens,0) -> 1.051 | Q37: 1.567653583 | R37: =VLOOKUP(A37,Trends!$A$3:$Q$94,IF(ExFlg=0,8,16))+IF(B37>=$B$2,Sens,0) -> 1.051 | S37: 1.646397336 | T37: =VLOOKUP(A37,Trends!$A$3:$Z$94,IF(ExFlg=0,21,25))+IF(B37>=$B$2,Sens,0) -> 1.052 | U37: 1.730474184 | W37: 6574.385854 | X37: 3681.852716 | Y37: 2892.533138 | AA37: 11259.23301 | AB37: 8676.522037 | AC37: 2582.71097 | AE37: 2685.983993 | AG37: =IF(B37<71,IF(B37-35<30,VLOOKUP(B37,Lookups!A:G,6),VLOOKUP(B37,Lookups!A:G,7)),"") -> 0.3 | AH37: 0.3 | AI37: 0.3 | AJ37: =IF(OR(B37<55,B37-35<20),VLOOKUP(B37-$B$3,Lookups!$O$3:$Q$53,2),VLOOKUP(B37,Lookups!$O$57:$P$122,2)) -> 0 | AK37: 0 | AL37: 0 | AM37: =IF(B37<55,VLOOKUP(B37,Lookups!A:M,12),"") ->  | AN37: =IF(B37<55,VLOOKUP(B37,Lookups!A:M,13),"") ->  | AP37: =IF(B37<70,VLOOKUP(B37,Lookups!A:I,8)*(1-VLOOKUP(B37,Lookups!$U$3:$W$103,2))^(B37-$B$2),"") -> 0.01329577308 | AQ37: =IF(B37<70,VLOOKUP(B37,Lookups!A:I,9)*(1-VLOOKUP(B37,Lookups!$U$3:$W$103,3))^(B37-$B$2),"") -> 0.008413493575 | AR37: 0.01085463333 | AS37: 0.3108546333 | AT37: 0.0501816767 | AU37: 0.8250343711 | AV37: 80 | AW37: =IF(BD37>=$B$3,VLOOKUP(BD37,Lookups!A:I,8)*(1-VLOOKUP(BD37,Lookups!U:W,2))^(BD37-$B$2),"") -> 0.03908349939 | AX37: =IF(BD37>=$B$3,VLOOKUP(BD37,Lookups!A:I,9)*(1-VLOOKUP(BD37,Lookups!U:W,3))^(BD37-$B$2),"") -> 0.02572993703 | AY37: 0.03240671821 | AZ37: 0.7654353735 | BA37: 0.5861083298 | BB37: 0.97577 | BD37: 80 | BE37: 6404.727366 | BQ37: 2803.719301 | BR37: 2869.66822 | BS37: 2937.548532 | BT37: 3007.441276 | BU37: 3079.433895 | BV37: 3153.630018 | BW37: 3230.136363 | BX37: 3309.098266 | BY37: 3390.634124 | BZ37: 3474.914172 | CA37: 3562.119291 | CB37: 3666.988507 | CC37: 3777.387776 | CD37: 3894.063163 | CE37: 4017.856501 | CF37: 4149.685516 | CN37: 35 | CO37: 0
A38: 2032 | B38: 70 | D38: =VLOOKUP(B38,Lookups!A:B,2) -> 4316.306836 | E38: =VLOOKUP(B38,Lookups!A:C,3) -> 2278.897488 | G38: =VLOOKUP(B38,Lookups!A:D,4) -> 6965.221997 | H38: =VLOOKUP(B38,Lookups!A:E,5) -> 5013.956358 | J38: =VLOOKUP(A38,Trends!$A$3:$Q$94,IF(ExFlg=0,2,10))+IF(B38>=$B$2,Sens,0) -> 1.051 | K38: 1.644474564 | L38: =VLOOKUP(A38,Trends!$A$3:$Q$94,IF(ExFlg=0,4,12))+IF(B38>=$B$2,Sens,0) -> 1.05 | M38: 1.628894627 | N38: =VLOOKUP(A38,Trends!$A$3:$Z$94,IF(ExFlg=0,19,23))+IF(B38>=$B$2,Sens,0) -> 1.051 | O38: 1.698026008 | P38: =VLOOKUP(A38,Trends!$A$3:$Q$94,IF(ExFlg=0,6,14))+IF(B38>=$B$2,Sens,0) -> 1.051 | Q38: 1.647603916 | R38: =VLOOKUP(A38,Trends!$A$3:$Q$94,IF(ExFlg=0,8,16))+IF(B38>=$B$2,Sens,0) -> 1.051 | S38: 1.7303636 | T38: =VLOOKUP(A38,Trends!$A$3:$Z$94,IF(ExFlg=0,21,25))+IF(B38>=$B$2,Sens,0) -> 1.052 | U38: 1.820458841 | W38: 7030.809013 | X38: 3869.627204 | Y38: 3161.181809 | AA38: 12052.36661 | AB38: 9127.701183 | AC38: 2924.665428 | AE38: 3003.503433 | AG38: =IF(B38<71,IF(B38-35<30,VLOOKUP(B38,Lookups!A:G,6),VLOOKUP(B38,Lookups!A:G,7)),"") -> 1 | AH38: 1 | AI38: 1 | AJ38: =IF(OR(B38<55,B38-35<20),VLOOKUP(B38-$B$3,Lookups!$O$3:$Q$53,2),VLOOKUP(B38,Lookups!$O$57:$P$122,2)) -> 0 | AK38: 0 | AL38: 0 | AM38: =IF(B38<55,VLOOKUP(B38,Lookups!A:M,12),"") ->  | AN38: =IF(B38<55,VLOOKUP(B38,Lookups!A:M,13),"") ->  | AP38: =IF(B38<70,VLOOKUP(B38,Lookups!A:I,8)*(1-VLOOKUP(B38,Lookups!$U$3:$W$103,2))^(B38-$B$2),"") ->  | AQ38: =IF(B38<70,VLOOKUP(B38,Lookups!A:I,9)*(1-VLOOKUP(B38,Lookups!$U$3:$W$103,3))^(B38-$B$2),"") ->  | AS38: 1 | AT38: 0.03458246999 | AU38: 0.807590418 | AV38: 81 | AW38: =IF(BD38>=$B$3,VLOOKUP(BD38,Lookups!A:I,8)*(1-VLOOKUP(BD38,Lookups!U:W,2))^(BD38-$B$2),"") -> 0.04327181882 | AX38: =IF(BD38>=$B$3,VLOOKUP(BD38,Lookups!A:I,9)*(1-VLOOKUP(BD38,Lookups!U:W,3))^(BD38-$B$2),"") -> 0.0286304289 | AY38: 0.03595112386 | AZ38: 0.740630125 | BA38: 0.5737160628 | BB38: 0.97418 | BD38: 81 | BE38: 6792.146158 | BQ38: 2811.542251 | BR38: 2877.67518 | BS38: 2945.744892 | BT38: 3015.832651 | BU38: 3088.026144 | BV38: 3162.429289 | BW38: 3239.149103 | BX38: 3318.331326 | BY38: 3400.094686 | BZ38: 3484.609892 | CA38: 3572.058331 | CB38: 3677.220154 | CC38: 3787.927459 | CD38: 3904.928394 | CE38: 4029.067141 | CF38: 4161.263986 | CN38: 35 | CO38: 0
A39: 2033 | B39: 71 | D39: =VLOOKUP(B39,Lookups!A:B,2) -> 4396.208148 | E39: =VLOOKUP(B39,Lookups!A:C,3) -> 2278.897488 | G39: =VLOOKUP(B39,Lookups!A:D,4) -> 7094.158675 | H39: =VLOOKUP(B39,Lookups!A:E,5) -> 5013.956358 | J39: =VLOOKUP(A39,Trends!$A$3:$Q$94,IF(ExFlg=0,2,10))+IF(B39>=$B$2,Sens,0) -> 1.051 | K39: 1.728342766 | L39: =VLOOKUP(A39,Trends!$A$3:$Q$94,IF(ExFlg=0,4,12))+IF(B39>=$B$2,Sens,0) -> 1.05 | M39: 1.710339358 | N39: =VLOOKUP(A39,Trends!$A$3:$Z$94,IF(ExFlg=0,19,23))+IF(B39>=$B$2,Sens,0) -> 1.051 | O39: 1.784625334 | P39: =VLOOKUP(A39,Trends!$A$3:$Q$94,IF(ExFlg=0,6,14))+IF(B39>=$B$2,Sens,0) -> 1.051 | Q39: 1.731631715 | R39: =VLOOKUP(A39,Trends!$A$3:$Q$94,IF(ExFlg=0,8,16))+IF(B39>=$B$2,Sens,0) -> 1.051 | S39: 1.818612144 | T39: =VLOOKUP(A39,Trends!$A$3:$Z$94,IF(ExFlg=0,21,25))+IF(B39>=$B$2,Sens,0) -> 1.052 | U39: 1.915122701 | W39: 7519.007822 | X39: 4066.978192 | Y39: 3452.029631 | AA39: 12901.52312 | AB39: 9602.341644 | AC39: 3299.181471 | AE39: 3350.130348 | AG39: =IF(B39<71,IF(B39-35<30,VLOOKUP(B39,Lookups!A:G,6),VLOOKUP(B39,Lookups!A:G,7)),"") ->  | AJ39: =IF(OR(B39<55,B39-35<20),VLOOKUP(B39-$B$3,Lookups!$O$3:$Q$53,2),VLOOKUP(B39,Lookups!$O$57:$P$122,2)) -> 0 | AK39: 0 | AL39: 0 | AM39: =IF(B39<55,VLOOKUP(B39,Lookups!A:M,12),"") ->  | AN39: =IF(B39<55,VLOOKUP(B39,Lookups!A:M,13),"") ->  | AP39: =IF(B39<70,VLOOKUP(B39,Lookups!A:I,8)*(1-VLOOKUP(B39,Lookups!$U$3:$W$103,2))^(B39-$B$2),"") ->  | AQ39: =IF(B39<70,VLOOKUP(B39,Lookups!A:I,9)*(1-VLOOKUP(B39,Lookups!$U$3:$W$103,3))^(B39-$B$2),"") ->  | AS39: =IF(B39<71,SUM(AI39,AL39,AO39,AR39),"") ->  | AV39: 82 | AW39: =IF(BD39>=$B$3,VLOOKUP(BD39,Lookups!A:I,8)*(1-VLOOKUP(BD39,Lookups!U:W,2))^(BD39-$B$2),"") -> 0.04789808218 | AX39: =IF(BD39>=$B$3,VLOOKUP(BD39,Lookups!A:I,9)*(1-VLOOKUP(BD39,Lookups!U:W,3))^(BD39-$B$2),"") -> 0.03188989006 | AY39: 0.03989398612 | AZ39: 0.7140036397 | BA39: 0.5615858093 | BB39: 0.972411 | BD39: 82 | BE39: 7036.198796 | BQ39: 2743.49716 | BR39: 2808.029537 | BS39: 2874.451822 | BT39: 2942.843314 | BU39: 3013.289576 | BV39: 3085.892012 | BW39: 3160.755049 | BX39: 3238.020899 | BY39: 3317.805418 | BZ39: 3400.275183 | CA39: 3485.607191 | CB39: 3588.223882 | CC39: 3696.251843 | CD39: 3810.421115 | CE39: 3931.55545 | CF39: 4060.55286 | CN39: 35 | CO39: 0
A40: 2034 | B40: 72 | D40: =VLOOKUP(B40,Lookups!A:B,2) -> 4445.383544 | E40: =VLOOKUP(B40,Lookups!A:C,3) -> 2278.897488 | G40: =VLOOKUP(B40,Lookups!A:D,4) -> 7173.512955 | H40: =VLOOKUP(B40,Lookups!A:E,5) -> 5013.956358 | J40: =VLOOKUP(A40,Trends!$A$3:$Q$94,IF(ExFlg=0,2,10))+IF(B40>=$B$2,Sens,0) -> 1.051 | K40: 1.816488247 | L40: =VLOOKUP(A40,Trends!$A$3:$Q$94,IF(ExFlg=0,4,12))+IF(B40>=$B$2,Sens,0) -> 1.05 | M40: 1.795856326 | N40: =VLOOKUP(A40,Trends!$A$3:$Z$94,IF(ExFlg=0,19,23))+IF(B40>=$B$2,Sens,0) -> 1.051 | O40: 1.875641226 | P40: =VLOOKUP(A40,Trends!$A$3:$Q$94,IF(ExFlg=0,6,14))+IF(B40>=$B$2,Sens,0) -> 1.052 | Q40: 1.819944933 | R40: =VLOOKUP(A40,Trends!$A$3:$Q$94,IF(ExFlg=0,8,16))+IF(B40>=$B$2,Sens,0) -> 1.051 | S40: 1.911361363 | T40: =VLOOKUP(A40,Trends!$A$3:$Z$94,IF(ExFlg=0,21,25))+IF(B40>=$B$2,Sens,0) -> 1.052 | U40: 2.014709082 | W40: 7983.270158 | X40: 4274.394079 | Y40: 3708.876079 | AA40: 13711.1755 | AB40: 10101.66341 | AC40: 3609.51209 | AE40: 3642.633089 | AG40: =IF(B40<71,IF(B40-35<30,VLOOKUP(B40,Lookups!A:G,6),VLOOKUP(B40,Lookups!A:G,7)),"") ->  | AJ40: =IF(OR(B40<55,B40-35<20),VLOOKUP(B40-$B$3,Lookups!$O$3:$Q$53,2),VLOOKUP(B40,Lookups!$O$57:$P$122,2)) -> 0 | AK40: 0 | AL40: 0 | AM40: =IF(B40<55,VLOOKUP(B40,Lookups!A:M,12),"") ->  | AN40: =IF(B40<55,VLOOKUP(B40,Lookups!A:M,13),"") ->  | AP40: =IF(B40<70,VLOOKUP(B40,Lookups!A:I,8)*(1-VLOOKUP(B40,Lookups!$U$3:$W$103,2))^(B40-$B$2),"") ->  | AQ40: =IF(B40<70,VLOOKUP(B40,Lookups!A:I,9)*(1-VLOOKUP(B40,Lookups!$U$3:$W$103,3))^(B40-$B$2),"") ->  | AV40: 83 | AW40: =IF(BD40>=$B$3,VLOOKUP(BD40,Lookups!A:I,8)*(1-VLOOKUP(BD40,Lookups!U:W,2))^(BD40-$B$2),"") -> 0.05300463654 | AX40: =IF(BD40>=$B$3,VLOOKUP(BD40,Lookups!A:I,9)*(1-VLOOKUP(BD40,Lookups!U:W,3))^(BD40-$B$2),"") -> 0.03558766066 | AY40: 0.0442961486 | AZ40: 0.6855191884 | BA40: 0.5497120295 | BB40: 0.970436 | BD40: 83 | BE40: 7289.999301 | BQ40: 2665.933072 | BR40: 2728.640991 | BS40: 2793.185386 | BT40: 2859.643316 | BU40: 2928.097923 | BV40: 2998.647745 | BW40: 3071.394256 | BX40: 3146.475647 | BY40: 3224.004501 | BZ40: 3304.142682 | CA40: 3387.062185 | CB40: 3486.777699 | CC40: 3591.751497 | CD40: 3702.692978 | CE40: 3820.402605 | CF40: 3945.753004 | CN40: 35 | CO40: 0
A41: 2035 | B41: 73 | D41: =VLOOKUP(B41,Lookups!A:B,2) -> 4495.17409 | E41: =VLOOKUP(B41,Lookups!A:C,3) -> 2278.897488 | G41: =VLOOKUP(B41,Lookups!A:D,4) -> 7253.859903 | H41: =VLOOKUP(B41,Lookups!A:E,5) -> 5013.956358 | J41: =VLOOKUP(A41,Trends!$A$3:$Q$94,IF(ExFlg=0,2,10))+IF(B41>=$B$2,Sens,0) -> 1.051 | K41: 1.909129148 | L41: =VLOOKUP(A41,Trends!$A$3:$Q$94,IF(ExFlg=0,4,12))+IF(B41>=$B$2,Sens,0) -> 1.051 | M41: 1.885649142 | N41: =VLOOKUP(A41,Trends!$A$3:$Z$94,IF(ExFlg=0,19,23))+IF(B41>=$B$2,Sens,0) -> 1.052 | O41: 1.971298929 | P41: =VLOOKUP(A41,Trends!$A$3:$Q$94,IF(ExFlg=0,6,14))+IF(B41>=$B$2,Sens,0) -> 1.052 | Q41: 1.914582069 | R41: =VLOOKUP(A41,Trends!$A$3:$Q$94,IF(ExFlg=0,8,16))+IF(B41>=$B$2,Sens,0) -> 1.051 | S41: 2.008840793 | T41: =VLOOKUP(A41,Trends!$A$3:$Z$94,IF(ExFlg=0,21,25))+IF(B41>=$B$2,Sens,0) -> 1.052 | U41: 2.119473954 | W41: 8476.321168 | X41: 4492.388177 | Y41: 3983.932991 | AA41: 14571.84968 | AB41: 10626.94991 | AC41: 3944.899771 | AE41: 3957.910714 | AG41: =IF(B41<71,IF(B41-35<30,VLOOKUP(B41,Lookups!A:G,6),VLOOKUP(B41,Lookups!A:G,7)),"") ->  | AJ41: =IF(OR(B41<55,B41-35<20),VLOOKUP(B41-$B$3,Lookups!$O$3:$Q$53,2),VLOOKUP(B41,Lookups!$O$57:$P$122,2)) -> 0 | AK41: 0 | AL41: 0 | AM41: =IF(B41<55,VLOOKUP(B41,Lookups!A:M,12),"") ->  | AN41: =IF(B41<55,VLOOKUP(B41,Lookups!A:M,13),"") ->  | AP41: =IF(B41<70,VLOOKUP(B41,Lookups!A:I,8)*(1-VLOOKUP(B41,Lookups!$U$3:$W$103,2))^(B41-$B$2),"") ->  | AQ41: =IF(B41<70,VLOOKUP(B41,Lookups!A:I,9)*(1-VLOOKUP(B41,Lookups!$U$3:$W$103,3))^(B41-$B$2),"") ->  | AV41: 84 | AW41: =IF(BD41>=$B$3,VLOOKUP(BD41,Lookups!A:I,8)*(1-VLOOKUP(BD41,Lookups!U:W,2))^(BD41-$B$2),"") -> 0.05859643318 | AX41: =IF(BD41>=$B$3,VLOOKUP(BD41,Lookups!A:I,9)*(1-VLOOKUP(BD41,Lookups!U:W,3))^(BD41-$B$2),"") -> 0.03979967999 | AY41: 0.04919805659 | AZ41: 0.6551533285 | BA41: 0.5380893006 | BB41: 0.968237 | BD41: 84 | BE41: 7551.626731 | BQ41: 2577.623593 | BR41: 2638.254302 | BS41: 2700.660653 | BT41: 2764.917152 | BU41: 2831.104189 | BV41: 2899.317037 | BW41: 2969.653807 | BX41: 3042.248115 | BY41: 3117.208812 | BZ41: 3194.692403 | CA41: 3274.865184 | CB41: 3371.277605 | CC41: 3472.774127 | CD41: 3580.040653 | CE41: 3693.85113 | CF41: 3815.049275 | CN41: 35 | CO41: 0
A42: 2036 | B42: 74 | D42: =VLOOKUP(B42,Lookups!A:B,2) -> 4545.588107 | E42: =VLOOKUP(B42,Lookups!A:C,3) -> 2278.897488 | G42: =VLOOKUP(B42,Lookups!A:D,4) -> 7335.212945 | H42: =VLOOKUP(B42,Lookups!A:E,5) -> 5013.956358 | J42: =VLOOKUP(A42,Trends!$A$3:$Q$94,IF(ExFlg=0,2,10))+IF(B42>=$B$2,Sens,0) -> 1.051 | K42: 2.006494735 | L42: =VLOOKUP(A42,Trends!$A$3:$Q$94,IF(ExFlg=0,4,12))+IF(B42>=$B$2,Sens,0) -> 1.051 | M42: 1.981817249 | N42: =VLOOKUP(A42,Trends!$A$3:$Z$94,IF(ExFlg=0,19,23))+IF(B42>=$B$2,Sens,0) -> 1.052 | O42: 2.073806473 | P42: =VLOOKUP(A42,Trends!$A$3:$Q$94,IF(ExFlg=0,6,14))+IF(B42>=$B$2,Sens,0) -> 1.052 | Q42: 2.014140337 | R42: =VLOOKUP(A42,Trends!$A$3:$Q$94,IF(ExFlg=0,8,16))+IF(B42>=$B$2,Sens,0) -> 1.051 | S42: 2.111291673 | T42: =VLOOKUP(A42,Trends!$A$3:$Z$94,IF(ExFlg=0,21,25))+IF(B42>=$B$2,Sens,0) -> 1.052 | U42: 2.2296866 | W42: 9008.524916 | X42: 4725.992363 | Y42: 4282.532553 | AA42: 15486.77401 | AB42: 11179.5513 | AC42: 4307.222708 | AE42: 4298.992739 | AG42: =IF(B42<71,IF(B42-35<30,VLOOKUP(B42,Lookups!A:G,6),VLOOKUP(B42,Lookups!A:G,7)),"") ->  | AJ42: =IF(OR(B42<55,B42-35<20),VLOOKUP(B42-$B$3,Lookups!$O$3:$Q$53,2),VLOOKUP(B42,Lookups!$O$57:$P$122,2)) -> 0 | AK42: 0 | AL42: 0 | AM42: =IF(B42<55,VLOOKUP(B42,Lookups!A:M,12),"") ->  | AN42: =IF(B42<55,VLOOKUP(B42,Lookups!A:M,13),"") ->  | AP42: =IF(B42<70,VLOOKUP(B42,Lookups!A:I,8)*(1-VLOOKUP(B42,Lookups!$U$3:$W$103,2))^(B42-$B$2),"") ->  | AQ42: =IF(B42<70,VLOOKUP(B42,Lookups!A:I,9)*(1-VLOOKUP(B42,Lookups!$U$3:$W$103,3))^(B42-$B$2),"") ->  | AV42: 85 | AW42: =IF(BD42>=$B$3,VLOOKUP(BD42,Lookups!A:I,8)*(1-VLOOKUP(BD42,Lookups!U:W,2))^(BD42-$B$2),"") -> 0.06470460022 | AX42: =IF(BD42>=$B$3,VLOOKUP(BD42,Lookups!A:I,9)*(1-VLOOKUP(BD42,Lookups!U:W,3))^(BD42-$B$2),"") -> 0.04462830484 | AY42: 0.05466645253 | AZ42: 0.622921058 | BA42: 0.5267123146 | BB42: 0.965784 | BD42: 85 | BE42: 7821.230326 | BQ42: 2478.343882 | BR42: 2536.63934 | BS42: 2596.642049 | BT42: 2658.423646 | BU42: 2722.061424 | BV42: 2787.646986 | BW42: 2855.274667 | BX42: 2925.072934 | BY42: 2997.146446 | BZ42: 3071.645679 | CA42: 3148.730527 | CB42: 3241.429528 | CC42: 3339.016813 | CD42: 3442.151863 | CE42: 3551.578817 | CF42: 3668.108896 | CN42: 35 | CO42: 0
A43: 2037 | B43: 75 | D43: =VLOOKUP(B43,Lookups!A:B,2) -> 4596.634032 | E43: =VLOOKUP(B43,Lookups!A:C,3) -> 2278.897488 | G43: =VLOOKUP(B43,Lookups!A:D,4) -> 7417.585695 | H43: =VLOOKUP(B43,Lookups!A:E,5) -> 5013.956358 | J43: =VLOOKUP(A43,Trends!$A$3:$Q$94,IF(ExFlg=0,2,10))+IF(B43>=$B$2,Sens,0) -> 1.051 | K43: 2.108825966 | L43: =VLOOKUP(A43,Trends!$A$3:$Q$94,IF(ExFlg=0,4,12))+IF(B43>=$B$2,Sens,0) -> 1.051 | M43: 2.082889928 | N43: =VLOOKUP(A43,Trends!$A$3:$Z$94,IF(ExFlg=0,19,23))+IF(B43>=$B$2,Sens,0) -> 1.052 | O43: 2.18164441 | P43: =VLOOKUP(A43,Trends!$A$3:$Q$94,IF(ExFlg=0,6,14))+IF(B43>=$B$2,Sens,0) -> 1.052 | Q43: 2.118875635 | R43: =VLOOKUP(A43,Trends!$A$3:$Q$94,IF(ExFlg=0,8,16))+IF(B43>=$B$2,Sens,0) -> 1.051 | S43: 2.218967548 | T43: =VLOOKUP(A43,Trends!$A$3:$Z$94,IF(ExFlg=0,21,25))+IF(B43>=$B$2,Sens,0) -> 1.052 | U43: 2.345630303 | W43: 9574.282728 | X43: 4971.743965 | Y43: 4602.538763 | AA43: 16459.38194 | AB43: 11760.88797 | AC43: 4698.493974 | AE43: 4666.509223 | AG43: =IF(B43<71,IF(B43-35<30,VLOOKUP(B43,Lookups!A:G,6),VLOOKUP(B43,Lookups!A:G,7)),"") ->  | AJ43: =IF(OR(B43<55,B43-35<20),VLOOKUP(B43-$B$3,Lookups!$O$3:$Q$53,2),VLOOKUP(B43,Lookups!$O$57:$P$122,2)) -> 0 | AK43: 0 | AL43: 0 | AM43: =IF(B43<55,VLOOKUP(B43,Lookups!A:M,12),"") ->  | AN43: =IF(B43<55,VLOOKUP(B43,Lookups!A:M,13),"") ->  | AP43: =IF(B43<70,VLOOKUP(B43,Lookups!A:I,8)*(1-VLOOKUP(B43,Lookups!$U$3:$W$103,2))^(B43-$B$2),"") ->  | AQ43: =IF(B43<70,VLOOKUP(B43,Lookups!A:I,9)*(1-VLOOKUP(B43,Lookups!$U$3:$W$103,3))^(B43-$B$2),"") ->  | AV43: 86 | AW43: =IF(BD43>=$B$3,VLOOKUP(BD43,Lookups!A:I,8)*(1-VLOOKUP(BD43,Lookups!U:W,2))^(BD43-$B$2),"") -> 0.07161530036 | AX43: =IF(BD43>=$B$3,VLOOKUP(BD43,Lookups!A:I,9)*(1-VLOOKUP(BD43,Lookups!U:W,3))^(BD43-$B$2),"") -> 0.05036730367 | AY43: 0.06099130201 | AZ43: 0.5888681736 | BA43: 0.5155758757 | BB43: 0.962946 | BD43: 86 | BE43: 8104.133352 | BQ43: 2369.295246 | BR43: 2425.025667 | BS43: 2482.388221 | BT43: 2541.45139 | BU43: 2602.289067 | BV43: 2664.988825 | BW43: 2729.640847 | BX43: 2796.367948 | BY43: 2865.270181 | BZ43: 2936.491403 | CA43: 3010.18447 | CB43: 3098.80466 | CC43: 3192.098044 | CD43: 3290.695089 | CE43: 3395.307191 | CF43: 3506.709876 | CN43: 35 | CO43: 0
A44: 2038 | B44: 76 | D44: =VLOOKUP(B44,Lookups!A:B,2) -> 4648.32042 | E44: =VLOOKUP(B44,Lookups!A:C,3) -> 2278.897488 | G44: =VLOOKUP(B44,Lookups!A:D,4) -> 7500.99196 | H44: =VLOOKUP(B44,Lookups!A:E,5) -> 5013.956358 | J44: =VLOOKUP(A44,Trends!$A$3:$Q$94,IF(ExFlg=0,2,10))+IF(B44>=$B$2,Sens,0) -> 1.052 | K44: 2.21637609 | L44: =VLOOKUP(A44,Trends!$A$3:$Q$94,IF(ExFlg=0,4,12))+IF(B44>=$B$2,Sens,0) -> 1.051 | M44: 2.189117315 | N44: =VLOOKUP(A44,Trends!$A$3:$Z$94,IF(ExFlg=0,19,23))+IF(B44>=$B$2,Sens,0) -> 1.052 | O44: 2.295089919 | P44: =VLOOKUP(A44,Trends!$A$3:$Q$94,IF(ExFlg=0,6,14))+IF(B44>=$B$2,Sens,0) -> 1.052 | Q44: 2.229057168 | R44: =VLOOKUP(A44,Trends!$A$3:$Q$94,IF(ExFlg=0,8,16))+IF(B44>=$B$2,Sens,0) -> 1.052 | S44: 2.332134893 | T44: =VLOOKUP(A44,Trends!$A$3:$Z$94,IF(ExFlg=0,21,25))+IF(B44>=$B$2,Sens,0) -> 1.053 | U44: 2.467603078 | W44: 10175.71872 | X44: 5230.274652 | Y44: 4945.444064 | AA44: 17493.32509 | AB44: 12372.45414 | AC44: 5120.870941 | AE44: 5062.3959 | AG44: =IF(B44<71,IF(B44-35<30,VLOOKUP(B44,Lookups!A:G,6),VLOOKUP(B44,Lookups!A:G,7)),"") ->  | AJ44: =IF(OR(B44<55,B44-35<20),VLOOKUP(B44-$B$3,Lookups!$O$3:$Q$53,2),VLOOKUP(B44,Lookups!$O$57:$P$122,2)) -> 0 | AK44: 0 | AL44: 0 | AM44: =IF(B44<55,VLOOKUP(B44,Lookups!A:M,12),"") ->  | AN44: =IF(B44<55,VLOOKUP(B44,Lookups!A:M,13),"") ->  | AP44: =IF(B44<70,VLOOKUP(B44,Lookups!A:I,8)*(1-VLOOKUP(B44,Lookups!$U$3:$W$103,2))^(B44-$B$2),"") ->  | AQ44: =IF(B44<70,VLOOKUP(B44,Lookups!A:I,9)*(1-VLOOKUP(B44,Lookups!$U$3:$W$103,3))^(B44-$B$2),"") ->  | AV44: 87 | AW44: =IF(BD44>=$B$3,VLOOKUP(BD44,Lookups!A:I,8)*(1-VLOOKUP(BD44,Lookups!U:W,2))^(BD44-$B$2),"") -> 0.07945297541 | AX44: =IF(BD44>=$B$3,VLOOKUP(BD44,Lookups!A:I,9)*(1-VLOOKUP(BD44,Lookups!U:W,3))^(BD44-$B$2),"") -> 0.05714225308 | AY44: 0.06829761425 | AZ44: 0.5529523369 | BA44: =IF(AY43="",1,BA43/(1+IntRt)) -> 0.5046748979 | BB44: =IF(AY44="",1,ROUND((13/24)+(11/24)*(1/(1+IntRt))*(1-AY44),6)) -> 0.959668 | BD44: 87 | BE44: 8395.639065 | BQ44: 2248.403097 | BR44: 2301.289901 | BS44: 2355.725558 | BT44: 2411.775058 | BU44: 2469.508522 | BV44: 2529.009055 | BW44: 2590.362238 | BX44: 2653.684621 | BY44: 2719.071151 | BZ44: 2786.658344 | CA44: 2856.591258 | CB44: 2940.689645 | CC44: 3029.22278 | CD44: 3122.788958 | CE44: 3222.063278 | CF44: 3327.781695 | CN44: 35 | CO44: 0
A45: 2039 | B45: 77 | D45: =VLOOKUP(B45,Lookups!A:B,2) -> 4664.528487 | E45: =VLOOKUP(B45,Lookups!A:C,3) -> 2278.897488 | G45: =VLOOKUP(B45,Lookups!A:D,4) -> 7527.146896 | H45: =VLOOKUP(B45,Lookups!A:E,5) -> 5013.956358 | J45: =VLOOKUP(A45,Trends!$A$3:$Q$94,IF(ExFlg=0,2,10))+IF(B45>=$B$2,Sens,0) -> 1.052 | K45: 2.331627647 | L45: =VLOOKUP(A45,Trends!$A$3:$Q$94,IF(ExFlg=0,4,12))+IF(B45>=$B$2,Sens,0) -> 1.051 | M45: 2.300762298 | N45: =VLOOKUP(A45,Trends!$A$3:$Z$94,IF(ExFlg=0,19,23))+IF(B45>=$B$2,Sens,0) -> 1.052 | O45: 2.414434595 | P45: =VLOOKUP(A45,Trends!$A$3:$Q$94,IF(ExFlg=0,6,14))+IF(B45>=$B$2,Sens,0) -> 1.052 | Q45: 2.34496814 | R45: =VLOOKUP(A45,Trends!$A$3:$Q$94,IF(ExFlg=0,8,16))+IF(B45>=$B$2,Sens,0) -> 1.052 | S45: 2.453405908 | T45: =VLOOKUP(A45,Trends!$A$3:$Z$94,IF(ExFlg=0,21,25))+IF(B45>=$B$2,Sens,0) -> 1.053 | U45: 2.598386042 | W45: 10731.97128 | X45: 5502.248933 | Y45: 5229.722347 | AA45: 18467.14666 | AB45: 13028.19421 | AC45: 5438.952451 | AE45: 5369.20978 | AG45: =IF(B45<71,IF(B45-35<30,VLOOKUP(B45,Lookups!A:G,6),VLOOKUP(B45,Lookups!A:G,7)),"") ->  | AJ45: =IF(OR(B45<55,B45-35<20),VLOOKUP(B45-$B$3,Lookups!$O$3:$Q$53,2),VLOOKUP(B45,Lookups!$O$57:$P$122,2)) -> 0 | AK45: 0 | AL45: 0 | AM45: =IF(B45<55,VLOOKUP(B45,Lookups!A:M,12),"") ->  | AN45: =IF(B45<55,VLOOKUP(B45,Lookups!A:M,13),"") ->  | AP45: =IF(B45<70,VLOOKUP(B45,Lookups!A:I,8)*(1-VLOOKUP(B45,Lookups!$U$3:$W$103,2))^(B45-$B$2),"") ->  | AQ45: =IF(B45<70,VLOOKUP(B45,Lookups!A:I,9)*(1-VLOOKUP(B45,Lookups!$U$3:$W$103,3))^(B45-$B$2),"") ->  | AV45: 88 | AW45: =IF(BD45>=$B$3,VLOOKUP(BD45,Lookups!A:I,8)*(1-VLOOKUP(BD45,Lookups!U:W,2))^(BD45-$B$2),"") -> 0.08766902454 | AX45: =IF(BD45>=$B$3,VLOOKUP(BD45,Lookups!A:I,9)*(1-VLOOKUP(BD45,Lookups!U:W,3))^(BD45-$B$2),"") -> 0.0645328536 | AY45: 0.07610093907 | AZ45: 0.5151870115 | BA45: 0.4940044028 | BB45: 0.956167 | BD45: 88 | BE45: 8690.361793 | BQ45: 2114.790414 | BR45: 2164.534388 | BS45: 2215.735174 | BT45: 2268.453899 | BU45: 2322.756517 | BV45: 2378.721196 | BW45: 2436.42843 | BX45: 2495.987843 | BY45: 2557.48874 | BZ45: 2621.059524 | CA45: 2686.836633 | CB45: 2765.937424 | CC45: 2849.209425 | CD45: 2937.215378 | CE45: 3030.590262 | CF45: 3130.026299 | CN45: 35 | CO45: 0
A46: 2040 | B46: 78 | D46: =VLOOKUP(B46,Lookups!A:B,2) -> 4680.804935 | E46: =VLOOKUP(B46,Lookups!A:C,3) -> 2278.897488 | G46: =VLOOKUP(B46,Lookups!A:D,4) -> 7553.412177 | H46: =VLOOKUP(B46,Lookups!A:E,5) -> 5013.956358 | J46: =VLOOKUP(A46,Trends!$A$3:$Q$94,IF(ExFlg=0,2,10))+IF(B46>=$B$2,Sens,0) -> 1.052 | K46: 2.452872285 | L46: =VLOOKUP(A46,Trends!$A$3:$Q$94,IF(ExFlg=0,4,12))+IF(B46>=$B$2,Sens,0) -> 1.051 | M46: 2.418101175 | N46: =VLOOKUP(A46,Trends!$A$3:$Z$94,IF(ExFlg=0,19,23))+IF(B46>=$B$2,Sens,0) -> 1.052 | O46: 2.539985194 | P46: =VLOOKUP(A46,Trends!$A$3:$Q$94,IF(ExFlg=0,6,14))+IF(B46>=$B$2,Sens,0) -> 1.052 | Q46: 2.466906484 | R46: =VLOOKUP(A46,Trends!$A$3:$Q$94,IF(ExFlg=0,8,16))+IF(B46>=$B$2,Sens,0) -> 1.052 | S46: 2.580983015 | T46: =VLOOKUP(A46,Trends!$A$3:$Z$94,IF(ExFlg=0,21,25))+IF(B46>=$B$2,Sens,0) -> 1.053 | U46: 2.736100502 | W46: 11318.65991 | X46: 5788.365878 | Y46: 5530.294034 | AA46: 19495.22853 | AB46: 13718.68851 | AC46: 5776.540027 | AE46: 5694.45885 | AG46: =IF(B46<71,IF(B46-35<30,VLOOKUP(B46,Lookups!A:G,6),VLOOKUP(B46,Lookups!A:G,7)),"") ->  | AJ46: =IF(OR(B46<55,B46-35<20),VLOOKUP(B46-$B$3,Lookups!$O$3:$Q$53,2),VLOOKUP(B46,Lookups!$O$57:$P$122,2)) -> 0 | AK46: 0 | AL46: 0 | AM46: =IF(B46<55,VLOOKUP(B46,Lookups!A:M,12),"") ->  | AN46: =IF(B46<55,VLOOKUP(B46,Lookups!A:M,13),"") ->  | AP46: =IF(B46<70,VLOOKUP(B46,Lookups!A:I,8)*(1-VLOOKUP(B46,Lookups!$U$3:$W$103,2))^(B46-$B$2),"") ->  | AQ46: =IF(B46<70,VLOOKUP(B46,Lookups!A:I,9)*(1-VLOOKUP(B46,Lookups!$U$3:$W$103,3))^(B46-$B$2),"") ->  | AV46: 89 | AW46: =IF(BD46>=$B$3,VLOOKUP(BD46,Lookups!A:I,8)*(1-VLOOKUP(BD46,Lookups!U:W,2))^(BD46-$B$2),"") -> 0.09695290224 | AX46: =IF(BD46>=$B$3,VLOOKUP(BD46,Lookups!A:I,9)*(1-VLOOKUP(BD46,Lookups!U:W,3))^(BD46-$B$2),"") -> 0.07300624949 | AY46: 0.08497957586 | AZ46: 0.4759807962 | BA46: 0.4835595172 | BB46: 0.952184 | BD46: 89 | BE46: 9120.794642 | BQ46: 1998.90854 | BR46: 2045.926748 | BS46: 2094.32194 | BT46: 2144.151894 | BU46: 2195.478951 | BV46: 2248.376994 | BW46: 2302.922108 | BX46: 2359.217908 | BY46: 2417.348807 | BZ46: 2477.436172 | CA46: 2539.608965 | CB46: 2614.375355 | CC46: 2693.08439 | CD46: 2776.267977 | CE46: 2864.526299 | CF46: 2958.513648 | CN46: 35 | CO46: 0
A47: 2041 | B47: 79 | D47: =VLOOKUP(B47,Lookups!A:B,2) -> 4697.150081 | E47: =VLOOKUP(B47,Lookups!A:C,3) -> 2278.897488 | G47: =VLOOKUP(B47,Lookups!A:D,4) -> 7579.788318 | H47: =VLOOKUP(B47,Lookups!A:E,5) -> 5013.956358 | J47: =VLOOKUP(A47,Trends!$A$3:$Q$94,IF(ExFlg=0,2,10))+IF(B47>=$B$2,Sens,0) -> 1.052 | K47: 2.580421643 | L47: =VLOOKUP(A47,Trends!$A$3:$Q$94,IF(ExFlg=0,4,12))+IF(B47>=$B$2,Sens,0) -> 1.051 | M47: 2.541424335 | N47: =VLOOKUP(A47,Trends!$A$3:$Z$94,IF(ExFlg=0,19,23))+IF(B47>=$B$2,Sens,0) -> 1.052 | O47: 2.672064424 | P47: =VLOOKUP(A47,Trends!$A$3:$Q$94,IF(ExFlg=0,6,14))+IF(B47>=$B$2,Sens,0) -> 1.052 | Q47: 2.595185621 | R47: =VLOOKUP(A47,Trends!$A$3:$Q$94,IF(ExFlg=0,8,16))+IF(B47>=$B$2,Sens,0) -> 1.052 | S47: 2.715194132 | T47: =VLOOKUP(A47,Trends!$A$3:$Z$94,IF(ExFlg=0,21,25))+IF(B47>=$B$2,Sens,0) -> 1.053 | U47: 2.881113828 | W47: 11937.45152 | X47: 6089.360904 | Y47: 5848.090616 | AA47: 20580.59676 | AB47: 14445.779 | AC47: 6134.817762 | AE47: 6039.243002 | AG47: =IF(B47<71,IF(B47-35<30,VLOOKUP(B47,Lookups!A:G,6),VLOOKUP(B47,Lookups!A:G,7)),"") ->  | AJ47: =IF(OR(B47<55,B47-35<20),VLOOKUP(B47-$B$3,Lookups!$O$3:$Q$53,2),VLOOKUP(B47,Lookups!$O$57:$P$122,2)) -> 0 | AK47: 0 | AL47: 0 | AM47: =IF(B47<55,VLOOKUP(B47,Lookups!A:M,12),"") ->  | AN47: =IF(B47<55,VLOOKUP(B47,Lookups!A:M,13),"") ->  | AP47: =IF(B47<70,VLOOKUP(B47,Lookups!A:I,8)*(1-VLOOKUP(B47,Lookups!$U$3:$W$103,2))^(B47-$B$2),"") ->  | AQ47: =IF(B47<70,VLOOKUP(B47,Lookups!A:I,9)*(1-VLOOKUP(B47,Lookups!$U$3:$W$103,3))^(B47-$B$2),"") ->  | AV47: 90 | AW47: =IF(BD47>=$B$3,VLOOKUP(BD47,Lookups!A:I,8)*(1-VLOOKUP(BD47,Lookups!U:W,2))^(BD47-$B$2),"") -> 0.1065873601 | AX47: =IF(BD47>=$B$3,VLOOKUP(BD47,Lookups!A:I,9)*(1-VLOOKUP(BD47,Lookups!U:W,3))^(BD47-$B$2),"") -> 0.08188063948 | AY47: 0.0942339998 | AZ47: 0.43553215 | BA47: 0.473335471 | BB47: 0.948032 | BD47: 90 | BE47: 9566.394245 | BQ47: 1869.650981 | BR47: 1913.628801 | BS47: 1958.894563 | BT47: 2005.502309 | BU47: 2053.51035 | BV47: 2102.98779 | BW47: 2154.005795 | BX47: 2206.661279 | BY47: 2261.033198 | BZ47: 2317.23507 | CA47: 2375.387517 | CB47: 2445.319208 | CC47: 2518.938597 | CD47: 2596.743194 | CE47: 2679.294374 | CF47: 2767.204119 | CN47: 35 | CO47: 0
A48: 2042 | B48: 80 | D48: =VLOOKUP(B48,Lookups!A:B,2) -> 4713.564247 | E48: =VLOOKUP(B48,Lookups!A:C,3) -> 2278.897488 | G48: =VLOOKUP(B48,Lookups!A:D,4) -> 7606.275835 | H48: =VLOOKUP(B48,Lookups!A:E,5) -> 5013.956358 | J48: =VLOOKUP(A48,Trends!$A$3:$Q$94,IF(ExFlg=0,2,10))+IF(B48>=$B$2,Sens,0) -> 1.052 | K48: 2.714603569 | L48: =VLOOKUP(A48,Trends!$A$3:$Q$94,IF(ExFlg=0,4,12))+IF(B48>=$B$2,Sens,0) -> 1.051 | M48: 2.671036976 | N48: =VLOOKUP(A48,Trends!$A$3:$Z$94,IF(ExFlg=0,19,23))+IF(B48>=$B$2,Sens,0) -> 1.052 | O48: 2.811011774 | P48: =VLOOKUP(A48,Trends!$A$3:$Q$94,IF(ExFlg=0,6,14))+IF(B48>=$B$2,Sens,0) -> 1.052 | Q48: 2.730135273 | R48: =VLOOKUP(A48,Trends!$A$3:$Q$94,IF(ExFlg=0,8,16))+IF(B48>=$B$2,Sens,0) -> 1.052 | S48: 2.856384227 | T48: =VLOOKUP(A48,Trends!$A$3:$Z$94,IF(ExFlg=0,21,25))+IF(B48>=$B$2,Sens,0) -> 1.053 | U48: 3.033812861 | W48: 12590.10439 | X48: 6406.007671 | Y48: 6184.096721 | AA48: 21726.44632 | AB48: 15211.40528 | AC48: 6515.041033 | AE48: 6404.727366 | AG48: =IF(B48<71,IF(B48-35<30,VLOOKUP(B48,Lookups!A:G,6),VLOOKUP(B48,Lookups!A:G,7)),"") ->  | AJ48: =IF(OR(B48<55,B48-35<20),VLOOKUP(B48-$B$3,Lookups!$O$3:$Q$53,2),VLOOKUP(B48,Lookups!$O$57:$P$122,2)) -> 0 | AK48: 0 | AL48: 0 | AM48: =IF(B48<55,VLOOKUP(B48,Lookups!A:M,12),"") ->  | AN48: =IF(B48<55,VLOOKUP(B48,Lookups!A:M,13),"") ->  | AP48: =IF(B48<70,VLOOKUP(B48,Lookups!A:I,8)*(1-VLOOKUP(B48,Lookups!$U$3:$W$103,2))^(B48-$B$2),"") ->  | AQ48: =IF(B48<70,VLOOKUP(B48,Lookups!A:I,9)*(1-VLOOKUP(B48,Lookups!$U$3:$W$103,3))^(B48-$B$2),"") ->  | AV48: 91 | AW48: =IF(BD48>=$B$3,VLOOKUP(BD48,Lookups!A:I,8)*(1-VLOOKUP(BD48,Lookups!U:W,2))^(BD48-$B$2),"") -> 0.1171743963 | AX48: =IF(BD48>=$B$3,VLOOKUP(BD48,Lookups!A:I,9)*(1-VLOOKUP(BD48,Lookups!U:W,3))^(BD48-$B$2),"") -> 0.09157979959 | AY48: 0.1043770979 | AZ48: 0.3944902134 | BA48: 0.463327595 | BB48: 0.943481 | BD48: 91 | BE48: 10033.70226 | BQ48: 1730.289486 | BR48: 1770.989252 | BS48: 1812.88096 | BT48: 1856.014622 | BU48: 1900.444202 | BV48: 1946.233654 | BW48: 1993.448839 | BX48: 2042.179448 | BY48: 2092.498551 | BZ48: 2144.511204 | CA48: 2198.329039 | CB48: 2263.048107 | CC48: 2331.179997 | CD48: 2403.185135 | CE48: 2479.583051 | CF48: 2560.940111 | CN48: 35 | CO48: 0
A49: 2043 | B49: 81 | D49: =VLOOKUP(B49,Lookups!A:B,2) -> 4730.047755 | E49: =VLOOKUP(B49,Lookups!A:C,3) -> 2278.897488 | G49: =VLOOKUP(B49,Lookups!A:D,4) -> 7632.875249 | H49: =VLOOKUP(B49,Lookups!A:E,5) -> 5013.956358 | J49: =VLOOKUP(A49,Trends!$A$3:$Q$94,IF(ExFlg=0,2,10))+IF(B49>=$B$2,Sens,0) -> 1.052 | K49: 2.855762954 | L49: =VLOOKUP(A49,Trends!$A$3:$Q$94,IF(ExFlg=0,4,12))+IF(B49>=$B$2,Sens,0) -> 1.051 | M49: 2.807259862 | N49: =VLOOKUP(A49,Trends!$A$3:$Z$94,IF(ExFlg=0,19,23))+IF(B49>=$B$2,Sens,0) -> 1.052 | O49: 2.957184386 | P49: =VLOOKUP(A49,Trends!$A$3:$Q$94,IF(ExFlg=0,6,14))+IF(B49>=$B$2,Sens,0) -> 1.052 | Q49: 2.872102307 | R49: =VLOOKUP(A49,Trends!$A$3:$Q$94,IF(ExFlg=0,8,16))+IF(B49>=$B$2,Sens,0) -> 1.052 | S49: 3.004916206 | T49: =VLOOKUP(A49,Trends!$A$3:$Z$94,IF(ExFlg=0,21,25))+IF(B49>=$B$2,Sens,0) -> 1.053 | U49: 3.194604943 | W49: 13278.47321 | X49: 6739.12007 | Y49: 6539.353136 | AA49: 22936.15054 | AB49: 16017.60977 | AC49: 6918.540773 | AE49: 6792.146158 | AG49: =IF(B49<71,IF(B49-35<30,VLOOKUP(B49,Lookups!A:G,6),VLOOKUP(B49,Lookups!A:G,7)),"") ->  | AJ49: =IF(OR(B49<55,B49-35<20),VLOOKUP(B49-$B$3,Lookups!$O$3:$Q$53,2),VLOOKUP(B49,Lookups!$O$57:$P$122,2)) -> 0 | AK49: 0 | AL49: 0 | AM49: =IF(B49<55,VLOOKUP(B49,Lookups!A:M,12),"") ->  | AN49: =IF(B49<55,VLOOKUP(B49,Lookups!A:M,13),"") ->  | AP49: =IF(B49<70,VLOOKUP(B49,Lookups!A:I,8)*(1-VLOOKUP(B49,Lookups!$U$3:$W$103,2))^(B49-$B$2),"") ->  | AQ49: =IF(B49<70,VLOOKUP(B49,Lookups!A:I,9)*(1-VLOOKUP(B49,Lookups!$U$3:$W$103,3))^(B49-$B$2),"") ->  | AV49: 92 | AW49: =IF(BD49>=$B$3,VLOOKUP(BD49,Lookups!A:I,8)*(1-VLOOKUP(BD49,Lookups!U:W,2))^(BD49-$B$2),"") -> 0.1275884146 | AX49: =IF(BD49>=$B$3,VLOOKUP(BD49,Lookups!A:I,9)*(1-VLOOKUP(BD49,Lookups!U:W,3))^(BD49-$B$2),"") -> 0.1012269714 | AY49: 0.114407693 | AZ49: 0.3533144698 | BA49: 0.4535313185 | BB49: 0.938981 | BD49: 92 | BE49: 10520.43253 | BQ49: 1582.920512 | BR49: 1620.153874 | BS49: 1658.47766 | BT49: 1697.937622 | BU49: 1738.583129 | BV49: 1780.472688 | BW49: 1823.66655 | BX49: 1868.246767 | BY49: 1914.280185 | BZ49: 1961.862914 | CA49: 2011.097077 | CB49: 2070.304014 | CC49: 2132.633102 | CD49: 2198.505553 | CE49: 2268.396649 | CF49: 2342.824518 | CN49: 35 | CO49: 0 | CU49: Implement breakout formula for next update.
A50: 2044 | B50: 82 | D50: =VLOOKUP(B50,Lookups!A:B,2) -> 4708.599633 | E50: =VLOOKUP(B50,Lookups!A:C,3) -> 2278.897488 | G50: =VLOOKUP(B50,Lookups!A:D,4) -> 7598.264426 | H50: =VLOOKUP(B50,Lookups!A:E,5) -> 5013.956358 | J50: =VLOOKUP(A50,Trends!$A$3:$Q$94,IF(ExFlg=0,2,10))+IF(B50>=$B$2,Sens,0) -> 1.052 | K50: 3.004262628 | L50: =VLOOKUP(A50,Trends!$A$3:$Q$94,IF(ExFlg=0,4,12))+IF(B50>=$B$2,Sens,0) -> 1.052 | M50: 2.950430115 | N50: =VLOOKUP(A50,Trends!$A$3:$Z$94,IF(ExFlg=0,19,23))+IF(B50>=$B$2,Sens,0) -> 1.053 | O50: 3.110957974 | P50: =VLOOKUP(A50,Trends!$A$3:$Q$94,IF(ExFlg=0,6,14))+IF(B50>=$B$2,Sens,0) -> 1.053 | Q50: 3.021451627 | R50: =VLOOKUP(A50,Trends!$A$3:$Q$94,IF(ExFlg=0,8,16))+IF(B50>=$B$2,Sens,0) -> 1.052 | S50: 3.161171849 | T50: =VLOOKUP(A50,Trends!$A$3:$Z$94,IF(ExFlg=0,21,25))+IF(B50>=$B$2,Sens,0) -> 1.053 | U50: 3.363919005 | W50: 13892.39416 | X50: 7089.554313 | Y50: 6802.839842 | AA50: 24019.41961 | AB50: 16866.54308 | AC50: 7152.876523 | AE50: 7036.198796 | AG50: =IF(B50<71,IF(B50-35<30,VLOOKUP(B50,Lookups!A:G,6),VLOOKUP(B50,Lookups!A:G,7)),"") ->  | AJ50: =IF(OR(B50<55,B50-35<20),VLOOKUP(B50-$B$3,Lookups!$O$3:$Q$53,2),VLOOKUP(B50,Lookups!$O$57:$P$122,2)) -> 0 | AK50: 0 | AL50: 0 | AM50: =IF(B50<55,VLOOKUP(B50,Lookups!A:M,12),"") ->  | AN50: =IF(B50<55,VLOOKUP(B50,Lookups!A:M,13),"") ->  | AP50: =IF(B50<70,VLOOKUP(B50,Lookups!A:I,8)*(1-VLOOKUP(B50,Lookups!$U$3:$W$103,2))^(B50-$B$2),"") ->  | AQ50: =IF(B50<70,VLOOKUP(B50,Lookups!A:I,9)*(1-VLOOKUP(B50,Lookups!$U$3:$W$103,3))^(B50-$B$2),"") ->  | AV50: 93 | AW50: =IF(BD50>=$B$3,VLOOKUP(BD50,Lookups!A:I,8)*(1-VLOOKUP(BD50,Lookups!U:W,2))^(BD50-$B$2),"") -> 0.1388396793 | AX50: =IF(BD50>=$B$3,VLOOKUP(BD50,Lookups!A:I,9)*(1-VLOOKUP(BD50,Lookups!U:W,3))^(BD50-$B$2),"") -> 0.1116444901 | AY50: 0.1252420847 | AZ50: 0.3128925764 | BA50: 0.4439421677 | BB50: 0.93412 | BD50: 93 | BE50: 11030.70083 | BQ50: 1431.289332 | BR50: 1464.956034 | BS50: 1499.608707 | BT50: 1535.288719 | BU50: 1572.04071 | BV50: 1609.917583 | BW50: 1648.973817 | BX50: 1689.283604 | BY50: 1730.907387 | BZ50: 1773.93207 | CA50: 1818.449992 | CB50: 1871.985376 | CC50: 1928.343834 | CD50: 1987.906229 | CE50: 2051.102314 | CF50: 2118.400586 | CN50: 35 | CO50: =IF(CO51=0,0,CO51-1) -> 0 | CU50: Salary | CV50: Surv | CW50: Int | CX50: PvSal
A51: 2045 | B51: 83 | D51: =VLOOKUP(B51,Lookups!A:B,2) -> 4687.249061 | E51: =VLOOKUP(B51,Lookups!A:C,3) -> 2278.897488 | G51: =VLOOKUP(B51,Lookups!A:D,4) -> 7563.811019 | H51: =VLOOKUP(B51,Lookups!A:E,5) -> 5013.956358 | J51: =VLOOKUP(A51,Trends!$A$3:$Q$94,IF(ExFlg=0,2,10))+IF(B51>=$B$2,Sens,0) -> 1.052 | K51: 3.160484285 | L51: =VLOOKUP(A51,Trends!$A$3:$Q$94,IF(ExFlg=0,4,12))+IF(B51>=$B$2,Sens,0) -> 1.052 | M51: 3.10385248 | N51: =VLOOKUP(A51,Trends!$A$3:$Z$94,IF(ExFlg=0,19,23))+IF(B51>=$B$2,Sens,0) -> 1.053 | O51: 3.275838747 | P51: =VLOOKUP(A51,Trends!$A$3:$Q$94,IF(ExFlg=0,6,14))+IF(B51>=$B$2,Sens,0) -> 1.053 | Q51: 3.181588563 | R51: =VLOOKUP(A51,Trends!$A$3:$Q$94,IF(ExFlg=0,8,16))+IF(B51>=$B$2,Sens,0) -> 1.052 | S51: 3.325552785 | T51: =VLOOKUP(A51,Trends!$A$3:$Z$94,IF(ExFlg=0,21,25))+IF(B51>=$B$2,Sens,0) -> 1.053 | U51: 3.542206712 | W51: 14548.52963 | X51: 7465.300692 | Y51: 7083.228933 | AA51: 25153.8528 | AB51: 17760.46987 | AC51: 7393.382935 | AE51: 7289.999301 | AG51: =IF(B51<71,IF(B51-35<30,VLOOKUP(B51,Lookups!A:G,6),VLOOKUP(B51,Lookups!A:G,7)),"") ->  | AJ51: =IF(OR(B51<55,B51-35<20),VLOOKUP(B51-$B$3,Lookups!$O$3:$Q$53,2),VLOOKUP(B51,Lookups!$O$57:$P$122,2)) -> 0 | AK51: 0 | AL51: 0 | AM51: =IF(B51<55,VLOOKUP(B51,Lookups!A:M,12),"") ->  | AN51: =IF(B51<55,VLOOKUP(B51,Lookups!A:M,13),"") ->  | AP51: =IF(B51<70,VLOOKUP(B51,Lookups!A:I,8)*(1-VLOOKUP(B51,Lookups!$U$3:$W$103,2))^(B51-$B$2),"") ->  | AQ51: =IF(B51<70,VLOOKUP(B51,Lookups!A:I,9)*(1-VLOOKUP(B51,Lookups!$U$3:$W$103,3))^(B51-$B$2),"") ->  | AV51: 94 | AW51: =IF(BD51>=$B$3,VLOOKUP(BD51,Lookups!A:I,8)*(1-VLOOKUP(BD51,Lookups!U:W,2))^(BD51-$B$2),"") -> 0.1497118937 | AX51: =IF(BD51>=$B$3,VLOOKUP(BD51,Lookups!A:I,9)*(1-VLOOKUP(BD51,Lookups!U:W,3))^(BD51-$B$2),"") -> 0.1218942592 | AY51: 0.1358030765 | AZ51: 0.2737052579 | BA51: 0.4345557632 | BB51: 0.929382 | BD51: 94 | BE51: 11565.64146 | BQ51: 1278.476166 | BR51: 1308.548407 | BS51: 1339.501349 | BT51: 1371.371946 | BU51: 1404.20007 | BV51: 1438.032977 | BW51: 1472.91933 | BX51: 1508.925399 | BY51: 1546.105173 | BZ51: 1584.536279 | CA51: 1624.301196 | CB51: 1672.120817 | CC51: 1722.462103 | CD51: 1775.665253 | CE51: 1832.11414 | CF51: 1892.227238 | CN51: 35 | CO51: 0 | CP51: 2.284990903
A52: 2046 | B52: 84 | D52: =VLOOKUP(B52,Lookups!A:B,2) -> 4665.995594 | E52: =VLOOKUP(B52,Lookups!A:C,3) -> 2278.897488 | G52: =VLOOKUP(B52,Lookups!A:D,4) -> 7529.514309 | H52: =VLOOKUP(B52,Lookups!A:E,5) -> 5013.956358 | J52: =VLOOKUP(A52,Trends!$A$3:$Q$94,IF(ExFlg=0,2,10))+IF(B52>=$B$2,Sens,0) -> 1.052 | K52: 3.324829468 | L52: =VLOOKUP(A52,Trends!$A$3:$Q$94,IF(ExFlg=0,4,12))+IF(B52>=$B$2,Sens,0) -> 1.052 | M52: 3.265252809 | N52: =VLOOKUP(A52,Trends!$A$3:$Z$94,IF(ExFlg=0,19,23))+IF(B52>=$B$2,Sens,0) -> 1.053 | O52: 3.449458201 | P52: =VLOOKUP(A52,Trends!$A$3:$Q$94,IF(ExFlg=0,6,14))+IF(B52>=$B$2,Sens,0) -> 1.053 | Q52: 3.350212757 | R52: =VLOOKUP(A52,Trends!$A$3:$Q$94,IF(ExFlg=0,8,16))+IF(B52>=$B$2,Sens,0) -> 1.052 | S52: 3.49848153 | T52: =VLOOKUP(A52,Trends!$A$3:$Z$94,IF(ExFlg=0,21,25))+IF(B52>=$B$2,Sens,0) -> 1.053 | U52: 3.729943668 | W52: 15235.65522 | X52: 7860.961628 | Y52: 7374.693593 | AA52: 26341.86674 | AB52: 18701.77477 | AC52: 7640.091972 | AE52: 7551.626731 | AG52: =IF(B52<71,IF(B52-35<30,VLOOKUP(B52,Lookups!A:G,6),VLOOKUP(B52,Lookups!A:G,7)),"") ->  | AJ52: =IF(OR(B52<55,B52-35<20),VLOOKUP(B52-$B$3,Lookups!$O$3:$Q$53,2),VLOOKUP(B52,Lookups!$O$57:$P$122,2)) -> 0 | AK52: 0 | AL52: 0 | AM52: =IF(B52<55,VLOOKUP(B52,Lookups!A:M,12),"") ->  | AN52: =IF(B52<55,VLOOKUP(B52,Lookups!A:M,13),"") ->  | AP52: =IF(B52<70,VLOOKUP(B52,Lookups!A:I,8)*(1-VLOOKUP(B52,Lookups!$U$3:$W$103,2))^(B52-$B$2),"") ->  | AQ52: =IF(B52<70,VLOOKUP(B52,Lookups!A:I,9)*(1-VLOOKUP(B52,Lookups!$U$3:$W$103,3))^(B52-$B$2),"") ->  | AV52: 95 | AW52: =IF(BD52>=$B$3,VLOOKUP(BD52,Lookups!A:I,8)*(1-VLOOKUP(BD52,Lookups!U:W,2))^(BD52-$B$2),"") -> 0.1615599475 | AX52: =IF(BD52>=$B$3,VLOOKUP(BD52,Lookups!A:I,9)*(1-VLOOKUP(BD52,Lookups!U:W,3))^(BD52-$B$2),"") -> 0.1331258459 | AY52: 0.1473428967 | AZ52: 0.2365352418 | BA52: 0.4253678183 | BB52: 0.924205 | BD52: 95 | BE52: 12151.63468 | BQ52: 1129.96113 | BR52: 1156.540009 | BS52: 1183.897281 | BT52: 1212.065609 | BU52: 1241.080233 | BV52: 1270.982918 | BW52: 1301.816674 | BX52: 1333.640074 | BY52: 1366.500835 | BZ52: 1400.467566 | CA52: 1435.613165 | CB52: 1477.877787 | CC52: 1522.371144 | CD52: 1569.393915 | CE52: 1619.285379 | CF52: 1672.415399 | CN52: 36 | CO52: 1 | CP52: 1.814149027
A53: 2047 | B53: 85 | D53: =VLOOKUP(B53,Lookups!A:B,2) -> 4644.838788 | E53: =VLOOKUP(B53,Lookups!A:C,3) -> 2278.897488 | G53: =VLOOKUP(B53,Lookups!A:D,4) -> 7495.373583 | H53: =VLOOKUP(B53,Lookups!A:E,5) -> 5013.956358 | J53: =VLOOKUP(A53,Trends!$A$3:$Q$94,IF(ExFlg=0,2,10))+IF(B53>=$B$2,Sens,0) -> 1.053 | K53: 3.4977206 | L53: =VLOOKUP(A53,Trends!$A$3:$Q$94,IF(ExFlg=0,4,12))+IF(B53>=$B$2,Sens,0) -> 1.052 | M53: 3.435045956 | N53: =VLOOKUP(A53,Trends!$A$3:$Z$94,IF(ExFlg=0,19,23))+IF(B53>=$B$2,Sens,0) -> 1.053 | O53: 3.632279485 | P53: =VLOOKUP(A53,Trends!$A$3:$Q$94,IF(ExFlg=0,6,14))+IF(B53>=$B$2,Sens,0) -> 1.053 | Q53: 3.527774033 | R53: =VLOOKUP(A53,Trends!$A$3:$Q$94,IF(ExFlg=0,8,16))+IF(B53>=$B$2,Sens,0) -> 1.053 | S53: 3.68040257 | T53: =VLOOKUP(A53,Trends!$A$3:$Z$94,IF(ExFlg=0,21,25))+IF(B53>=$B$2,Sens,0) -> 1.054 | U53: 3.927630682 | W53: 15955.23469 | X53: 8277.592595 | Y53: 7677.642099 | AA53: 27585.99219 | AB53: 19692.96883 | AC53: 7893.023363 | AE53: 7821.230326 | AG53: =IF(B53<71,IF(B53-35<30,VLOOKUP(B53,Lookups!A:G,6),VLOOKUP(B53,Lookups!A:G,7)),"") ->  | AJ53: =IF(OR(B53<55,B53-35<20),VLOOKUP(B53-$B$3,Lookups!$O$3:$Q$53,2),VLOOKUP(B53,Lookups!$O$57:$P$122,2)) -> 0 | AK53: 0 | AL53: 0 | AM53: =IF(B53<55,VLOOKUP(B53,Lookups!A:M,12),"") ->  | AN53: =IF(B53<55,VLOOKUP(B53,Lookups!A:M,13),"") ->  | AP53: =IF(B53<70,VLOOKUP(B53,Lookups!A:I,8)*(1-VLOOKUP(B53,Lookups!$U$3:$W$103,2))^(B53-$B$2),"") ->  | AQ53: =IF(B53<70,VLOOKUP(B53,Lookups!A:I,9)*(1-VLOOKUP(B53,Lookups!$U$3:$W$103,3))^(B53-$B$2),"") ->  | AV53: 96 | AW53: =IF(BD53>=$B$3,VLOOKUP(BD53,Lookups!A:I,8)*(1-VLOOKUP(BD53,Lookups!U:W,2))^(BD53-$B$2),"") -> 0.1754803967 | AX53: =IF(BD53>=$B$3,VLOOKUP(BD53,Lookups!A:I,9)*(1-VLOOKUP(BD53,Lookups!U:W,3))^(BD53-$B$2),"") -> 0.1463305706 | AY53: 0.1609054837 | AZ53: 0.2016834541 | BA53: 0.416374137 | BB53: 0.91812 | BD53: 96 | BE53: 12759.21641 | BQ53: 983.7335153 | BR53: 1006.872837 | BS53: 1030.68982 | BT53: 1055.212901 | BU53: 1080.47276 | BV53: 1106.505755 | BW53: 1133.349333 | BX53: 1161.054485 | BY53: 1189.662754 | BZ53: 1219.23387 | CA53: 1249.831297 | CB53: 1286.62648 | CC53: 1325.361977 | CD53: 1366.299559 | CE53: 1409.734597 | CF53: 1455.989092 | CN53: 37 | CO53: 2 | CP53: 1.654565588
A54: 2048 | B54: 86 | D54: =VLOOKUP(B54,Lookups!A:B,2) -> 4623.778203 | E54: =VLOOKUP(B54,Lookups!A:C,3) -> 2278.897488 | G54: =VLOOKUP(B54,Lookups!A:D,4) -> 7461.388127 | H54: =VLOOKUP(B54,Lookups!A:E,5) -> 5013.956358 | J54: =VLOOKUP(A54,Trends!$A$3:$Q$94,IF(ExFlg=0,2,10))+IF(B54>=$B$2,Sens,0) -> 1.053 | K54: 3.683099792 | L54: =VLOOKUP(A54,Trends!$A$3:$Q$94,IF(ExFlg=0,4,12))+IF(B54>=$B$2,Sens,0) -> 1.052 | M54: 3.613668345 | N54: =VLOOKUP(A54,Trends!$A$3:$Z$94,IF(ExFlg=0,19,23))+IF(B54>=$B$2,Sens,0) -> 1.053 | O54: 3.824790298 | P54: =VLOOKUP(A54,Trends!$A$3:$Q$94,IF(ExFlg=0,6,14))+IF(B54>=$B$2,Sens,0) -> 1.053 | Q54: 3.714746057 | R54: =VLOOKUP(A54,Trends!$A$3:$Q$94,IF(ExFlg=0,8,16))+IF(B54>=$B$2,Sens,0) -> 1.053 | S54: 3.875463906 | T54: =VLOOKUP(A54,Trends!$A$3:$Z$94,IF(ExFlg=0,21,25))+IF(B54>=$B$2,Sens,0) -> 1.054 | U54: 4.139722739 | W54: 16708.80093 | X54: 8716.305002 | Y54: 7992.495927 | AA54: 28916.34038 | AB54: 20756.38915 | AC54: 8159.951227 | AE54: 8104.133352 | AG54: =IF(B54<71,IF(B54-35<30,VLOOKUP(B54,Lookups!A:G,6),VLOOKUP(B54,Lookups!A:G,7)),"") ->  | AJ54: =IF(OR(B54<55,B54-35<20),VLOOKUP(B54-$B$3,Lookups!$O$3:$Q$53,2),VLOOKUP(B54,Lookups!$O$57:$P$122,2)) -> 0 | AK54: 0 | AL54: 0 | AM54: =IF(B54<55,VLOOKUP(B54,Lookups!A:M,12),"") ->  | AN54: =IF(B54<55,VLOOKUP(B54,Lookups!A:M,13),"") ->  | AP54: =IF(B54<70,VLOOKUP(B54,Lookups!A:I,8)*(1-VLOOKUP(B54,Lookups!$U$3:$W$103,2))^(B54-$B$2),"") ->  | AQ54: =IF(B54<70,VLOOKUP(B54,Lookups!A:I,9)*(1-VLOOKUP(B54,Lookups!$U$3:$W$103,3))^(B54-$B$2),"") ->  | AV54: 97 | AW54: =IF(BD54>=$B$3,VLOOKUP(BD54,Lookups!A:I,8)*(1-VLOOKUP(BD54,Lookups!U:W,2))^(BD54-$B$2),"") -> 0.1901712907 | AX54: =IF(BD54>=$B$3,VLOOKUP(BD54,Lookups!A:I,9)*(1-VLOOKUP(BD54,Lookups!U:W,3))^(BD54-$B$2),"") -> 0.1605167602 | AY54: 0.1753440255 | AZ54: 0.1692314804 | BA54: 0.4075706118 | BB54: 0.911643 | BD54: 97 | BE54: 13397.17723 | BQ54: 842.4072951 | BR54: 862.2223494 | BS54: 882.6177112 | BT54: 903.61773 | BU54: 925.2486783 | BV54: 947.5416928 | BW54: 970.5288383 | BX54: 994.2537821 | BY54: 1018.752098 | BZ54: 1044.074935 | CA54: 1070.276641 | CB54: 1101.785713 | CC54: 1134.956348 | CD54: 1170.012709 | CE54: 1207.207735 | CF54: 1246.817165 | CN54: 38 | CO54: 3 | CP54: 1.566443389
A55: 2049 | B55: 87 | D55: =VLOOKUP(B55,Lookups!A:B,2) -> 4602.813401 | E55: =VLOOKUP(B55,Lookups!A:C,3) -> 2278.897488 | G55: =VLOOKUP(B55,Lookups!A:D,4) -> 7427.557236 | H55: =VLOOKUP(B55,Lookups!A:E,5) -> 5013.956358 | J55: =VLOOKUP(A55,Trends!$A$3:$Q$94,IF(ExFlg=0,2,10))+IF(B55>=$B$2,Sens,0) -> 1.052 | K55: 3.878304081 | L55: =VLOOKUP(A55,Trends!$A$3:$Q$94,IF(ExFlg=0,4,12))+IF(B55>=$B$2,Sens,0) -> 1.052 | M55: 3.801579099 | N55: =VLOOKUP(A55,Trends!$A$3:$Z$94,IF(ExFlg=0,19,23))+IF(B55>=$B$2,Sens,0) -> 1.053 | O55: 4.027504184 | P55: =VLOOKUP(A55,Trends!$A$3:$Q$94,IF(ExFlg=0,6,14))+IF(B55>=$B$2,Sens,0) -> 1.053 | Q55: 3.911627598 | R55: =VLOOKUP(A55,Trends!$A$3:$Q$94,IF(ExFlg=0,8,16))+IF(B55>=$B$2,Sens,0) -> 1.052 | S55: 4.080863493 | T55: =VLOOKUP(A55,Trends!$A$3:$Z$94,IF(ExFlg=0,21,25))+IF(B55>=$B$2,Sens,0) -> 1.053 | U55: 4.363267767 | W55: 17497.95922 | X55: 9178.269167 | Y55: 8319.690054 | AA55: 30310.84716 | AB55: 21877.23416 | AC55: 8433.613001 | AE55: 8395.639065 | AG55: =IF(B55<71,IF(B55-35<30,VLOOKUP(B55,Lookups!A:G,6),VLOOKUP(B55,Lookups!A:G,7)),"") ->  | AJ55: =IF(OR(B55<55,B55-35<20),VLOOKUP(B55-$B$3,Lookups!$O$3:$Q$53,2),VLOOKUP(B55,Lookups!$O$57:$P$122,2)) -> 0 | AK55: 0 | AL55: 0 | AM55: =IF(B55<55,VLOOKUP(B55,Lookups!A:M,12),"") ->  | AN55: =IF(B55<55,VLOOKUP(B55,Lookups!A:M,13),"") ->  | AP55: =IF(B55<70,VLOOKUP(B55,Lookups!A:I,8)*(1-VLOOKUP(B55,Lookups!$U$3:$W$103,2))^(B55-$B$2),"") ->  | AQ55: =IF(B55<70,VLOOKUP(B55,Lookups!A:I,9)*(1-VLOOKUP(B55,Lookups!$U$3:$W$103,3))^(B55-$B$2),"") ->  | AV55: 98 | AW55: =IF(BD55>=$B$3,VLOOKUP(BD55,Lookups!A:I,8)*(1-VLOOKUP(BD55,Lookups!U:W,2))^(BD55-$B$2),"") -> 0.2067382004 | AX55: =IF(BD55>=$B$3,VLOOKUP(BD55,Lookups!A:I,9)*(1-VLOOKUP(BD55,Lookups!U:W,3))^(BD55-$B$2),"") -> 0.1766726093 | AY55: 0.1917054049 | AZ55: 0.1395577514 | BA55: 0.3989532222 | BB55: 0.904302 | BD55: 98 | BE55: 14067.03609 | BQ55: 708.2588883 | BR55: 724.9185117 | BS55: 742.0660322 | BT55: 759.7219214 | BU55: 777.9082685 | BV55: 796.6512515 | BW55: 815.9778293 | BX55: 835.9247154 | BY55: 856.5218188 | BZ55: 877.8121429 | CA55: 899.8413813 | CB55: 926.3328188 | CC55: 954.2212252 | CD55: 983.6950672 | CE55: 1014.967004 | CF55: 1048.268865 | CN55: 39 | CO55: 4 | CP55: 1.512748871
A56: 2050 | B56: 88 | D56: =VLOOKUP(B56,Lookups!A:B,2) -> 4581.943943 | E56: =VLOOKUP(B56,Lookups!A:C,3) -> 2278.897488 | G56: =VLOOKUP(B56,Lookups!A:D,4) -> 7393.880202 | H56: =VLOOKUP(B56,Lookups!A:E,5) -> 5013.956358 | J56: =VLOOKUP(A56,Trends!$A$3:$Q$94,IF(ExFlg=0,2,10))+IF(B56>=$B$2,Sens,0) -> 1.052 | K56: 4.079975893 | L56: =VLOOKUP(A56,Trends!$A$3:$Q$94,IF(ExFlg=0,4,12))+IF(B56>=$B$2,Sens,0) -> 1.051 | M56: 3.999261212 | N56: =VLOOKUP(A56,Trends!$A$3:$Z$94,IF(ExFlg=0,19,23))+IF(B56>=$B$2,Sens,0) -> 1.052 | O56: 4.240961906 | P56: =VLOOKUP(A56,Trends!$A$3:$Q$94,IF(ExFlg=0,6,14))+IF(B56>=$B$2,Sens,0) -> 1.052 | Q56: 4.118943861 | R56: =VLOOKUP(A56,Trends!$A$3:$Q$94,IF(ExFlg=0,8,16))+IF(B56>=$B$2,Sens,0) -> 1.052 | S56: 4.293068395 | T56: =VLOOKUP(A56,Trends!$A$3:$Z$94,IF(ExFlg=0,21,25))+IF(B56>=$B$2,Sens,0) -> 1.053 | U56: 4.594520959 | W56: 18324.39069 | X56: 9664.717433 | Y56: 8659.673253 | AA56: 31742.43341 | AB56: 23036.72757 | AC56: 8705.705833 | AE56: 8690.361793 | AG56: =IF(B56<71,IF(B56-35<30,VLOOKUP(B56,Lookups!A:G,6),VLOOKUP(B56,Lookups!A:G,7)),"") ->  | AJ56: =IF(OR(B56<55,B56-35<20),VLOOKUP(B56-$B$3,Lookups!$O$3:$Q$53,2),VLOOKUP(B56,Lookups!$O$57:$P$122,2)) -> 0 | AK56: 0 | AL56: 0 | AM56: =IF(B56<55,VLOOKUP(B56,Lookups!A:M,12),"") ->  | AN56: =IF(B56<55,VLOOKUP(B56,Lookups!A:M,13),"") ->  | AP56: =IF(B56<70,VLOOKUP(B56,Lookups!A:I,8)*(1-VLOOKUP(B56,Lookups!$U$3:$W$103,2))^(B56-$B$2),"") ->  | AQ56: =IF(B56<70,VLOOKUP(B56,Lookups!A:I,9)*(1-VLOOKUP(B56,Lookups!$U$3:$W$103,3))^(B56-$B$2),"") ->  | AV56: 99 | AW56: =IF(BD56>=$B$3,VLOOKUP(BD56,Lookups!A:I,8)*(1-VLOOKUP(BD56,Lookups!U:W,2))^(BD56-$B$2),"") -> 0.2232367297 | AX56: =IF(BD56>=$B$3,VLOOKUP(BD56,Lookups!A:I,9)*(1-VLOOKUP(BD56,Lookups!U:W,3))^(BD56-$B$2),"") -> 0.1931778101 | AY56: 0.2082072699 | AZ56: 0.1128037761 | BA56: 0.3905180327 | BB56: 0.896899 | BD56: 99 | BE56: 14770.3879 | BQ56: 583.5796933 | BR56: 597.3066202 | BS56: 611.4355565 | BT56: 625.9833703 | BU56: 640.9682621 | BV56: 656.4118019 | BW56: 672.3362026 | BX56: 688.7717148 | BY56: 705.7429827 | BZ56: 723.2854393 | CA56: 741.4367346 | CB56: 763.2647204 | CC56: 786.243758 | CD56: 810.5291372 | CE56: 836.2960813 | CF56: 863.73561 | CN56: 40 | CO56: 5 | CP56: 1.474652589
A57: =1+A56 -> 2051 | B57: =1+B56 -> 89 | D57: =VLOOKUP(B57,Lookups!A:B,2) -> 4581.943943 | E57: =VLOOKUP(B57,Lookups!A:C,3) -> 2278.897488 | G57: =VLOOKUP(B57,Lookups!A:D,4) -> 7393.880202 | H57: =VLOOKUP(B57,Lookups!A:E,5) -> 5013.956358 | J57: =VLOOKUP(A57,Trends!$A$3:$Q$94,IF(ExFlg=0,2,10))+IF(B57>=$B$2,Sens,0) -> 1.051 | K57: 4.292134639 | L57: =VLOOKUP(A57,Trends!$A$3:$Q$94,IF(ExFlg=0,4,12))+IF(B57>=$B$2,Sens,0) -> 1.051 | M57: 4.203223534 | N57: =VLOOKUP(A57,Trends!$A$3:$Z$94,IF(ExFlg=0,19,23))+IF(B57>=$B$2,Sens,0) -> 1.052 | O57: 4.461491925 | P57: =VLOOKUP(A57,Trends!$A$3:$Q$94,IF(ExFlg=0,6,14))+IF(B57>=$B$2,Sens,0) -> 1.052 | Q57: 4.333128942 | R57: =VLOOKUP(A57,Trends!$A$3:$Q$94,IF(ExFlg=0,8,16))+IF(B57>=$B$2,Sens,0) -> 1.051 | S57: 4.516307951 | T57: =VLOOKUP(A57,Trends!$A$3:$Z$94,IF(ExFlg=0,21,25))+IF(B57>=$B$2,Sens,0) -> 1.052 | U57: 4.83803057 | W57: 19258.93461 | X57: 10167.28274 | Y57: 9091.651872 | AA57: 33393.03994 | AB57: 24257.67413 | AC57: 9135.365809 | AE57: 9120.794642 | AG57: =IF(B57<71,IF(B57-35<30,VLOOKUP(B57,Lookups!A:G,6),VLOOKUP(B57,Lookups!A:G,7)),"") ->  | AJ57: =IF(OR(B57<55,B57-35<20),VLOOKUP(B57-$B$3,Lookups!$O$3:$Q$53,2),VLOOKUP(B57,Lookups!$O$57:$P$122,2)) -> 0 | AK57: 0 | AL57: 0 | AM57: =IF(B57<55,VLOOKUP(B57,Lookups!A:M,12),"") ->  | AN57: =IF(B57<55,VLOOKUP(B57,Lookups!A:M,13),"") ->  | AP57: =IF(B57<70,VLOOKUP(B57,Lookups!A:I,8)*(1-VLOOKUP(B57,Lookups!$U$3:$W$103,2))^(B57-$B$2),"") ->  | AQ57: =IF(B57<70,VLOOKUP(B57,Lookups!A:I,9)*(1-VLOOKUP(B57,Lookups!$U$3:$W$103,3))^(B57-$B$2),"") ->  | AV57: 100 | AW57: =IF(BD57>=$B$3,VLOOKUP(BD57,Lookups!A:I,8)*(1-VLOOKUP(BD57,Lookups!U:W,2))^(BD57-$B$2),"") -> 0.2405606597 | AX57: =IF(BD57>=$B$3,VLOOKUP(BD57,Lookups!A:I,9)*(1-VLOOKUP(BD57,Lookups!U:W,3))^(BD57-$B$2),"") -> 0.2108048135 | AY57: 0.2256827366 | AZ57: 0.08931720987 | BA57: 0.3822611909 | BB57: 0.889058 | BD57: 100 | BE57: 15508.90729 | BQ57: 470.7676923 | BR57: 481.841062 | BS57: 493.2387285 | BT57: 504.9742992 | BU57: 517.0624562 | BV57: 529.5205997 | BW57: 542.3666488 | BX57: 555.6250062 | BY57: 569.3155522 | BZ57: 583.4668702 | CA57: 598.109332 | CB57: 615.717742 | CC57: 634.2546936 | CD57: 653.8454574 | CE57: 674.6313842 | CF57: 696.7665677 | CN57: 41 | CO57: 6 | CP57: 1.433919443
A58: 2052 | B58: 90 | D58: =VLOOKUP(B58,Lookups!A:B,2) -> 4581.943943 | E58: =VLOOKUP(B58,Lookups!A:C,3) -> 2278.897488 | G58: =VLOOKUP(B58,Lookups!A:D,4) -> 7393.880202 | H58: =VLOOKUP(B58,Lookups!A:E,5) -> 5013.956358 | J58: =VLOOKUP(A58,Trends!$A$3:$Q$94,IF(ExFlg=0,2,10))+IF(B58>=$B$2,Sens,0) -> 1.051 | K58: 4.511033506 | L58: =VLOOKUP(A58,Trends!$A$3:$Q$94,IF(ExFlg=0,4,12))+IF(B58>=$B$2,Sens,0) -> 1.051 | M58: 4.417587934 | N58: =VLOOKUP(A58,Trends!$A$3:$Z$94,IF(ExFlg=0,19,23))+IF(B58>=$B$2,Sens,0) -> 1.052 | O58: 4.693489505 | P58: =VLOOKUP(A58,Trends!$A$3:$Q$94,IF(ExFlg=0,6,14))+IF(B58>=$B$2,Sens,0) -> 1.051 | Q58: 4.558451647 | R58: =VLOOKUP(A58,Trends!$A$3:$Q$94,IF(ExFlg=0,8,16))+IF(B58>=$B$2,Sens,0) -> 1.051 | S58: 4.746639657 | T58: =VLOOKUP(A58,Trends!$A$3:$Z$94,IF(ExFlg=0,21,25))+IF(B58>=$B$2,Sens,0) -> 1.052 | U58: 5.089608159 | W58: 20241.14028 | X58: 10695.98144 | Y58: 9545.158834 | AA58: 35096.08498 | AB58: 25519.07319 | AC58: 9577.011791 | AE58: 9566.394245 | AG58: =IF(B58<71,IF(B58-35<30,VLOOKUP(B58,Lookups!A:G,6),VLOOKUP(B58,Lookups!A:G,7)),"") ->  | AJ58: =IF(OR(B58<55,B58-35<20),VLOOKUP(B58-$B$3,Lookups!$O$3:$Q$53,2),VLOOKUP(B58,Lookups!$O$57:$P$122,2)) -> 0 | AK58: 0 | AL58: 0 | AM58: =IF(B58<55,VLOOKUP(B58,Lookups!A:M,12),"") ->  | AN58: =IF(B58<55,VLOOKUP(B58,Lookups!A:M,13),"") ->  | AP58: =IF(B58<70,VLOOKUP(B58,Lookups!A:I,8)*(1-VLOOKUP(B58,Lookups!$U$3:$W$103,2))^(B58-$B$2),"") ->  | AQ58: =IF(B58<70,VLOOKUP(B58,Lookups!A:I,9)*(1-VLOOKUP(B58,Lookups!$U$3:$W$103,3))^(B58-$B$2),"") ->  | AV58: 101 | AW58: =IF(BD58>=$B$3,VLOOKUP(BD58,Lookups!A:I,8)*(1-VLOOKUP(BD58,Lookups!U:W,2))^(BD58-$B$2),"") -> 0.2586114018 | AX58: =IF(BD58>=$B$3,VLOOKUP(BD58,Lookups!A:I,9)*(1-VLOOKUP(BD58,Lookups!U:W,3))^(BD58-$B$2),"") -> 0.229426128 | AY58: 0.2440187649 | AZ58: 0.06915985752 | BA58: 0.3741789261 | BB58: 0.880832 | BD58: 101 | BE58: 16284.35266 | BQ58: 371.1906234 | BR58: 379.9217472 | BS58: 388.9085723 | BT58: 398.1618279 | BU58: 407.6930906 | BV58: 417.51608 | BW58: 427.644925 | BX58: 438.0988666 | BY58: 448.8935799 | BZ58: 460.0516025 | CA58: 471.5968819 | CB58: 485.4807503 | CC58: 500.0967546 | CD58: 515.5436681 | CE58: 531.932943 | CF58: 549.386079 | CN58: =IF(OR(CN59<=($CN$76-MS), CN59 = 20), CN59, CN59-1) -> 42 | CO58: 7 | CP58: =IF(CN58<CN59,CP59*1/(1-VLOOKUP(CN58,$B$3:$AU$93,44,FALSE)) * (1+IntRt) * 1/(1+GSG) * 1/VLOOKUP(MIN(CO58,30),$CR$63:$CT$93,3,FALSE), "") -> 1.39481602
A59: 2053 | B59: 91 | D59: =VLOOKUP(B59,Lookups!A:B,2) -> 4581.943943 | E59: =VLOOKUP(B59,Lookups!A:C,3) -> 2278.897488 | G59: =VLOOKUP(B59,Lookups!A:D,4) -> 7393.880202 | H59: =VLOOKUP(B59,Lookups!A:E,5) -> 5013.956358 | J59: =VLOOKUP(A59,Trends!$A$3:$Q$94,IF(ExFlg=0,2,10))+IF(B59>=$B$2,Sens,0) -> 1.051 | K59: 4.741096215 | L59: =VLOOKUP(A59,Trends!$A$3:$Q$94,IF(ExFlg=0,4,12))+IF(B59>=$B$2,Sens,0) -> 1.05 | M59: 4.642884919 | N59: =VLOOKUP(A59,Trends!$A$3:$Z$94,IF(ExFlg=0,19,23))+IF(B59>=$B$2,Sens,0) -> 1.051 | O59: 4.937550959 | P59: =VLOOKUP(A59,Trends!$A$3:$Q$94,IF(ExFlg=0,6,14))+IF(B59>=$B$2,Sens,0) -> 1.051 | Q59: 4.790932681 | R59: =VLOOKUP(A59,Trends!$A$3:$Q$94,IF(ExFlg=0,8,16))+IF(B59>=$B$2,Sens,0) -> 1.051 | S59: 4.988718279 | T59: =VLOOKUP(A59,Trends!$A$3:$Z$94,IF(ExFlg=0,21,25))+IF(B59>=$B$2,Sens,0) -> 1.052 | U59: 5.354267783 | W59: 21273.43843 | X59: 11252.17248 | Y59: 10021.26595 | AA59: 36885.98531 | AB59: 26846.065 | AC59: 10039.92032 | AE59: 10033.70226 | AG59: =IF(B59<71,IF(B59-35<30,VLOOKUP(B59,Lookups!A:G,6),VLOOKUP(B59,Lookups!A:G,7)),"") ->  | AJ59: =IF(OR(B59<55,B59-35<20),VLOOKUP(B59-$B$3,Lookups!$O$3:$Q$53,2),VLOOKUP(B59,Lookups!$O$57:$P$122,2)) -> 0 | AK59: 0 | AL59: 0 | AM59: =IF(B59<55,VLOOKUP(B59,Lookups!A:M,12),"") ->  | AN59: =IF(B59<55,VLOOKUP(B59,Lookups!A:M,13),"") ->  | AP59: =IF(B59<70,VLOOKUP(B59,Lookups!A:I,8)*(1-VLOOKUP(B59,Lookups!$U$3:$W$103,2))^(B59-$B$2),"") ->  | AQ59: =IF(B59<70,VLOOKUP(B59,Lookups!A:I,9)*(1-VLOOKUP(B59,Lookups!$U$3:$W$103,3))^(B59-$B$2),"") ->  | AV59: 102 | AW59: =IF(BD59>=$B$3,VLOOKUP(BD59,Lookups!A:I,8)*(1-VLOOKUP(BD59,Lookups!U:W,2))^(BD59-$B$2),"") -> 0.2786430058 | AX59: =IF(BD59>=$B$3,VLOOKUP(BD59,Lookups!A:I,9)*(1-VLOOKUP(BD59,Lookups!U:W,3))^(BD59-$B$2),"") -> 0.2501260531 | AY59: 0.2643845294 | AZ59: 0.05228355451 | BA59: 0.3662675471 | BB59: 0.871695 | BD59: 102 | BE59: 17093.14662 | BQ59: 285.331762 | BR59: 292.0433188 | BS59: 298.9514315 | BT59: 306.0643475 | BU59: 313.3909657 | BV59: 320.9418323 | BW59: 328.727808 | BX59: 336.7636833 | BY59: 345.0615076 | BZ59: 353.6386054 | CA59: 362.5133848 | CB59: 373.185822 | CC59: 384.4210473 | CD59: 396.2949869 | CE59: 408.8933134 | CF59: 422.3094229 | CN59: 43 | CO59: 8 | CP59: 1.361216731
A60: 2054 | B60: 92 | D60: =VLOOKUP(B60,Lookups!A:B,2) -> 4581.943943 | E60: =VLOOKUP(B60,Lookups!A:C,3) -> 2278.897488 | G60: =VLOOKUP(B60,Lookups!A:D,4) -> 7393.880202 | H60: =VLOOKUP(B60,Lookups!A:E,5) -> 5013.956358 | J60: =VLOOKUP(A60,Trends!$A$3:$Q$94,IF(ExFlg=0,2,10))+IF(B60>=$B$2,Sens,0) -> 1.051 | K60: 4.982892122 | L60: =VLOOKUP(A60,Trends!$A$3:$Q$94,IF(ExFlg=0,4,12))+IF(B60>=$B$2,Sens,0) -> 1.05 | M60: 4.875029165 | N60: =VLOOKUP(A60,Trends!$A$3:$Z$94,IF(ExFlg=0,19,23))+IF(B60>=$B$2,Sens,0) -> 1.051 | O60: 5.189366058 | P60: =VLOOKUP(A60,Trends!$A$3:$Q$94,IF(ExFlg=0,6,14))+IF(B60>=$B$2,Sens,0) -> 1.051 | Q60: 5.035270247 | R60: =VLOOKUP(A60,Trends!$A$3:$Q$94,IF(ExFlg=0,8,16))+IF(B60>=$B$2,Sens,0) -> 1.051 | S60: 5.243142911 | T60: =VLOOKUP(A60,Trends!$A$3:$Z$94,IF(ExFlg=0,21,25))+IF(B60>=$B$2,Sens,0) -> 1.052 | U60: 5.632689708 | W60: 22337.11035 | X60: 11826.03327 | Y60: 10511.07708 | AA60: 38767.17057 | AB60: 28242.06038 | AC60: 10525.11019 | AE60: 10520.43253 | AG60: =IF(B60<71,IF(B60-35<30,VLOOKUP(B60,Lookups!A:G,6),VLOOKUP(B60,Lookups!A:G,7)),"") ->  | AJ60: =IF(OR(B60<55,B60-35<20),VLOOKUP(B60-$B$3,Lookups!$O$3:$Q$53,2),VLOOKUP(B60,Lookups!$O$57:$P$122,2)) -> 0 | AK60: 0 | AL60: 0 | AM60: =IF(B60<55,VLOOKUP(B60,Lookups!A:M,12),"") ->  | AN60: =IF(B60<55,VLOOKUP(B60,Lookups!A:M,13),"") ->  | AP60: =IF(B60<70,VLOOKUP(B60,Lookups!A:I,8)*(1-VLOOKUP(B60,Lookups!$U$3:$W$103,2))^(B60-$B$2),"") ->  | AQ60: =IF(B60<70,VLOOKUP(B60,Lookups!A:I,9)*(1-VLOOKUP(B60,Lookups!$U$3:$W$103,3))^(B60-$B$2),"") ->  | AV60: 103 | AW60: =IF(BD60>=$B$3,VLOOKUP(BD60,Lookups!A:I,8)*(1-VLOOKUP(BD60,Lookups!U:W,2))^(BD60-$B$2),"") -> 0.2977183479 | AX60: =IF(BD60>=$B$3,VLOOKUP(BD60,Lookups!A:I,9)*(1-VLOOKUP(BD60,Lookups!U:W,3))^(BD60-$B$2),"") -> 0.2702410055 | AY60: 0.2839796767 | AZ60: 0.03846059155 | BA60: 0.3585234408 | BB60: 0.862904 | BD60: 103 | BE60: 17930.71081 | BQ60: 213.3504208 | BR60: 218.3688367 | BS60: 223.5342229 | BT60: 228.8527462 | BU60: 234.3310605 | BV60: 239.9770515 | BW60: 245.7988401 | BX60: 251.8074856 | BY60: 258.0119974 | BZ60: 264.4253297 | CA60: 271.0612469 | CB60: 279.0413223 | CC60: 287.4422098 | CD60: 296.3206816 | CE60: 305.7407975 | CF60: 315.7723923 | CN60: 44 | CO60: 9 | CP60: 1.328762977
A61: 2055 | B61: 93 | D61: =VLOOKUP(B61,Lookups!A:B,2) -> 4581.943943 | E61: =VLOOKUP(B61,Lookups!A:C,3) -> 2278.897488 | G61: =VLOOKUP(B61,Lookups!A:D,4) -> 7393.880202 | H61: =VLOOKUP(B61,Lookups!A:E,5) -> 5013.956358 | J61: =VLOOKUP(A61,Trends!$A$3:$Q$94,IF(ExFlg=0,2,10))+IF(B61>=$B$2,Sens,0) -> 1.051 | K61: 5.23701962 | L61: =VLOOKUP(A61,Trends!$A$3:$Q$94,IF(ExFlg=0,4,12))+IF(B61>=$B$2,Sens,0) -> 1.05 | M61: 5.118780623 | N61: =VLOOKUP(A61,Trends!$A$3:$Z$94,IF(ExFlg=0,19,23))+IF(B61>=$B$2,Sens,0) -> 1.051 | O61: 5.454023727 | P61: =VLOOKUP(A61,Trends!$A$3:$Q$94,IF(ExFlg=0,6,14))+IF(B61>=$B$2,Sens,0) -> 1.051 | Q61: 5.29206903 | R61: =VLOOKUP(A61,Trends!$A$3:$Q$94,IF(ExFlg=0,8,16))+IF(B61>=$B$2,Sens,0) -> 1.051 | S61: 5.5105432 | T61: =VLOOKUP(A61,Trends!$A$3:$Z$94,IF(ExFlg=0,21,25))+IF(B61>=$B$2,Sens,0) -> 1.052 | U61: 5.925589573 | W61: 23453.96587 | X61: 12429.16097 | Y61: 11024.8049 | AA61: 40744.29626 | AB61: 29710.64751 | AC61: 11033.64875 | AE61: 11030.70083 | AG61: =IF(B61<71,IF(B61-35<30,VLOOKUP(B61,Lookups!A:G,6),VLOOKUP(B61,Lookups!A:G,7)),"") ->  | AJ61: =IF(OR(B61<55,B61-35<20),VLOOKUP(B61-$B$3,Lookups!$O$3:$Q$53,2),VLOOKUP(B61,Lookups!$O$57:$P$122,2)) -> 0 | AK61: 0 | AL61: 0 | AM61: =IF(B61<55,VLOOKUP(B61,Lookups!A:M,12),"") ->  | AN61: =IF(B61<55,VLOOKUP(B61,Lookups!A:M,13),"") ->  | AP61: =IF(B61<70,VLOOKUP(B61,Lookups!A:I,8)*(1-VLOOKUP(B61,Lookups!$U$3:$W$103,2))^(B61-$B$2),"") ->  | AQ61: =IF(B61<70,VLOOKUP(B61,Lookups!A:I,9)*(1-VLOOKUP(B61,Lookups!$U$3:$W$103,3))^(B61-$B$2),"") ->  | AV61: 104 | AW61: =IF(BD61>=$B$3,VLOOKUP(BD61,Lookups!A:I,8)*(1-VLOOKUP(BD61,Lookups!U:W,2))^(BD61-$B$2),"") -> 0.3171531765 | AX61: =IF(BD61>=$B$3,VLOOKUP(BD61,Lookups!A:I,9)*(1-VLOOKUP(BD61,Lookups!U:W,3))^(BD61-$B$2),"") -> 0.2909064502 | AY61: 0.3040298133 | AZ61: 0.0275385652 | BA61: 0.3509430705 | BB61: 0.853909 | BD61: 104 | BE61: 18803.34743 | BQ61: 155.1760676 | BR61: 158.8261099 | BS61: 162.5830479 | BT61: 166.4513671 | BU61: 170.4359071 | BV61: 174.5424032 | BW61: 178.7767622 | BX61: 183.1470276 | BY61: 187.6597525 | BZ61: 192.3243586 | CA61: 197.1508573 | CB61: 202.955002 | CC61: 209.0652159 | CD61: 215.5227909 | CE61: 222.3743196 | CF61: 229.670595 | CN61: 45 | CO61: 10 | CP61: 1.303799269 | CR61: PERS Salary Merit Table
A62: 2056 | B62: 94 | D62: =VLOOKUP(B62,Lookups!A:B,2) -> 4581.943943 | E62: =VLOOKUP(B62,Lookups!A:C,3) -> 2278.897488 | G62: =VLOOKUP(B62,Lookups!A:D,4) -> 7393.880202 | H62: =VLOOKUP(B62,Lookups!A:E,5) -> 5013.956358 | J62: =VLOOKUP(A62,Trends!$A$3:$Q$94,IF(ExFlg=0,2,10))+IF(B62>=$B$2,Sens,0) -> 1.051 | K62: 5.50410762 | L62: =VLOOKUP(A62,Trends!$A$3:$Q$94,IF(ExFlg=0,4,12))+IF(B62>=$B$2,Sens,0) -> 1.05 | M62: 5.374719654 | N62: =VLOOKUP(A62,Trends!$A$3:$Z$94,IF(ExFlg=0,19,23))+IF(B62>=$B$2,Sens,0) -> 1.05 | O62: 5.732178937 | P62: =VLOOKUP(A62,Trends!$A$3:$Q$94,IF(ExFlg=0,6,14))+IF(B62>=$B$2,Sens,0) -> 1.051 | Q62: 5.56196455 | R62: =VLOOKUP(A62,Trends!$A$3:$Q$94,IF(ExFlg=0,8,16))+IF(B62>=$B$2,Sens,0) -> 1.051 | S62: 5.791580903 | T62: =VLOOKUP(A62,Trends!$A$3:$Z$94,IF(ExFlg=0,21,25))+IF(B62>=$B$2,Sens,0) -> 1.051 | U62: 6.233720231 | W62: 24626.66416 | X62: 13063.04818 | Y62: 11563.61598 | AA62: 42822.25537 | AB62: 31255.60119 | AC62: 11566.65419 | AE62: 11565.64146 | AG62: =IF(B62<71,IF(B62-35<30,VLOOKUP(B62,Lookups!A:G,6),VLOOKUP(B62,Lookups!A:G,7)),"") ->  | AJ62: =IF(OR(B62<55,B62-35<20),VLOOKUP(B62-$B$3,Lookups!$O$3:$Q$53,2),VLOOKUP(B62,Lookups!$O$57:$P$122,2)) -> 0 | AK62: 0 | AL62: 0 | AM62: =IF(B62<55,VLOOKUP(B62,Lookups!A:M,12),"") ->  | AN62: =IF(B62<55,VLOOKUP(B62,Lookups!A:M,13),"") ->  | AP62: =IF(B62<70,VLOOKUP(B62,Lookups!A:I,8)*(1-VLOOKUP(B62,Lookups!$U$3:$W$103,2))^(B62-$B$2),"") ->  | AQ62: =IF(B62<70,VLOOKUP(B62,Lookups!A:I,9)*(1-VLOOKUP(B62,Lookups!$U$3:$W$103,3))^(B62-$B$2),"") ->  | AV62: 105 | AW62: =IF(BD62>=$B$3,VLOOKUP(BD62,Lookups!A:I,8)*(1-VLOOKUP(BD62,Lookups!U:W,2))^(BD62-$B$2),"") -> 0.3368915422 | AX62: =IF(BD62>=$B$3,VLOOKUP(BD62,Lookups!A:I,9)*(1-VLOOKUP(BD62,Lookups!U:W,3))^(BD62-$B$2),"") -> 0.3120406613 | AY62: 0.3244661018 | AZ62: 0.01916602036 | BA62: 0.3435229742 | BB62: 0.84474 | BD62: 105 | BE62: 19705.9081 | BQ62: 109.5991649 | BR62: 112.1771499 | BS62: 114.8306343 | BT62: 117.562786 | BU62: 120.3770231 | BV62: 123.2773966 | BW62: 126.2680781 | BX62: 129.354749 | BY62: 132.5420374 | BZ62: 135.8365978 | CA62: 139.2455012 | CB62: 143.3449054 | CC62: 147.6604828 | CD62: 152.2213976 | CE62: 157.0605577 | CF62: 162.2138375 | CN62: 46 | CO62: 11 | CP62: 1.275021809 | CR62: Service | CS62: Salary Increase | CT62: 1+ Sal Inc
A63: 2057 | B63: 95 | D63: =VLOOKUP(B63,Lookups!A:B,2) -> 4581.943943 | E63: =VLOOKUP(B63,Lookups!A:C,3) -> 2278.897488 | G63: =VLOOKUP(B63,Lookups!A:D,4) -> 7393.880202 | H63: =VLOOKUP(B63,Lookups!A:E,5) -> 5013.956358 | J63: =VLOOKUP(A63,Trends!$A$3:$Q$94,IF(ExFlg=0,2,10))+IF(B63>=$B$2,Sens,0) -> 1.051 | K63: 5.784817109 | L63: =VLOOKUP(A63,Trends!$A$3:$Q$94,IF(ExFlg=0,4,12))+IF(B63>=$B$2,Sens,0) -> 1.05 | M63: 5.643455637 | N63: =VLOOKUP(A63,Trends!$A$3:$Z$94,IF(ExFlg=0,19,23))+IF(B63>=$B$2,Sens,0) -> 1.05 | O63: 6.018787884 | P63: =VLOOKUP(A63,Trends!$A$3:$Q$94,IF(ExFlg=0,6,14))+IF(B63>=$B$2,Sens,0) -> 1.051 | Q63: 5.845624743 | R63: =VLOOKUP(A63,Trends!$A$3:$Q$94,IF(ExFlg=0,8,16))+IF(B63>=$B$2,Sens,0) -> 1.05 | S63: 6.086951529 | T63: =VLOOKUP(A63,Trends!$A$3:$Z$94,IF(ExFlg=0,21,25))+IF(B63>=$B$2,Sens,0) -> 1.05 | U63: 6.551639963 | W63: 25857.99737 | X63: 13716.20059 | Y63: 12141.79678 | AA63: 45006.1904 | AB63: 32849.63685 | AC63: 12156.55355 | AE63: 12151.63468 | AG63: =IF(B63<71,IF(B63-35<30,VLOOKUP(B63,Lookups!A:G,6),VLOOKUP(B63,Lookups!A:G,7)),"") ->  | AJ63: =IF(OR(B63<55,B63-35<20),VLOOKUP(B63-$B$3,Lookups!$O$3:$Q$53,2),VLOOKUP(B63,Lookups!$O$57:$P$122,2)) -> 0 | AK63: 0 | AL63: 0 | AM63: =IF(B63<55,VLOOKUP(B63,Lookups!A:M,12),"") ->  | AN63: =IF(B63<55,VLOOKUP(B63,Lookups!A:M,13),"") ->  | AP63: =IF(B63<70,VLOOKUP(B63,Lookups!A:I,8)*(1-VLOOKUP(B63,Lookups!$U$3:$W$103,2))^(B63-$B$2),"") ->  | AQ63: =IF(B63<70,VLOOKUP(B63,Lookups!A:I,9)*(1-VLOOKUP(B63,Lookups!$U$3:$W$103,3))^(B63-$B$2),"") ->  | AV63: 106 | AW63: =IF(BD63>=$B$3,VLOOKUP(BD63,Lookups!A:I,8)*(1-VLOOKUP(BD63,Lookups!U:W,2))^(BD63-$B$2),"") -> 0.358977085 | AX63: =IF(BD63>=$B$3,VLOOKUP(BD63,Lookups!A:I,9)*(1-VLOOKUP(BD63,Lookups!U:W,3))^(BD63-$B$2),"") -> 0.3355070826 | AY63: 0.3472420838 | AZ63: 0.01294729645 | BA63: 0.3362597633 | BB63: 0.834522 | BD63: 106 | BE63: 20632.08578 | BQ63: 74.96092206 | BR63: 76.72414841 | BS63: 78.53901295 | BT63: 80.40768239 | BU63: 82.33249458 | BV63: 84.31622019 | BW63: 86.36171248 | BX63: 88.47285714 | BY63: 90.65281971 | BZ63: 92.90615158 | CA63: 95.23768889 | CB63: 98.04149779 | CC63: 100.9931595 | CD63: 104.1126211 | CE63: 107.4223899 | CF63: 110.9470026 | CN63: 47 | CO63: 12 | CP63: 1.250806774 | CR63: 0 | CS63: 0.06 | CT63: =CS63+1 -> 1.06
A64: 2058 | B64: 96 | D64: =VLOOKUP(B64,Lookups!A:B,2) -> 4581.943943 | E64: =VLOOKUP(B64,Lookups!A:C,3) -> 2278.897488 | G64: =VLOOKUP(B64,Lookups!A:D,4) -> 7393.880202 | H64: =VLOOKUP(B64,Lookups!A:E,5) -> 5013.956358 | J64: =VLOOKUP(A64,Trends!$A$3:$Q$94,IF(ExFlg=0,2,10))+IF(B64>=$B$2,Sens,0) -> 1.05 | K64: 6.079842782 | L64: =VLOOKUP(A64,Trends!$A$3:$Q$94,IF(ExFlg=0,4,12))+IF(B64>=$B$2,Sens,0) -> 1.05 | M64: 5.925628419 | N64: =VLOOKUP(A64,Trends!$A$3:$Z$94,IF(ExFlg=0,19,23))+IF(B64>=$B$2,Sens,0) -> 1.05 | O64: 6.319727278 | P64: =VLOOKUP(A64,Trends!$A$3:$Q$94,IF(ExFlg=0,6,14))+IF(B64>=$B$2,Sens,0) -> 1.051 | Q64: 6.143751604 | R64: =VLOOKUP(A64,Trends!$A$3:$Q$94,IF(ExFlg=0,8,16))+IF(B64>=$B$2,Sens,0) -> 1.05 | S64: 6.391299105 | T64: =VLOOKUP(A64,Trends!$A$3:$Z$94,IF(ExFlg=0,21,25))+IF(B64>=$B$2,Sens,0) -> 1.05 | U64: 6.879221961 | W64: 27150.89724 | X64: 14402.01062 | Y64: 12748.88662 | AA64: 47256.49992 | AB64: 34492.11869 | AC64: 12764.38123 | AE64: 12759.21641 | AG64: =IF(B64<71,IF(B64-35<30,VLOOKUP(B64,Lookups!A:G,6),VLOOKUP(B64,Lookups!A:G,7)),"") ->  | AJ64: =IF(OR(B64<55,B64-35<20),VLOOKUP(B64-$B$3,Lookups!$O$3:$Q$53,2),VLOOKUP(B64,Lookups!$O$57:$P$122,2)) -> 0 | AK64: 0 | AL64: 0 | AM64: =IF(B64<55,VLOOKUP(B64,Lookups!A:M,12),"") ->  | AN64: =IF(B64<55,VLOOKUP(B64,Lookups!A:M,13),"") ->  | AP64: =IF(B64<70,VLOOKUP(B64,Lookups!A:I,8)*(1-VLOOKUP(B64,Lookups!$U$3:$W$103,2))^(B64-$B$2),"") ->  | AQ64: =IF(B64<70,VLOOKUP(B64,Lookups!A:I,9)*(1-VLOOKUP(B64,Lookups!$U$3:$W$103,3))^(B64-$B$2),"") ->  | AV64: 107 | AW64: =IF(BD64>=$B$3,VLOOKUP(BD64,Lookups!A:I,8)*(1-VLOOKUP(BD64,Lookups!U:W,2))^(BD64-$B$2),"") -> 0.3793614929 | AX64: =IF(BD64>=$B$3,VLOOKUP(BD64,Lookups!A:I,9)*(1-VLOOKUP(BD64,Lookups!U:W,3))^(BD64-$B$2),"") -> 0.3574973869 | AY64: 0.3684294399 | AZ64: 0.00845145025 | BA64: 0.3291501207 | BB64: 0.825016 | BD64: 107 | BE64: 21581.16173 | BQ64: 49.52932947 | BR64: 50.69435542 | BS64: 51.89350054 | BT64: 53.12819645 | BU64: 54.39998787 | BV64: 55.71070546 | BW64: 57.06223448 | BX64: 58.45714234 | BY64: 59.89752062 | BZ64: 61.3863766 | CA64: 62.92690567 | CB64: 64.77948127 | CC64: 66.72974845 | CD64: 68.79088691 | CE64: 70.97776811 | CF64: 73.30660421 | CN64: 48 | CO64: 13 | CP64: 1.233323424 | CR64: =CR63+1 -> 1 | CS64: 0.06 | CT64: =CS64+1 -> 1.06
A65: 2059 | B65: 97 | D65: =VLOOKUP(B65,Lookups!A:B,2) -> 4581.943943 | E65: =VLOOKUP(B65,Lookups!A:C,3) -> 2278.897488 | G65: =VLOOKUP(B65,Lookups!A:D,4) -> 7393.880202 | H65: =VLOOKUP(B65,Lookups!A:E,5) -> 5013.956358 | J65: =VLOOKUP(A65,Trends!$A$3:$Q$94,IF(ExFlg=0,2,10))+IF(B65>=$B$2,Sens,0) -> 1.05 | K65: 6.383834921 | L65: =VLOOKUP(A65,Trends!$A$3:$Q$94,IF(ExFlg=0,4,12))+IF(B65>=$B$2,Sens,0) -> 1.05 | M65: 6.22190984 | N65: =VLOOKUP(A65,Trends!$A$3:$Z$94,IF(ExFlg=0,19,23))+IF(B65>=$B$2,Sens,0) -> 1.05 | O65: 6.635713642 | P65: =VLOOKUP(A65,Trends!$A$3:$Q$94,IF(ExFlg=0,6,14))+IF(B65>=$B$2,Sens,0) -> 1.051 | Q65: 6.457082936 | R65: =VLOOKUP(A65,Trends!$A$3:$Q$94,IF(ExFlg=0,8,16))+IF(B65>=$B$2,Sens,0) -> 1.05 | S65: 6.710864061 | T65: =VLOOKUP(A65,Trends!$A$3:$Z$94,IF(ExFlg=0,21,25))+IF(B65>=$B$2,Sens,0) -> 1.05 | U65: 7.223183059 | W65: 28508.4421 | X65: 15122.11115 | Y65: 13386.33095 | AA65: 49619.32491 | AB65: 36216.72462 | AC65: 13402.60029 | AE65: 13397.17723 | AG65: =IF(B65<71,IF(B65-35<30,VLOOKUP(B65,Lookups!A:G,6),VLOOKUP(B65,Lookups!A:G,7)),"") ->  | AJ65: =IF(OR(B65<55,B65-35<20),VLOOKUP(B65-$B$3,Lookups!$O$3:$Q$53,2),VLOOKUP(B65,Lookups!$O$57:$P$122,2)) -> 0 | AK65: 0 | AL65: 0 | AM65: =IF(B65<55,VLOOKUP(B65,Lookups!A:M,12),"") ->  | AN65: =IF(B65<55,VLOOKUP(B65,Lookups!A:M,13),"") ->  | AP65: =IF(B65<70,VLOOKUP(B65,Lookups!A:I,8)*(1-VLOOKUP(B65,Lookups!$U$3:$W$103,2))^(B65-$B$2),"") ->  | AQ65: =IF(B65<70,VLOOKUP(B65,Lookups!A:I,9)*(1-VLOOKUP(B65,Lookups!$U$3:$W$103,3))^(B65-$B$2),"") ->  | AV65: 108 | AW65: =IF(BD65>=$B$3,VLOOKUP(BD65,Lookups!A:I,8)*(1-VLOOKUP(BD65,Lookups!U:W,2))^(BD65-$B$2),"") -> 0.3999531161 | AX65: =IF(BD65>=$B$3,VLOOKUP(BD65,Lookups!A:I,9)*(1-VLOOKUP(BD65,Lookups!U:W,3))^(BD65-$B$2),"") -> 0.3797534116 | AY65: 0.3898532639 | AZ65: 0.005337687168 | BA65: 0.3221907995 | BB65: 0.815405 | BD65: 108 | BE65: 22566.71648 | BQ65: 31.6452109 | BR65: 32.38956767 | BS65: 33.15572381 | BT65: 33.94459402 | BU65: 34.75716524 | BV65: 35.59460712 | BW65: 36.45812417 | BX65: 37.34935678 | BY65: 38.26964129 | BZ65: 39.2208991 | CA65: 40.2051718 | CB65: 41.38881685 | CC65: 42.63487887 | CD65: 43.95177861 | CE65: 45.34901774 | CF65: 46.83695449 | CN65: 49 | CO65: 14 | CP65: 1.215984225 | CR65: =CR64+1 -> 2 | CS65: 0.045 | CT65: 1.045
A66: 2060 | B66: 98 | D66: =VLOOKUP(B66,Lookups!A:B,2) -> 4581.943943 | E66: =VLOOKUP(B66,Lookups!A:C,3) -> 2278.897488 | G66: =VLOOKUP(B66,Lookups!A:D,4) -> 7393.880202 | H66: =VLOOKUP(B66,Lookups!A:E,5) -> 5013.956358 | J66: =VLOOKUP(A66,Trends!$A$3:$Q$94,IF(ExFlg=0,2,10))+IF(B66>=$B$2,Sens,0) -> 1.05 | K66: 6.703026667 | L66: =VLOOKUP(A66,Trends!$A$3:$Q$94,IF(ExFlg=0,4,12))+IF(B66>=$B$2,Sens,0) -> 1.05 | M66: 6.533005332 | N66: =VLOOKUP(A66,Trends!$A$3:$Z$94,IF(ExFlg=0,19,23))+IF(B66>=$B$2,Sens,0) -> 1.05 | O66: 6.967499324 | P66: =VLOOKUP(A66,Trends!$A$3:$Q$94,IF(ExFlg=0,6,14))+IF(B66>=$B$2,Sens,0) -> 1.051 | Q66: 6.786394166 | R66: =VLOOKUP(A66,Trends!$A$3:$Q$94,IF(ExFlg=0,8,16))+IF(B66>=$B$2,Sens,0) -> 1.05 | S66: 7.046407264 | T66: =VLOOKUP(A66,Trends!$A$3:$Z$94,IF(ExFlg=0,21,25))+IF(B66>=$B$2,Sens,0) -> 1.05 | U66: 7.584342212 | W66: 29933.86421 | X66: 15878.21671 | Y66: 14055.6475 | AA66: 52100.29116 | AB66: 38027.56085 | AC66: 14072.73031 | AE66: 14067.03609 | AG66: =IF(B66<71,IF(B66-35<30,VLOOKUP(B66,Lookups!A:G,6),VLOOKUP(B66,Lookups!A:G,7)),"") ->  | AJ66: =IF(OR(B66<55,B66-35<20),VLOOKUP(B66-$B$3,Lookups!$O$3:$Q$53,2),VLOOKUP(B66,Lookups!$O$57:$P$122,2)) -> 0 | AK66: 0 | AL66: 0 | AM66: =IF(B66<55,VLOOKUP(B66,Lookups!A:M,12),"") ->  | AN66: =IF(B66<55,VLOOKUP(B66,Lookups!A:M,13),"") ->  | AP66: =IF(B66<70,VLOOKUP(B66,Lookups!A:I,8)*(1-VLOOKUP(B66,Lookups!$U$3:$W$103,2))^(B66-$B$2),"") ->  | AQ66: =IF(B66<70,VLOOKUP(B66,Lookups!A:I,9)*(1-VLOOKUP(B66,Lookups!$U$3:$W$103,3))^(B66-$B$2),"") ->  | AV66: 109 | AW66: =IF(BD66>=$B$3,VLOOKUP(BD66,Lookups!A:I,8)*(1-VLOOKUP(BD66,Lookups!U:W,2))^(BD66-$B$2),"") -> 0.4207539856 | AX66: =IF(BD66>=$B$3,VLOOKUP(BD66,Lookups!A:I,9)*(1-VLOOKUP(BD66,Lookups!U:W,3))^(BD66-$B$2),"") -> 0.4022231813 | AY66: 0.4114885834 | AZ66: 0.003256772404 | BA66: 0.3153786212 | BB66: 0.805698 | BD66: 109 | BE66: 23582.21872 | BQ66: 19.51536185 | BR66: 19.97440103 | BS66: 20.44688373 | BT66: 20.93337401 | BU66: 21.43448052 | BV66: 21.95092459 | BW66: 22.48344901 | BX66: 23.03306541 | BY66: 23.6005979 | BZ66: 24.18723138 | CA66: 24.7942249 | CB66: 25.52416984 | CC66: 26.29260685 | CD66: 27.10472894 | CE66: 27.96639573 | CF66: 28.88399505 | CN66: 50 | CO66: 15 | CP66: 1.196395614 | CR66: 3 | CS66: 0.037 | CT66: 1.037
A67: 2061 | B67: 99 | D67: =VLOOKUP(B67,Lookups!A:B,2) -> 4581.943943 | E67: =VLOOKUP(B67,Lookups!A:C,3) -> 2278.897488 | G67: =VLOOKUP(B67,Lookups!A:D,4) -> 7393.880202 | H67: =VLOOKUP(B67,Lookups!A:E,5) -> 5013.956358 | J67: =VLOOKUP(A67,Trends!$A$3:$Q$94,IF(ExFlg=0,2,10))+IF(B67>=$B$2,Sens,0) -> 1.05 | K67: 7.038178 | L67: =VLOOKUP(A67,Trends!$A$3:$Q$94,IF(ExFlg=0,4,12))+IF(B67>=$B$2,Sens,0) -> 1.05 | M67: 6.859655599 | N67: =VLOOKUP(A67,Trends!$A$3:$Z$94,IF(ExFlg=0,19,23))+IF(B67>=$B$2,Sens,0) -> 1.05 | O67: 7.31587429 | P67: =VLOOKUP(A67,Trends!$A$3:$Q$94,IF(ExFlg=0,6,14))+IF(B67>=$B$2,Sens,0) -> 1.05 | Q67: 7.132500268 | R67: =VLOOKUP(A67,Trends!$A$3:$Q$94,IF(ExFlg=0,8,16))+IF(B67>=$B$2,Sens,0) -> 1.05 | S67: 7.398727627 | T67: =VLOOKUP(A67,Trends!$A$3:$Z$94,IF(ExFlg=0,21,25))+IF(B67>=$B$2,Sens,0) -> 1.05 | U67: 7.963559322 | W67: 31430.55742 | X67: 16672.12754 | Y67: =W67-X67 -> 14758.42988 | AA67: 54705.30572 | AB67: 39928.9389 | AC67: 14776.36682 | AE67: =(1-PctUMP)*Y67+PctUMP*AC67 -> 14770.3879 | AG67: =IF(B67<71,IF(B67-35<30,VLOOKUP(B67,Lookups!A:G,6),VLOOKUP(B67,Lookups!A:G,7)),"") ->  | AI67: =IF(B67<71,PCTMALE*AG67+(1-PCTMALE)*AH67,"") ->  | AJ67: =IF(OR(B67<55,B67-35<20),VLOOKUP(B67-$B$3,Lookups!$O$3:$Q$53,2),VLOOKUP(B67,Lookups!$O$57:$P$122,2)) -> 0 | AK67: 0 | AL67: =PCTMALE*AJ67+(1-PCTMALE)*AK67 -> 0 | AM67: =IF(B67<55,VLOOKUP(B67,Lookups!A:M,12),"") ->  | AN67: =IF(B67<55,VLOOKUP(B67,Lookups!A:M,13),"") ->  | AO67: =IF(B67<55,PCTMALE*AM67+(1-PCTMALE)*AN67,"") ->  | AP67: =IF(B67<70,VLOOKUP(B67,Lookups!A:I,8)*(1-VLOOKUP(B67,Lookups!$U$3:$W$103,2))^(B67-$B$2),"") ->  | AQ67: =IF(B67<70,VLOOKUP(B67,Lookups!A:I,9)*(1-VLOOKUP(B67,Lookups!$U$3:$W$103,3))^(B67-$B$2),"") ->  | AR67: =IF(AP67<>"",PCTMALE*AP67+(1-PCTMALE)*AQ67,"") ->  | AU67: =IF(B67<71,IF(B67=$B$2,1,IF(B67<$B$2,AU68*(1+IntRt),AU66/(1+IntRt))),"") ->  | AV67: 110 | AW67: =IF(BD67>=$B$3,VLOOKUP(BD67,Lookups!A:I,8)*(1-VLOOKUP(BD67,Lookups!U:W,2))^(BD67-$B$2),"") -> 0.438900119 | AX67: =IF(BD67>=$B$3,VLOOKUP(BD67,Lookups!A:I,9)*(1-VLOOKUP(BD67,Lookups!U:W,3))^(BD67-$B$2),"") -> 0.42753226 | AY67: =IFERROR(PCTMALE*AW67+(1-PCTMALE)*AX67,"") -> 0.4332161895 | AZ67: 0.001916647741 | BA67: 0.308710475 | BB67: 0.79595 | BD67: 110 | BE67: 24619.83635 | BP67: PV Benefits from Entry Age | BQ67: 11.59483616 | BR67: 11.86756921 | BS67: 12.14828957 | BT67: 12.43733239 | BU67: 12.73505927 | BV67: 13.0418988 | BW67: 13.35829229 | BX67: 13.68484078 | BY67: 14.02203393 | BZ67: 14.37057572 | CA67: 14.7312142 | CB67: 15.1649029 | CC67: 15.62146124 | CD67: 16.10397459 | CE67: 16.61592437 | CF67: 17.16110585 | CG67: PV Benefits from Entry Age | CN67: 51 | CO67: 16 | CP67: 1.175796898 | CR67: 4 | CS67: 0.03 | CT67: 1.03
A68: =1+A67 -> 2062 | B68: =1+B67 -> 100 | D68: =VLOOKUP(B68,Lookups!A:B,2) -> 4581.943943 | E68: =VLOOKUP(B68,Lookups!A:C,3) -> 2278.897488 | G68: =VLOOKUP(B68,Lookups!A:D,4) -> 7393.880202 | H68: =VLOOKUP(B68,Lookups!A:E,5) -> 5013.956358 | J68: =VLOOKUP(A68,Trends!$A$3:$Q$94,IF(ExFlg=0,2,10))+IF(B68>=$B$2,Sens,0) -> 1.05 | K68: 7.3900869 | L68: =VLOOKUP(A68,Trends!$A$3:$Q$94,IF(ExFlg=0,4,12))+IF(B68>=$B$2,Sens,0) -> 1.05 | M68: 7.202638379 | N68: =VLOOKUP(A68,Trends!$A$3:$Z$94,IF(ExFlg=0,19,23))+IF(B68>=$B$2,Sens,0) -> 1.05 | O68: =IF(B68=$B$2,1,IF(B68<$B$2,O69/N68,O67*N67)) -> 7.681668005 | P68: =VLOOKUP(A68,Trends!$A$3:$Q$94,IF(ExFlg=0,6,14))+IF(B68>=$B$2,Sens,0) -> 1.05 | Q68: 7.489125282 | R68: =VLOOKUP(A68,Trends!$A$3:$Q$94,IF(ExFlg=0,8,16))+IF(B68>=$B$2,Sens,0) -> 1.05 | S68: 7.768664008 | T68: =VLOOKUP(A68,Trends!$A$3:$Z$94,IF(ExFlg=0,21,25))+IF(B68>=$B$2,Sens,0) -> 1.05 | U68: =IF(B68=$B$2,1,IF(B68<$B$2,U69/T68,U67*T67)) -> 8.361737288 | W68: =IF(B68<65,D68*K68,D68*M68) -> 33002.08529 | X68: =IF(B68<65,E68*K68,E68*O68) -> 17505.73392 | Y68: 15496.35137 | AA68: 57440.571 | AB68: =IF(B68<65,H68*Q68,H68*U68) -> 41925.38584 | AC68: =AA68-AB68 -> 15515.18516 | AE68: 15508.90729 | AG68: =IF(B68<71,IF(B68-35<30,VLOOKUP(B68,Lookups!A:G,6),VLOOKUP(B68,Lookups!A:G,7)),"") ->  | AH68: =AG68 ->  | AJ68: =IF(OR(B68<55,B68-35<20),VLOOKUP(B68-$B$3,Lookups!$O$3:$Q$53,2),VLOOKUP(B68,Lookups!$O$57:$P$122,2)) -> 0 | AK68: =AJ68 -> 0 | AL68: 0 | AM68: =IF(B68<55,VLOOKUP(B68,Lookups!A:M,12),"") ->  | AN68: =IF(B68<55,VLOOKUP(B68,Lookups!A:M,13),"") ->  | AP68: =IF(B68<70,VLOOKUP(B68,Lookups!A:I,8)*(1-VLOOKUP(B68,Lookups!$U$3:$W$103,2))^(B68-$B$2),"") ->  | AQ68: =IF(B68<70,VLOOKUP(B68,Lookups!A:I,9)*(1-VLOOKUP(B68,Lookups!$U$3:$W$103,3))^(B68-$B$2),"") ->  | AS68: =IF(B68<71,SUM(AI68,AL68,AO68,AR68),"") ->  | AT68: =IF(B68<71,IF(B68=$B$2,1, IF(B68<$B$2, AT69/(1-AS68), AT67*(1-AS67))),"") ->  | AV68: 111 | AW68: =IF(BD68>=$B$3,VLOOKUP(BD68,Lookups!A:I,8)*(1-VLOOKUP(BD68,Lookups!U:W,2))^(BD68-$B$2),"") -> 0.4491772191 | AX68: =IF(BD68>=$B$3,VLOOKUP(BD68,Lookups!A:I,9)*(1-VLOOKUP(BD68,Lookups!U:W,3))^(BD68-$B$2),"") -> 0.4491772191 | AY68: 0.4491772191 | AZ68: =IF(AY67="",1,AZ67*(1-AY67)) -> 0.00108632491 | BA68: 0.3021833154 | BB68: 0.788789 | BD68: 111 | BF68: =IF($BE$12<>"",SUM(BF12:BF67)*BF70*BF71*BF72*Part,"") -> 319.5958614 | BG68: =IF($BE$13<>"",SUM(BG12:BG67)*BG70*BG71*BG72*Part,"") -> 294.9115355 | BH68: =IF($BE$14<>"",SUM(BH12:BH67)*BH70*BH71*BH72*Part,"") -> 540.0327375 | BI68: =IF($BE$15<>"",SUM(BI12:BI67)*BI70*BI71*BI72*Part,"") -> 482.0775659 | BJ68: =IF($BE$16<>"",SUM(BJ12:BJ67)*BJ70*BJ71*BJ72*Part,"") -> 844.3256726 | BK68: =IF($BE$17<>"",SUM(BK12:BK67)*BK70*BK71*BK72*Part,"") -> 881.3154678 | BL68: =IF($BE$18<>"",SUM(BL12:BL67)*BL70*BL71*BL72*Part,"") -> 1121.268079 | BM68: =IF($BE$19<>"",SUM(BM12:BM67)*BM70*BM71*BM72*Part,"") -> 1525.582778 | BN68: =IF($BE$20<>"",SUM(BN12:BN67)*BN70*BN71*BN72*Part,"") -> 1209.280695 | BO68: =IF($BE$21<>"",SUM(BO12:BO67)*BO70*BO71*BO72*Part,"") -> 1025.749437 | BP68: =SUM(BF68:BO68) -> 8244.13983 | BQ68: =IF($BE12<>"",SUM(BQ12:BQ67)*BQ70*BQ71*BQ72*Part,"") -> 624.4282687 | BR68: =IF($BE13<>"",SUM(BR12:BR67)*BR70*BR71*BR72*Part,"") -> 608.7881935 | BS68: =IF($BE14<>"",SUM(BS12:BS67)*BS70*BS71*BS72*Part,"") -> 1187.075764 | BT68: =IF($BE15<>"",SUM(BT12:BT67)*BT70*BT71*BT72*Part,"") -> 1145.43893 | BU68: =IF($BE16<>"",SUM(BU12:BU67)*BU70*BU71*BU72*Part,"") -> 2210.513623 | BV68: =IF($BE17<>"",SUM(BV12:BV67)*BV70*BV71*BV72*Part,"") -> 2610.798199 | BW68: =IF($BE18<>"",SUM(BW12:BW67)*BW70*BW71*BW72*Part,"") -> 3905.047186 | BX68: =IF($BE19<>"",SUM(BX12:BX67)*BX70*BX71*BX72*Part,"") -> 6624.439585 | BY68: =IF($BE20<>"",SUM(BY12:BY67)*BY70*BY71*BY72*Part,"") -> 7370.872792 | BZ68: =IF($BE21<>"",SUM(BZ12:BZ67)*BZ70*BZ71*BZ72*Part,"") -> 11710.05383 | CA68: =IF($BE22<>"",SUM(CA12:CA67)*CA70*CA71*CA72*Part,"") -> 7820.161119 | CB68: =IF($BE23<>"",SUM(CB12:CB67)*CB70*CB71*CB72*Part,"") -> 3729.418119 | CC68: =IF($BE24<>"",SUM(CC12:CC67)*CC70*CC71*CC72*Part,"") -> 1634.71706 | CD68: =IF($BE25<>"",SUM(CD12:CD67)*CD70*CD71*CD72*Part,"") -> 1113.8216 | CE68: =IF($BE26<>"",SUM(CE12:CE67)*CE70*CE71*CE72*Part,"") -> 756.6187547 | CF68: =IF($BE27<>"",SUM(CF12:CF67)*CF70*CF71*CF72*Part,"") -> 1707.514224 | CG68: =SUM(BQ68:CF68) -> 54759.70725 | CN68: 52 | CO68: 17 | CP68: 1.16140953 | CR68: 5 | CS68: 0.022 | CT68: 1.022
A69: 2063 | B69: 101 | D69: =VLOOKUP(B69,Lookups!A:B,2) -> 4581.943943 | E69: =VLOOKUP(B69,Lookups!A:C,3) -> 2278.897488 | G69: =VLOOKUP(B69,Lookups!A:D,4) -> 7393.880202 | H69: =VLOOKUP(B69,Lookups!A:E,5) -> 5013.956358 | J69: =VLOOKUP(A69,Trends!$A$3:$Q$94,IF(ExFlg=0,2,10))+IF(B69>=$B$2,Sens,0) -> 1.05 | K69: 7.759591245 | L69: =VLOOKUP(A69,Trends!$A$3:$Q$94,IF(ExFlg=0,4,12))+IF(B69>=$B$2,Sens,0) -> 1.049 | M69: 7.562770297 | N69: =VLOOKUP(A69,Trends!$A$3:$Z$94,IF(ExFlg=0,19,23))+IF(B69>=$B$2,Sens,0) -> 1.049 | O69: 8.065751405 | P69: =VLOOKUP(A69,Trends!$A$3:$Q$94,IF(ExFlg=0,6,14))+IF(B69>=$B$2,Sens,0) -> 1.05 | Q69: 7.863581546 | R69: =VLOOKUP(A69,Trends!$A$3:$Q$94,IF(ExFlg=0,8,16))+IF(B69>=$B$2,Sens,0) -> 1.05 | S69: 8.157097209 | T69: =VLOOKUP(A69,Trends!$A$3:$Z$94,IF(ExFlg=0,21,25))+IF(B69>=$B$2,Sens,0) -> 1.05 | U69: 8.779824153 | W69: 34652.18955 | X69: 18381.02062 | Y69: =W69-X69 -> 16271.16894 | AA69: 60312.59955 | AB69: 44021.65513 | AC69: 16290.94442 | AE69: 16284.35266 | AG69: =IF(B69<71,IF(B69-35<30,VLOOKUP(B69,Lookups!A:G,6),VLOOKUP(B69,Lookups!A:G,7)),"") ->  | AJ69: =IF(OR(B69<55,B69-35<20),VLOOKUP(B69-$B$3,Lookups!$O$3:$Q$53,2),VLOOKUP(B69,Lookups!$O$57:$P$122,2)) -> 0 | AK69: 0 | AL69: 0 | AM69: =IF(B69<55,VLOOKUP(B69,Lookups!A:M,12),"") ->  | AN69: =IF(B69<55,VLOOKUP(B69,Lookups!A:M,13),"") ->  | AP69: =IF(B69<70,VLOOKUP(B69,Lookups!A:I,8)*(1-VLOOKUP(B69,Lookups!$U$3:$W$103,2))^(B69-$B$2),"") ->  | AQ69: =IF(B69<70,VLOOKUP(B69,Lookups!A:I,9)*(1-VLOOKUP(B69,Lookups!$U$3:$W$103,3))^(B69-$B$2),"") ->  | AV69: 112 | AW69: =IF(BD69>=$B$3,VLOOKUP(BD69,Lookups!A:I,8)*(1-VLOOKUP(BD69,Lookups!U:W,2))^(BD69-$B$2),"") -> 0.4600587448 | AX69: =IF(BD69>=$B$3,VLOOKUP(BD69,Lookups!A:I,9)*(1-VLOOKUP(BD69,Lookups!U:W,3))^(BD69-$B$2),"") -> 0.4600587448 | AY69: 0.4600587448 | AZ69: 0.0005983725079 | BA69: 0.2957941615 | BB69: 0.783907 | BD69: 112 | CN69: 53 | CO69: 18 | CP69: 1.152985713 | CR69: 6 | CS69: 0.017 | CT69: 1.017
A70: 2064 | B70: 102 | D70: =VLOOKUP(B70,Lookups!A:B,2) -> 4581.943943 | E70: =VLOOKUP(B70,Lookups!A:C,3) -> 2278.897488 | G70: =VLOOKUP(B70,Lookups!A:D,4) -> 7393.880202 | H70: =VLOOKUP(B70,Lookups!A:E,5) -> 5013.956358 | J70: =VLOOKUP(A70,Trends!$A$3:$Q$94,IF(ExFlg=0,2,10))+IF(B70>=$B$2,Sens,0) -> 1.049 | K70: 8.147570807 | L70: =VLOOKUP(A70,Trends!$A$3:$Q$94,IF(ExFlg=0,4,12))+IF(B70>=$B$2,Sens,0) -> 1.049 | M70: 7.933346042 | N70: =VLOOKUP(A70,Trends!$A$3:$Z$94,IF(ExFlg=0,19,23))+IF(B70>=$B$2,Sens,0) -> 1.049 | O70: 8.460973224 | P70: =VLOOKUP(A70,Trends!$A$3:$Q$94,IF(ExFlg=0,6,14))+IF(B70>=$B$2,Sens,0) -> 1.05 | Q70: 8.256760623 | R70: =VLOOKUP(A70,Trends!$A$3:$Q$94,IF(ExFlg=0,8,16))+IF(B70>=$B$2,Sens,0) -> 1.049 | S70: 8.564952069 | T70: =VLOOKUP(A70,Trends!$A$3:$Z$94,IF(ExFlg=0,21,25))+IF(B70>=$B$2,Sens,0) -> 1.049 | U70: 9.21881536 | W70: =IF(B70<65,D70*K70,D70*M70) -> 36350.14684 | X70: 19281.69063 | Y70: 17068.45622 | AA70: 63328.22953 | AB70: 46222.73789 | AC70: =AA70-AB70 -> 17105.49164 | AE70: 17093.14662 | AG70: =IF(B70<71,IF(B70-35<30,VLOOKUP(B70,Lookups!A:G,6),VLOOKUP(B70,Lookups!A:G,7)),"") ->  | AJ70: =IF(OR(B70<55,B70-35<20),VLOOKUP(B70-$B$3,Lookups!$O$3:$Q$53,2),VLOOKUP(B70,Lookups!$O$57:$P$122,2)) -> 0 | AK70: 0 | AL70: 0 | AM70: =IF(B70<55,VLOOKUP(B70,Lookups!A:M,12),"") ->  | AN70: =IF(B70<55,VLOOKUP(B70,Lookups!A:M,13),"") ->  | AP70: =IF(B70<70,VLOOKUP(B70,Lookups!A:I,8)*(1-VLOOKUP(B70,Lookups!$U$3:$W$103,2))^(B70-$B$2),"") ->  | AQ70: =IF(B70<70,VLOOKUP(B70,Lookups!A:I,9)*(1-VLOOKUP(B70,Lookups!$U$3:$W$103,3))^(B70-$B$2),"") ->  | AV70: 113 | AW70: =IF(BD70>=$B$3,VLOOKUP(BD70,Lookups!A:I,8)*(1-VLOOKUP(BD70,Lookups!U:W,2))^(BD70-$B$2),"") -> 0.4715765258 | AX70: =IF(BD70>=$B$3,VLOOKUP(BD70,Lookups!A:I,9)*(1-VLOOKUP(BD70,Lookups!U:W,3))^(BD70-$B$2),"") -> 0.4715765258 | AY70: 0.4715765258 | AZ70: 0.000323086003 | BA70: 0.2895400954 | BB70: 0.77874 | BD70: 113 | BE70: Survive | BF70: =IF(55<$B$3,"",VLOOKUP(BF78,$B$3:$AU$93,45)) -> 1.208790516 | BG70: =IF(55<$B$3,"",VLOOKUP(BG78,$B$3:$AU$93,45)) -> 1.17630092 | BH70: 1.144532634 | BI70: 1.102022496 | BJ70: 1.06093524 | BK70: 1 | BL70: 0.932403225 | BM70: 0.8412351865 | BN70: 0.6999356036 | BO70: 0.5542245962 | BQ70: =BF70 -> 1.208790516 | BR70: =BG70 -> 1.17630092 | BS70: 1.144532634 | BT70: 1.102022496 | BU70: 1.06093524 | BV70: 1 | BW70: 0.932403225 | BX70: 0.8412351865 | BY70: 0.6999356036 | BZ70: 0.5542245962 | CA70: =VLOOKUP(CA78,$B$3:$AU$93,45) -> 0.3278737061 | CB70: =VLOOKUP(CB78,$B$3:$AU$93,45) -> 0.177833483 | CC70: 0.1052316045 | CD70: 0.07271403231 | CE70: 0.0501816767 | CF70: 0.03458246999 | CG70: Totals - Scaled for Headcount | CN70: 54 | CO70: 19 | CP70: 1.142214098 | CR70: 7 | CS70: 0.015 | CT70: 1.015
A71: 2065 | B71: 103 | D71: =VLOOKUP(B71,Lookups!A:B,2) -> 4581.943943 | E71: =VLOOKUP(B71,Lookups!A:C,3) -> 2278.897488 | G71: =VLOOKUP(B71,Lookups!A:D,4) -> 7393.880202 | H71: =VLOOKUP(B71,Lookups!A:E,5) -> 5013.956358 | J71: =VLOOKUP(A71,Trends!$A$3:$Q$94,IF(ExFlg=0,2,10))+IF(B71>=$B$2,Sens,0) -> 1.049 | K71: 8.546801777 | L71: =VLOOKUP(A71,Trends!$A$3:$Q$94,IF(ExFlg=0,4,12))+IF(B71>=$B$2,Sens,0) -> 1.048 | M71: 8.322079998 | N71: =VLOOKUP(A71,Trends!$A$3:$Z$94,IF(ExFlg=0,19,23))+IF(B71>=$B$2,Sens,0) -> 1.048 | O71: 8.875560912 | P71: =VLOOKUP(A71,Trends!$A$3:$Q$94,IF(ExFlg=0,6,14))+IF(B71>=$B$2,Sens,0) -> 1.049 | Q71: 8.669598654 | R71: =VLOOKUP(A71,Trends!$A$3:$Q$94,IF(ExFlg=0,8,16))+IF(B71>=$B$2,Sens,0) -> 1.049 | S71: 8.98463472 | T71: =VLOOKUP(A71,Trends!$A$3:$Z$94,IF(ExFlg=0,21,25))+IF(B71>=$B$2,Sens,0) -> 1.049 | U71: 9.670537313 | W71: 38131.30404 | X71: 20226.49347 | Y71: 17904.81057 | AA71: 66431.31278 | AB71: 48487.65205 | AC71: 17943.66073 | AE71: 17930.71081 | AG71: =IF(B71<71,IF(B71-35<30,VLOOKUP(B71,Lookups!A:G,6),VLOOKUP(B71,Lookups!A:G,7)),"") ->  | AJ71: =IF(OR(B71<55,B71-35<20),VLOOKUP(B71-$B$3,Lookups!$O$3:$Q$53,2),VLOOKUP(B71,Lookups!$O$57:$P$122,2)) -> 0 | AK71: 0 | AL71: 0 | AM71: =IF(B71<55,VLOOKUP(B71,Lookups!A:M,12),"") ->  | AN71: =IF(B71<55,VLOOKUP(B71,Lookups!A:M,13),"") ->  | AP71: =IF(B71<70,VLOOKUP(B71,Lookups!A:I,8)*(1-VLOOKUP(B71,Lookups!$U$3:$W$103,2))^(B71-$B$2),"") ->  | AQ71: =IF(B71<70,VLOOKUP(B71,Lookups!A:I,9)*(1-VLOOKUP(B71,Lookups!$U$3:$W$103,3))^(B71-$B$2),"") ->  | AV71: 114 | AW71: =IF(BD71>=$B$3,VLOOKUP(BD71,Lookups!A:I,8)*(1-VLOOKUP(BD71,Lookups!U:W,2))^(BD71-$B$2),"") -> 0.4869705397 | AX71: =IF(BD71>=$B$3,VLOOKUP(BD71,Lookups!A:I,9)*(1-VLOOKUP(BD71,Lookups!U:W,3))^(BD71-$B$2),"") -> 0.4869705397 | AY71: 0.4869705397 | AZ71: 0.0001707262282 | BA71: 0.283418261 | BB71: 0.771834 | BD71: 114 | BE71: Interest | BF71: =IF(55<$B$3,"",VLOOKUP(BF78,$B$3:$AU$93,46)) -> 1.11276747 | BG71: =IF(55<$B$3,"",VLOOKUP(BG78,$B$3:$AU$93,46)) -> 1.089239888 | BH71: 1.066209758 | BI71: 1.04366656 | BJ71: 1.0216 | BK71: 1 | BL71: 0.9788566954 | BM71: 0.9581604301 | BN71: 0.9379017522 | BO71: 0.9180714098 | BQ71: =BF71 -> 1.11276747 | BR71: 1.089239888 | BS71: 1.066209758 | BT71: 1.04366656 | BU71: 1.0216 | BV71: 1 | BW71: 0.9788566954 | BX71: 0.9581604301 | BY71: 0.9379017522 | BZ71: 0.9180714098 | CA71: =VLOOKUP(CA78,$B$3:$AU$93,46) -> 0.8986603463 | CB71: =VLOOKUP(CB78,$B$3:$AU$93,46) -> 0.8796596969 | CC71: 0.8610607839 | CD71: 0.8428551135 | CE71: 0.8250343711 | CF71: 0.807590418 | CG71: =BP73 -> 0 | CH71: Count in Cohort | CN71: 55 | CO71: 20 | CP71: 1.131409025 | CR71: 8 | CS71: 0.01 | CT71: 1.01
A72: 2066 | B72: 104 | D72: =VLOOKUP(B72,Lookups!A:B,2) -> 4581.943943 | E72: =VLOOKUP(B72,Lookups!A:C,3) -> 2278.897488 | G72: =VLOOKUP(B72,Lookups!A:D,4) -> 7393.880202 | H72: =VLOOKUP(B72,Lookups!A:E,5) -> 5013.956358 | J72: =VLOOKUP(A72,Trends!$A$3:$Q$94,IF(ExFlg=0,2,10))+IF(B72>=$B$2,Sens,0) -> 1.048 | K72: 8.965595064 | L72: =VLOOKUP(A72,Trends!$A$3:$Q$94,IF(ExFlg=0,4,12))+IF(B72>=$B$2,Sens,0) -> 1.048 | M72: 8.721539838 | N72: =VLOOKUP(A72,Trends!$A$3:$Z$94,IF(ExFlg=0,19,23))+IF(B72>=$B$2,Sens,0) -> 1.048 | O72: 9.301587835 | P72: =VLOOKUP(A72,Trends!$A$3:$Q$94,IF(ExFlg=0,6,14))+IF(B72>=$B$2,Sens,0) -> 1.048 | Q72: 9.094408989 | R72: =VLOOKUP(A72,Trends!$A$3:$Q$94,IF(ExFlg=0,8,16))+IF(B72>=$B$2,Sens,0) -> 1.048 | S72: 9.424881822 | T72: =VLOOKUP(A72,Trends!$A$3:$Z$94,IF(ExFlg=0,21,25))+IF(B72>=$B$2,Sens,0) -> 1.048 | U72: 10.14439364 | W72: 39961.60663 | X72: 21197.36515 | Y72: 18764.24148 | AA72: 69686.4471 | AB72: 50863.547 | AC72: 18822.90011 | AE72: 18803.34743 | AG72: =IF(B72<71,IF(B72-35<30,VLOOKUP(B72,Lookups!A:G,6),VLOOKUP(B72,Lookups!A:G,7)),"") ->  | AJ72: =IF(OR(B72<55,B72-35<20),VLOOKUP(B72-$B$3,Lookups!$O$3:$Q$53,2),VLOOKUP(B72,Lookups!$O$57:$P$122,2)) -> 0 | AK72: 0 | AL72: 0 | AM72: =IF(B72<55,VLOOKUP(B72,Lookups!A:M,12),"") ->  | AN72: =IF(B72<55,VLOOKUP(B72,Lookups!A:M,13),"") ->  | AP72: =IF(B72<70,VLOOKUP(B72,Lookups!A:I,8)*(1-VLOOKUP(B72,Lookups!$U$3:$W$103,2))^(B72-$B$2),"") ->  | AQ72: =IF(B72<70,VLOOKUP(B72,Lookups!A:I,9)*(1-VLOOKUP(B72,Lookups!$U$3:$W$103,3))^(B72-$B$2),"") ->  | AV72: 115 | AW72: =IF(BD72>=$B$3,VLOOKUP(BD72,Lookups!A:I,8)*(1-VLOOKUP(BD72,Lookups!U:W,2))^(BD72-$B$2),"") -> 0.5 | AX72: =IF(BD72>=$B$3,VLOOKUP(BD72,Lookups!A:I,9)*(1-VLOOKUP(BD72,Lookups!U:W,3))^(BD72-$B$2),"") -> 0.5 | AY72: 0.5 | AZ72: 8.75875847e-05 | BA72: 0.2774258624 | BB72: 0.765988 | BD72: 115 | BE72: Retire | BF72: =IF(55<$B$3,"",VLOOKUP(BF78,$B$3:$AU$93,34)) -> 0.01 | BG72: =IF(55<$B$3,"",VLOOKUP(BG78,$B$3:$AU$93,34)) -> 0.01 | BH72: 0.02 | BI72: 0.02 | BJ72: 0.04 | BK72: 0.05 | BL72: 0.08 | BM72: 0.15 | BN72: 0.2 | BO72: 0.4 | BP72: Totals - Scaled for Headcount | BQ72: =BF72 -> 0.01 | BR72: 0.01 | BS72: 0.02 | BT72: 0.02 | BU72: 0.04 | BV72: 0.05 | BW72: 0.08 | BX72: 0.15 | BY72: 0.2 | BZ72: 0.4 | CA72: =VLOOKUP(CA78,$B$3:$AU$93,34) -> 0.45 | CB72: =VLOOKUP(CB78,$B$3:$AU$93,34) -> 0.4 | CC72: 0.3 | CD72: 0.3 | CE72: 0.3 | CF72: 1 | CG72: =CG68*CG71 -> 0 | CJ72: PVSalary @ Entry Age | CK72: =SUM(CP26:CP138) -> 38.35734572 | CN72: 56 | CO72: 21 | CP72: 1.116556167 | CR72: 9 | CS72: 0.01 | CT72: 1.01
A73: 2067 | B73: 105 | D73: =VLOOKUP(B73,Lookups!A:B,2) -> 4581.943943 | E73: =VLOOKUP(B73,Lookups!A:C,3) -> 2278.897488 | G73: =VLOOKUP(B73,Lookups!A:D,4) -> 7393.880202 | H73: =VLOOKUP(B73,Lookups!A:E,5) -> 5013.956358 | J73: =VLOOKUP(A73,Trends!$A$3:$Q$94,IF(ExFlg=0,2,10))+IF(B73>=$B$2,Sens,0) -> 1.047 | K73: =IF(B73=$B$2,1,IF(B73<$B$2,K74/J73,K72*J72)) -> 9.395943627 | L73: =VLOOKUP(A73,Trends!$A$3:$Q$94,IF(ExFlg=0,4,12))+IF(B73>=$B$2,Sens,0) -> 1.047 | M73: =IF(B73=$B$2,1,IF(B73<$B$2,M74/L73,M72*L72)) -> 9.14017375 | N73: =VLOOKUP(A73,Trends!$A$3:$Z$94,IF(ExFlg=0,19,23))+IF(B73>=$B$2,Sens,0) -> 1.047 | O73: 9.748064051 | P73: =VLOOKUP(A73,Trends!$A$3:$Q$94,IF(ExFlg=0,6,14))+IF(B73>=$B$2,Sens,0) -> 1.047 | Q73: =IF(B73=$B$2,1,IF(B73<$B$2,Q74/P73,Q72*P72)) -> 9.53094062 | R73: =VLOOKUP(A73,Trends!$A$3:$Q$94,IF(ExFlg=0,8,16))+IF(B73>=$B$2,Sens,0) -> 1.047 | S73: =IF(B73=$B$2,1,IF(B73<$B$2,S74/R73,S72*R72)) -> 9.877276149 | T73: =VLOOKUP(A73,Trends!$A$3:$Z$94,IF(ExFlg=0,21,25))+IF(B73>=$B$2,Sens,0) -> 1.047 | U73: 10.63132454 | W73: 41879.76375 | X73: 22214.83868 | Y73: 19664.92507 | AA73: 73031.39657 | AB73: 53304.99725 | AC73: 19726.39931 | AE73: 19705.9081 | AG73: =IF(B73<71,IF(B73-35<30,VLOOKUP(B73,Lookups!A:G,6),VLOOKUP(B73,Lookups!A:G,7)),"") ->  | AJ73: =IF(OR(B73<55,B73-35<20),VLOOKUP(B73-$B$3,Lookups!$O$3:$Q$53,2),VLOOKUP(B73,Lookups!$O$57:$P$122,2)) -> 0 | AK73: 0 | AL73: 0 | AM73: =IF(B73<55,VLOOKUP(B73,Lookups!A:M,12),"") ->  | AN73: =IF(B73<55,VLOOKUP(B73,Lookups!A:M,13),"") ->  | AP73: =IF(B73<70,VLOOKUP(B73,Lookups!A:I,8)*(1-VLOOKUP(B73,Lookups!$U$3:$W$103,2))^(B73-$B$2),"") ->  | AQ73: =IF(B73<70,VLOOKUP(B73,Lookups!A:I,9)*(1-VLOOKUP(B73,Lookups!$U$3:$W$103,3))^(B73-$B$2),"") ->  | AV73: 116 | AW73: =IF(BD73>=$B$3,VLOOKUP(BD73,Lookups!A:I,8)*(1-VLOOKUP(BD73,Lookups!U:W,2))^(BD73-$B$2),"") -> 0.5 | AX73: =IF(BD73>=$B$3,VLOOKUP(BD73,Lookups!A:I,9)*(1-VLOOKUP(BD73,Lookups!U:W,3))^(BD73-$B$2),"") -> 0.5 | AY73: 0.5 | AZ73: 4.379379235e-05 | BA73: 0.2715601628 | BB73: 0.765988 | BD73: 116 | BP73: =B1 -> 0 | BQ73: Count in Cohort | CG73: =CG72*(1+PctMarried) -> 0 | CH73: with spouses | CJ73: PVSalary @ Attained Age | CK73: =SUM(CP76:CP138) -> 4.953855038 | CN73: 57 | CO73: 22 | CP73: 1.100651383 | CR73: 10 | CS73: 0.007 | CT73: 1.007
A74: 2068 | B74: 106 | D74: =VLOOKUP(B74,Lookups!A:B,2) -> 4581.943943 | E74: =VLOOKUP(B74,Lookups!A:C,3) -> 2278.897488 | G74: =VLOOKUP(B74,Lookups!A:D,4) -> 7393.880202 | H74: =VLOOKUP(B74,Lookups!A:E,5) -> 5013.956358 | J74: =VLOOKUP(A74,Trends!$A$3:$Q$94,IF(ExFlg=0,2,10))+IF(B74>=$B$2,Sens,0) -> 1.046 | K74: 9.837552977 | L74: =VLOOKUP(A74,Trends!$A$3:$Q$94,IF(ExFlg=0,4,12))+IF(B74>=$B$2,Sens,0) -> 1.046 | M74: 9.569761916 | N74: =VLOOKUP(A74,Trends!$A$3:$Z$94,IF(ExFlg=0,19,23))+IF(B74>=$B$2,Sens,0) -> 1.046 | O74: 10.20622306 | P74: =VLOOKUP(A74,Trends!$A$3:$Q$94,IF(ExFlg=0,6,14))+IF(B74>=$B$2,Sens,0) -> 1.047 | Q74: 9.978894829 | R74: =VLOOKUP(A74,Trends!$A$3:$Q$94,IF(ExFlg=0,8,16))+IF(B74>=$B$2,Sens,0) -> 1.046 | S74: 10.34150813 | T74: =VLOOKUP(A74,Trends!$A$3:$Z$94,IF(ExFlg=0,21,25))+IF(B74>=$B$2,Sens,0) -> 1.046 | U74: 11.13099679 | W74: 43848.11264 | X74: 23258.9361 | Y74: 20589.17655 | AA74: 76463.8722 | AB74: 55810.33212 | AC74: 20653.54008 | AE74: 20632.08578 | AG74: =IF(B74<71,IF(B74-35<30,VLOOKUP(B74,Lookups!A:G,6),VLOOKUP(B74,Lookups!A:G,7)),"") ->  | AJ74: =IF(OR(B74<55,B74-35<20),VLOOKUP(B74-$B$3,Lookups!$O$3:$Q$53,2),VLOOKUP(B74,Lookups!$O$57:$P$122,2)) -> 0 | AK74: 0 | AL74: 0 | AM74: =IF(B74<55,VLOOKUP(B74,Lookups!A:M,12),"") ->  | AN74: =IF(B74<55,VLOOKUP(B74,Lookups!A:M,13),"") ->  | AP74: =IF(B74<70,VLOOKUP(B74,Lookups!A:I,8)*(1-VLOOKUP(B74,Lookups!$U$3:$W$103,2))^(B74-$B$2),"") ->  | AQ74: =IF(B74<70,VLOOKUP(B74,Lookups!A:I,9)*(1-VLOOKUP(B74,Lookups!$U$3:$W$103,3))^(B74-$B$2),"") ->  | AV74: 117 | AW74: =IF(BD74>=$B$3,VLOOKUP(BD74,Lookups!A:I,8)*(1-VLOOKUP(BD74,Lookups!U:W,2))^(BD74-$B$2),"") -> 0.5 | AX74: =IF(BD74>=$B$3,VLOOKUP(BD74,Lookups!A:I,9)*(1-VLOOKUP(BD74,Lookups!U:W,3))^(BD74-$B$2),"") -> 0.5 | AY74: 0.5 | AZ74: 2.189689618e-05 | BA74: 0.2658184836 | BB74: 0.765988 | BD74: 117 | BP74: =BP68*BP73 -> 0 | CN74: 58 | CO74: 23 | CP74: 1.073671756 | CR74: 11 | CS74: 0.005 | CT74: 1.005
A75: 2069 | B75: 107 | D75: =VLOOKUP(B75,Lookups!A:B,2) -> 4581.943943 | E75: =VLOOKUP(B75,Lookups!A:C,3) -> 2278.897488 | G75: =VLOOKUP(B75,Lookups!A:D,4) -> 7393.880202 | H75: =VLOOKUP(B75,Lookups!A:E,5) -> 5013.956358 | J75: =VLOOKUP(A75,Trends!$A$3:$Q$94,IF(ExFlg=0,2,10))+IF(B75>=$B$2,Sens,0) -> 1.046 | K75: 10.29008041 | L75: =VLOOKUP(A75,Trends!$A$3:$Q$94,IF(ExFlg=0,4,12))+IF(B75>=$B$2,Sens,0) -> 1.045 | M75: 10.00997096 | N75: =VLOOKUP(A75,Trends!$A$3:$Z$94,IF(ExFlg=0,19,23))+IF(B75>=$B$2,Sens,0) -> 1.045 | O75: 10.67570932 | P75: =VLOOKUP(A75,Trends!$A$3:$Q$94,IF(ExFlg=0,6,14))+IF(B75>=$B$2,Sens,0) -> 1.046 | Q75: 10.44790289 | R75: =VLOOKUP(A75,Trends!$A$3:$Q$94,IF(ExFlg=0,8,16))+IF(B75>=$B$2,Sens,0) -> 1.046 | S75: 10.8172175 | T75: =VLOOKUP(A75,Trends!$A$3:$Z$94,IF(ExFlg=0,21,25))+IF(B75>=$B$2,Sens,0) -> 1.046 | U75: 11.64302264 | W75: 45865.12583 | X75: 24328.84716 | Y75: 21536.27867 | AA75: 79981.21033 | AB75: 58377.6074 | AC75: 21603.60292 | AE75: 21581.16173 | AG75: =IF(B75<71,IF(B75-35<30,VLOOKUP(B75,Lookups!A:G,6),VLOOKUP(B75,Lookups!A:G,7)),"") ->  | AJ75: =IF(OR(B75<55,B75-35<20),VLOOKUP(B75-$B$3,Lookups!$O$3:$Q$53,2),VLOOKUP(B75,Lookups!$O$57:$P$122,2)) -> 0 | AK75: 0 | AL75: 0 | AM75: =IF(B75<55,VLOOKUP(B75,Lookups!A:M,12),"") ->  | AN75: =IF(B75<55,VLOOKUP(B75,Lookups!A:M,13),"") ->  | AP75: =IF(B75<70,VLOOKUP(B75,Lookups!A:I,8)*(1-VLOOKUP(B75,Lookups!$U$3:$W$103,2))^(B75-$B$2),"") ->  | AQ75: =IF(B75<70,VLOOKUP(B75,Lookups!A:I,9)*(1-VLOOKUP(B75,Lookups!$U$3:$W$103,3))^(B75-$B$2),"") ->  | AV75: 118 | AW75: =IF(BD75>=$B$3,VLOOKUP(BD75,Lookups!A:I,8)*(1-VLOOKUP(BD75,Lookups!U:W,2))^(BD75-$B$2),"") -> 0.5 | AX75: =IF(BD75>=$B$3,VLOOKUP(BD75,Lookups!A:I,9)*(1-VLOOKUP(BD75,Lookups!U:W,3))^(BD75-$B$2),"") -> 0.5 | AY75: 0.5 | AZ75: 1.094844809e-05 | BA75: 0.2601982024 | BB75: 0.765988 | BD75: 118 | BP75: =BP74*(1+PctMarried) -> 0 | BQ75: with spouses | CJ75: PV Benefits from Entry Age | CK75: =Explicit+Implicit -> 0 | CN75: 59 | CO75: =IF(CO76=0,0,CO76-1) -> 24 | CP75: 1.04719946 | CR75: 12 | CS75: 0.005 | CT75: 1.005
A76: 2070 | B76: 108 | D76: =VLOOKUP(B76,Lookups!A:B,2) -> 4581.943943 | E76: =VLOOKUP(B76,Lookups!A:C,3) -> 2278.897488 | G76: =VLOOKUP(B76,Lookups!A:D,4) -> 7393.880202 | H76: =VLOOKUP(B76,Lookups!A:E,5) -> 5013.956358 | J76: =VLOOKUP(A76,Trends!$A$3:$Q$94,IF(ExFlg=0,2,10))+IF(B76>=$B$2,Sens,0) -> 1.045 | K76: 10.76342411 | L76: =VLOOKUP(A76,Trends!$A$3:$Q$94,IF(ExFlg=0,4,12))+IF(B76>=$B$2,Sens,0) -> 1.045 | M76: 10.46041966 | N76: =VLOOKUP(A76,Trends!$A$3:$Z$94,IF(ExFlg=0,19,23))+IF(B76>=$B$2,Sens,0) -> 1.045 | O76: 11.15611624 | P76: =VLOOKUP(A76,Trends!$A$3:$Q$94,IF(ExFlg=0,6,14))+IF(B76>=$B$2,Sens,0) -> 1.045 | Q76: 10.92850642 | R76: =VLOOKUP(A76,Trends!$A$3:$Q$94,IF(ExFlg=0,8,16))+IF(B76>=$B$2,Sens,0) -> 1.045 | S76: 11.31480951 | T76: =VLOOKUP(A76,Trends!$A$3:$Z$94,IF(ExFlg=0,21,25))+IF(B76>=$B$2,Sens,0) -> 1.045 | U76: 12.17860168 | W76: 47929.05649 | X76: 25423.64528 | Y76: 22505.41121 | AA76: 83660.346 | AB76: 61062.97734 | AC76: 22597.36866 | AE76: 22566.71648 | AG76: =IF(B76<71,IF(B76-35<30,VLOOKUP(B76,Lookups!A:G,6),VLOOKUP(B76,Lookups!A:G,7)),"") ->  | AJ76: =IF(OR(B76<55,B76-35<20),VLOOKUP(B76-$B$3,Lookups!$O$3:$Q$53,2),VLOOKUP(B76,Lookups!$O$57:$P$122,2)) -> 0 | AK76: 0 | AL76: 0 | AM76: =IF(B76<55,VLOOKUP(B76,Lookups!A:M,12),"") ->  | AN76: =IF(B76<55,VLOOKUP(B76,Lookups!A:M,13),"") ->  | AP76: =IF(B76<70,VLOOKUP(B76,Lookups!A:I,8)*(1-VLOOKUP(B76,Lookups!$U$3:$W$103,2))^(B76-$B$2),"") ->  | AQ76: =IF(B76<70,VLOOKUP(B76,Lookups!A:I,9)*(1-VLOOKUP(B76,Lookups!$U$3:$W$103,3))^(B76-$B$2),"") ->  | AV76: 119 | AW76: =IF(BD76>=$B$3,VLOOKUP(BD76,Lookups!A:I,8)*(1-VLOOKUP(BD76,Lookups!U:W,2))^(BD76-$B$2),"") -> 0.5 | AX76: =IF(BD76>=$B$3,VLOOKUP(BD76,Lookups!A:I,9)*(1-VLOOKUP(BD76,Lookups!U:W,3))^(BD76-$B$2),"") -> 0.5 | AY76: 0.5 | AZ76: 5.474224044e-06 | BA76: 0.2546967526 | BB76: 0.765988 | BD76: 119 | BP76: PV Benefits Attained Age | CG76: PVFB | CJ76: PVFB | CK76: =CG82+BP82 -> 0 | CM76: Current Age | CN76: =B2 -> 60 | CO76: =MS -> 25 | CP76: 1 | CR76: 13 | CS76: 0.005 | CT76: 1.005
A77: 2071 | B77: 109 | D77: =VLOOKUP(B77,Lookups!A:B,2) -> 4581.943943 | E77: =VLOOKUP(B77,Lookups!A:C,3) -> 2278.897488 | G77: =VLOOKUP(B77,Lookups!A:D,4) -> 7393.880202 | H77: =VLOOKUP(B77,Lookups!A:E,5) -> 5013.956358 | J77: =VLOOKUP(A77,Trends!$A$3:$Q$94,IF(ExFlg=0,2,10))+IF(B77>=$B$2,Sens,0) -> 1.044 | K77: 11.2477782 | L77: =VLOOKUP(A77,Trends!$A$3:$Q$94,IF(ExFlg=0,4,12))+IF(B77>=$B$2,Sens,0) -> 1.044 | M77: 10.93113854 | N77: =VLOOKUP(A77,Trends!$A$3:$Z$94,IF(ExFlg=0,19,23))+IF(B77>=$B$2,Sens,0) -> 1.044 | O77: 11.65814147 | P77: =VLOOKUP(A77,Trends!$A$3:$Q$94,IF(ExFlg=0,6,14))+IF(B77>=$B$2,Sens,0) -> 1.045 | Q77: 11.42028921 | R77: =VLOOKUP(A77,Trends!$A$3:$Q$94,IF(ExFlg=0,8,16))+IF(B77>=$B$2,Sens,0) -> 1.044 | S77: 11.82397594 | T77: =VLOOKUP(A77,Trends!$A$3:$Z$94,IF(ExFlg=0,21,25))+IF(B77>=$B$2,Sens,0) -> 1.044 | U77: 12.72663876 | W77: 50085.86403 | X77: 26567.70932 | Y77: 23518.15471 | AA77: 87425.06157 | AB77: 63810.81132 | AC77: 23614.25025 | AE77: 23582.21872 | AG77: =IF(B77<71,IF(B77-35<30,VLOOKUP(B77,Lookups!A:G,6),VLOOKUP(B77,Lookups!A:G,7)),"") ->  | AJ77: =IF(OR(B77<55,B77-35<20),VLOOKUP(B77-$B$3,Lookups!$O$3:$Q$53,2),VLOOKUP(B77,Lookups!$O$57:$P$122,2)) -> 0 | AK77: 0 | AL77: 0 | AM77: =IF(B77<55,VLOOKUP(B77,Lookups!A:M,12),"") ->  | AN77: =IF(B77<55,VLOOKUP(B77,Lookups!A:M,13),"") ->  | AP77: =IF(B77<70,VLOOKUP(B77,Lookups!A:I,8)*(1-VLOOKUP(B77,Lookups!$U$3:$W$103,2))^(B77-$B$2),"") ->  | AQ77: =IF(B77<70,VLOOKUP(B77,Lookups!A:I,9)*(1-VLOOKUP(B77,Lookups!$U$3:$W$103,3))^(B77-$B$2),"") ->  | AV77: 120 | AW77: =IF(BD77>=$B$3,VLOOKUP(BD77,Lookups!A:I,8)*(1-VLOOKUP(BD77,Lookups!U:W,2))^(BD77-$B$2),"") -> 1 | AX77: =IF(BD77>=$B$3,VLOOKUP(BD77,Lookups!A:I,9)*(1-VLOOKUP(BD77,Lookups!U:W,3))^(BD77-$B$2),"") -> 1 | AY77: 1 | AZ77: 2.737112022e-06 | BA77: 0.2493116215 | BB77: 0.541667 | BD77: 120 | BF77: =IF(BF70<=1,SUM(BF12:BF67)*BF70*BF71*BF72*Part,"") ->  | BK77: 881.3154678 | BL77: 1121.268079 | BM77: 1525.582778 | BN77: 1209.280695 | BO77: 1025.749437 | BP77: =SUM(BF77:BO77) -> 5763.196457 | BQ77: =IF(BQ70<=1,SUM(BQ12:BQ67)*BQ70*BQ71*BQ72*Part,"") ->  | BV77: 2610.798199 | BW77: 3905.047186 | BX77: 6624.439585 | BY77: 7370.872792 | BZ77: 11710.05383 | CA77: 7820.161119 | CB77: 3729.418119 | CC77: 1634.71706 | CD77: 1113.8216 | CE77: 756.6187547 | CF77: 1707.514224 | CG77: =SUM(BQ77:CF77) -> 48983.46247 | CN77: =IF(CN76<70,CN76+1, "") -> 61 | CO77: =IF(CN77<71,CO76+1,"") -> 26 | CP77: =IF(CN77<71,CP76*(1-VLOOKUP(CN76,$B$3:$AU$93,44,FALSE))* 1/(1+IntRt)*(1+GSG)*VLOOKUP(MIN(CO76,30),$CR$63:$CT$93,3,FALSE),"") -> 0.9446332595 | CR77: 14 | CS77: 0.003 | CT77: 1.003
A78: 2072 | B78: 110 | D78: =VLOOKUP(B78,Lookups!A:B,2) -> 4581.943943 | E78: =VLOOKUP(B78,Lookups!A:C,3) -> 2278.897488 | G78: =VLOOKUP(B78,Lookups!A:D,4) -> 7393.880202 | H78: =VLOOKUP(B78,Lookups!A:E,5) -> 5013.956358 | J78: =VLOOKUP(A78,Trends!$A$3:$Q$94,IF(ExFlg=0,2,10))+IF(B78>=$B$2,Sens,0) -> 1.044 | K78: 11.74268044 | L78: =VLOOKUP(A78,Trends!$A$3:$Q$94,IF(ExFlg=0,4,12))+IF(B78>=$B$2,Sens,0) -> 1.043 | M78: 11.41210864 | N78: =VLOOKUP(A78,Trends!$A$3:$Z$94,IF(ExFlg=0,19,23))+IF(B78>=$B$2,Sens,0) -> 1.043 | O78: 12.1710997 | P78: =VLOOKUP(A78,Trends!$A$3:$Q$94,IF(ExFlg=0,6,14))+IF(B78>=$B$2,Sens,0) -> 1.044 | Q78: 11.93420222 | R78: =VLOOKUP(A78,Trends!$A$3:$Q$94,IF(ExFlg=0,8,16))+IF(B78>=$B$2,Sens,0) -> 1.044 | S78: 12.34423088 | T78: =VLOOKUP(A78,Trends!$A$3:$Z$94,IF(ExFlg=0,21,25))+IF(B78>=$B$2,Sens,0) -> 1.044 | U78: 13.28661086 | W78: 52289.64205 | X78: 27736.68853 | Y78: 24552.95352 | AA78: 91271.76428 | AB78: 66618.48702 | AC78: 24653.27726 | AE78: 24619.83635 | AG78: =IF(B78<71,IF(B78-35<30,VLOOKUP(B78,Lookups!A:G,6),VLOOKUP(B78,Lookups!A:G,7)),"") ->  | AJ78: =IF(OR(B78<55,B78-35<20),VLOOKUP(B78-$B$3,Lookups!$O$3:$Q$53,2),VLOOKUP(B78,Lookups!$O$57:$P$122,2)) -> 0 | AK78: 0 | AL78: 0 | AM78: =IF(B78<55,VLOOKUP(B78,Lookups!A:M,12),"") ->  | AN78: =IF(B78<55,VLOOKUP(B78,Lookups!A:M,13),"") ->  | AP78: =IF(B78<70,VLOOKUP(B78,Lookups!A:I,8)*(1-VLOOKUP(B78,Lookups!$U$3:$W$103,2))^(B78-$B$2),"") ->  | AQ78: =IF(B78<70,VLOOKUP(B78,Lookups!A:I,9)*(1-VLOOKUP(B78,Lookups!$U$3:$W$103,3))^(B78-$B$2),"") ->  | BF78: 55 | BG78: 56 | BH78: 57 | BI78: 58 | BJ78: 59 | BK78: 60 | BL78: 61 | BM78: 62 | BN78: 63 | BO78: 64 | BQ78: 55 | BR78: 56 | BS78: 57 | BT78: 58 | BU78: 59 | BV78: 60 | BW78: 61 | BX78: 62 | BY78: 63 | BZ78: 64 | CA78: 65 | CB78: 66 | CC78: 67 | CD78: 68 | CE78: 69 | CF78: 70 | CJ78: EANC Rate | CK78: =CK75/CK72 -> 0 | CN78: =IF(CN77<70,CN77+1, "") -> 62 | CO78: 27 | CP78: 0.8634483438 | CR78: 15 | CS78: 0.003 | CT78: 1.003
A79: 2073 | B79: 111 | D79: =VLOOKUP(B79,Lookups!A:B,2) -> 4581.943943 | E79: =VLOOKUP(B79,Lookups!A:C,3) -> 2278.897488 | G79: =VLOOKUP(B79,Lookups!A:D,4) -> 7393.880202 | H79: =VLOOKUP(B79,Lookups!A:E,5) -> 5013.956358 | J79: =VLOOKUP(A79,Trends!$A$3:$Q$94,IF(ExFlg=0,2,10))+IF(B79>=$B$2,Sens,0) -> 1.043 | K79: 12.25935838 | L79: =VLOOKUP(A79,Trends!$A$3:$Q$94,IF(ExFlg=0,4,12))+IF(B79>=$B$2,Sens,0) -> 1.043 | M79: 11.90282931 | N79: =VLOOKUP(A79,Trends!$A$3:$Z$94,IF(ExFlg=0,19,23))+IF(B79>=$B$2,Sens,0) -> 1.043 | O79: 12.69445699 | P79: =VLOOKUP(A79,Trends!$A$3:$Q$94,IF(ExFlg=0,6,14))+IF(B79>=$B$2,Sens,0) -> 1.043 | Q79: 12.45930712 | R79: =VLOOKUP(A79,Trends!$A$3:$Q$94,IF(ExFlg=0,8,16))+IF(B79>=$B$2,Sens,0) -> 1.043 | S79: 12.88737703 | T79: =VLOOKUP(A79,Trends!$A$3:$Z$94,IF(ExFlg=0,21,25))+IF(B79>=$B$2,Sens,0) -> 1.043 | U79: 13.87122174 | W79: 54538.09666 | X79: 28929.36613 | Y79: 25608.73052 | AA79: 95287.72191 | AB79: 69549.70045 | AC79: 25738.02146 | AE79: 25694.92491 | AG79: =IF(B79<71,IF(B79-35<30,VLOOKUP(B79,Lookups!A:G,6),VLOOKUP(B79,Lookups!A:G,7)),"") ->  | AJ79: =IF(OR(B79<55,B79-35<20),VLOOKUP(B79-$B$3,Lookups!$O$3:$Q$53,2),VLOOKUP(B79,Lookups!$O$57:$P$122,2)) -> 0 | AK79: 0 | AL79: 0 | AM79: =IF(B79<55,VLOOKUP(B79,Lookups!A:M,12),"") ->  | AN79: =IF(B79<55,VLOOKUP(B79,Lookups!A:M,13),"") ->  | AP79: =IF(B79<70,VLOOKUP(B79,Lookups!A:I,8)*(1-VLOOKUP(B79,Lookups!$U$3:$W$103,2))^(B79-$B$2),"") ->  | AQ79: =IF(B79<70,VLOOKUP(B79,Lookups!A:I,9)*(1-VLOOKUP(B79,Lookups!$U$3:$W$103,3))^(B79-$B$2),"") ->  | BP79: Totals - Scaled for Headcount | CG79: Totals - Scaled for Headcount | CN79: 63 | CO79: 28 | CP79: 0.7278409426 | CR79: 16 | CS79: 0.003 | CT79: 1.003
A80: 2074 | B80: 112 | D80: =VLOOKUP(B80,Lookups!A:B,2) -> 4581.943943 | E80: =VLOOKUP(B80,Lookups!A:C,3) -> 2278.897488 | G80: =VLOOKUP(B80,Lookups!A:D,4) -> 7393.880202 | H80: =VLOOKUP(B80,Lookups!A:E,5) -> 5013.956358 | J80: =VLOOKUP(A80,Trends!$A$3:$Q$94,IF(ExFlg=0,2,10))+IF(B80>=$B$2,Sens,0) -> 1.043 | K80: 12.78651079 | L80: =VLOOKUP(A80,Trends!$A$3:$Q$94,IF(ExFlg=0,4,12))+IF(B80>=$B$2,Sens,0) -> 1.043 | M80: 12.41465097 | N80: =VLOOKUP(A80,Trends!$A$3:$Z$94,IF(ExFlg=0,19,23))+IF(B80>=$B$2,Sens,0) -> 1.043 | O80: 13.24031864 | P80: =VLOOKUP(A80,Trends!$A$3:$Q$94,IF(ExFlg=0,6,14))+IF(B80>=$B$2,Sens,0) -> 1.043 | Q80: 12.99505733 | R80: =VLOOKUP(A80,Trends!$A$3:$Q$94,IF(ExFlg=0,8,16))+IF(B80>=$B$2,Sens,0) -> 1.043 | S80: 13.44153425 | T80: =VLOOKUP(A80,Trends!$A$3:$Z$94,IF(ExFlg=0,21,25))+IF(B80>=$B$2,Sens,0) -> 1.043 | U80: 14.46768428 | W80: 56883.23481 | X80: 30173.32888 | Y80: 26709.90593 | AA80: 99385.09395 | AB80: 72540.33757 | AC80: 26844.75638 | AE80: 26799.80668 | AG80: =IF(B80<71,IF(B80-35<30,VLOOKUP(B80,Lookups!A:G,6),VLOOKUP(B80,Lookups!A:G,7)),"") ->  | AJ80: =IF(OR(B80<55,B80-35<20),VLOOKUP(B80-$B$3,Lookups!$O$3:$Q$53,2),VLOOKUP(B80,Lookups!$O$57:$P$122,2)) -> 0 | AK80: 0 | AL80: 0 | AM80: =IF(B80<55,VLOOKUP(B80,Lookups!A:M,12),"") ->  | AN80: =IF(B80<55,VLOOKUP(B80,Lookups!A:M,13),"") ->  | AP80: =IF(B80<70,VLOOKUP(B80,Lookups!A:I,8)*(1-VLOOKUP(B80,Lookups!$U$3:$W$103,2))^(B80-$B$2),"") ->  | AQ80: =IF(B80<70,VLOOKUP(B80,Lookups!A:I,9)*(1-VLOOKUP(B80,Lookups!$U$3:$W$103,3))^(B80-$B$2),"") ->  | BP80: =BP73 -> 0 | BQ80: Count in Cohort | CG80: =CG71 -> 0 | CH80: Count in Cohort | CJ80: PV Future Normal Cost | CK80: =CK78*CK73 -> 0 | CN80: 64 | CO80: 29 | CP80: 0.5838800785 | CR80: 17 | CS80: 0.003 | CT80: 1.003
A81: 2075 | B81: 113 | D81: =VLOOKUP(B81,Lookups!A:B,2) -> 4581.943943 | E81: =VLOOKUP(B81,Lookups!A:C,3) -> 2278.897488 | G81: =VLOOKUP(B81,Lookups!A:D,4) -> 7393.880202 | H81: =VLOOKUP(B81,Lookups!A:E,5) -> 5013.956358 | J81: =VLOOKUP(A81,Trends!$A$3:$Q$94,IF(ExFlg=0,2,10))+IF(B81>=$B$2,Sens,0) -> 1.043 | K81: 13.33633075 | L81: =VLOOKUP(A81,Trends!$A$3:$Q$94,IF(ExFlg=0,4,12))+IF(B81>=$B$2,Sens,0) -> 1.043 | M81: 12.94848096 | N81: =VLOOKUP(A81,Trends!$A$3:$Z$94,IF(ExFlg=0,19,23))+IF(B81>=$B$2,Sens,0) -> 1.043 | O81: 13.80965234 | P81: =VLOOKUP(A81,Trends!$A$3:$Q$94,IF(ExFlg=0,6,14))+IF(B81>=$B$2,Sens,0) -> 1.043 | Q81: 13.55384479 | R81: =VLOOKUP(A81,Trends!$A$3:$Q$94,IF(ExFlg=0,8,16))+IF(B81>=$B$2,Sens,0) -> 1.043 | S81: 14.01952022 | T81: =VLOOKUP(A81,Trends!$A$3:$Z$94,IF(ExFlg=0,21,25))+IF(B81>=$B$2,Sens,0) -> 1.043 | U81: 15.0897947 | W81: 59329.21391 | X81: 31470.78202 | Y81: 27858.43189 | AA81: 103658.653 | AB81: 75659.57208 | AC81: 27999.08091 | AE81: 27952.19837 | AG81: =IF(B81<71,IF(B81-35<30,VLOOKUP(B81,Lookups!A:G,6),VLOOKUP(B81,Lookups!A:G,7)),"") ->  | AJ81: =IF(OR(B81<55,B81-35<20),VLOOKUP(B81-$B$3,Lookups!$O$3:$Q$53,2),VLOOKUP(B81,Lookups!$O$57:$P$122,2)) -> 0 | AK81: 0 | AL81: 0 | AM81: =IF(B81<55,VLOOKUP(B81,Lookups!A:M,12),"") ->  | AN81: =IF(B81<55,VLOOKUP(B81,Lookups!A:M,13),"") ->  | AP81: =IF(B81<70,VLOOKUP(B81,Lookups!A:I,8)*(1-VLOOKUP(B81,Lookups!$U$3:$W$103,2))^(B81-$B$2),"") ->  | AQ81: =IF(B81<70,VLOOKUP(B81,Lookups!A:I,9)*(1-VLOOKUP(B81,Lookups!$U$3:$W$103,3))^(B81-$B$2),"") ->  | BP81: =BP77*BP80 -> 0 | CG81: =CG77*CG80 -> 0 | CJ81: EAN Accrued Liability (TOL) | CK81: =CK76-CK80 -> 0 | CN81: 65 | CO81: 30 | CP81: 0.3499483236 | CR81: 18 | CS81: 0.001 | CT81: 1.001
A82: 2076 | B82: 114 | D82: =VLOOKUP(B82,Lookups!A:B,2) -> 4581.943943 | E82: =VLOOKUP(B82,Lookups!A:C,3) -> 2278.897488 | G82: =VLOOKUP(B82,Lookups!A:D,4) -> 7393.880202 | H82: =VLOOKUP(B82,Lookups!A:E,5) -> 5013.956358 | J82: =VLOOKUP(A82,Trends!$A$3:$Q$94,IF(ExFlg=0,2,10))+IF(B82>=$B$2,Sens,0) -> 1.043 | K82: 13.90979298 | L82: =VLOOKUP(A82,Trends!$A$3:$Q$94,IF(ExFlg=0,4,12))+IF(B82>=$B$2,Sens,0) -> 1.043 | M82: 13.50526564 | N82: =VLOOKUP(A82,Trends!$A$3:$Z$94,IF(ExFlg=0,19,23))+IF(B82>=$B$2,Sens,0) -> 1.043 | O82: 14.40346739 | P82: =VLOOKUP(A82,Trends!$A$3:$Q$94,IF(ExFlg=0,6,14))+IF(B82>=$B$2,Sens,0) -> 1.043 | Q82: 14.13666012 | R82: =VLOOKUP(A82,Trends!$A$3:$Q$94,IF(ExFlg=0,8,16))+IF(B82>=$B$2,Sens,0) -> 1.043 | S82: 14.62235959 | T82: =VLOOKUP(A82,Trends!$A$3:$Z$94,IF(ExFlg=0,21,25))+IF(B82>=$B$2,Sens,0) -> 1.043 | U82: 15.73865587 | W82: 61880.37011 | X82: 32824.02565 | Y82: 29056.34446 | AA82: 108115.9751 | AB82: 78912.93368 | AC82: 29203.04139 | AE82: 29154.1429 | AG82: =IF(B82<71,IF(B82-35<30,VLOOKUP(B82,Lookups!A:G,6),VLOOKUP(B82,Lookups!A:G,7)),"") ->  | AJ82: =IF(OR(B82<55,B82-35<20),VLOOKUP(B82-$B$3,Lookups!$O$3:$Q$53,2),VLOOKUP(B82,Lookups!$O$57:$P$122,2)) -> 0 | AK82: 0 | AL82: 0 | AM82: =IF(B82<55,VLOOKUP(B82,Lookups!A:M,12),"") ->  | AN82: =IF(B82<55,VLOOKUP(B82,Lookups!A:M,13),"") ->  | AP82: =IF(B82<70,VLOOKUP(B82,Lookups!A:I,8)*(1-VLOOKUP(B82,Lookups!$U$3:$W$103,2))^(B82-$B$2),"") ->  | AQ82: =IF(B82<70,VLOOKUP(B82,Lookups!A:I,9)*(1-VLOOKUP(B82,Lookups!$U$3:$W$103,3))^(B82-$B$2),"") ->  | BP82: =BP81*(1+PctMarried) -> 0 | BQ82: with spouses | CG82: =CG81*(1+PctMarried) -> 0 | CH82: with spouses | CN82: 66 | CO82: 31 | CP82: 0.1922960343 | CR82: 19 | CS82: 0.001 | CT82: 1.001
A83: 2077 | B83: 115 | D83: =VLOOKUP(B83,Lookups!A:B,2) -> 4581.943943 | E83: =VLOOKUP(B83,Lookups!A:C,3) -> 2278.897488 | G83: =VLOOKUP(B83,Lookups!A:D,4) -> 7393.880202 | H83: =VLOOKUP(B83,Lookups!A:E,5) -> 5013.956358 | J83: =VLOOKUP(A83,Trends!$A$3:$Q$94,IF(ExFlg=0,2,10))+IF(B83>=$B$2,Sens,0) -> 1.043 | K83: 14.50791407 | L83: =VLOOKUP(A83,Trends!$A$3:$Q$94,IF(ExFlg=0,4,12))+IF(B83>=$B$2,Sens,0) -> 1.043 | M83: 14.08599207 | N83: =VLOOKUP(A83,Trends!$A$3:$Z$94,IF(ExFlg=0,19,23))+IF(B83>=$B$2,Sens,0) -> 1.043 | O83: 15.02281648 | P83: =VLOOKUP(A83,Trends!$A$3:$Q$94,IF(ExFlg=0,6,14))+IF(B83>=$B$2,Sens,0) -> 1.043 | Q83: 14.7445365 | R83: =VLOOKUP(A83,Trends!$A$3:$Q$94,IF(ExFlg=0,8,16))+IF(B83>=$B$2,Sens,0) -> 1.043 | S83: 15.25112105 | T83: =VLOOKUP(A83,Trends!$A$3:$Z$94,IF(ExFlg=0,21,25))+IF(B83>=$B$2,Sens,0) -> 1.043 | U83: 16.41541808 | W83: 64541.22602 | X83: 34235.45875 | Y83: 30305.76727 | AA83: 112764.962 | AB83: 82306.18983 | AC83: 30458.77216 | AE83: 30407.77104 | AG83: =IF(B83<71,IF(B83-35<30,VLOOKUP(B83,Lookups!A:G,6),VLOOKUP(B83,Lookups!A:G,7)),"") ->  | AJ83: =IF(OR(B83<55,B83-35<20),VLOOKUP(B83-$B$3,Lookups!$O$3:$Q$53,2),VLOOKUP(B83,Lookups!$O$57:$P$122,2)) -> 0 | AK83: 0 | AL83: 0 | AM83: =IF(B83<55,VLOOKUP(B83,Lookups!A:M,12),"") ->  | AN83: =IF(B83<55,VLOOKUP(B83,Lookups!A:M,13),"") ->  | AP83: =IF(B83<70,VLOOKUP(B83,Lookups!A:I,8)*(1-VLOOKUP(B83,Lookups!$U$3:$W$103,2))^(B83-$B$2),"") ->  | AQ83: =IF(B83<70,VLOOKUP(B83,Lookups!A:I,9)*(1-VLOOKUP(B83,Lookups!$U$3:$W$103,3))^(B83-$B$2),"") ->  | CJ83: Expected Benefit Payments | CK83: =IFERROR(VLOOKUP(B2,BD12:BE67,2,FALSE)*VLOOKUP(B2,AV12:BB67,7,FALSE)*VLOOKUP(B2,B3:AI93,34,FALSE)*CG80*Part*(1+PctMarried)*0.5, 0) -> 0 | CN83: 67 | CO83: 32 | CP83: 0.1152822519 | CR83: 20 | CS83: 0.001 | CT83: 1.001
A84: 2078 | B84: 116 | D84: =VLOOKUP(B84,Lookups!A:B,2) -> 4581.943943 | E84: =VLOOKUP(B84,Lookups!A:C,3) -> 2278.897488 | G84: =VLOOKUP(B84,Lookups!A:D,4) -> 7393.880202 | H84: =VLOOKUP(B84,Lookups!A:E,5) -> 5013.956358 | J84: =VLOOKUP(A84,Trends!$A$3:$Q$94,IF(ExFlg=0,2,10))+IF(B84>=$B$2,Sens,0) -> 1.043 | K84: 15.13175438 | L84: =VLOOKUP(A84,Trends!$A$3:$Q$94,IF(ExFlg=0,4,12))+IF(B84>=$B$2,Sens,0) -> 1.043 | M84: 14.69168972 | N84: =VLOOKUP(A84,Trends!$A$3:$Z$94,IF(ExFlg=0,19,23))+IF(B84>=$B$2,Sens,0) -> 1.043 | O84: 15.66879759 | P84: =VLOOKUP(A84,Trends!$A$3:$Q$94,IF(ExFlg=0,6,14))+IF(B84>=$B$2,Sens,0) -> 1.043 | Q84: 15.37855157 | R84: =VLOOKUP(A84,Trends!$A$3:$Q$94,IF(ExFlg=0,8,16))+IF(B84>=$B$2,Sens,0) -> 1.043 | S84: 15.90691926 | T84: =VLOOKUP(A84,Trends!$A$3:$Z$94,IF(ExFlg=0,21,25))+IF(B84>=$B$2,Sens,0) -> 1.043 | U84: 17.12128105 | W84: 67316.49874 | X84: 35707.58348 | Y84: 31608.91526 | AA84: 117613.8554 | AB84: 85845.35599 | AC84: 31768.49937 | AE84: 31715.3052 | AG84: =IF(B84<71,IF(B84-35<30,VLOOKUP(B84,Lookups!A:G,6),VLOOKUP(B84,Lookups!A:G,7)),"") ->  | AJ84: =IF(OR(B84<55,B84-35<20),VLOOKUP(B84-$B$3,Lookups!$O$3:$Q$53,2),VLOOKUP(B84,Lookups!$O$57:$P$122,2)) -> 0 | AK84: 0 | AL84: 0 | AM84: =IF(B84<55,VLOOKUP(B84,Lookups!A:M,12),"") ->  | AN84: =IF(B84<55,VLOOKUP(B84,Lookups!A:M,13),"") ->  | AP84: =IF(B84<70,VLOOKUP(B84,Lookups!A:I,8)*(1-VLOOKUP(B84,Lookups!$U$3:$W$103,2))^(B84-$B$2),"") ->  | AQ84: =IF(B84<70,VLOOKUP(B84,Lookups!A:I,9)*(1-VLOOKUP(B84,Lookups!$U$3:$W$103,3))^(B84-$B$2),"") ->  | CN84: 68 | CO84: 33 | CP84: 0.08070379421 | CR84: 21 | CS84: 0 | CT84: 1
A85: 2079 | B85: 117 | D85: =VLOOKUP(B85,Lookups!A:B,2) -> 4581.943943 | E85: =VLOOKUP(B85,Lookups!A:C,3) -> 2278.897488 | G85: =VLOOKUP(B85,Lookups!A:D,4) -> 7393.880202 | H85: =VLOOKUP(B85,Lookups!A:E,5) -> 5013.956358 | J85: =VLOOKUP(A85,Trends!$A$3:$Q$94,IF(ExFlg=0,2,10))+IF(B85>=$B$2,Sens,0) -> 1.043 | K85: 15.78241982 | L85: =VLOOKUP(A85,Trends!$A$3:$Q$94,IF(ExFlg=0,4,12))+IF(B85>=$B$2,Sens,0) -> 1.043 | M85: 15.32343238 | N85: =VLOOKUP(A85,Trends!$A$3:$Z$94,IF(ExFlg=0,19,23))+IF(B85>=$B$2,Sens,0) -> 1.043 | O85: 16.34255589 | P85: =VLOOKUP(A85,Trends!$A$3:$Q$94,IF(ExFlg=0,6,14))+IF(B85>=$B$2,Sens,0) -> 1.043 | Q85: 16.03982929 | R85: =VLOOKUP(A85,Trends!$A$3:$Q$94,IF(ExFlg=0,8,16))+IF(B85>=$B$2,Sens,0) -> 1.043 | S85: 16.59091678 | T85: =VLOOKUP(A85,Trends!$A$3:$Z$94,IF(ExFlg=0,21,25))+IF(B85>=$B$2,Sens,0) -> 1.043 | U85: 17.85749614 | W85: 70211.10819 | X85: 37243.00957 | Y85: 32968.09862 | AA85: 122671.2511 | AB85: 89536.7063 | AC85: 33134.54484 | AE85: 33079.06332 | AG85: =IF(B85<71,IF(B85-35<30,VLOOKUP(B85,Lookups!A:G,6),VLOOKUP(B85,Lookups!A:G,7)),"") ->  | AJ85: =IF(OR(B85<55,B85-35<20),VLOOKUP(B85-$B$3,Lookups!$O$3:$Q$53,2),VLOOKUP(B85,Lookups!$O$57:$P$122,2)) -> 0 | AK85: 0 | AL85: 0 | AM85: =IF(B85<55,VLOOKUP(B85,Lookups!A:M,12),"") ->  | AN85: =IF(B85<55,VLOOKUP(B85,Lookups!A:M,13),"") ->  | AP85: =IF(B85<70,VLOOKUP(B85,Lookups!A:I,8)*(1-VLOOKUP(B85,Lookups!$U$3:$W$103,2))^(B85-$B$2),"") ->  | AQ85: =IF(B85<70,VLOOKUP(B85,Lookups!A:I,9)*(1-VLOOKUP(B85,Lookups!$U$3:$W$103,3))^(B85-$B$2),"") ->  | CN85: 69 | CO85: 34 | CP85: 0.05642614206 | CR85: 22 | CS85: 0 | CT85: 1
A86: 2080 | B86: 118 | D86: =VLOOKUP(B86,Lookups!A:B,2) -> 4581.943943 | E86: =VLOOKUP(B86,Lookups!A:C,3) -> 2278.897488 | G86: =VLOOKUP(B86,Lookups!A:D,4) -> 7393.880202 | H86: =VLOOKUP(B86,Lookups!A:E,5) -> 5013.956358 | J86: =VLOOKUP(A86,Trends!$A$3:$Q$94,IF(ExFlg=0,2,10))+IF(B86>=$B$2,Sens,0) -> 1.043 | K86: 16.46106387 | L86: =VLOOKUP(A86,Trends!$A$3:$Q$94,IF(ExFlg=0,4,12))+IF(B86>=$B$2,Sens,0) -> 1.043 | M86: 15.98233998 | N86: =VLOOKUP(A86,Trends!$A$3:$Z$94,IF(ExFlg=0,19,23))+IF(B86>=$B$2,Sens,0) -> 1.043 | O86: 17.04528579 | P86: =VLOOKUP(A86,Trends!$A$3:$Q$94,IF(ExFlg=0,6,14))+IF(B86>=$B$2,Sens,0) -> 1.043 | Q86: 16.72954195 | R86: =VLOOKUP(A86,Trends!$A$3:$Q$94,IF(ExFlg=0,8,16))+IF(B86>=$B$2,Sens,0) -> 1.043 | S86: 17.30432621 | T86: =VLOOKUP(A86,Trends!$A$3:$Z$94,IF(ExFlg=0,21,25))+IF(B86>=$B$2,Sens,0) -> 1.043 | U86: 18.62536847 | W86: 73230.18584 | X86: 38844.45898 | Y86: 34385.72686 | AA86: 127946.1149 | AB86: 93386.78467 | AC86: 34559.33027 | AE86: 34501.46304 | AG86: =IF(B86<71,IF(B86-35<30,VLOOKUP(B86,Lookups!A:G,6),VLOOKUP(B86,Lookups!A:G,7)),"") ->  | AJ86: =IF(OR(B86<55,B86-35<20),VLOOKUP(B86-$B$3,Lookups!$O$3:$Q$53,2),VLOOKUP(B86,Lookups!$O$57:$P$122,2)) -> 0 | AK86: 0 | AL86: 0 | AM86: =IF(B86<55,VLOOKUP(B86,Lookups!A:M,12),"") ->  | AN86: =IF(B86<55,VLOOKUP(B86,Lookups!A:M,13),"") ->  | AP86: =IF(B86<70,VLOOKUP(B86,Lookups!A:I,8)*(1-VLOOKUP(B86,Lookups!$U$3:$W$103,2))^(B86-$B$2),"") ->  | AQ86: =IF(B86<70,VLOOKUP(B86,Lookups!A:I,9)*(1-VLOOKUP(B86,Lookups!$U$3:$W$103,3))^(B86-$B$2),"") ->  | CK86: 2227910551 | CN86: 70 | CO86: 35 | CP86: 0.03939586713 | CR86: 23 | CS86: 0 | CT86: 1
A87: 2081 | B87: 119 | D87: =VLOOKUP(B87,Lookups!A:B,2) -> 4581.943943 | E87: =VLOOKUP(B87,Lookups!A:C,3) -> 2278.897488 | G87: =VLOOKUP(B87,Lookups!A:D,4) -> 7393.880202 | H87: =VLOOKUP(B87,Lookups!A:E,5) -> 5013.956358 | J87: =VLOOKUP(A87,Trends!$A$3:$Q$94,IF(ExFlg=0,2,10))+IF(B87>=$B$2,Sens,0) -> 1.043 | K87: 17.16888962 | L87: =VLOOKUP(A87,Trends!$A$3:$Q$94,IF(ExFlg=0,4,12))+IF(B87>=$B$2,Sens,0) -> 1.043 | M87: 16.66958059 | N87: =VLOOKUP(A87,Trends!$A$3:$Z$94,IF(ExFlg=0,19,23))+IF(B87>=$B$2,Sens,0) -> 1.043 | O87: 17.77823308 | P87: =VLOOKUP(A87,Trends!$A$3:$Q$94,IF(ExFlg=0,6,14))+IF(B87>=$B$2,Sens,0) -> 1.043 | Q87: 17.44891225 | R87: =VLOOKUP(A87,Trends!$A$3:$Q$94,IF(ExFlg=0,8,16))+IF(B87>=$B$2,Sens,0) -> 1.043 | S87: 18.04841223 | T87: =VLOOKUP(A87,Trends!$A$3:$Z$94,IF(ExFlg=0,21,25))+IF(B87>=$B$2,Sens,0) -> 1.043 | U87: 19.42625932 | W87: 76379.08383 | X87: 40514.77071 | Y87: 35864.31312 | AA87: 133447.7979 | AB87: 97402.41641 | AC87: 36045.38147 | AE87: 35985.02596 | AG87: =IF(B87<71,IF(B87-35<30,VLOOKUP(B87,Lookups!A:G,6),VLOOKUP(B87,Lookups!A:G,7)),"") ->  | AJ87: =IF(OR(B87<55,B87-35<20),VLOOKUP(B87-$B$3,Lookups!$O$3:$Q$53,2),VLOOKUP(B87,Lookups!$O$57:$P$122,2)) -> 0 | AK87: 0 | AL87: 0 | AM87: =IF(B87<55,VLOOKUP(B87,Lookups!A:M,12),"") ->  | AN87: =IF(B87<55,VLOOKUP(B87,Lookups!A:M,13),"") ->  | AP87: =IF(B87<70,VLOOKUP(B87,Lookups!A:I,8)*(1-VLOOKUP(B87,Lookups!$U$3:$W$103,2))^(B87-$B$2),"") ->  | AQ87: =IF(B87<70,VLOOKUP(B87,Lookups!A:I,9)*(1-VLOOKUP(B87,Lookups!$U$3:$W$103,3))^(B87-$B$2),"") ->  | CR87: 24 | CS87: 0 | CT87: 1
A88: 2082 | B88: 120 | D88: =VLOOKUP(B88,Lookups!A:B,2) -> 4581.943943 | E88: =VLOOKUP(B88,Lookups!A:C,3) -> 2278.897488 | G88: =VLOOKUP(B88,Lookups!A:D,4) -> 7393.880202 | H88: =VLOOKUP(B88,Lookups!A:E,5) -> 5013.956358 | J88: =VLOOKUP(A88,Trends!$A$3:$Q$94,IF(ExFlg=0,2,10))+IF(B88>=$B$2,Sens,0) -> 1.043 | K88: 17.90715187 | L88: =VLOOKUP(A88,Trends!$A$3:$Q$94,IF(ExFlg=0,4,12))+IF(B88>=$B$2,Sens,0) -> 1.043 | M88: 17.38637256 | N88: =VLOOKUP(A88,Trends!$A$3:$Z$94,IF(ExFlg=0,19,23))+IF(B88>=$B$2,Sens,0) -> 1.043 | O88: 18.54269711 | P88: =VLOOKUP(A88,Trends!$A$3:$Q$94,IF(ExFlg=0,6,14))+IF(B88>=$B$2,Sens,0) -> 1.043 | Q88: 18.19921548 | R88: =VLOOKUP(A88,Trends!$A$3:$Q$94,IF(ExFlg=0,8,16))+IF(B88>=$B$2,Sens,0) -> 1.043 | S88: 18.82449396 | T88: =VLOOKUP(A88,Trends!$A$3:$Z$94,IF(ExFlg=0,21,25))+IF(B88>=$B$2,Sens,0) -> 1.043 | U88: 20.26158847 | W88: 79663.38443 | X88: 42256.90585 | Y88: 37406.47858 | AA88: 139186.0532 | AB88: 101590.7203 | AC88: 37595.33287 | AE88: 37532.38207 | AG88: =IF(B88<71,IF(B88-35<30,VLOOKUP(B88,Lookups!A:G,6),VLOOKUP(B88,Lookups!A:G,7)),"") ->  | AJ88: =IF(OR(B88<55,B88-35<20),VLOOKUP(B88-$B$3,Lookups!$O$3:$Q$53,2),VLOOKUP(B88,Lookups!$O$57:$P$122,2)) -> 0 | AK88: 0 | AL88: 0 | AM88: =IF(B88<55,VLOOKUP(B88,Lookups!A:M,12),"") ->  | AN88: =IF(B88<55,VLOOKUP(B88,Lookups!A:M,13),"") ->  | AP88: =IF(B88<70,VLOOKUP(B88,Lookups!A:I,8)*(1-VLOOKUP(B88,Lookups!$U$3:$W$103,2))^(B88-$B$2),"") ->  | AQ88: =IF(B88<70,VLOOKUP(B88,Lookups!A:I,9)*(1-VLOOKUP(B88,Lookups!$U$3:$W$103,3))^(B88-$B$2),"") ->  | CR88: 25 | CS88: 0 | CT88: 1
A89: 2083 | B89: 121 | D89: =VLOOKUP(B89,Lookups!A:B,2) -> 4581.943943 | E89: =VLOOKUP(B89,Lookups!A:C,3) -> 2278.897488 | G89: =VLOOKUP(B89,Lookups!A:D,4) -> 7393.880202 | H89: =VLOOKUP(B89,Lookups!A:E,5) -> 5013.956358 | J89: =VLOOKUP(A89,Trends!$A$3:$Q$94,IF(ExFlg=0,2,10))+IF(B89>=$B$2,Sens,0) -> 1.043 | K89: 18.6771594 | L89: =VLOOKUP(A89,Trends!$A$3:$Q$94,IF(ExFlg=0,4,12))+IF(B89>=$B$2,Sens,0) -> 1.043 | M89: 18.13398658 | N89: =VLOOKUP(A89,Trends!$A$3:$Z$94,IF(ExFlg=0,19,23))+IF(B89>=$B$2,Sens,0) -> 1.043 | O89: 19.34003308 | P89: =VLOOKUP(A89,Trends!$A$3:$Q$94,IF(ExFlg=0,6,14))+IF(B89>=$B$2,Sens,0) -> 1.043 | Q89: 18.98178174 | R89: =VLOOKUP(A89,Trends!$A$3:$Q$94,IF(ExFlg=0,8,16))+IF(B89>=$B$2,Sens,0) -> 1.043 | S89: 19.6339472 | T89: =VLOOKUP(A89,Trends!$A$3:$Z$94,IF(ExFlg=0,21,25))+IF(B89>=$B$2,Sens,0) -> 1.043 | U89: 21.13283677 | W89: 83088.90996 | X89: 44073.95281 | Y89: 39014.95716 | AA89: 145171.0535 | AB89: 105959.1213 | AC89: 39211.93219 | AE89: 39146.2745 | AG89: =IF(B89<71,IF(B89-35<30,VLOOKUP(B89,Lookups!A:G,6),VLOOKUP(B89,Lookups!A:G,7)),"") ->  | AJ89: =IF(OR(B89<55,B89-35<20),VLOOKUP(B89-$B$3,Lookups!$O$3:$Q$53,2),VLOOKUP(B89,Lookups!$O$57:$P$122,2)) -> 0 | AK89: 0 | AL89: 0 | AM89: =IF(B89<55,VLOOKUP(B89,Lookups!A:M,12),"") ->  | AN89: =IF(B89<55,VLOOKUP(B89,Lookups!A:M,13),"") ->  | AP89: =IF(B89<70,VLOOKUP(B89,Lookups!A:I,8)*(1-VLOOKUP(B89,Lookups!$U$3:$W$103,2))^(B89-$B$2),"") ->  | AQ89: =IF(B89<70,VLOOKUP(B89,Lookups!A:I,9)*(1-VLOOKUP(B89,Lookups!$U$3:$W$103,3))^(B89-$B$2),"") ->  | CR89: 26 | CS89: 0 | CT89: 1
A90: 2084 | B90: 122 | D90: =VLOOKUP(B90,Lookups!A:B,2) -> 4581.943943 | E90: =VLOOKUP(B90,Lookups!A:C,3) -> 2278.897488 | G90: =VLOOKUP(B90,Lookups!A:D,4) -> 7393.880202 | H90: =VLOOKUP(B90,Lookups!A:E,5) -> 5013.956358 | J90: =VLOOKUP(A90,Trends!$A$3:$Q$94,IF(ExFlg=0,2,10))+IF(B90>=$B$2,Sens,0) -> 1.043 | K90: 19.48027725 | L90: =VLOOKUP(A90,Trends!$A$3:$Q$94,IF(ExFlg=0,4,12))+IF(B90>=$B$2,Sens,0) -> 1.043 | M90: 18.913748 | N90: =VLOOKUP(A90,Trends!$A$3:$Z$94,IF(ExFlg=0,19,23))+IF(B90>=$B$2,Sens,0) -> 1.043 | O90: 20.1716545 | P90: =VLOOKUP(A90,Trends!$A$3:$Q$94,IF(ExFlg=0,6,14))+IF(B90>=$B$2,Sens,0) -> 1.043 | Q90: 19.79799836 | R90: =VLOOKUP(A90,Trends!$A$3:$Q$94,IF(ExFlg=0,8,16))+IF(B90>=$B$2,Sens,0) -> 1.043 | S90: 20.47820693 | T90: =VLOOKUP(A90,Trends!$A$3:$Z$94,IF(ExFlg=0,21,25))+IF(B90>=$B$2,Sens,0) -> 1.043 | U90: 22.04154875 | W90: 86661.73309 | X90: 45969.13278 | Y90: 40692.60032 | AA90: 151413.4088 | AB90: 110515.3635 | AC90: 40898.04527 | AE90: 40829.5643 | AG90: =IF(B90<71,IF(B90-35<30,VLOOKUP(B90,Lookups!A:G,6),VLOOKUP(B90,Lookups!A:G,7)),"") ->  | AJ90: =IF(OR(B90<55,B90-35<20),VLOOKUP(B90-$B$3,Lookups!$O$3:$Q$53,2),VLOOKUP(B90,Lookups!$O$57:$P$122,2)) -> 0 | AK90: 0 | AL90: 0 | AM90: =IF(B90<55,VLOOKUP(B90,Lookups!A:M,12),"") ->  | AN90: =IF(B90<55,VLOOKUP(B90,Lookups!A:M,13),"") ->  | AP90: =IF(B90<70,VLOOKUP(B90,Lookups!A:I,8)*(1-VLOOKUP(B90,Lookups!$U$3:$W$103,2))^(B90-$B$2),"") ->  | AQ90: =IF(B90<70,VLOOKUP(B90,Lookups!A:I,9)*(1-VLOOKUP(B90,Lookups!$U$3:$W$103,3))^(B90-$B$2),"") ->  | CR90: 27 | CS90: 0 | CT90: 1
A91: 2085 | B91: 123 | D91: =VLOOKUP(B91,Lookups!A:B,2) -> 4581.943943 | E91: =VLOOKUP(B91,Lookups!A:C,3) -> 2278.897488 | G91: =VLOOKUP(B91,Lookups!A:D,4) -> 7393.880202 | H91: =VLOOKUP(B91,Lookups!A:E,5) -> 5013.956358 | J91: =VLOOKUP(A91,Trends!$A$3:$Q$94,IF(ExFlg=0,2,10))+IF(B91>=$B$2,Sens,0) -> 1.043 | K91: 20.31792917 | L91: =VLOOKUP(A91,Trends!$A$3:$Q$94,IF(ExFlg=0,4,12))+IF(B91>=$B$2,Sens,0) -> 1.043 | M91: 19.72703917 | N91: =VLOOKUP(A91,Trends!$A$3:$Z$94,IF(ExFlg=0,19,23))+IF(B91>=$B$2,Sens,0) -> 1.043 | O91: 21.03903565 | P91: =VLOOKUP(A91,Trends!$A$3:$Q$94,IF(ExFlg=0,6,14))+IF(B91>=$B$2,Sens,0) -> 1.043 | Q91: 20.64931229 | R91: =VLOOKUP(A91,Trends!$A$3:$Q$94,IF(ExFlg=0,8,16))+IF(B91>=$B$2,Sens,0) -> 1.043 | S91: 21.35876983 | T91: =VLOOKUP(A91,Trends!$A$3:$Z$94,IF(ExFlg=0,21,25))+IF(B91>=$B$2,Sens,0) -> 1.043 | U91: 22.98933535 | W91: 90388.18762 | X91: 47945.80549 | Y91: 42442.38213 | AA91: 157924.1854 | AB91: 115267.5241 | AC91: 42656.66122 | AE91: 42585.23557 | AG91: =IF(B91<71,IF(B91-35<30,VLOOKUP(B91,Lookups!A:G,6),VLOOKUP(B91,Lookups!A:G,7)),"") ->  | AJ91: =IF(OR(B91<55,B91-35<20),VLOOKUP(B91-$B$3,Lookups!$O$3:$Q$53,2),VLOOKUP(B91,Lookups!$O$57:$P$122,2)) -> 0 | AK91: 0 | AL91: 0 | AM91: =IF(B91<55,VLOOKUP(B91,Lookups!A:M,12),"") ->  | AN91: =IF(B91<55,VLOOKUP(B91,Lookups!A:M,13),"") ->  | AP91: =IF(B91<70,VLOOKUP(B91,Lookups!A:I,8)*(1-VLOOKUP(B91,Lookups!$U$3:$W$103,2))^(B91-$B$2),"") ->  | AQ91: =IF(B91<70,VLOOKUP(B91,Lookups!A:I,9)*(1-VLOOKUP(B91,Lookups!$U$3:$W$103,3))^(B91-$B$2),"") ->  | CR91: 28 | CS91: 0 | CT91: 1
A92: 2086 | B92: 124 | D92: =VLOOKUP(B92,Lookups!A:B,2) -> 4581.943943 | E92: =VLOOKUP(B92,Lookups!A:C,3) -> 2278.897488 | G92: =VLOOKUP(B92,Lookups!A:D,4) -> 7393.880202 | H92: =VLOOKUP(B92,Lookups!A:E,5) -> 5013.956358 | J92: =VLOOKUP(A92,Trends!$A$3:$Q$94,IF(ExFlg=0,2,10))+IF(B92>=$B$2,Sens,0) -> 1.043 | K92: 21.19160013 | L92: =VLOOKUP(A92,Trends!$A$3:$Q$94,IF(ExFlg=0,4,12))+IF(B92>=$B$2,Sens,0) -> 1.043 | M92: 20.57530185 | N92: =VLOOKUP(A92,Trends!$A$3:$Z$94,IF(ExFlg=0,19,23))+IF(B92>=$B$2,Sens,0) -> 1.043 | O92: 21.94371418 | P92: =VLOOKUP(A92,Trends!$A$3:$Q$94,IF(ExFlg=0,6,14))+IF(B92>=$B$2,Sens,0) -> 1.043 | Q92: 21.53723272 | R92: =VLOOKUP(A92,Trends!$A$3:$Q$94,IF(ExFlg=0,8,16))+IF(B92>=$B$2,Sens,0) -> 1.043 | S92: 22.27719693 | T92: =VLOOKUP(A92,Trends!$A$3:$Z$94,IF(ExFlg=0,21,25))+IF(B92>=$B$2,Sens,0) -> 1.043 | U92: 23.97787677 | W92: 94274.87968 | X92: 50007.47512 | Y92: 44267.40456 | AA92: 164714.9253 | AB92: 120224.0277 | AC92: 44490.89765 | AE92: 44416.4007 | AG92: =IF(B92<71,IF(B92-35<30,VLOOKUP(B92,Lookups!A:G,6),VLOOKUP(B92,Lookups!A:G,7)),"") ->  | AJ92: =IF(OR(B92<55,B92-35<20),VLOOKUP(B92-$B$3,Lookups!$O$3:$Q$53,2),VLOOKUP(B92,Lookups!$O$57:$P$122,2)) -> 0 | AK92: 0 | AL92: 0 | AM92: =IF(B92<55,VLOOKUP(B92,Lookups!A:M,12),"") ->  | AN92: =IF(B92<55,VLOOKUP(B92,Lookups!A:M,13),"") ->  | AP92: =IF(B92<70,VLOOKUP(B92,Lookups!A:I,8)*(1-VLOOKUP(B92,Lookups!$U$3:$W$103,2))^(B92-$B$2),"") ->  | AQ92: =IF(B92<70,VLOOKUP(B92,Lookups!A:I,9)*(1-VLOOKUP(B92,Lookups!$U$3:$W$103,3))^(B92-$B$2),"") ->  | CR92: 29 | CS92: 0 | CT92: 1
A93: 2087 | B93: 125 | D93: =VLOOKUP(B93,Lookups!A:B,2) -> 4581.943943 | E93: =VLOOKUP(B93,Lookups!A:C,3) -> 2278.897488 | G93: =VLOOKUP(B93,Lookups!A:D,4) -> 7393.880202 | H93: =VLOOKUP(B93,Lookups!A:E,5) -> 5013.956358 | K93: 22.10283894 | M93: 21.46003983 | N93: =VLOOKUP(A93,Trends!$A$3:$Z$94,IF(ExFlg=0,19,23))+IF(B93>=$B$2,Sens,0) -> 1.043 | O93: 22.88729389 | Q93: 22.46333372 | S93: 23.2351164 | T93: =VLOOKUP(A93,Trends!$A$3:$Z$94,IF(ExFlg=0,21,25))+IF(B93>=$B$2,Sens,0) -> 1.043 | U93: 25.00892547 | W93: 98328.69951 | X93: 52157.79655 | Y93: 46170.90296 | AA93: 171797.6671 | AB93: 125393.6609 | AC93: 46404.00625 | AE93: 46326.30593 | AG93: =IF(B93<71,IF(B93-35<30,VLOOKUP(B93,Lookups!A:G,6),VLOOKUP(B93,Lookups!A:G,7)),"") ->  | AJ93: =IF(OR(B93<55,B93-35<20),VLOOKUP(B93-$B$3,Lookups!$O$3:$Q$53,2),VLOOKUP(B93,Lookups!$O$57:$P$122,2)) -> 0 | AK93: 0 | AL93: 0 | AM93: =IF(B93<55,VLOOKUP(B93,Lookups!A:M,12),"") ->  | AN93: =IF(B93<55,VLOOKUP(B93,Lookups!A:M,13),"") ->  | AP93: =IF(B93<70,VLOOKUP(B93,Lookups!A:I,8)*(1-VLOOKUP(B93,Lookups!$U$3:$W$103,2))^(B93-$B$2),"") ->  | AQ93: =IF(B93<70,VLOOKUP(B93,Lookups!A:I,9)*(1-VLOOKUP(B93,Lookups!$U$3:$W$103,3))^(B93-$B$2),"") ->  | CR93: 30 | CS93: 0 | CT93: 1
CO102: =IF(CN102<71,CO101+1,"") -> 
CP109: =IF(CN109<71,CP108*(1-VLOOKUP(CN108,$B$3:$AU$93,44,FALSE))* 1/(1+IntRt)*(1+GSG)*VLOOKUP(MIN(CO108,30),$CR$63:$CT$93,3,FALSE),"") -> 

Sheet Inactive (hidden)
A1: Inactives | B1: 0 | D1: Insured | G1: UMP | J1: Implicit | K1: Insured | L1: Explicit | M1: Insured | N1: Insured Med | O1: Insured | P1: Implicit | Q1: UMP | R1: Explicit | S1: UMP | T1: UMP Med | U1: UMP | X1: Insured | AB1: UMP | AE1: Average | AI1: 0.5 | AN1: Implicit | AO1: Explicit
A2: Year | D2: Cost | E2: Prem | G2: Cost | H2: Prem | J2: Trend | K2: Rel Trend | L2: Trend | M2: Rel Trend | N2: Premium | O2: Med Accum | P2: Trend | Q2: Rel Trend | R2: Trend | S2: Rel Trend | T2: Premium | U2: Med Accum | W2: Cost | X2: Prem | Y2: Net | AA2: Cost | AB2: Prem | AC2: Net | AE2: Net | AG2: Mort - M | AH2: Mort - F | AI2: Mortality | AJ2: Survive | AK2: Interest | AL2: Pay Timing | AN2: Subsidy | AO2: Subsidy
A3: =ToolYear -> 2022 | B3: 82 | D3: =VLOOKUP(B3,Lookups!A:B,2) -> 4708.599633 | E3: =VLOOKUP(B3,Lookups!A:C,3) -> 2278.897488 | G3: =VLOOKUP(B3,Lookups!A:D,4) -> 7598.264426 | H3: =VLOOKUP(B3,Lookups!A:E,5) -> 5013.956358 | J3: =VLOOKUP(A3,Trends!$A$3:$Q$94,IF(ExFlg=0,2,10))+Sens -> 1.051 | K3: 1 | L3: =VLOOKUP(A3,Trends!$A$3:$Q$94,IF(ExFlg=0,4,12))+Sens -> 1.05 | M3: 1 | N3: =VLOOKUP(A3,Trends!$A$3:$Z$94,IF(ExFlg=0,19,23))+Sens -> 1.077 | O3: 1 | P3: =VLOOKUP(A3,Trends!$A$3:$Q$94,IF(ExFlg=0,6,14))+Sens -> 1.053 | Q3: 1 | R3: =VLOOKUP(A3,Trends!$A$3:$Q$94,IF(ExFlg=0,8,16))+Sens -> 1.108 | S3: 1 | T3: =VLOOKUP(A3,Trends!$A$3:$Z$94,IF(ExFlg=0,21,25))+Sens -> 1.147 | U3: 1 | W3: =IF(B3<65,D3*K3,D3*M3) -> 4708.599633 | X3: =IF(B3<65,E3*K3,E3*O3) -> 2278.897488 | Y3: =W3-X3 -> 2429.702145 | AA3: =IF(B3<65,G3*Q3,G3*S3) -> 7598.264426 | AB3: =IF(B3<65,H3*Q3,H3*U3) -> 5013.956358 | AC3: =AA3-AB3 -> 2584.308068 | AE3: =(1-PctUMP)*Y3+PctUMP*AC3 -> 2532.773276 | AG3: =IF($B3<121,VLOOKUP($B3,Lookups!A:I,8)*(1-VLOOKUP($B3,Lookups!$U$3:$W$103,2))^(B3-$B$3),"") -> 0.0597508164 | AH3: =IF($B3<121,VLOOKUP($B3,Lookups!A:I,9)*(1-VLOOKUP($B3,Lookups!$U$3:$W$103,3))^(B3-$B$3),"") -> 0.0397812789 | AI3: =IF(B3<121,(PCTMALE*AG3+(1-PCTMALE)*AH3),"") -> 0.04976604765 | AJ3: 1 | AK3: 1 | AL3: =IF(AI3="","",ROUND((13/24)+(11/24)*(1/(1+IntRt))*(1-AI3),6)) -> 0.967982 | AN3: =IF(B3<65,AE3*AJ3*AK3*AL3,"") ->  | AO3: =IF(AND(B3>=65,B3<121),AE3*AJ3*AK3*AL3,"") -> 2451.678941
A4: =1+A3 -> 2023 | B4: =1+B3 -> 83 | D4: =VLOOKUP(B4,Lookups!A:B,2) -> 4687.249061 | E4: =VLOOKUP(B4,Lookups!A:C,3) -> 2278.897488 | G4: =VLOOKUP(B4,Lookups!A:D,4) -> 7563.811019 | H4: =VLOOKUP(B4,Lookups!A:E,5) -> 5013.956358 | J4: =VLOOKUP(A4,Trends!$A$3:$Q$94,IF(ExFlg=0,2,10))+Sens -> 1.051 | K4: =K3*J3 -> 1.051 | L4: =VLOOKUP(A4,Trends!$A$3:$Q$94,IF(ExFlg=0,4,12))+Sens -> 1.05 | M4: =M3*L3 -> 1.05 | N4: =VLOOKUP(A4,Trends!$A$3:$Z$94,IF(ExFlg=0,19,23))+Sens -> 1.052 | O4: =O3*N3 -> 1.077 | P4: =VLOOKUP(A4,Trends!$A$3:$Q$94,IF(ExFlg=0,6,14))+Sens -> 1.051 | Q4: =Q3*P3 -> 1.053 | R4: =VLOOKUP(A4,Trends!$A$3:$Q$94,IF(ExFlg=0,8,16))+Sens -> 1.051 | S4: =S3*R3 -> 1.108 | T4: =VLOOKUP(A4,Trends!$A$3:$Z$94,IF(ExFlg=0,21,25))+Sens -> 1.053 | U4: =U3*T3 -> 1.147 | W4: =IF(B4<65,D4*K4,D4*M4) -> 4921.611514 | X4: =IF(B4<65,E4*K4,E4*O4) -> 2454.372595 | Y4: 2467.23892 | AA4: =IF(B4<65,G4*Q4,G4*S4) -> 8380.702609 | AB4: =IF(B4<65,H4*Q4,H4*U4) -> 5751.007943 | AC4: 2629.694666 | AE4: =(1-PctUMP)*Y4+PctUMP*AC4 -> 2575.543292 | AG4: =IF($B4<121,VLOOKUP($B4,Lookups!A:I,8)*(1-VLOOKUP($B4,Lookups!$U$3:$W$103,2))^(B4-$B$3),"") -> 0.06612102535 | AH4: =IF($B4<121,VLOOKUP($B4,Lookups!A:I,9)*(1-VLOOKUP($B4,Lookups!$U$3:$W$103,3))^(B4-$B$3),"") -> 0.04439409015 | AI4: 0.05525755775 | AJ4: =IF(B4<121,AJ3*(1-AI3),"") -> 0.9502339523 | AK4: =IF(B4<121,AK3/(1+IntRt),"") -> 0.9788566954 | AL4: 0.965518 | AN4: =IF(B4<65,AE4*AJ4*AK4*AL4,"") ->  | AO4: =IF(AND(B4>=65,B4<121),AE4*AJ4*AK4*AL4,"") -> 2313.01734
A5: 2024 | B5: 84 | D5: =VLOOKUP(B5,Lookups!A:B,2) -> 4665.995594 | E5: =VLOOKUP(B5,Lookups!A:C,3) -> 2278.897488 | G5: =VLOOKUP(B5,Lookups!A:D,4) -> 7529.514309 | H5: =VLOOKUP(B5,Lookups!A:E,5) -> 5013.956358 | J5: =VLOOKUP(A5,Trends!$A$3:$Q$94,IF(ExFlg=0,2,10))+Sens -> 1.051 | K5: =K4*J4 -> 1.104601 | L5: =VLOOKUP(A5,Trends!$A$3:$Q$94,IF(ExFlg=0,4,12))+Sens -> 1.05 | M5: =M4*L4 -> 1.1025 | N5: =VLOOKUP(A5,Trends!$A$3:$Z$94,IF(ExFlg=0,19,23))+Sens -> 1.052 | O5: =O4*N4 -> 1.133004 | P5: =VLOOKUP(A5,Trends!$A$3:$Q$94,IF(ExFlg=0,6,14))+Sens -> 1.051 | Q5: =Q4*P4 -> 1.106703 | R5: =VLOOKUP(A5,Trends!$A$3:$Q$94,IF(ExFlg=0,8,16))+Sens -> 1.051 | S5: =S4*R4 -> 1.164508 | T5: =VLOOKUP(A5,Trends!$A$3:$Z$94,IF(ExFlg=0,21,25))+Sens -> 1.053 | U5: =U4*T4 -> 1.207791 | W5: 5144.260142 | X5: =IF(B5<65,E5*K5,E5*O5) -> 2581.999969 | Y5: 2562.260173 | AA5: 8768.179649 | AB5: 6055.811364 | AC5: 2712.368285 | AE5: 2662.332748 | AG5: =IF($B5<121,VLOOKUP($B5,Lookups!A:I,8)*(1-VLOOKUP($B5,Lookups!$U$3:$W$103,2))^(B5-$B$3),"") -> 0.07309655338 | AH5: =IF($B5<121,VLOOKUP($B5,Lookups!A:I,9)*(1-VLOOKUP($B5,Lookups!$U$3:$W$103,3))^(B5-$B$3),"") -> 0.04964840478 | AI5: 0.06137247908 | AJ5: =IF(B5<121,AJ4*(1-AI4),"") -> 0.8977263449 | AK5: 0.9581604301 | AL5: 0.962775 | AO5: 2204.800713
A6: 2025 | B6: 85 | D6: =VLOOKUP(B6,Lookups!A:B,2) -> 4644.838788 | E6: =VLOOKUP(B6,Lookups!A:C,3) -> 2278.897488 | G6: =VLOOKUP(B6,Lookups!A:D,4) -> 7495.373583 | H6: =VLOOKUP(B6,Lookups!A:E,5) -> 5013.956358 | J6: =VLOOKUP(A6,Trends!$A$3:$Q$94,IF(ExFlg=0,2,10))+Sens -> 1.051 | K6: 1.160935651 | L6: =VLOOKUP(A6,Trends!$A$3:$Q$94,IF(ExFlg=0,4,12))+Sens -> 1.05 | M6: 1.157625 | N6: =VLOOKUP(A6,Trends!$A$3:$Z$94,IF(ExFlg=0,19,23))+Sens -> 1.052 | O6: 1.191920208 | P6: =VLOOKUP(A6,Trends!$A$3:$Q$94,IF(ExFlg=0,6,14))+Sens -> 1.051 | Q6: 1.163144853 | R6: =VLOOKUP(A6,Trends!$A$3:$Q$94,IF(ExFlg=0,8,16))+Sens -> 1.051 | S6: 1.223897908 | T6: =VLOOKUP(A6,Trends!$A$3:$Z$94,IF(ExFlg=0,21,25))+Sens -> 1.053 | U6: 1.271803923 | W6: 5376.981502 | X6: =IF(B6<65,E6*K6,E6*O6) -> 2716.263968 | Y6: 2660.717534 | AA6: 9173.572047 | AB6: 6376.769366 | AC6: 2796.802682 | AE6: 2751.441419 | AG6: =IF($B6<121,VLOOKUP($B6,Lookups!A:I,8)*(1-VLOOKUP($B6,Lookups!$U$3:$W$103,2))^(B6-$B$3),"") -> 0.08071623148 | AH6: =IF($B6<121,VLOOKUP($B6,Lookups!A:I,9)*(1-VLOOKUP($B6,Lookups!$U$3:$W$103,3))^(B6-$B$3),"") -> 0.05567190851 | AI6: 0.06819406999 | AJ6: 0.8426306535 | AK6: 0.9379017522 | AL6: 0.959715 | AO6: 2086.878452 | AS6: Retirees - Default Ages
A7: 2026 | B7: 86 | D7: =VLOOKUP(B7,Lookups!A:B,2) -> 4623.778203 | E7: =VLOOKUP(B7,Lookups!A:C,3) -> 2278.897488 | G7: =VLOOKUP(B7,Lookups!A:D,4) -> 7461.388127 | H7: =VLOOKUP(B7,Lookups!A:E,5) -> 5013.956358 | J7: =VLOOKUP(A7,Trends!$A$3:$Q$94,IF(ExFlg=0,2,10))+Sens -> 1.051 | K7: 1.220143369 | L7: =VLOOKUP(A7,Trends!$A$3:$Q$94,IF(ExFlg=0,4,12))+Sens -> 1.05 | M7: =M6*L6 -> 1.21550625 | N7: =VLOOKUP(A7,Trends!$A$3:$Z$94,IF(ExFlg=0,19,23))+Sens -> 1.052 | O7: 1.253900059 | P7: =VLOOKUP(A7,Trends!$A$3:$Q$94,IF(ExFlg=0,6,14))+Sens -> 1.051 | Q7: 1.222465241 | R7: =VLOOKUP(A7,Trends!$A$3:$Q$94,IF(ExFlg=0,8,16))+Sens -> 1.051 | S7: 1.286316701 | T7: =VLOOKUP(A7,Trends!$A$3:$Z$94,IF(ExFlg=0,21,25))+Sens -> 1.053 | U7: 1.339209531 | W7: 5620.231305 | X7: 2857.509694 | Y7: 2762.721611 | AA7: 9597.708163 | AB7: 6714.738142 | AC7: 2882.970021 | AE7: 2842.887618 | AG7: =IF($B7<121,VLOOKUP($B7,Lookups!A:I,8)*(1-VLOOKUP($B7,Lookups!$U$3:$W$103,2))^(B7-$B$3),"") -> 0.08913873908 | AH7: =IF($B7<121,VLOOKUP($B7,Lookups!A:I,9)*(1-VLOOKUP($B7,Lookups!$U$3:$W$103,3))^(B7-$B$3),"") -> 0.06269160246 | AI7: 0.07591517077 | AJ7: 0.7851682398 | AK7: 0.9180714098 | AL7: 0.956251 | AO7: 1959.615118 | AS7: Age Divisions | AT7: 20-64 | AU7: 65-70 | AV7: 71-77 | AW7: 78+
A8: 2027 | B8: 87 | D8: =VLOOKUP(B8,Lookups!A:B,2) -> 4602.813401 | E8: =VLOOKUP(B8,Lookups!A:C,3) -> 2278.897488 | G8: =VLOOKUP(B8,Lookups!A:D,4) -> 7427.557236 | H8: =VLOOKUP(B8,Lookups!A:E,5) -> 5013.956358 | J8: =VLOOKUP(A8,Trends!$A$3:$Q$94,IF(ExFlg=0,2,10))+Sens -> 1.051 | K8: 1.282370681 | L8: =VLOOKUP(A8,Trends!$A$3:$Q$94,IF(ExFlg=0,4,12))+Sens -> 1.05 | M8: 1.276281563 | N8: =VLOOKUP(A8,Trends!$A$3:$Z$94,IF(ExFlg=0,19,23))+Sens -> 1.052 | O8: 1.319102862 | P8: =VLOOKUP(A8,Trends!$A$3:$Q$94,IF(ExFlg=0,6,14))+Sens -> 1.051 | Q8: 1.284810968 | R8: =VLOOKUP(A8,Trends!$A$3:$Q$94,IF(ExFlg=0,8,16))+Sens -> 1.05 | S8: 1.351918853 | T8: =VLOOKUP(A8,Trends!$A$3:$Z$94,IF(ExFlg=0,21,25))+Sens -> 1.052 | U8: 1.410187636 | W8: 5874.485879 | X8: 3006.100198 | Y8: 2868.38568 | AA8: 10041.45466 | AB8: 7070.619264 | AC8: 2970.835395 | AE8: 2936.685832 | AG8: =IF($B8<121,VLOOKUP($B8,Lookups!A:I,8)*(1-VLOOKUP($B8,Lookups!$U$3:$W$103,2))^(B8-$B$3),"") -> 0.09845573678 | AH8: =IF($B8<121,VLOOKUP($B8,Lookups!A:I,9)*(1-VLOOKUP($B8,Lookups!$U$3:$W$103,3))^(B8-$B$3),"") -> 0.07080896089 | AI8: 0.08463234883 | AJ8: 0.7255620588 | AK8: 0.8986603463 | AL8: 0.95234 | AO8: 1823.558319 | AS8: Number Inactive | AT8: 60 | AU8: =ROUND((70+65)/2,0) -> 68 | AV8: =ROUND((77+71)/2,0) -> 74 | AW8: 82
A9: 2028 | B9: 88 | D9: =VLOOKUP(B9,Lookups!A:B,2) -> 4581.943943 | E9: =VLOOKUP(B9,Lookups!A:C,3) -> 2278.897488 | G9: =VLOOKUP(B9,Lookups!A:D,4) -> 7393.880202 | H9: =VLOOKUP(B9,Lookups!A:E,5) -> 5013.956358 | J9: =VLOOKUP(A9,Trends!$A$3:$Q$94,IF(ExFlg=0,2,10))+Sens -> 1.051 | K9: 1.347771586 | L9: =VLOOKUP(A9,Trends!$A$3:$Q$94,IF(ExFlg=0,4,12))+Sens -> 1.05 | M9: 1.340095641 | N9: =VLOOKUP(A9,Trends!$A$3:$Z$94,IF(ExFlg=0,19,23))+Sens -> 1.052 | O9: 1.387696211 | P9: =VLOOKUP(A9,Trends!$A$3:$Q$94,IF(ExFlg=0,6,14))+Sens -> 1.051 | Q9: 1.350336327 | R9: =VLOOKUP(A9,Trends!$A$3:$Q$94,IF(ExFlg=0,8,16))+Sens -> 1.05 | S9: 1.419514796 | T9: =VLOOKUP(A9,Trends!$A$3:$Z$94,IF(ExFlg=0,21,25))+Sens -> 1.052 | U9: 1.483517393 | W9: 6140.243103 | X9: 3162.417409 | Y9: 2977.825694 | AA9: 10495.72234 | AB9: 7438.291466 | AC9: 3057.430879 | AE9: 3030.896082 | AG9: =IF($B9<121,VLOOKUP($B9,Lookups!A:I,8)*(1-VLOOKUP($B9,Lookups!$U$3:$W$103,2))^(B9-$B$3),"") -> 0.1083957557 | AH9: =IF($B9<121,VLOOKUP($B9,Lookups!A:I,9)*(1-VLOOKUP($B9,Lookups!$U$3:$W$103,3))^(B9-$B$3),"") -> 0.07978972585 | AI9: 0.09409274078 | AJ9: 0.6641560375 | AK9: 0.8796596969 | AL9: 0.948095 | AO9: 1678.833869
A10: 2029 | B10: 89 | D10: =VLOOKUP(B10,Lookups!A:B,2) -> 4581.943943 | E10: =VLOOKUP(B10,Lookups!A:C,3) -> 2278.897488 | G10: =VLOOKUP(B10,Lookups!A:D,4) -> 7393.880202 | H10: =VLOOKUP(B10,Lookups!A:E,5) -> 5013.956358 | J10: =VLOOKUP(A10,Trends!$A$3:$Q$94,IF(ExFlg=0,2,10))+Sens -> 1.051 | K10: 1.416507937 | L10: =VLOOKUP(A10,Trends!$A$3:$Q$94,IF(ExFlg=0,4,12))+Sens -> 1.05 | M10: 1.407100423 | N10: =VLOOKUP(A10,Trends!$A$3:$Z$94,IF(ExFlg=0,19,23))+Sens -> 1.052 | O10: 1.459856414 | P10: =VLOOKUP(A10,Trends!$A$3:$Q$94,IF(ExFlg=0,6,14))+Sens -> 1.051 | Q10: 1.41920348 | R10: =VLOOKUP(A10,Trends!$A$3:$Q$94,IF(ExFlg=0,8,16))+Sens -> 1.051 | S10: 1.490490536 | T10: =VLOOKUP(A10,Trends!$A$3:$Z$94,IF(ExFlg=0,21,25))+Sens -> 1.053 | U10: 1.560660298 | W10: 6447.255258 | X10: 3326.863114 | Y10: 3120.392144 | AA10: 11020.50846 | AB10: 7825.082622 | AC10: 3195.42584 | AE10: 3170.414858 | AG10: =IF($B10<121,VLOOKUP($B10,Lookups!A:I,8)*(1-VLOOKUP($B10,Lookups!$U$3:$W$103,2))^(B10-$B$3),"") -> 0.1193432042 | AH10: =IF($B10<121,VLOOKUP($B10,Lookups!A:I,9)*(1-VLOOKUP($B10,Lookups!$U$3:$W$103,3))^(B10-$B$3),"") -> 0.08986631176 | AI10: 0.104604758 | AJ10: 0.6016637756 | AK10: 0.8610607839 | AL10: 0.943379 | AO10: 1549.494268
A11: 2030 | B11: 90 | D11: =VLOOKUP(B11,Lookups!A:B,2) -> 4581.943943 | E11: =VLOOKUP(B11,Lookups!A:C,3) -> 2278.897488 | G11: =VLOOKUP(B11,Lookups!A:D,4) -> 7393.880202 | H11: =VLOOKUP(B11,Lookups!A:E,5) -> 5013.956358 | J11: =VLOOKUP(A11,Trends!$A$3:$Q$94,IF(ExFlg=0,2,10))+Sens -> 1.051 | K11: 1.488749841 | L11: =VLOOKUP(A11,Trends!$A$3:$Q$94,IF(ExFlg=0,4,12))+Sens -> 1.05 | M11: 1.477455444 | N11: =VLOOKUP(A11,Trends!$A$3:$Z$94,IF(ExFlg=0,19,23))+Sens -> 1.052 | O11: 1.535768947 | P11: =VLOOKUP(A11,Trends!$A$3:$Q$94,IF(ExFlg=0,6,14))+Sens -> 1.051 | Q11: 1.491582857 | R11: =VLOOKUP(A11,Trends!$A$3:$Q$94,IF(ExFlg=0,8,16))+Sens -> 1.051 | S11: 1.566505553 | T11: =VLOOKUP(A11,Trends!$A$3:$Z$94,IF(ExFlg=0,21,25))+Sens -> 1.053 | U11: 1.643375293 | W11: 6769.618021 | X11: 3499.859996 | Y11: 3269.758025 | AA11: 11582.55439 | AB11: 8239.812001 | AC11: 3342.742392 | AE11: 3318.414513 | AG11: =IF($B11<121,VLOOKUP($B11,Lookups!A:I,8)*(1-VLOOKUP($B11,Lookups!$U$3:$W$103,2))^(B11-$B$3),"") -> 0.1309115968 | AH11: =IF($B11<121,VLOOKUP($B11,Lookups!A:I,9)*(1-VLOOKUP($B11,Lookups!$U$3:$W$103,3))^(B11-$B$3),"") -> 0.1005665705 | AI11: 0.1157390836 | AJ11: 0.538726882 | AK11: 0.8428551135 | AL11: 0.938384 | AO11: =IF(AND(B11>=65,B11<121),AE11*AJ11*AK11*AL11,"") -> 1413.945927
A12: 2031 | B12: 91 | D12: =VLOOKUP(B12,Lookups!A:B,2) -> 4581.943943 | E12: =VLOOKUP(B12,Lookups!A:C,3) -> 2278.897488 | G12: =VLOOKUP(B12,Lookups!A:D,4) -> 7393.880202 | H12: =VLOOKUP(B12,Lookups!A:E,5) -> 5013.956358 | J12: =VLOOKUP(A12,Trends!$A$3:$Q$94,IF(ExFlg=0,2,10))+Sens -> 1.051 | K12: 1.564676083 | L12: =VLOOKUP(A12,Trends!$A$3:$Q$94,IF(ExFlg=0,4,12))+Sens -> 1.05 | M12: 1.551328216 | N12: =VLOOKUP(A12,Trends!$A$3:$Z$94,IF(ExFlg=0,19,23))+Sens -> 1.051 | O12: 1.615628932 | P12: =VLOOKUP(A12,Trends!$A$3:$Q$94,IF(ExFlg=0,6,14))+Sens -> 1.051 | Q12: 1.567653583 | R12: =VLOOKUP(A12,Trends!$A$3:$Q$94,IF(ExFlg=0,8,16))+Sens -> 1.051 | S12: 1.646397336 | T12: =VLOOKUP(A12,Trends!$A$3:$Z$94,IF(ExFlg=0,21,25))+Sens -> 1.052 | U12: 1.730474184 | W12: 7108.098922 | X12: 3681.852716 | Y12: 3426.246206 | AA12: 12173.26467 | AB12: 8676.522037 | AC12: 3496.74263 | AE12: 3473.244057 | AG12: =IF($B12<121,VLOOKUP($B12,Lookups!A:I,8)*(1-VLOOKUP($B12,Lookups!$U$3:$W$103,2))^(B12-$B$3),"") -> 0.1432770066 | AH12: =IF($B12<121,VLOOKUP($B12,Lookups!A:I,9)*(1-VLOOKUP($B12,Lookups!$U$3:$W$103,3))^(B12-$B$3),"") -> 0.1119807737 | AI12: 0.1276288902 | AJ12: 0.4763751264 | AK12: 0.8250343711 | AL12: 0.93305 | AO12: =IF(AND(B12>=65,B12<121),AE12*AJ12*AK12*AL12,"") -> 1273.682956
A13: 2032 | B13: 92 | D13: =VLOOKUP(B13,Lookups!A:B,2) -> 4581.943943 | E13: =VLOOKUP(B13,Lookups!A:C,3) -> 2278.897488 | G13: =VLOOKUP(B13,Lookups!A:D,4) -> 7393.880202 | H13: =VLOOKUP(B13,Lookups!A:E,5) -> 5013.956358 | J13: =VLOOKUP(A13,Trends!$A$3:$Q$94,IF(ExFlg=0,2,10))+Sens -> 1.051 | K13: 1.644474564 | L13: =VLOOKUP(A13,Trends!$A$3:$Q$94,IF(ExFlg=0,4,12))+Sens -> 1.05 | M13: 1.628894627 | N13: =VLOOKUP(A13,Trends!$A$3:$Z$94,IF(ExFlg=0,19,23))+Sens -> 1.051 | O13: 1.698026008 | P13: =VLOOKUP(A13,Trends!$A$3:$Q$94,IF(ExFlg=0,6,14))+Sens -> 1.051 | Q13: 1.647603916 | R13: =VLOOKUP(A13,Trends!$A$3:$Q$94,IF(ExFlg=0,8,16))+Sens -> 1.051 | S13: 1.7303636 | T13: =VLOOKUP(A13,Trends!$A$3:$Z$94,IF(ExFlg=0,21,25))+Sens -> 1.052 | U13: 1.820458841 | W13: 7463.503868 | X13: 3869.627204 | Y13: 3593.876664 | AA13: 12794.10116 | AB13: 9127.701183 | AC13: 3666.399982 | AE13: 3642.225785 | AG13: =IF($B13<121,VLOOKUP($B13,Lookups!A:I,8)*(1-VLOOKUP($B13,Lookups!$U$3:$W$103,2))^(B13-$B$3),"") -> 0.1556649521 | AH13: =IF($B13<121,VLOOKUP($B13,Lookups!A:I,9)*(1-VLOOKUP($B13,Lookups!$U$3:$W$103,3))^(B13-$B$3),"") -> 0.1235025272 | AI13: 0.1395837396 | AJ13: 0.4155758977 | AK13: 0.807590418 | AL13: 0.927686 | AO13: 1133.990395
A14: 2033 | B14: 93 | D14: =VLOOKUP(B14,Lookups!A:B,2) -> 4581.943943 | E14: =VLOOKUP(B14,Lookups!A:C,3) -> 2278.897488 | G14: =VLOOKUP(B14,Lookups!A:D,4) -> 7393.880202 | H14: =VLOOKUP(B14,Lookups!A:E,5) -> 5013.956358 | J14: =VLOOKUP(A14,Trends!$A$3:$Q$94,IF(ExFlg=0,2,10))+Sens -> 1.051 | K14: 1.728342766 | L14: =VLOOKUP(A14,Trends!$A$3:$Q$94,IF(ExFlg=0,4,12))+Sens -> 1.05 | M14: 1.710339358 | N14: =VLOOKUP(A14,Trends!$A$3:$Z$94,IF(ExFlg=0,19,23))+Sens -> 1.051 | O14: 1.784625334 | P14: =VLOOKUP(A14,Trends!$A$3:$Q$94,IF(ExFlg=0,6,14))+Sens -> 1.051 | Q14: 1.731631715 | R14: =VLOOKUP(A14,Trends!$A$3:$Q$94,IF(ExFlg=0,8,16))+Sens -> 1.051 | S14: 1.818612144 | T14: =VLOOKUP(A14,Trends!$A$3:$Z$94,IF(ExFlg=0,21,25))+Sens -> 1.052 | U14: 1.915122701 | W14: 7836.679062 | X14: 4066.978192 | Y14: 3769.70087 | AA14: 13446.60032 | AB14: 9602.341644 | AC14: 3844.25868 | AE14: 3819.406325 | AG14: =IF($B14<121,VLOOKUP($B14,Lookups!A:I,8)*(1-VLOOKUP($B14,Lookups!$U$3:$W$103,2))^(B14-$B$3),"") -> 0.1686417685 | AH14: =IF($B14<121,VLOOKUP($B14,Lookups!A:I,9)*(1-VLOOKUP($B14,Lookups!$U$3:$W$103,3))^(B14-$B$3),"") -> 0.1356091021 | AI14: 0.1521254353 | AJ14: 0.3575682598 | AK14: 0.7905152878 | AL14: 0.922059 | AO14: 995.4599876
A15: 2034 | B15: 94 | D15: =VLOOKUP(B15,Lookups!A:B,2) -> 4581.943943 | E15: =VLOOKUP(B15,Lookups!A:C,3) -> 2278.897488 | G15: =VLOOKUP(B15,Lookups!A:D,4) -> 7393.880202 | H15: =VLOOKUP(B15,Lookups!A:E,5) -> 5013.956358 | J15: =VLOOKUP(A15,Trends!$A$3:$Q$94,IF(ExFlg=0,2,10))+Sens -> 1.051 | K15: 1.816488247 | L15: =VLOOKUP(A15,Trends!$A$3:$Q$94,IF(ExFlg=0,4,12))+Sens -> 1.05 | M15: 1.795856326 | N15: =VLOOKUP(A15,Trends!$A$3:$Z$94,IF(ExFlg=0,19,23))+Sens -> 1.051 | O15: 1.875641226 | P15: =VLOOKUP(A15,Trends!$A$3:$Q$94,IF(ExFlg=0,6,14))+Sens -> 1.052 | Q15: 1.819944933 | R15: =VLOOKUP(A15,Trends!$A$3:$Q$94,IF(ExFlg=0,8,16))+Sens -> 1.051 | S15: 1.911361363 | T15: =VLOOKUP(A15,Trends!$A$3:$Z$94,IF(ExFlg=0,21,25))+Sens -> 1.052 | U15: 2.014709082 | W15: 8228.513015 | X15: 4274.394079 | Y15: 3954.118935 | AA15: 14132.37694 | AB15: 10101.66341 | AC15: 4030.713531 | AE15: 4005.182255 | AG15: =IF($B15<121,VLOOKUP($B15,Lookups!A:I,8)*(1-VLOOKUP($B15,Lookups!$U$3:$W$103,2))^(B15-$B$3),"") -> 0.1814445667 | AH15: =IF($B15<121,VLOOKUP($B15,Lookups!A:I,9)*(1-VLOOKUP($B15,Lookups!$U$3:$W$103,3))^(B15-$B$3),"") -> 0.1477307547 | AI15: 0.1645876607 | AJ15: 0.3031730326 | AK15: 0.7738011823 | AL15: 0.916468 | AO15: 861.1118102
A16: 2035 | B16: 95 | D16: =VLOOKUP(B16,Lookups!A:B,2) -> 4581.943943 | E16: =VLOOKUP(B16,Lookups!A:C,3) -> 2278.897488 | G16: =VLOOKUP(B16,Lookups!A:D,4) -> 7393.880202 | H16: =VLOOKUP(B16,Lookups!A:E,5) -> 5013.956358 | J16: =VLOOKUP(A16,Trends!$A$3:$Q$94,IF(ExFlg=0,2,10))+Sens -> 1.051 | K16: 1.909129148 | L16: =VLOOKUP(A16,Trends!$A$3:$Q$94,IF(ExFlg=0,4,12))+Sens -> 1.051 | M16: 1.885649142 | N16: =VLOOKUP(A16,Trends!$A$3:$Z$94,IF(ExFlg=0,19,23))+Sens -> 1.052 | O16: 1.971298929 | P16: =VLOOKUP(A16,Trends!$A$3:$Q$94,IF(ExFlg=0,6,14))+Sens -> 1.052 | Q16: 1.914582069 | R16: =VLOOKUP(A16,Trends!$A$3:$Q$94,IF(ExFlg=0,8,16))+Sens -> 1.051 | S16: 2.008840793 | T16: =VLOOKUP(A16,Trends!$A$3:$Z$94,IF(ExFlg=0,21,25))+Sens -> 1.052 | U16: 2.119473954 | W16: 8639.938665 | X16: 4492.388177 | Y16: 4147.550488 | AA16: 14853.12816 | AB16: 10626.94991 | AC16: 4226.178258 | AE16: 4199.969263 | AG16: =IF($B16<121,VLOOKUP($B16,Lookups!A:I,8)*(1-VLOOKUP($B16,Lookups!$U$3:$W$103,2))^(B16-$B$3),"") -> 0.1949368282 | AH16: =IF($B16<121,VLOOKUP($B16,Lookups!A:I,9)*(1-VLOOKUP($B16,Lookups!$U$3:$W$103,3))^(B16-$B$3),"") -> 0.1606284884 | AI16: 0.1777826583 | AJ16: 0.2532744924 | AK16: 0.7574404682 | AL16: 0.910548 | AO16: 733.6499887
A17: 2036 | B17: 96 | D17: =VLOOKUP(B17,Lookups!A:B,2) -> 4581.943943 | E17: =VLOOKUP(B17,Lookups!A:C,3) -> 2278.897488 | G17: =VLOOKUP(B17,Lookups!A:D,4) -> 7393.880202 | H17: =VLOOKUP(B17,Lookups!A:E,5) -> 5013.956358 | J17: =VLOOKUP(A17,Trends!$A$3:$Q$94,IF(ExFlg=0,2,10))+Sens -> 1.051 | K17: 2.006494735 | L17: =VLOOKUP(A17,Trends!$A$3:$Q$94,IF(ExFlg=0,4,12))+Sens -> 1.051 | M17: 1.981817249 | N17: =VLOOKUP(A17,Trends!$A$3:$Z$94,IF(ExFlg=0,19,23))+Sens -> 1.052 | O17: 2.073806473 | P17: =VLOOKUP(A17,Trends!$A$3:$Q$94,IF(ExFlg=0,6,14))+Sens -> 1.052 | Q17: 2.014140337 | R17: =VLOOKUP(A17,Trends!$A$3:$Q$94,IF(ExFlg=0,8,16))+Sens -> 1.051 | S17: 2.111291673 | T17: =VLOOKUP(A17,Trends!$A$3:$Z$94,IF(ExFlg=0,21,25))+Sens -> 1.052 | U17: 2.2296866 | W17: 9080.575537 | X17: 4725.992363 | Y17: 4354.583175 | AA17: 15610.6377 | AB17: 11179.5513 | AC17: 4431.086399 | AE17: =(1-PctUMP)*Y17+PctUMP*AC17 -> 4405.585579 | AG17: =IF($B17<121,VLOOKUP($B17,Lookups!A:I,8)*(1-VLOOKUP($B17,Lookups!$U$3:$W$103,2))^(B17-$B$3),"") -> 0.2098625868 | AH17: =IF($B17<121,VLOOKUP($B17,Lookups!A:I,9)*(1-VLOOKUP($B17,Lookups!$U$3:$W$103,3))^(B17-$B$3),"") -> 0.1750013828 | AI17: 0.1924319848 | AJ17: 0.2082466799 | AK17: 0.7414256736 | AL17: 0.903976 | AN17: =IF(B17<65,AE17*AJ17*AK17*AL17,"") ->  | AO17: 614.9024858
A18: 2037 | B18: 97 | D18: =VLOOKUP(B18,Lookups!A:B,2) -> 4581.943943 | E18: =VLOOKUP(B18,Lookups!A:C,3) -> 2278.897488 | G18: =VLOOKUP(B18,Lookups!A:D,4) -> 7393.880202 | H18: =VLOOKUP(B18,Lookups!A:E,5) -> 5013.956358 | J18: =VLOOKUP(A18,Trends!$A$3:$Q$94,IF(ExFlg=0,2,10))+Sens -> 1.051 | K18: 2.108825966 | L18: =VLOOKUP(A18,Trends!$A$3:$Q$94,IF(ExFlg=0,4,12))+Sens -> 1.051 | M18: 2.082889928 | N18: =VLOOKUP(A18,Trends!$A$3:$Z$94,IF(ExFlg=0,19,23))+Sens -> 1.052 | O18: 2.18164441 | P18: =VLOOKUP(A18,Trends!$A$3:$Q$94,IF(ExFlg=0,6,14))+Sens -> 1.052 | Q18: 2.118875635 | R18: =VLOOKUP(A18,Trends!$A$3:$Q$94,IF(ExFlg=0,8,16))+Sens -> 1.051 | S18: 2.218967548 | T18: =VLOOKUP(A18,Trends!$A$3:$Z$94,IF(ExFlg=0,21,25))+Sens -> 1.052 | U18: 2.345630303 | W18: 9543.68489 | X18: =IF(B18<65,E18*K18,E18*O18) -> 4971.743965 | Y18: 4571.940924 | AA18: 16406.78022 | AB18: 11760.88797 | AC18: 4645.892254 | AE18: =(1-PctUMP)*Y18+PctUMP*AC18 -> 4621.242057 | AG18: =IF($B18<121,VLOOKUP($B18,Lookups!A:I,8)*(1-VLOOKUP($B18,Lookups!$U$3:$W$103,2))^(B18-$B$3),"") -> 0.225423477 | AH18: =IF($B18<121,VLOOKUP($B18,Lookups!A:I,9)*(1-VLOOKUP($B18,Lookups!$U$3:$W$103,3))^(B18-$B$3),"") -> 0.1902718653 | AI18: 0.2078476712 | AJ18: 0.1681733579 | AK18: 0.7257494847 | AL18: 0.89706 | AO18: 505.9692702
A19: 2038 | B19: 98 | D19: =VLOOKUP(B19,Lookups!A:B,2) -> 4581.943943 | E19: =VLOOKUP(B19,Lookups!A:C,3) -> 2278.897488 | G19: =VLOOKUP(B19,Lookups!A:D,4) -> 7393.880202 | H19: =VLOOKUP(B19,Lookups!A:E,5) -> 5013.956358 | J19: =VLOOKUP(A19,Trends!$A$3:$Q$94,IF(ExFlg=0,2,10))+Sens -> 1.052 | K19: 2.21637609 | L19: =VLOOKUP(A19,Trends!$A$3:$Q$94,IF(ExFlg=0,4,12))+Sens -> 1.051 | M19: 2.189117315 | N19: =VLOOKUP(A19,Trends!$A$3:$Z$94,IF(ExFlg=0,19,23))+Sens -> 1.052 | O19: 2.295089919 | P19: =VLOOKUP(A19,Trends!$A$3:$Q$94,IF(ExFlg=0,6,14))+Sens -> 1.052 | Q19: 2.229057168 | R19: =VLOOKUP(A19,Trends!$A$3:$Q$94,IF(ExFlg=0,8,16))+Sens -> 1.052 | S19: 2.332134893 | T19: =VLOOKUP(A19,Trends!$A$3:$Z$94,IF(ExFlg=0,21,25))+Sens -> 1.053 | U19: 2.467603078 | W19: 10030.41282 | X19: 5230.274652 | Y19: 4800.138167 | AA19: 17243.52602 | AB19: 12372.45414 | AC19: 4871.071871 | AE19: 4847.42754 | AG19: =IF($B19<121,VLOOKUP($B19,Lookups!A:I,8)*(1-VLOOKUP($B19,Lookups!$U$3:$W$103,2))^(B19-$B$3),"") -> 0.2423604916 | AH19: =IF($B19<121,VLOOKUP($B19,Lookups!A:I,9)*(1-VLOOKUP($B19,Lookups!$U$3:$W$103,3))^(B19-$B$3),"") -> 0.2071144103 | AI19: 0.2247374509 | AJ19: 0.1332189171 | AK19: 0.7104047423 | AL19: 0.889483 | AO19: 408.056903
A20: 2039 | B20: 99 | D20: =VLOOKUP(B20,Lookups!A:B,2) -> 4581.943943 | E20: =VLOOKUP(B20,Lookups!A:C,3) -> 2278.897488 | G20: =VLOOKUP(B20,Lookups!A:D,4) -> 7393.880202 | H20: =VLOOKUP(B20,Lookups!A:E,5) -> 5013.956358 | J20: =VLOOKUP(A20,Trends!$A$3:$Q$94,IF(ExFlg=0,2,10))+Sens -> 1.052 | K20: 2.331627647 | L20: =VLOOKUP(A20,Trends!$A$3:$Q$94,IF(ExFlg=0,4,12))+Sens -> 1.051 | M20: 2.300762298 | N20: =VLOOKUP(A20,Trends!$A$3:$Z$94,IF(ExFlg=0,19,23))+Sens -> 1.052 | O20: 2.414434595 | P20: =VLOOKUP(A20,Trends!$A$3:$Q$94,IF(ExFlg=0,6,14))+Sens -> 1.052 | Q20: 2.34496814 | R20: =VLOOKUP(A20,Trends!$A$3:$Q$94,IF(ExFlg=0,8,16))+Sens -> 1.052 | S20: 2.453405908 | T20: =VLOOKUP(A20,Trends!$A$3:$Z$94,IF(ExFlg=0,21,25))+Sens -> 1.053 | U20: 2.598386042 | W20: 10541.96387 | X20: 5502.248933 | Y20: 5039.714939 | AA20: 18140.18937 | AB20: 13028.19421 | AC20: 5111.995154 | AE20: 5087.90199 | AG20: =IF($B20<121,VLOOKUP($B20,Lookups!A:I,8)*(1-VLOOKUP($B20,Lookups!$U$3:$W$103,2))^(B20-$B$3),"") -> 0.2593928569 | AH20: =IF($B20<121,VLOOKUP($B20,Lookups!A:I,9)*(1-VLOOKUP($B20,Lookups!$U$3:$W$103,3))^(B20-$B$3),"") -> 0.2244654995 | AI20: 0.2419291782 | AJ20: 0.1032796373 | AK20: 0.6953844384 | AL20: 0.88177 | AO20: 322.2060771
A21: 2040 | B21: 100 | D21: =VLOOKUP(B21,Lookups!A:B,2) -> 4581.943943 | E21: =VLOOKUP(B21,Lookups!A:C,3) -> 2278.897488 | G21: =VLOOKUP(B21,Lookups!A:D,4) -> 7393.880202 | H21: =VLOOKUP(B21,Lookups!A:E,5) -> 5013.956358 | J21: =VLOOKUP(A21,Trends!$A$3:$Q$94,IF(ExFlg=0,2,10))+Sens -> 1.052 | K21: 2.452872285 | L21: =VLOOKUP(A21,Trends!$A$3:$Q$94,IF(ExFlg=0,4,12))+Sens -> 1.051 | M21: 2.418101175 | N21: =VLOOKUP(A21,Trends!$A$3:$Z$94,IF(ExFlg=0,19,23))+Sens -> 1.052 | O21: 2.539985194 | P21: =VLOOKUP(A21,Trends!$A$3:$Q$94,IF(ExFlg=0,6,14))+Sens -> 1.052 | Q21: 2.466906484 | R21: =VLOOKUP(A21,Trends!$A$3:$Q$94,IF(ExFlg=0,8,16))+Sens -> 1.052 | S21: 2.580983015 | T21: =VLOOKUP(A21,Trends!$A$3:$Z$94,IF(ExFlg=0,21,25))+Sens -> 1.053 | U21: 2.736100502 | W21: 11079.60403 | X21: 5788.365878 | Y21: 5291.238152 | AA21: 19083.47922 | AB21: 13718.68851 | AC21: 5364.790708 | AE21: 5340.273435 | AG21: =IF($B21<121,VLOOKUP($B21,Lookups!A:I,8)*(1-VLOOKUP($B21,Lookups!$U$3:$W$103,2))^(B21-$B$3),"") -> 0.2770574188 | AH21: =IF($B21<121,VLOOKUP($B21,Lookups!A:I,9)*(1-VLOOKUP($B21,Lookups!$U$3:$W$103,3))^(B21-$B$3),"") -> 0.2427871522 | AI21: 0.2599222855 | AJ21: 0.0782932795 | AK21: 0.6806817134 | AL21: 0.873697 | AO21: 248.6525442
A22: 2041 | B22: 101 | D22: =VLOOKUP(B22,Lookups!A:B,2) -> 4581.943943 | E22: =VLOOKUP(B22,Lookups!A:C,3) -> 2278.897488 | G22: =VLOOKUP(B22,Lookups!A:D,4) -> 7393.880202 | H22: =VLOOKUP(B22,Lookups!A:E,5) -> 5013.956358 | J22: =VLOOKUP(A22,Trends!$A$3:$Q$94,IF(ExFlg=0,2,10))+Sens -> 1.052 | K22: 2.580421643 | L22: =VLOOKUP(A22,Trends!$A$3:$Q$94,IF(ExFlg=0,4,12))+Sens -> 1.051 | M22: 2.541424335 | N22: =VLOOKUP(A22,Trends!$A$3:$Z$94,IF(ExFlg=0,19,23))+Sens -> 1.052 | O22: 2.672064424 | P22: =VLOOKUP(A22,Trends!$A$3:$Q$94,IF(ExFlg=0,6,14))+Sens -> 1.052 | Q22: 2.595185621 | R22: =VLOOKUP(A22,Trends!$A$3:$Q$94,IF(ExFlg=0,8,16))+Sens -> 1.052 | S22: 2.715194132 | T22: =VLOOKUP(A22,Trends!$A$3:$Z$94,IF(ExFlg=0,21,25))+Sens -> 1.053 | U22: 2.881113828 | W22: 11644.66384 | X22: 6089.360904 | Y22: 5555.302932 | AA22: 20075.82013 | AB22: 14445.779 | AC22: 5630.041136 | AE22: 5605.128651 | AG22: =IF($B22<121,VLOOKUP($B22,Lookups!A:I,8)*(1-VLOOKUP($B22,Lookups!$U$3:$W$103,2))^(B22-$B$3),"") -> 0.295220976 | AH22: =IF($B22<121,VLOOKUP($B22,Lookups!A:I,9)*(1-VLOOKUP($B22,Lookups!$U$3:$W$103,3))^(B22-$B$3),"") -> 0.2619041734 | AI22: 0.2785625747 | AJ22: 0.05794311135 | AK22: 0.6662898526 | AL22: 0.865334 | AO22: 187.2554058
A23: 2042 | B23: 102 | D23: =VLOOKUP(B23,Lookups!A:B,2) -> 4581.943943 | E23: =VLOOKUP(B23,Lookups!A:C,3) -> 2278.897488 | G23: =VLOOKUP(B23,Lookups!A:D,4) -> 7393.880202 | H23: =VLOOKUP(B23,Lookups!A:E,5) -> 5013.956358 | J23: =VLOOKUP(A23,Trends!$A$3:$Q$94,IF(ExFlg=0,2,10))+Sens -> 1.052 | K23: 2.714603569 | L23: =VLOOKUP(A23,Trends!$A$3:$Q$94,IF(ExFlg=0,4,12))+Sens -> 1.051 | M23: 2.671036976 | N23: =VLOOKUP(A23,Trends!$A$3:$Z$94,IF(ExFlg=0,19,23))+Sens -> 1.052 | O23: 2.811011774 | P23: =VLOOKUP(A23,Trends!$A$3:$Q$94,IF(ExFlg=0,6,14))+Sens -> 1.052 | Q23: 2.730135273 | R23: =VLOOKUP(A23,Trends!$A$3:$Q$94,IF(ExFlg=0,8,16))+Sens -> 1.052 | S23: 2.856384227 | T23: =VLOOKUP(A23,Trends!$A$3:$Z$94,IF(ExFlg=0,21,25))+Sens -> 1.053 | U23: 3.033812861 | W23: 12238.54169 | X23: 6406.007671 | Y23: 5832.534021 | AA23: 21119.76278 | AB23: 15211.40528 | AC23: 5908.357496 | AE23: 5883.083257 | AG23: =IF($B23<121,VLOOKUP($B23,Lookups!A:I,8)*(1-VLOOKUP($B23,Lookups!$U$3:$W$103,2))^(B23-$B$3),"") -> 0.3145884852 | AH23: =IF($B23<121,VLOOKUP($B23,Lookups!A:I,9)*(1-VLOOKUP($B23,Lookups!$U$3:$W$103,3))^(B23-$B$3),"") -> 0.2823927911 | AI23: 0.2984906382 | AJ23: 0.04180232907 | AK23: 0.6522022833 | AL23: 0.856394 | AO23: 137.3603552
A24: 2043 | B24: 103 | D24: =VLOOKUP(B24,Lookups!A:B,2) -> 4581.943943 | E24: =VLOOKUP(B24,Lookups!A:C,3) -> 2278.897488 | G24: =VLOOKUP(B24,Lookups!A:D,4) -> 7393.880202 | H24: =VLOOKUP(B24,Lookups!A:E,5) -> 5013.956358 | J24: =VLOOKUP(A24,Trends!$A$3:$Q$94,IF(ExFlg=0,2,10))+Sens -> 1.052 | K24: 2.855762954 | L24: =VLOOKUP(A24,Trends!$A$3:$Q$94,IF(ExFlg=0,4,12))+Sens -> 1.051 | M24: 2.807259862 | N24: =VLOOKUP(A24,Trends!$A$3:$Z$94,IF(ExFlg=0,19,23))+Sens -> 1.052 | O24: 2.957184386 | P24: =VLOOKUP(A24,Trends!$A$3:$Q$94,IF(ExFlg=0,6,14))+Sens -> 1.052 | Q24: 2.872102307 | R24: =VLOOKUP(A24,Trends!$A$3:$Q$94,IF(ExFlg=0,8,16))+Sens -> 1.052 | S24: 3.004916206 | T24: =VLOOKUP(A24,Trends!$A$3:$Z$94,IF(ExFlg=0,21,25))+Sens -> 1.053 | U24: 3.194604943 | W24: 12862.70732 | X24: 6739.12007 | Y24: 6123.587248 | AA24: 22217.99045 | AB24: 16017.60977 | AC24: 6200.380681 | AE24: 6174.783126 | AG24: =IF($B24<121,VLOOKUP($B24,Lookups!A:I,8)*(1-VLOOKUP($B24,Lookups!$U$3:$W$103,2))^(B24-$B$3),"") -> 0.3331640412 | AH24: =IF($B24<121,VLOOKUP($B24,Lookups!A:I,9)*(1-VLOOKUP($B24,Lookups!$U$3:$W$103,3))^(B24-$B$3),"") -> 0.3024153066 | AI24: 0.3177896739 | AJ24: 0.02932472519 | AK24: 0.6384125717 | AL24: 0.847735 | AO24: 97.99799815
A25: 2044 | B25: 104 | D25: =VLOOKUP(B25,Lookups!A:B,2) -> 4581.943943 | E25: =VLOOKUP(B25,Lookups!A:C,3) -> 2278.897488 | G25: =VLOOKUP(B25,Lookups!A:D,4) -> 7393.880202 | H25: =VLOOKUP(B25,Lookups!A:E,5) -> 5013.956358 | J25: =VLOOKUP(A25,Trends!$A$3:$Q$94,IF(ExFlg=0,2,10))+Sens -> 1.052 | K25: 3.004262628 | L25: =VLOOKUP(A25,Trends!$A$3:$Q$94,IF(ExFlg=0,4,12))+Sens -> 1.052 | M25: 2.950430115 | N25: =VLOOKUP(A25,Trends!$A$3:$Z$94,IF(ExFlg=0,19,23))+Sens -> 1.053 | O25: 3.110957974 | P25: =VLOOKUP(A25,Trends!$A$3:$Q$94,IF(ExFlg=0,6,14))+Sens -> 1.053 | Q25: 3.021451627 | R25: =VLOOKUP(A25,Trends!$A$3:$Q$94,IF(ExFlg=0,8,16))+Sens -> 1.052 | S25: 3.161171849 | T25: =VLOOKUP(A25,Trends!$A$3:$Z$94,IF(ExFlg=0,21,25))+Sens -> 1.053 | U25: 3.363919005 | W25: 13518.70539 | X25: 7089.554313 | Y25: 6429.151078 | AA25: 23373.32595 | AB25: 16866.54308 | AC25: 6506.782867 | AE25: 6480.905862 | AG25: =IF($B25<121,VLOOKUP($B25,Lookups!A:I,8)*(1-VLOOKUP($B25,Lookups!$U$3:$W$103,2))^(B25-$B$3),"") -> 0.3517879635 | AH25: =IF($B25<121,VLOOKUP($B25,Lookups!A:I,9)*(1-VLOOKUP($B25,Lookups!$U$3:$W$103,3))^(B25-$B$3),"") -> 0.3226749573 | AI25: 0.3372314604 | AJ25: 0.02000563033 | AK25: 0.6249144203 | AL25: 0.839013 | AO25: 67.97937842
A26: 2045 | B26: 105 | D26: =VLOOKUP(B26,Lookups!A:B,2) -> 4581.943943 | E26: =VLOOKUP(B26,Lookups!A:C,3) -> 2278.897488 | G26: =VLOOKUP(B26,Lookups!A:D,4) -> 7393.880202 | H26: =VLOOKUP(B26,Lookups!A:E,5) -> 5013.956358 | J26: =VLOOKUP(A26,Trends!$A$3:$Q$94,IF(ExFlg=0,2,10))+Sens -> 1.052 | K26: 3.160484285 | L26: =VLOOKUP(A26,Trends!$A$3:$Q$94,IF(ExFlg=0,4,12))+Sens -> 1.052 | M26: 3.10385248 | N26: =VLOOKUP(A26,Trends!$A$3:$Z$94,IF(ExFlg=0,19,23))+Sens -> 1.053 | O26: 3.275838747 | P26: =VLOOKUP(A26,Trends!$A$3:$Q$94,IF(ExFlg=0,6,14))+Sens -> 1.053 | Q26: 3.181588563 | R26: =VLOOKUP(A26,Trends!$A$3:$Q$94,IF(ExFlg=0,8,16))+Sens -> 1.052 | S26: 3.325552785 | T26: =VLOOKUP(A26,Trends!$A$3:$Z$94,IF(ExFlg=0,21,25))+Sens -> 1.053 | U26: 3.542206712 | W26: 14221.67807 | X26: 7465.300692 | Y26: 6756.37738 | AA26: 24588.7389 | AB26: 17760.46987 | AC26: 6828.269033 | AE26: 6804.305388 | AG26: =IF($B26<121,VLOOKUP($B26,Lookups!A:I,8)*(1-VLOOKUP($B26,Lookups!$U$3:$W$103,2))^(B26-$B$3),"") -> 0.3703931542 | AH26: =IF($B26<121,VLOOKUP($B26,Lookups!A:I,9)*(1-VLOOKUP($B26,Lookups!$U$3:$W$103,3))^(B26-$B$3),"") -> 0.3430710193 | AI26: 0.3567320867 | AJ26: 0.0132591024 | AK26: 0.6117016643 | AL26: 0.830264 | AO26: 45.81986354
A27: 2046 | B27: 106 | D27: =VLOOKUP(B27,Lookups!A:B,2) -> 4581.943943 | E27: =VLOOKUP(B27,Lookups!A:C,3) -> 2278.897488 | G27: =VLOOKUP(B27,Lookups!A:D,4) -> 7393.880202 | H27: =VLOOKUP(B27,Lookups!A:E,5) -> 5013.956358 | J27: =VLOOKUP(A27,Trends!$A$3:$Q$94,IF(ExFlg=0,2,10))+Sens -> 1.052 | K27: 3.324829468 | L27: =VLOOKUP(A27,Trends!$A$3:$Q$94,IF(ExFlg=0,4,12))+Sens -> 1.052 | M27: 3.265252809 | N27: =VLOOKUP(A27,Trends!$A$3:$Z$94,IF(ExFlg=0,19,23))+Sens -> 1.053 | O27: 3.449458201 | P27: =VLOOKUP(A27,Trends!$A$3:$Q$94,IF(ExFlg=0,6,14))+Sens -> 1.053 | Q27: 3.350212757 | R27: =VLOOKUP(A27,Trends!$A$3:$Q$94,IF(ExFlg=0,8,16))+Sens -> 1.052 | S27: 3.49848153 | T27: =VLOOKUP(A27,Trends!$A$3:$Z$94,IF(ExFlg=0,21,25))+Sens -> 1.053 | U27: 3.729943668 | W27: 14961.20533 | X27: 7860.961628 | Y27: 7100.243703 | AA27: 25867.35332 | AB27: 18701.77477 | AC27: 7165.578552 | AE27: 7143.800487 | AG27: =IF($B27<121,VLOOKUP($B27,Lookups!A:I,8)*(1-VLOOKUP($B27,Lookups!$U$3:$W$103,2))^(B27-$B$3),"") -> 0.3903398617 | AH27: =IF($B27<121,VLOOKUP($B27,Lookups!A:I,9)*(1-VLOOKUP($B27,Lookups!$U$3:$W$103,3))^(B27-$B$3),"") -> 0.3648193539 | AI27: 0.3775796078 | AJ27: 0.008529155133 | AK27: 0.5987682697 | AL27: 0.820911 | AO27: 29.94954188
A28: 2047 | B28: 107 | D28: =VLOOKUP(B28,Lookups!A:B,2) -> 4581.943943 | E28: =VLOOKUP(B28,Lookups!A:C,3) -> 2278.897488 | G28: =VLOOKUP(B28,Lookups!A:D,4) -> 7393.880202 | H28: =VLOOKUP(B28,Lookups!A:E,5) -> 5013.956358 | J28: =VLOOKUP(A28,Trends!$A$3:$Q$94,IF(ExFlg=0,2,10))+Sens -> 1.053 | K28: 3.4977206 | L28: =VLOOKUP(A28,Trends!$A$3:$Q$94,IF(ExFlg=0,4,12))+Sens -> 1.052 | M28: 3.435045956 | N28: =VLOOKUP(A28,Trends!$A$3:$Z$94,IF(ExFlg=0,19,23))+Sens -> 1.053 | O28: 3.632279485 | P28: =VLOOKUP(A28,Trends!$A$3:$Q$94,IF(ExFlg=0,6,14))+Sens -> 1.053 | Q28: 3.527774033 | R28: =VLOOKUP(A28,Trends!$A$3:$Q$94,IF(ExFlg=0,8,16))+Sens -> 1.053 | S28: 3.68040257 | T28: =VLOOKUP(A28,Trends!$A$3:$Z$94,IF(ExFlg=0,21,25))+Sens -> 1.054 | U28: 3.927630682 | W28: 15739.18801 | X28: 8277.592595 | Y28: 7461.595414 | AA28: 27212.45569 | AB28: 19692.96883 | AC28: 7519.486862 | AE28: 7500.189906 | AG28: =IF($B28<121,VLOOKUP($B28,Lookups!A:I,8)*(1-VLOOKUP($B28,Lookups!$U$3:$W$103,2))^(B28-$B$3),"") -> 0.408878075 | AH28: =IF($B28<121,VLOOKUP($B28,Lookups!A:I,9)*(1-VLOOKUP($B28,Lookups!$U$3:$W$103,3))^(B28-$B$3),"") -> 0.3853128114 | AI28: 0.3970954432 | AJ28: 0.005308720083 | AK28: 0.5861083298 | AL28: 0.812155 | AO28: 18.95304102
A29: 2048 | B29: 108 | D29: =VLOOKUP(B29,Lookups!A:B,2) -> 4581.943943 | E29: =VLOOKUP(B29,Lookups!A:C,3) -> 2278.897488 | G29: =VLOOKUP(B29,Lookups!A:D,4) -> 7393.880202 | H29: =VLOOKUP(B29,Lookups!A:E,5) -> 5013.956358 | J29: =VLOOKUP(A29,Trends!$A$3:$Q$94,IF(ExFlg=0,2,10))+Sens -> 1.053 | K29: 3.683099792 | L29: =VLOOKUP(A29,Trends!$A$3:$Q$94,IF(ExFlg=0,4,12))+Sens -> 1.052 | M29: 3.613668345 | N29: =VLOOKUP(A29,Trends!$A$3:$Z$94,IF(ExFlg=0,19,23))+Sens -> 1.053 | O29: 3.824790298 | P29: =VLOOKUP(A29,Trends!$A$3:$Q$94,IF(ExFlg=0,6,14))+Sens -> 1.053 | Q29: 3.714746057 | R29: =VLOOKUP(A29,Trends!$A$3:$Q$94,IF(ExFlg=0,8,16))+Sens -> 1.053 | S29: 3.875463906 | T29: =VLOOKUP(A29,Trends!$A$3:$Z$94,IF(ExFlg=0,21,25))+Sens -> 1.054 | U29: 4.139722739 | W29: 16557.62578 | X29: 8716.305002 | Y29: 7841.320782 | AA29: 28654.71585 | AB29: 20756.38915 | AC29: 7898.326697 | AE29: 7879.324916 | AG29: =IF($B29<121,VLOOKUP($B29,Lookups!A:I,8)*(1-VLOOKUP($B29,Lookups!$U$3:$W$103,2))^(B29-$B$3),"") -> 0.427282988 | AH29: =IF($B29<121,VLOOKUP($B29,Lookups!A:I,9)*(1-VLOOKUP($B29,Lookups!$U$3:$W$103,3))^(B29-$B$3),"") -> 0.4057029834 | AI29: 0.4164929857 | AJ29: 0.003200651529 | AK29: 0.5737160628 | AL29: 0.803453 | AO29: 11.62478391
A30: 2049 | B30: 109 | D30: =VLOOKUP(B30,Lookups!A:B,2) -> 4581.943943 | E30: =VLOOKUP(B30,Lookups!A:C,3) -> 2278.897488 | G30: =VLOOKUP(B30,Lookups!A:D,4) -> 7393.880202 | H30: =VLOOKUP(B30,Lookups!A:E,5) -> 5013.956358 | J30: =VLOOKUP(A30,Trends!$A$3:$Q$94,IF(ExFlg=0,2,10))+Sens -> 1.052 | K30: 3.878304081 | L30: =VLOOKUP(A30,Trends!$A$3:$Q$94,IF(ExFlg=0,4,12))+Sens -> 1.052 | M30: 3.801579099 | N30: =VLOOKUP(A30,Trends!$A$3:$Z$94,IF(ExFlg=0,19,23))+Sens -> 1.053 | O30: 4.027504184 | P30: =VLOOKUP(A30,Trends!$A$3:$Q$94,IF(ExFlg=0,6,14))+Sens -> 1.053 | Q30: 3.911627598 | R30: =VLOOKUP(A30,Trends!$A$3:$Q$94,IF(ExFlg=0,8,16))+Sens -> 1.052 | S30: 4.080863493 | T30: =VLOOKUP(A30,Trends!$A$3:$Z$94,IF(ExFlg=0,21,25))+Sens -> 1.053 | U30: 4.363267767 | W30: 17418.62233 | X30: 9178.269167 | Y30: 8240.353158 | AA30: 30173.41579 | AB30: 21877.23416 | AC30: 8296.181623 | AE30: 8277.572321 | AG30: =IF($B30<121,VLOOKUP($B30,Lookups!A:I,8)*(1-VLOOKUP($B30,Lookups!$U$3:$W$103,2))^(B30-$B$3),"") -> 0.445555935 | AH30: =IF($B30<121,VLOOKUP($B30,Lookups!A:I,9)*(1-VLOOKUP($B30,Lookups!$U$3:$W$103,3))^(B30-$B$3),"") -> 0.4259328059 | AI30: 0.4357443704 | AJ30: 0.001867602617 | AK30: 0.5615858093 | AL30: 0.794816 | AO30: 6.900335133
A31: 2050 | B31: 110 | D31: =VLOOKUP(B31,Lookups!A:B,2) -> 4581.943943 | E31: =VLOOKUP(B31,Lookups!A:C,3) -> 2278.897488 | G31: =VLOOKUP(B31,Lookups!A:D,4) -> 7393.880202 | H31: =VLOOKUP(B31,Lookups!A:E,5) -> 5013.956358 | J31: =VLOOKUP(A31,Trends!$A$3:$Q$94,IF(ExFlg=0,2,10))+Sens -> 1.052 | K31: 4.079975893 | L31: =VLOOKUP(A31,Trends!$A$3:$Q$94,IF(ExFlg=0,4,12))+Sens -> 1.051 | M31: 3.999261212 | N31: =VLOOKUP(A31,Trends!$A$3:$Z$94,IF(ExFlg=0,19,23))+Sens -> 1.052 | O31: 4.240961906 | P31: =VLOOKUP(A31,Trends!$A$3:$Q$94,IF(ExFlg=0,6,14))+Sens -> 1.052 | Q31: 4.118943861 | R31: =VLOOKUP(A31,Trends!$A$3:$Q$94,IF(ExFlg=0,8,16))+Sens -> 1.052 | S31: 4.293068395 | T31: =VLOOKUP(A31,Trends!$A$3:$Z$94,IF(ExFlg=0,21,25))+Sens -> 1.053 | U31: 4.594520959 | W31: 18324.39069 | X31: 9664.717433 | Y31: 8659.673253 | AA31: 31742.43341 | AB31: 23036.72757 | AC31: 8705.705833 | AE31: 8690.361793 | AG31: =IF($B31<121,VLOOKUP($B31,Lookups!A:I,8)*(1-VLOOKUP($B31,Lookups!$U$3:$W$103,2))^(B31-$B$3),"") -> 0.4596753346 | AH31: =IF($B31<121,VLOOKUP($B31,Lookups!A:I,9)*(1-VLOOKUP($B31,Lookups!$U$3:$W$103,3))^(B31-$B$3),"") -> 0.4477693811 | AI31: 0.4537223579 | AJ31: 0.001053805291 | AK31: 0.5497120295 | AL31: 0.78675 | AO31: 3.960684276
A32: 2051 | B32: 111 | D32: =VLOOKUP(B32,Lookups!A:B,2) -> 4581.943943 | E32: =VLOOKUP(B32,Lookups!A:C,3) -> 2278.897488 | G32: =VLOOKUP(B32,Lookups!A:D,4) -> 7393.880202 | H32: =VLOOKUP(B32,Lookups!A:E,5) -> 5013.956358 | J32: =VLOOKUP(A32,Trends!$A$3:$Q$94,IF(ExFlg=0,2,10))+Sens -> 1.051 | K32: 4.292134639 | L32: =VLOOKUP(A32,Trends!$A$3:$Q$94,IF(ExFlg=0,4,12))+Sens -> 1.051 | M32: 4.203223534 | N32: =VLOOKUP(A32,Trends!$A$3:$Z$94,IF(ExFlg=0,19,23))+Sens -> 1.052 | O32: 4.461491925 | P32: =VLOOKUP(A32,Trends!$A$3:$Q$94,IF(ExFlg=0,6,14))+Sens -> 1.052 | Q32: 4.333128942 | R32: =VLOOKUP(A32,Trends!$A$3:$Q$94,IF(ExFlg=0,8,16))+Sens -> 1.051 | S32: 4.516307951 | T32: =VLOOKUP(A32,Trends!$A$3:$Z$94,IF(ExFlg=0,21,25))+Sens -> 1.052 | U32: 4.83803057 | W32: 19258.93461 | X32: 10167.28274 | Y32: 9091.651872 | AA32: 33393.03994 | AB32: 24257.67413 | AC32: 9135.365809 | AE32: 9120.794642 | AG32: =IF($B32<121,VLOOKUP($B32,Lookups!A:I,8)*(1-VLOOKUP($B32,Lookups!$U$3:$W$103,2))^(B32-$B$3),"") -> 0.4663093864 | AH32: =IF($B32<121,VLOOKUP($B32,Lookups!A:I,9)*(1-VLOOKUP($B32,Lookups!$U$3:$W$103,3))^(B32-$B$3),"") -> 0.4663093864 | AI32: 0.4663093864 | AJ32: 0.0005756702694 | AK32: 0.5380893006 | AL32: 0.781103 | AO32: 2.206831329
A33: 2052 | B33: 112 | D33: =VLOOKUP(B33,Lookups!A:B,2) -> 4581.943943 | E33: =VLOOKUP(B33,Lookups!A:C,3) -> 2278.897488 | G33: =VLOOKUP(B33,Lookups!A:D,4) -> 7393.880202 | H33: =VLOOKUP(B33,Lookups!A:E,5) -> 5013.956358 | J33: =VLOOKUP(A33,Trends!$A$3:$Q$94,IF(ExFlg=0,2,10))+Sens -> 1.051 | K33: 4.511033506 | L33: =VLOOKUP(A33,Trends!$A$3:$Q$94,IF(ExFlg=0,4,12))+Sens -> 1.051 | M33: 4.417587934 | N33: =VLOOKUP(A33,Trends!$A$3:$Z$94,IF(ExFlg=0,19,23))+Sens -> 1.052 | O33: 4.693489505 | P33: =VLOOKUP(A33,Trends!$A$3:$Q$94,IF(ExFlg=0,6,14))+Sens -> 1.051 | Q33: 4.558451647 | R33: =VLOOKUP(A33,Trends!$A$3:$Q$94,IF(ExFlg=0,8,16))+Sens -> 1.051 | S33: 4.746639657 | T33: =VLOOKUP(A33,Trends!$A$3:$Z$94,IF(ExFlg=0,21,25))+Sens -> 1.052 | U33: 5.089608159 | W33: 20241.14028 | X33: 10695.98144 | Y33: 9545.158834 | AA33: 35096.08498 | AB33: 25519.07319 | AC33: 9577.011791 | AE33: 9566.394245 | AG33: =IF($B33<121,VLOOKUP($B33,Lookups!A:I,8)*(1-VLOOKUP($B33,Lookups!$U$3:$W$103,2))^(B33-$B$3),"") -> 0.4734151947 | AH33: =IF($B33<121,VLOOKUP($B33,Lookups!A:I,9)*(1-VLOOKUP($B33,Lookups!$U$3:$W$103,3))^(B33-$B$3),"") -> 0.4734151947 | AI33: 0.4734151947 | AJ33: 0.0003072298193 | AK33: 0.5267123146 | AL33: 0.777915 | AO33: 1.204251673
A34: 2053 | B34: 113 | D34: =VLOOKUP(B34,Lookups!A:B,2) -> 4581.943943 | E34: =VLOOKUP(B34,Lookups!A:C,3) -> 2278.897488 | G34: =VLOOKUP(B34,Lookups!A:D,4) -> 7393.880202 | H34: =VLOOKUP(B34,Lookups!A:E,5) -> 5013.956358 | J34: =VLOOKUP(A34,Trends!$A$3:$Q$94,IF(ExFlg=0,2,10))+Sens -> 1.051 | K34: 4.741096215 | L34: =VLOOKUP(A34,Trends!$A$3:$Q$94,IF(ExFlg=0,4,12))+Sens -> 1.05 | M34: 4.642884919 | N34: =VLOOKUP(A34,Trends!$A$3:$Z$94,IF(ExFlg=0,19,23))+Sens -> 1.051 | O34: 4.937550959 | P34: =VLOOKUP(A34,Trends!$A$3:$Q$94,IF(ExFlg=0,6,14))+Sens -> 1.051 | Q34: 4.790932681 | R34: =VLOOKUP(A34,Trends!$A$3:$Q$94,IF(ExFlg=0,8,16))+Sens -> 1.051 | S34: 4.988718279 | T34: =VLOOKUP(A34,Trends!$A$3:$Z$94,IF(ExFlg=0,21,25))+Sens -> 1.052 | U34: 5.354267783 | W34: 21273.43843 | X34: 11252.17248 | Y34: 10021.26595 | AA34: 36885.98531 | AB34: 26846.065 | AC34: 10039.92032 | AE34: 10033.70226 | AG34: =IF($B34<121,VLOOKUP($B34,Lookups!A:I,8)*(1-VLOOKUP($B34,Lookups!$U$3:$W$103,2))^(B34-$B$3),"") -> 0.4810110809 | AH34: =IF($B34<121,VLOOKUP($B34,Lookups!A:I,9)*(1-VLOOKUP($B34,Lookups!$U$3:$W$103,3))^(B34-$B$3),"") -> 0.4810110809 | AI34: 0.4810110809 | AJ34: 0.0001617825546 | AK34: 0.5155758757 | AL34: 0.774507 | AO34: 0.6482026971
A35: 2054 | B35: 114 | D35: =VLOOKUP(B35,Lookups!A:B,2) -> 4581.943943 | E35: =VLOOKUP(B35,Lookups!A:C,3) -> 2278.897488 | G35: =VLOOKUP(B35,Lookups!A:D,4) -> 7393.880202 | H35: =VLOOKUP(B35,Lookups!A:E,5) -> 5013.956358 | J35: =VLOOKUP(A35,Trends!$A$3:$Q$94,IF(ExFlg=0,2,10))+Sens -> 1.051 | K35: 4.982892122 | L35: =VLOOKUP(A35,Trends!$A$3:$Q$94,IF(ExFlg=0,4,12))+Sens -> 1.05 | M35: 4.875029165 | N35: =VLOOKUP(A35,Trends!$A$3:$Z$94,IF(ExFlg=0,19,23))+Sens -> 1.051 | O35: 5.189366058 | P35: =VLOOKUP(A35,Trends!$A$3:$Q$94,IF(ExFlg=0,6,14))+Sens -> 1.051 | Q35: 5.035270247 | R35: =VLOOKUP(A35,Trends!$A$3:$Q$94,IF(ExFlg=0,8,16))+Sens -> 1.051 | S35: 5.243142911 | T35: =VLOOKUP(A35,Trends!$A$3:$Z$94,IF(ExFlg=0,21,25))+Sens -> 1.052 | U35: 5.632689708 | W35: =IF(B35<65,D35*K35,D35*M35) -> 22337.11035 | X35: 11826.03327 | Y35: =W35-X35 -> 10511.07708 | AA35: =IF(B35<65,G35*Q35,G35*S35) -> 38767.17057 | AB35: 28242.06038 | AC35: =AA35-AB35 -> 10525.11019 | AE35: =(1-PctUMP)*Y35+PctUMP*AC35 -> 10520.43253 | AG35: =IF($B35<121,VLOOKUP($B35,Lookups!A:I,8)*(1-VLOOKUP($B35,Lookups!$U$3:$W$103,2))^(B35-$B$3),"") -> 0.4912756563 | AH35: =IF($B35<121,VLOOKUP($B35,Lookups!A:I,9)*(1-VLOOKUP($B35,Lookups!$U$3:$W$103,3))^(B35-$B$3),"") -> 0.4912756563 | AI35: =IF(B35<121,(PCTMALE*AG35+(1-PCTMALE)*AH35),"") -> 0.4912756563 | AJ35: 8.396335314e-05 | AK35: 0.5046748979 | AL35: =IF(AI35="","",ROUND((13/24)+(11/24)*(1/(1+IntRt))*(1-AI35),6)) -> 0.769902 | AN35: =IF(B35<65,AE35*AJ35*AK35*AL35,"") ->  | AO35: 0.3432183676
A36: =1+A35 -> 2055 | B36: =1+B35 -> 115 | D36: =VLOOKUP(B36,Lookups!A:B,2) -> 4581.943943 | E36: =VLOOKUP(B36,Lookups!A:C,3) -> 2278.897488 | G36: =VLOOKUP(B36,Lookups!A:D,4) -> 7393.880202 | H36: =VLOOKUP(B36,Lookups!A:E,5) -> 5013.956358 | J36: =VLOOKUP(A36,Trends!$A$3:$Q$94,IF(ExFlg=0,2,10))+Sens -> 1.051 | K36: 5.23701962 | L36: =VLOOKUP(A36,Trends!$A$3:$Q$94,IF(ExFlg=0,4,12))+Sens -> 1.05 | M36: 5.118780623 | N36: =VLOOKUP(A36,Trends!$A$3:$Z$94,IF(ExFlg=0,19,23))+Sens -> 1.051 | O36: 5.454023727 | P36: =VLOOKUP(A36,Trends!$A$3:$Q$94,IF(ExFlg=0,6,14))+Sens -> 1.051 | Q36: 5.29206903 | R36: =VLOOKUP(A36,Trends!$A$3:$Q$94,IF(ExFlg=0,8,16))+Sens -> 1.051 | S36: 5.5105432 | T36: =VLOOKUP(A36,Trends!$A$3:$Z$94,IF(ExFlg=0,21,25))+Sens -> 1.052 | U36: 5.925589573 | W36: 23453.96587 | X36: 12429.16097 | Y36: 11024.8049 | AA36: 40744.29626 | AB36: 29710.64751 | AC36: 11033.64875 | AE36: 11030.70083 | AG36: =IF($B36<121,VLOOKUP($B36,Lookups!A:I,8)*(1-VLOOKUP($B36,Lookups!$U$3:$W$103,2))^(B36-$B$3),"") -> 0.5 | AH36: =IF($B36<121,VLOOKUP($B36,Lookups!A:I,9)*(1-VLOOKUP($B36,Lookups!$U$3:$W$103,3))^(B36-$B$3),"") -> 0.5 | AI36: 0.5 | AJ36: 4.271420172e-05 | AK36: =IF(B36<121,AK35/(1+IntRt),"") -> 0.4940044028 | AL36: 0.765988 | AO36: 0.178290493
A37: 2056 | B37: 116 | D37: =VLOOKUP(B37,Lookups!A:B,2) -> 4581.943943 | E37: =VLOOKUP(B37,Lookups!A:C,3) -> 2278.897488 | G37: =VLOOKUP(B37,Lookups!A:D,4) -> 7393.880202 | H37: =VLOOKUP(B37,Lookups!A:E,5) -> 5013.956358 | J37: =VLOOKUP(A37,Trends!$A$3:$Q$94,IF(ExFlg=0,2,10))+Sens -> 1.051 | K37: 5.50410762 | L37: =VLOOKUP(A37,Trends!$A$3:$Q$94,IF(ExFlg=0,4,12))+Sens -> 1.05 | M37: 5.374719654 | N37: =VLOOKUP(A37,Trends!$A$3:$Z$94,IF(ExFlg=0,19,23))+Sens -> 1.05 | O37: 5.732178937 | P37: =VLOOKUP(A37,Trends!$A$3:$Q$94,IF(ExFlg=0,6,14))+Sens -> 1.051 | Q37: 5.56196455 | R37: =VLOOKUP(A37,Trends!$A$3:$Q$94,IF(ExFlg=0,8,16))+Sens -> 1.051 | S37: 5.791580903 | T37: =VLOOKUP(A37,Trends!$A$3:$Z$94,IF(ExFlg=0,21,25))+Sens -> 1.051 | U37: 6.233720231 | W37: 24626.66416 | X37: 13063.04818 | Y37: 11563.61598 | AA37: 42822.25537 | AB37: 31255.60119 | AC37: 11566.65419 | AE37: 11565.64146 | AG37: =IF($B37<121,VLOOKUP($B37,Lookups!A:I,8)*(1-VLOOKUP($B37,Lookups!$U$3:$W$103,2))^(B37-$B$3),"") -> 0.5 | AH37: =IF($B37<121,VLOOKUP($B37,Lookups!A:I,9)*(1-VLOOKUP($B37,Lookups!$U$3:$W$103,3))^(B37-$B$3),"") -> 0.5 | AI37: 0.5 | AJ37: 2.135710086e-05 | AK37: 0.4835595172 | AL37: 0.765988 | AO37: 0.0914921693
A38: 2057 | B38: 117 | D38: =VLOOKUP(B38,Lookups!A:B,2) -> 4581.943943 | E38: =VLOOKUP(B38,Lookups!A:C,3) -> 2278.897488 | G38: =VLOOKUP(B38,Lookups!A:D,4) -> 7393.880202 | H38: =VLOOKUP(B38,Lookups!A:E,5) -> 5013.956358 | J38: =VLOOKUP(A38,Trends!$A$3:$Q$94,IF(ExFlg=0,2,10))+Sens -> 1.051 | K38: 5.784817109 | L38: =VLOOKUP(A38,Trends!$A$3:$Q$94,IF(ExFlg=0,4,12))+Sens -> 1.05 | M38: 5.643455637 | N38: =VLOOKUP(A38,Trends!$A$3:$Z$94,IF(ExFlg=0,19,23))+Sens -> 1.05 | O38: 6.018787884 | P38: =VLOOKUP(A38,Trends!$A$3:$Q$94,IF(ExFlg=0,6,14))+Sens -> 1.051 | Q38: 5.845624743 | R38: =VLOOKUP(A38,Trends!$A$3:$Q$94,IF(ExFlg=0,8,16))+Sens -> 1.05 | S38: 6.086951529 | T38: =VLOOKUP(A38,Trends!$A$3:$Z$94,IF(ExFlg=0,21,25))+Sens -> 1.05 | U38: 6.551639963 | W38: 25857.99737 | X38: 13716.20059 | Y38: 12141.79678 | AA38: 45006.1904 | AB38: 32849.63685 | AC38: 12156.55355 | AE38: 12151.63468 | AG38: =IF($B38<121,VLOOKUP($B38,Lookups!A:I,8)*(1-VLOOKUP($B38,Lookups!$U$3:$W$103,2))^(B38-$B$3),"") -> 0.5 | AH38: =IF($B38<121,VLOOKUP($B38,Lookups!A:I,9)*(1-VLOOKUP($B38,Lookups!$U$3:$W$103,3))^(B38-$B$3),"") -> 0.5 | AI38: 0.5 | AJ38: 1.067855043e-05 | AK38: 0.473335471 | AL38: 0.765988 | AO38: 0.04704765965
A39: 2058 | B39: 118 | D39: =VLOOKUP(B39,Lookups!A:B,2) -> 4581.943943 | E39: =VLOOKUP(B39,Lookups!A:C,3) -> 2278.897488 | G39: =VLOOKUP(B39,Lookups!A:D,4) -> 7393.880202 | H39: =VLOOKUP(B39,Lookups!A:E,5) -> 5013.956358 | J39: =VLOOKUP(A39,Trends!$A$3:$Q$94,IF(ExFlg=0,2,10))+Sens -> 1.05 | K39: 6.079842782 | L39: =VLOOKUP(A39,Trends!$A$3:$Q$94,IF(ExFlg=0,4,12))+Sens -> 1.05 | M39: 5.925628419 | N39: =VLOOKUP(A39,Trends!$A$3:$Z$94,IF(ExFlg=0,19,23))+Sens -> 1.05 | O39: 6.319727278 | P39: =VLOOKUP(A39,Trends!$A$3:$Q$94,IF(ExFlg=0,6,14))+Sens -> 1.051 | Q39: 6.143751604 | R39: =VLOOKUP(A39,Trends!$A$3:$Q$94,IF(ExFlg=0,8,16))+Sens -> 1.05 | S39: 6.391299105 | T39: =VLOOKUP(A39,Trends!$A$3:$Z$94,IF(ExFlg=0,21,25))+Sens -> 1.05 | U39: 6.879221961 | W39: 27150.89724 | X39: 14402.01062 | Y39: 12748.88662 | AA39: 47256.49992 | AB39: 34492.11869 | AC39: 12764.38123 | AE39: 12759.21641 | AG39: =IF($B39<121,VLOOKUP($B39,Lookups!A:I,8)*(1-VLOOKUP($B39,Lookups!$U$3:$W$103,2))^(B39-$B$3),"") -> 0.5 | AH39: =IF($B39<121,VLOOKUP($B39,Lookups!A:I,9)*(1-VLOOKUP($B39,Lookups!$U$3:$W$103,3))^(B39-$B$3),"") -> 0.5 | AI39: 0.5 | AJ39: 5.339275215e-06 | AK39: 0.463327595 | AL39: 0.765988 | AO39: 0.02417778124
A40: 2059 | B40: 119 | D40: =VLOOKUP(B40,Lookups!A:B,2) -> 4581.943943 | E40: =VLOOKUP(B40,Lookups!A:C,3) -> 2278.897488 | G40: =VLOOKUP(B40,Lookups!A:D,4) -> 7393.880202 | H40: =VLOOKUP(B40,Lookups!A:E,5) -> 5013.956358 | J40: =VLOOKUP(A40,Trends!$A$3:$Q$94,IF(ExFlg=0,2,10))+Sens -> 1.05 | K40: 6.383834921 | L40: =VLOOKUP(A40,Trends!$A$3:$Q$94,IF(ExFlg=0,4,12))+Sens -> 1.05 | M40: 6.22190984 | N40: =VLOOKUP(A40,Trends!$A$3:$Z$94,IF(ExFlg=0,19,23))+Sens -> 1.05 | O40: 6.635713642 | P40: =VLOOKUP(A40,Trends!$A$3:$Q$94,IF(ExFlg=0,6,14))+Sens -> 1.051 | Q40: 6.457082936 | R40: =VLOOKUP(A40,Trends!$A$3:$Q$94,IF(ExFlg=0,8,16))+Sens -> 1.05 | S40: 6.710864061 | T40: =VLOOKUP(A40,Trends!$A$3:$Z$94,IF(ExFlg=0,21,25))+Sens -> 1.05 | U40: 7.223183059 | W40: 28508.4421 | X40: 15122.11115 | Y40: 13386.33095 | AA40: 49619.32491 | AB40: 36216.72462 | AC40: 13402.60029 | AE40: 13397.17723 | AG40: =IF($B40<121,VLOOKUP($B40,Lookups!A:I,8)*(1-VLOOKUP($B40,Lookups!$U$3:$W$103,2))^(B40-$B$3),"") -> 0.5 | AH40: =IF($B40<121,VLOOKUP($B40,Lookups!A:I,9)*(1-VLOOKUP($B40,Lookups!$U$3:$W$103,3))^(B40-$B$3),"") -> 0.5 | AI40: 0.5 | AJ40: 2.669637607e-06 | AK40: 0.4535313185 | AL40: 0.765988 | AO40: 0.0124249561
A41: 2060 | B41: 120 | D41: =VLOOKUP(B41,Lookups!A:B,2) -> 4581.943943 | E41: =VLOOKUP(B41,Lookups!A:C,3) -> 2278.897488 | G41: =VLOOKUP(B41,Lookups!A:D,4) -> 7393.880202 | H41: =VLOOKUP(B41,Lookups!A:E,5) -> 5013.956358 | J41: =VLOOKUP(A41,Trends!$A$3:$Q$94,IF(ExFlg=0,2,10))+Sens -> 1.05 | K41: 6.703026667 | L41: =VLOOKUP(A41,Trends!$A$3:$Q$94,IF(ExFlg=0,4,12))+Sens -> 1.05 | M41: 6.533005332 | N41: =VLOOKUP(A41,Trends!$A$3:$Z$94,IF(ExFlg=0,19,23))+Sens -> 1.05 | O41: 6.967499324 | P41: =VLOOKUP(A41,Trends!$A$3:$Q$94,IF(ExFlg=0,6,14))+Sens -> 1.051 | Q41: 6.786394166 | R41: =VLOOKUP(A41,Trends!$A$3:$Q$94,IF(ExFlg=0,8,16))+Sens -> 1.05 | S41: 7.046407264 | T41: =VLOOKUP(A41,Trends!$A$3:$Z$94,IF(ExFlg=0,21,25))+Sens -> 1.05 | U41: 7.584342212 | W41: 29933.86421 | X41: 15878.21671 | Y41: 14055.6475 | AA41: 52100.29116 | AB41: 38027.56085 | AC41: 14072.73031 | AE41: 14067.03609 | AG41: =IF($B41<121,VLOOKUP($B41,Lookups!A:I,8)*(1-VLOOKUP($B41,Lookups!$U$3:$W$103,2))^(B41-$B$3),"") -> 1 | AH41: =IF($B41<121,VLOOKUP($B41,Lookups!A:I,9)*(1-VLOOKUP($B41,Lookups!$U$3:$W$103,3))^(B41-$B$3),"") -> 1 | AI41: 1 | AJ41: 1.334818804e-06 | AK41: 0.4439421677 | AL41: 0.541667 | AO41: 0.004515269677
A42: 2061 | B42: 121 | D42: =VLOOKUP(B42,Lookups!A:B,2) -> 4581.943943 | E42: =VLOOKUP(B42,Lookups!A:C,3) -> 2278.897488 | G42: =VLOOKUP(B42,Lookups!A:D,4) -> 7393.880202 | H42: =VLOOKUP(B42,Lookups!A:E,5) -> 5013.956358 | J42: =VLOOKUP(A42,Trends!$A$3:$Q$94,IF(ExFlg=0,2,10))+Sens -> 1.05 | K42: 7.038178 | L42: =VLOOKUP(A42,Trends!$A$3:$Q$94,IF(ExFlg=0,4,12))+Sens -> 1.05 | M42: 6.859655599 | N42: =VLOOKUP(A42,Trends!$A$3:$Z$94,IF(ExFlg=0,19,23))+Sens -> 1.05 | O42: 7.31587429 | P42: =VLOOKUP(A42,Trends!$A$3:$Q$94,IF(ExFlg=0,6,14))+Sens -> 1.05 | Q42: 7.132500268 | R42: =VLOOKUP(A42,Trends!$A$3:$Q$94,IF(ExFlg=0,8,16))+Sens -> 1.05 | S42: 7.398727627 | T42: =VLOOKUP(A42,Trends!$A$3:$Z$94,IF(ExFlg=0,21,25))+Sens -> 1.05 | U42: 7.963559322 | W42: 31430.55742 | X42: 16672.12754 | Y42: 14758.42988 | AA42: 54705.30572 | AB42: 39928.9389 | AC42: 14776.36682 | AE42: 14770.3879 | AG42: =IF($B42<121,VLOOKUP($B42,Lookups!A:I,8)*(1-VLOOKUP($B42,Lookups!$U$3:$W$103,2))^(B42-$B$3),"") ->  | AH42: =IF($B42<121,VLOOKUP($B42,Lookups!A:I,9)*(1-VLOOKUP($B42,Lookups!$U$3:$W$103,3))^(B42-$B$3),"") -> 
A43: 2062 | B43: 122 | D43: =VLOOKUP(B43,Lookups!A:B,2) -> 4581.943943 | E43: =VLOOKUP(B43,Lookups!A:C,3) -> 2278.897488 | G43: =VLOOKUP(B43,Lookups!A:D,4) -> 7393.880202 | H43: =VLOOKUP(B43,Lookups!A:E,5) -> 5013.956358 | J43: =VLOOKUP(A43,Trends!$A$3:$Q$94,IF(ExFlg=0,2,10))+Sens -> 1.05 | K43: 7.3900869 | L43: =VLOOKUP(A43,Trends!$A$3:$Q$94,IF(ExFlg=0,4,12))+Sens -> 1.05 | M43: 7.202638379 | N43: =VLOOKUP(A43,Trends!$A$3:$Z$94,IF(ExFlg=0,19,23))+Sens -> 1.05 | O43: 7.681668005 | P43: =VLOOKUP(A43,Trends!$A$3:$Q$94,IF(ExFlg=0,6,14))+Sens -> 1.05 | Q43: 7.489125282 | R43: =VLOOKUP(A43,Trends!$A$3:$Q$94,IF(ExFlg=0,8,16))+Sens -> 1.05 | S43: 7.768664008 | T43: =VLOOKUP(A43,Trends!$A$3:$Z$94,IF(ExFlg=0,21,25))+Sens -> 1.05 | U43: 8.361737288 | W43: 33002.08529 | X43: 17505.73392 | Y43: 15496.35137 | AA43: 57440.571 | AB43: 41925.38584 | AC43: 15515.18516 | AE43: 15508.90729 | AG43: =IF($B43<121,VLOOKUP($B43,Lookups!A:I,8)*(1-VLOOKUP($B43,Lookups!$U$3:$W$103,2))^(B43-$B$3),"") ->  | AH43: =IF($B43<121,VLOOKUP($B43,Lookups!A:I,9)*(1-VLOOKUP($B43,Lookups!$U$3:$W$103,3))^(B43-$B$3),"") -> 
A44: 2063 | B44: 123 | D44: =VLOOKUP(B44,Lookups!A:B,2) -> 4581.943943 | E44: =VLOOKUP(B44,Lookups!A:C,3) -> 2278.897488 | G44: =VLOOKUP(B44,Lookups!A:D,4) -> 7393.880202 | H44: =VLOOKUP(B44,Lookups!A:E,5) -> 5013.956358 | J44: =VLOOKUP(A44,Trends!$A$3:$Q$94,IF(ExFlg=0,2,10))+Sens -> 1.05 | K44: 7.759591245 | L44: =VLOOKUP(A44,Trends!$A$3:$Q$94,IF(ExFlg=0,4,12))+Sens -> 1.049 | M44: 7.562770297 | N44: =VLOOKUP(A44,Trends!$A$3:$Z$94,IF(ExFlg=0,19,23))+Sens -> 1.049 | O44: 8.065751405 | P44: =VLOOKUP(A44,Trends!$A$3:$Q$94,IF(ExFlg=0,6,14))+Sens -> 1.05 | Q44: 7.863581546 | R44: =VLOOKUP(A44,Trends!$A$3:$Q$94,IF(ExFlg=0,8,16))+Sens -> 1.05 | S44: 8.157097209 | T44: =VLOOKUP(A44,Trends!$A$3:$Z$94,IF(ExFlg=0,21,25))+Sens -> 1.05 | U44: 8.779824153 | W44: 34652.18955 | X44: 18381.02062 | Y44: 16271.16894 | AA44: 60312.59955 | AB44: 44021.65513 | AC44: 16290.94442 | AE44: 16284.35266 | AG44: =IF($B44<121,VLOOKUP($B44,Lookups!A:I,8)*(1-VLOOKUP($B44,Lookups!$U$3:$W$103,2))^(B44-$B$3),"") ->  | AH44: =IF($B44<121,VLOOKUP($B44,Lookups!A:I,9)*(1-VLOOKUP($B44,Lookups!$U$3:$W$103,3))^(B44-$B$3),"") -> 
A45: 2064 | B45: 124 | D45: =VLOOKUP(B45,Lookups!A:B,2) -> 4581.943943 | E45: =VLOOKUP(B45,Lookups!A:C,3) -> 2278.897488 | G45: =VLOOKUP(B45,Lookups!A:D,4) -> 7393.880202 | H45: =VLOOKUP(B45,Lookups!A:E,5) -> 5013.956358 | J45: =VLOOKUP(A45,Trends!$A$3:$Q$94,IF(ExFlg=0,2,10))+Sens -> 1.049 | K45: 8.147570807 | L45: =VLOOKUP(A45,Trends!$A$3:$Q$94,IF(ExFlg=0,4,12))+Sens -> 1.049 | M45: 7.933346042 | N45: =VLOOKUP(A45,Trends!$A$3:$Z$94,IF(ExFlg=0,19,23))+Sens -> 1.049 | O45: 8.460973224 | P45: =VLOOKUP(A45,Trends!$A$3:$Q$94,IF(ExFlg=0,6,14))+Sens -> 1.05 | Q45: 8.256760623 | R45: =VLOOKUP(A45,Trends!$A$3:$Q$94,IF(ExFlg=0,8,16))+Sens -> 1.049 | S45: 8.564952069 | T45: =VLOOKUP(A45,Trends!$A$3:$Z$94,IF(ExFlg=0,21,25))+Sens -> 1.049 | U45: 9.21881536 | W45: 36350.14684 | X45: 19281.69063 | Y45: 17068.45622 | AA45: 63328.22953 | AB45: 46222.73789 | AC45: 17105.49164 | AE45: 17093.14662 | AG45: =IF($B45<121,VLOOKUP($B45,Lookups!A:I,8)*(1-VLOOKUP($B45,Lookups!$U$3:$W$103,2))^(B45-$B$3),"") ->  | AH45: =IF($B45<121,VLOOKUP($B45,Lookups!A:I,9)*(1-VLOOKUP($B45,Lookups!$U$3:$W$103,3))^(B45-$B$3),"") -> 
A46: 2065 | B46: 125 | D46: =VLOOKUP(B46,Lookups!A:B,2) -> 4581.943943 | E46: =VLOOKUP(B46,Lookups!A:C,3) -> 2278.897488 | G46: =VLOOKUP(B46,Lookups!A:D,4) -> 7393.880202 | H46: =VLOOKUP(B46,Lookups!A:E,5) -> 5013.956358 | J46: =VLOOKUP(A46,Trends!$A$3:$Q$94,IF(ExFlg=0,2,10))+Sens -> 1.049 | K46: 8.546801777 | L46: =VLOOKUP(A46,Trends!$A$3:$Q$94,IF(ExFlg=0,4,12))+Sens -> 1.048 | M46: 8.322079998 | N46: =VLOOKUP(A46,Trends!$A$3:$Z$94,IF(ExFlg=0,19,23))+Sens -> 1.048 | O46: 8.875560912 | P46: =VLOOKUP(A46,Trends!$A$3:$Q$94,IF(ExFlg=0,6,14))+Sens -> 1.049 | Q46: 8.669598654 | R46: =VLOOKUP(A46,Trends!$A$3:$Q$94,IF(ExFlg=0,8,16))+Sens -> 1.049 | S46: 8.98463472 | T46: =VLOOKUP(A46,Trends!$A$3:$Z$94,IF(ExFlg=0,21,25))+Sens -> 1.049 | U46: 9.670537313 | W46: 38131.30404 | X46: 20226.49347 | Y46: 17904.81057 | AA46: 66431.31278 | AB46: 48487.65205 | AC46: 17943.66073 | AE46: 17930.71081 | AG46: =IF($B46<121,VLOOKUP($B46,Lookups!A:I,8)*(1-VLOOKUP($B46,Lookups!$U$3:$W$103,2))^(B46-$B$3),"") ->  | AH46: =IF($B46<121,VLOOKUP($B46,Lookups!A:I,9)*(1-VLOOKUP($B46,Lookups!$U$3:$W$103,3))^(B46-$B$3),"") -> 
A47: 2066 | B47: 126 | D47: =VLOOKUP(B47,Lookups!A:B,2) -> 4581.943943 | E47: =VLOOKUP(B47,Lookups!A:C,3) -> 2278.897488 | G47: =VLOOKUP(B47,Lookups!A:D,4) -> 7393.880202 | H47: =VLOOKUP(B47,Lookups!A:E,5) -> 5013.956358 | J47: =VLOOKUP(A47,Trends!$A$3:$Q$94,IF(ExFlg=0,2,10))+Sens -> 1.048 | K47: 8.965595064 | L47: =VLOOKUP(A47,Trends!$A$3:$Q$94,IF(ExFlg=0,4,12))+Sens -> 1.048 | M47: 8.721539838 | N47: =VLOOKUP(A47,Trends!$A$3:$Z$94,IF(ExFlg=0,19,23))+Sens -> 1.048 | O47: 9.301587835 | P47: =VLOOKUP(A47,Trends!$A$3:$Q$94,IF(ExFlg=0,6,14))+Sens -> 1.048 | Q47: 9.094408989 | R47: =VLOOKUP(A47,Trends!$A$3:$Q$94,IF(ExFlg=0,8,16))+Sens -> 1.048 | S47: 9.424881822 | T47: =VLOOKUP(A47,Trends!$A$3:$Z$94,IF(ExFlg=0,21,25))+Sens -> 1.048 | U47: 10.14439364 | W47: 39961.60663 | X47: 21197.36515 | Y47: 18764.24148 | AA47: 69686.4471 | AB47: 50863.547 | AC47: 18822.90011 | AE47: 18803.34743 | AG47: =IF($B47<121,VLOOKUP($B47,Lookups!A:I,8)*(1-VLOOKUP($B47,Lookups!$U$3:$W$103,2))^(B47-$B$3),"") ->  | AH47: =IF($B47<121,VLOOKUP($B47,Lookups!A:I,9)*(1-VLOOKUP($B47,Lookups!$U$3:$W$103,3))^(B47-$B$3),"") -> 
A48: 2067 | B48: 127 | D48: =VLOOKUP(B48,Lookups!A:B,2) -> 4581.943943 | E48: =VLOOKUP(B48,Lookups!A:C,3) -> 2278.897488 | G48: =VLOOKUP(B48,Lookups!A:D,4) -> 7393.880202 | H48: =VLOOKUP(B48,Lookups!A:E,5) -> 5013.956358 | J48: =VLOOKUP(A48,Trends!$A$3:$Q$94,IF(ExFlg=0,2,10))+Sens -> 1.047 | K48: 9.395943627 | L48: =VLOOKUP(A48,Trends!$A$3:$Q$94,IF(ExFlg=0,4,12))+Sens -> 1.047 | M48: 9.14017375 | N48: =VLOOKUP(A48,Trends!$A$3:$Z$94,IF(ExFlg=0,19,23))+Sens -> 1.047 | O48: 9.748064051 | P48: =VLOOKUP(A48,Trends!$A$3:$Q$94,IF(ExFlg=0,6,14))+Sens -> 1.047 | Q48: 9.53094062 | R48: =VLOOKUP(A48,Trends!$A$3:$Q$94,IF(ExFlg=0,8,16))+Sens -> 1.047 | S48: 9.877276149 | T48: =VLOOKUP(A48,Trends!$A$3:$Z$94,IF(ExFlg=0,21,25))+Sens -> 1.047 | U48: 10.63132454 | W48: 41879.76375 | X48: 22214.83868 | Y48: 19664.92507 | AA48: 73031.39657 | AB48: 53304.99725 | AC48: 19726.39931 | AE48: 19705.9081 | AG48: =IF($B48<121,VLOOKUP($B48,Lookups!A:I,8)*(1-VLOOKUP($B48,Lookups!$U$3:$W$103,2))^(B48-$B$3),"") ->  | AH48: =IF($B48<121,VLOOKUP($B48,Lookups!A:I,9)*(1-VLOOKUP($B48,Lookups!$U$3:$W$103,3))^(B48-$B$3),"") -> 
A49: 2068 | B49: 128 | D49: =VLOOKUP(B49,Lookups!A:B,2) -> 4581.943943 | E49: =VLOOKUP(B49,Lookups!A:C,3) -> 2278.897488 | G49: =VLOOKUP(B49,Lookups!A:D,4) -> 7393.880202 | H49: =VLOOKUP(B49,Lookups!A:E,5) -> 5013.956358 | J49: =VLOOKUP(A49,Trends!$A$3:$Q$94,IF(ExFlg=0,2,10))+Sens -> 1.046 | K49: 9.837552977 | L49: =VLOOKUP(A49,Trends!$A$3:$Q$94,IF(ExFlg=0,4,12))+Sens -> 1.046 | M49: 9.569761916 | N49: =VLOOKUP(A49,Trends!$A$3:$Z$94,IF(ExFlg=0,19,23))+Sens -> 1.046 | O49: 10.20622306 | P49: =VLOOKUP(A49,Trends!$A$3:$Q$94,IF(ExFlg=0,6,14))+Sens -> 1.047 | Q49: 9.978894829 | R49: =VLOOKUP(A49,Trends!$A$3:$Q$94,IF(ExFlg=0,8,16))+Sens -> 1.046 | S49: 10.34150813 | T49: =VLOOKUP(A49,Trends!$A$3:$Z$94,IF(ExFlg=0,21,25))+Sens -> 1.046 | U49: 11.13099679 | W49: 43848.11264 | X49: 23258.9361 | Y49: 20589.17655 | AA49: 76463.8722 | AB49: 55810.33212 | AC49: 20653.54008 | AE49: 20632.08578 | AG49: =IF($B49<121,VLOOKUP($B49,Lookups!A:I,8)*(1-VLOOKUP($B49,Lookups!$U$3:$W$103,2))^(B49-$B$3),"") ->  | AH49: =IF($B49<121,VLOOKUP($B49,Lookups!A:I,9)*(1-VLOOKUP($B49,Lookups!$U$3:$W$103,3))^(B49-$B$3),"") -> 
A50: 2069 | B50: 129 | D50: =VLOOKUP(B50,Lookups!A:B,2) -> 4581.943943 | E50: =VLOOKUP(B50,Lookups!A:C,3) -> 2278.897488 | G50: =VLOOKUP(B50,Lookups!A:D,4) -> 7393.880202 | H50: =VLOOKUP(B50,Lookups!A:E,5) -> 5013.956358 | J50: =VLOOKUP(A50,Trends!$A$3:$Q$94,IF(ExFlg=0,2,10))+Sens -> 1.046 | K50: 10.29008041 | L50: =VLOOKUP(A50,Trends!$A$3:$Q$94,IF(ExFlg=0,4,12))+Sens -> 1.045 | M50: 10.00997096 | N50: =VLOOKUP(A50,Trends!$A$3:$Z$94,IF(ExFlg=0,19,23))+Sens -> 1.045 | O50: 10.67570932 | P50: =VLOOKUP(A50,Trends!$A$3:$Q$94,IF(ExFlg=0,6,14))+Sens -> 1.046 | Q50: 10.44790289 | R50: =VLOOKUP(A50,Trends!$A$3:$Q$94,IF(ExFlg=0,8,16))+Sens -> 1.046 | S50: 10.8172175 | T50: =VLOOKUP(A50,Trends!$A$3:$Z$94,IF(ExFlg=0,21,25))+Sens -> 1.046 | U50: 11.64302264 | W50: 45865.12583 | X50: 24328.84716 | Y50: 21536.27867 | AA50: 79981.21033 | AB50: 58377.6074 | AC50: 21603.60292 | AE50: 21581.16173 | AG50: =IF($B50<121,VLOOKUP($B50,Lookups!A:I,8)*(1-VLOOKUP($B50,Lookups!$U$3:$W$103,2))^(B50-$B$3),"") ->  | AH50: =IF($B50<121,VLOOKUP($B50,Lookups!A:I,9)*(1-VLOOKUP($B50,Lookups!$U$3:$W$103,3))^(B50-$B$3),"") -> 
A51: 2070 | B51: 130 | D51: =VLOOKUP(B51,Lookups!A:B,2) -> 4581.943943 | E51: =VLOOKUP(B51,Lookups!A:C,3) -> 2278.897488 | G51: =VLOOKUP(B51,Lookups!A:D,4) -> 7393.880202 | H51: =VLOOKUP(B51,Lookups!A:E,5) -> 5013.956358 | J51: =VLOOKUP(A51,Trends!$A$3:$Q$94,IF(ExFlg=0,2,10))+Sens -> 1.045 | K51: 10.76342411 | L51: =VLOOKUP(A51,Trends!$A$3:$Q$94,IF(ExFlg=0,4,12))+Sens -> 1.045 | M51: 10.46041966 | N51: =VLOOKUP(A51,Trends!$A$3:$Z$94,IF(ExFlg=0,19,23))+Sens -> 1.045 | O51: 11.15611624 | P51: =VLOOKUP(A51,Trends!$A$3:$Q$94,IF(ExFlg=0,6,14))+Sens -> 1.045 | Q51: 10.92850642 | R51: =VLOOKUP(A51,Trends!$A$3:$Q$94,IF(ExFlg=0,8,16))+Sens -> 1.045 | S51: 11.31480951 | T51: =VLOOKUP(A51,Trends!$A$3:$Z$94,IF(ExFlg=0,21,25))+Sens -> 1.045 | U51: 12.17860168 | W51: 47929.05649 | X51: 25423.64528 | Y51: 22505.41121 | AA51: 83660.346 | AB51: 61062.97734 | AC51: 22597.36866 | AE51: 22566.71648 | AG51: =IF($B51<121,VLOOKUP($B51,Lookups!A:I,8)*(1-VLOOKUP($B51,Lookups!$U$3:$W$103,2))^(B51-$B$3),"") ->  | AH51: =IF($B51<121,VLOOKUP($B51,Lookups!A:I,9)*(1-VLOOKUP($B51,Lookups!$U$3:$W$103,3))^(B51-$B$3),"") -> 
A52: 2071 | B52: 131 | D52: =VLOOKUP(B52,Lookups!A:B,2) -> 4581.943943 | E52: =VLOOKUP(B52,Lookups!A:C,3) -> 2278.897488 | G52: =VLOOKUP(B52,Lookups!A:D,4) -> 7393.880202 | H52: =VLOOKUP(B52,Lookups!A:E,5) -> 5013.956358 | J52: =VLOOKUP(A52,Trends!$A$3:$Q$94,IF(ExFlg=0,2,10))+Sens -> 1.044 | K52: 11.2477782 | L52: =VLOOKUP(A52,Trends!$A$3:$Q$94,IF(ExFlg=0,4,12))+Sens -> 1.044 | M52: 10.93113854 | N52: =VLOOKUP(A52,Trends!$A$3:$Z$94,IF(ExFlg=0,19,23))+Sens -> 1.044 | O52: 11.65814147 | P52: =VLOOKUP(A52,Trends!$A$3:$Q$94,IF(ExFlg=0,6,14))+Sens -> 1.045 | Q52: 11.42028921 | R52: =VLOOKUP(A52,Trends!$A$3:$Q$94,IF(ExFlg=0,8,16))+Sens -> 1.044 | S52: 11.82397594 | T52: =VLOOKUP(A52,Trends!$A$3:$Z$94,IF(ExFlg=0,21,25))+Sens -> 1.044 | U52: 12.72663876 | W52: 50085.86403 | X52: 26567.70932 | Y52: 23518.15471 | AA52: 87425.06157 | AB52: 63810.81132 | AC52: 23614.25025 | AE52: 23582.21872 | AG52: =IF($B52<121,VLOOKUP($B52,Lookups!A:I,8)*(1-VLOOKUP($B52,Lookups!$U$3:$W$103,2))^(B52-$B$3),"") ->  | AH52: =IF($B52<121,VLOOKUP($B52,Lookups!A:I,9)*(1-VLOOKUP($B52,Lookups!$U$3:$W$103,3))^(B52-$B$3),"") -> 
A53: 2072 | B53: 132 | D53: =VLOOKUP(B53,Lookups!A:B,2) -> 4581.943943 | E53: =VLOOKUP(B53,Lookups!A:C,3) -> 2278.897488 | G53: =VLOOKUP(B53,Lookups!A:D,4) -> 7393.880202 | H53: =VLOOKUP(B53,Lookups!A:E,5) -> 5013.956358 | J53: =VLOOKUP(A53,Trends!$A$3:$Q$94,IF(ExFlg=0,2,10))+Sens -> 1.044 | K53: 11.74268044 | L53: =VLOOKUP(A53,Trends!$A$3:$Q$94,IF(ExFlg=0,4,12))+Sens -> 1.043 | M53: 11.41210864 | N53: =VLOOKUP(A53,Trends!$A$3:$Z$94,IF(ExFlg=0,19,23))+Sens -> 1.043 | O53: 12.1710997 | P53: =VLOOKUP(A53,Trends!$A$3:$Q$94,IF(ExFlg=0,6,14))+Sens -> 1.044 | Q53: 11.93420222 | R53: =VLOOKUP(A53,Trends!$A$3:$Q$94,IF(ExFlg=0,8,16))+Sens -> 1.044 | S53: 12.34423088 | T53: =VLOOKUP(A53,Trends!$A$3:$Z$94,IF(ExFlg=0,21,25))+Sens -> 1.044 | U53: 13.28661086 | W53: 52289.64205 | X53: 27736.68853 | Y53: 24552.95352 | AA53: 91271.76428 | AB53: 66618.48702 | AC53: 24653.27726 | AE53: 24619.83635 | AG53: =IF($B53<121,VLOOKUP($B53,Lookups!A:I,8)*(1-VLOOKUP($B53,Lookups!$U$3:$W$103,2))^(B53-$B$3),"") ->  | AH53: =IF($B53<121,VLOOKUP($B53,Lookups!A:I,9)*(1-VLOOKUP($B53,Lookups!$U$3:$W$103,3))^(B53-$B$3),"") -> 
A54: 2073 | B54: 133 | D54: =VLOOKUP(B54,Lookups!A:B,2) -> 4581.943943 | E54: =VLOOKUP(B54,Lookups!A:C,3) -> 2278.897488 | G54: =VLOOKUP(B54,Lookups!A:D,4) -> 7393.880202 | H54: =VLOOKUP(B54,Lookups!A:E,5) -> 5013.956358 | J54: =VLOOKUP(A54,Trends!$A$3:$Q$94,IF(ExFlg=0,2,10))+Sens -> 1.043 | K54: 12.25935838 | L54: =VLOOKUP(A54,Trends!$A$3:$Q$94,IF(ExFlg=0,4,12))+Sens -> 1.043 | M54: 11.90282931 | N54: =VLOOKUP(A54,Trends!$A$3:$Z$94,IF(ExFlg=0,19,23))+Sens -> 1.043 | O54: 12.69445699 | P54: =VLOOKUP(A54,Trends!$A$3:$Q$94,IF(ExFlg=0,6,14))+Sens -> 1.043 | Q54: 12.45930712 | R54: =VLOOKUP(A54,Trends!$A$3:$Q$94,IF(ExFlg=0,8,16))+Sens -> 1.043 | S54: 12.88737703 | T54: =VLOOKUP(A54,Trends!$A$3:$Z$94,IF(ExFlg=0,21,25))+Sens -> 1.043 | U54: 13.87122174 | W54: 54538.09666 | X54: 28929.36613 | Y54: 25608.73052 | AA54: 95287.72191 | AB54: 69549.70045 | AC54: 25738.02146 | AE54: 25694.92491 | AG54: =IF($B54<121,VLOOKUP($B54,Lookups!A:I,8)*(1-VLOOKUP($B54,Lookups!$U$3:$W$103,2))^(B54-$B$3),"") ->  | AH54: =IF($B54<121,VLOOKUP($B54,Lookups!A:I,9)*(1-VLOOKUP($B54,Lookups!$U$3:$W$103,3))^(B54-$B$3),"") -> 
A55: 2074 | B55: 134 | D55: =VLOOKUP(B55,Lookups!A:B,2) -> 4581.943943 | E55: =VLOOKUP(B55,Lookups!A:C,3) -> 2278.897488 | G55: =VLOOKUP(B55,Lookups!A:D,4) -> 7393.880202 | H55: =VLOOKUP(B55,Lookups!A:E,5) -> 5013.956358 | J55: =VLOOKUP(A55,Trends!$A$3:$Q$94,IF(ExFlg=0,2,10))+Sens -> 1.043 | K55: 12.78651079 | L55: =VLOOKUP(A55,Trends!$A$3:$Q$94,IF(ExFlg=0,4,12))+Sens -> 1.043 | M55: 12.41465097 | N55: =VLOOKUP(A55,Trends!$A$3:$Z$94,IF(ExFlg=0,19,23))+Sens -> 1.043 | O55: 13.24031864 | P55: =VLOOKUP(A55,Trends!$A$3:$Q$94,IF(ExFlg=0,6,14))+Sens -> 1.043 | Q55: 12.99505733 | R55: =VLOOKUP(A55,Trends!$A$3:$Q$94,IF(ExFlg=0,8,16))+Sens -> 1.043 | S55: 13.44153425 | T55: =VLOOKUP(A55,Trends!$A$3:$Z$94,IF(ExFlg=0,21,25))+Sens -> 1.043 | U55: 14.46768428 | W55: 56883.23481 | X55: 30173.32888 | Y55: 26709.90593 | AA55: 99385.09395 | AB55: 72540.33757 | AC55: 26844.75638 | AE55: 26799.80668 | AG55: =IF($B55<121,VLOOKUP($B55,Lookups!A:I,8)*(1-VLOOKUP($B55,Lookups!$U$3:$W$103,2))^(B55-$B$3),"") ->  | AH55: =IF($B55<121,VLOOKUP($B55,Lookups!A:I,9)*(1-VLOOKUP($B55,Lookups!$U$3:$W$103,3))^(B55-$B$3),"") -> 
A56: 2075 | B56: 135 | D56: =VLOOKUP(B56,Lookups!A:B,2) -> 4581.943943 | E56: =VLOOKUP(B56,Lookups!A:C,3) -> 2278.897488 | G56: =VLOOKUP(B56,Lookups!A:D,4) -> 7393.880202 | H56: =VLOOKUP(B56,Lookups!A:E,5) -> 5013.956358 | J56: =VLOOKUP(A56,Trends!$A$3:$Q$94,IF(ExFlg=0,2,10))+Sens -> 1.043 | K56: 13.33633075 | L56: =VLOOKUP(A56,Trends!$A$3:$Q$94,IF(ExFlg=0,4,12))+Sens -> 1.043 | M56: 12.94848096 | N56: =VLOOKUP(A56,Trends!$A$3:$Z$94,IF(ExFlg=0,19,23))+Sens -> 1.043 | O56: 13.80965234 | P56: =VLOOKUP(A56,Trends!$A$3:$Q$94,IF(ExFlg=0,6,14))+Sens -> 1.043 | Q56: 13.55384479 | R56: =VLOOKUP(A56,Trends!$A$3:$Q$94,IF(ExFlg=0,8,16))+Sens -> 1.043 | S56: 14.01952022 | T56: =VLOOKUP(A56,Trends!$A$3:$Z$94,IF(ExFlg=0,21,25))+Sens -> 1.043 | U56: 15.0897947 | W56: =IF(B56<65,D56*K56,D56*M56) -> 59329.21391 | X56: 31470.78202 | Y56: 27858.43189 | AA56: 103658.653 | AB56: 75659.57208 | AC56: 27999.08091 | AE56: 27952.19837 | AG56: =IF($B56<121,VLOOKUP($B56,Lookups!A:I,8)*(1-VLOOKUP($B56,Lookups!$U$3:$W$103,2))^(B56-$B$3),"") ->  | AH56: =IF($B56<121,VLOOKUP($B56,Lookups!A:I,9)*(1-VLOOKUP($B56,Lookups!$U$3:$W$103,3))^(B56-$B$3),"") -> 
A57: 2076 | B57: 136 | D57: =VLOOKUP(B57,Lookups!A:B,2) -> 4581.943943 | E57: =VLOOKUP(B57,Lookups!A:C,3) -> 2278.897488 | G57: =VLOOKUP(B57,Lookups!A:D,4) -> 7393.880202 | H57: =VLOOKUP(B57,Lookups!A:E,5) -> 5013.956358 | J57: =VLOOKUP(A57,Trends!$A$3:$Q$94,IF(ExFlg=0,2,10))+Sens -> 1.043 | K57: 13.90979298 | L57: =VLOOKUP(A57,Trends!$A$3:$Q$94,IF(ExFlg=0,4,12))+Sens -> 1.043 | M57: 13.50526564 | N57: =VLOOKUP(A57,Trends!$A$3:$Z$94,IF(ExFlg=0,19,23))+Sens -> 1.043 | O57: 14.40346739 | P57: =VLOOKUP(A57,Trends!$A$3:$Q$94,IF(ExFlg=0,6,14))+Sens -> 1.043 | Q57: 14.13666012 | R57: =VLOOKUP(A57,Trends!$A$3:$Q$94,IF(ExFlg=0,8,16))+Sens -> 1.043 | S57: 14.62235959 | T57: =VLOOKUP(A57,Trends!$A$3:$Z$94,IF(ExFlg=0,21,25))+Sens -> 1.043 | U57: 15.73865587 | W57: 61880.37011 | X57: 32824.02565 | Y57: 29056.34446 | AA57: 108115.9751 | AB57: 78912.93368 | AC57: 29203.04139 | AE57: 29154.1429 | AG57: =IF($B57<121,VLOOKUP($B57,Lookups!A:I,8)*(1-VLOOKUP($B57,Lookups!$U$3:$W$103,2))^(B57-$B$3),"") ->  | AH57: =IF($B57<121,VLOOKUP($B57,Lookups!A:I,9)*(1-VLOOKUP($B57,Lookups!$U$3:$W$103,3))^(B57-$B$3),"") -> 
A58: 2077 | B58: 137 | D58: =VLOOKUP(B58,Lookups!A:B,2) -> 4581.943943 | E58: =VLOOKUP(B58,Lookups!A:C,3) -> 2278.897488 | G58: =VLOOKUP(B58,Lookups!A:D,4) -> 7393.880202 | H58: =VLOOKUP(B58,Lookups!A:E,5) -> 5013.956358 | J58: =VLOOKUP(A58,Trends!$A$3:$Q$94,IF(ExFlg=0,2,10))+Sens -> 1.043 | K58: 14.50791407 | L58: =VLOOKUP(A58,Trends!$A$3:$Q$94,IF(ExFlg=0,4,12))+Sens -> 1.043 | M58: 14.08599207 | N58: =VLOOKUP(A58,Trends!$A$3:$Z$94,IF(ExFlg=0,19,23))+Sens -> 1.043 | O58: 15.02281648 | P58: =VLOOKUP(A58,Trends!$A$3:$Q$94,IF(ExFlg=0,6,14))+Sens -> 1.043 | Q58: 14.7445365 | R58: =VLOOKUP(A58,Trends!$A$3:$Q$94,IF(ExFlg=0,8,16))+Sens -> 1.043 | S58: 15.25112105 | T58: =VLOOKUP(A58,Trends!$A$3:$Z$94,IF(ExFlg=0,21,25))+Sens -> 1.043 | U58: 16.41541808 | W58: 64541.22602 | X58: 34235.45875 | Y58: 30305.76727 | AA58: 112764.962 | AB58: 82306.18983 | AC58: 30458.77216 | AE58: 30407.77104 | AG58: =IF($B58<121,VLOOKUP($B58,Lookups!A:I,8)*(1-VLOOKUP($B58,Lookups!$U$3:$W$103,2))^(B58-$B$3),"") ->  | AH58: =IF($B58<121,VLOOKUP($B58,Lookups!A:I,9)*(1-VLOOKUP($B58,Lookups!$U$3:$W$103,3))^(B58-$B$3),"") -> 
A59: 2078 | B59: 138 | D59: =VLOOKUP(B59,Lookups!A:B,2) -> 4581.943943 | E59: =VLOOKUP(B59,Lookups!A:C,3) -> 2278.897488 | G59: =VLOOKUP(B59,Lookups!A:D,4) -> 7393.880202 | H59: =VLOOKUP(B59,Lookups!A:E,5) -> 5013.956358 | J59: =VLOOKUP(A59,Trends!$A$3:$Q$94,IF(ExFlg=0,2,10))+Sens -> 1.043 | K59: 15.13175438 | L59: =VLOOKUP(A59,Trends!$A$3:$Q$94,IF(ExFlg=0,4,12))+Sens -> 1.043 | M59: 14.69168972 | N59: =VLOOKUP(A59,Trends!$A$3:$Z$94,IF(ExFlg=0,19,23))+Sens -> 1.043 | O59: 15.66879759 | P59: =VLOOKUP(A59,Trends!$A$3:$Q$94,IF(ExFlg=0,6,14))+Sens -> 1.043 | Q59: 15.37855157 | R59: =VLOOKUP(A59,Trends!$A$3:$Q$94,IF(ExFlg=0,8,16))+Sens -> 1.043 | S59: 15.90691926 | T59: =VLOOKUP(A59,Trends!$A$3:$Z$94,IF(ExFlg=0,21,25))+Sens -> 1.043 | U59: 17.12128105 | W59: 67316.49874 | X59: 35707.58348 | Y59: 31608.91526 | AA59: 117613.8554 | AB59: 85845.35599 | AC59: 31768.49937 | AE59: 31715.3052 | AG59: =IF($B59<121,VLOOKUP($B59,Lookups!A:I,8)*(1-VLOOKUP($B59,Lookups!$U$3:$W$103,2))^(B59-$B$3),"") ->  | AH59: =IF($B59<121,VLOOKUP($B59,Lookups!A:I,9)*(1-VLOOKUP($B59,Lookups!$U$3:$W$103,3))^(B59-$B$3),"") -> 
A60: 2079 | B60: 139 | D60: =VLOOKUP(B60,Lookups!A:B,2) -> 4581.943943 | E60: =VLOOKUP(B60,Lookups!A:C,3) -> 2278.897488 | G60: =VLOOKUP(B60,Lookups!A:D,4) -> 7393.880202 | H60: =VLOOKUP(B60,Lookups!A:E,5) -> 5013.956358 | J60: =VLOOKUP(A60,Trends!$A$3:$Q$94,IF(ExFlg=0,2,10))+Sens -> 1.043 | K60: 15.78241982 | L60: =VLOOKUP(A60,Trends!$A$3:$Q$94,IF(ExFlg=0,4,12))+Sens -> 1.043 | M60: 15.32343238 | N60: =VLOOKUP(A60,Trends!$A$3:$Z$94,IF(ExFlg=0,19,23))+Sens -> 1.043 | O60: 16.34255589 | P60: =VLOOKUP(A60,Trends!$A$3:$Q$94,IF(ExFlg=0,6,14))+Sens -> 1.043 | Q60: 16.03982929 | R60: =VLOOKUP(A60,Trends!$A$3:$Q$94,IF(ExFlg=0,8,16))+Sens -> 1.043 | S60: 16.59091678 | T60: =VLOOKUP(A60,Trends!$A$3:$Z$94,IF(ExFlg=0,21,25))+Sens -> 1.043 | U60: 17.85749614 | W60: 70211.10819 | X60: 37243.00957 | Y60: 32968.09862 | AA60: 122671.2511 | AB60: 89536.7063 | AC60: 33134.54484 | AE60: 33079.06332 | AG60: =IF($B60<121,VLOOKUP($B60,Lookups!A:I,8)*(1-VLOOKUP($B60,Lookups!$U$3:$W$103,2))^(B60-$B$3),"") ->  | AH60: =IF($B60<121,VLOOKUP($B60,Lookups!A:I,9)*(1-VLOOKUP($B60,Lookups!$U$3:$W$103,3))^(B60-$B$3),"") -> 
